Workbook

Sheet COVER
C2: Cover
C4: NAVIGATION
C6: COMMENTS
C9: Bonneville Power Administration
C10: 6P Energy Conservation Standards Savings Model
C11: Electric Clothes Dryers
C13: Product Description
C14: DOE defines “electric clothes dryer” under the Energy Policy and Conservation Act (EPCA) of 1975, Pub. L. 94-163, (42 United States Code (U.S.C.) 6291–6309) as “a cabinet-like appliance designed to dry fabrics in a tumble-type drum with forced air circulation. The heat source is electricity and the drum and blower(s) are driven by an electric motor(s).”
C16: Standard Compliance Year
C17: 2015, per DOE Final Rule (Amending Compliance Dates) published August 24, 2011
C19: Major changes from previous rulemaking (2009 effective standard)
C20: Restructured product classes and increased stringency from 1994 standards.
C22: 6P Baseline
C23: 1994 Standards are reflected in the 6P Baseline.
C25: Prepared By:
C26: Navigant Consulting | D26: Cadeo Group
C27: One Market Street | Spear Street Tower, Suite 1200 | D27: 840 First Street, Suite 300
C28: San Francisco, CA 94105 | D28: Washington, DC 20002

Sheet Definitions
C2: Definitions
C4: NAVIGATION
C6: COMMENTS
C9: Average Megawatt (aMW) | D9: The average number of megawatts over a specified time period
C10: Adjustment to 6P Baseline | D10: Adjustment to reconcile the 6P projected energy consumption and the modeled consumption calculated using best available data.
C11: Department of Energy Aggregate Lifecycle Savings | D11: Sum of 'Total First Year Savings'. This accounts for the cumulative savings in accordance with DOE Carbon Accounting Practices.
C12: Department of Energy Notice of Proposed Rulemaking (DOE NOPR) | D12: Federal Register notice detailing analyses conducted by the DOE to establish proposed energy conservation standards.
C13: Efficiency Level (EL) | D13: The discrete efficiency ratings of a product. Each efficiency level is associated with a different UEC.
C14: Efficiency Level Distribution | D14: The mix of various equipment efficiencies shipped in a given year.
C15: Incremental Savings | D15: Savings due to the higher standards for units installed in a particular year. First year savings are highest following the standards compliance year while the stock turns over, after which first year savings are only attributed to shipments associated with new construction.
C16: Governmental Regulatory Impact Model (GRIM) | D16: The industry cash flow model used by DOE to assess impacts on manufacturers due to proposed energy conservation standards
C17: Installed Unit Energy Consumption (Installed UEC) | D17: The average annual unit energy consumption of all installed units in a given year.
C18: Market Unit Energy Consumption (Market UEC) | D18: The average annual unit energy consumption of units shipped in a given year.
C19: National Impact Analysis (NIA) | D19: The energy impact analysis used by DOE to calculate energy savings associated with each standard.
C20: Pre-case | D20: The case representing 6P baseline assumptions where energy consumption due to the product accounts for shipment and shipment UEC by year, without the affect of standards announced following the development of the 6P.
C21: Post-case | D21: The case in which standards are implemented. If the 6P already captured the analyzed standard, the post-case will be the same as the pre-case.
C22: Product Class | D22: Product classificiation determined by product configuration, size, application, location, and other attributes that contribute to consumer utility. DOE is allowed to establish different standards for each product class.
C23: Product Class Distribution | D23: Market share/mix of each product class shipped in a given year.
C24: Product Lifetime | D24: The average time a given class of products stays in the field as part of the installed stock. Some products will last longer (delaying replacement) whereas others will fail and be retired earlier (accelerating replacement), but the lifetime represents the market average.
C25: Shipments | D25: Sales of products. This may be presented by product class, efficiency distribution, or delineated by other metrics. Shipments may be attributed to new construction and/or replacements and retrofits.
C26: Sixth Power Plan (6P) | D26: The Pacific Northwest Resource Plan published by the Northwest Power Conservation Council. The 6P timeframe is from 2010-2015.
C27: Sixth Power Plan Baseline (6P Baseline) | D27: The 6P assumes equipment efficiency and shipment units in the region. When available, the 6P assumptions are the baseline for each standard impact analysis.
C28: Standard Compliance Year | D28: The year when the appliance standard goes into effect.
C29: Stock | D29: All units installed in previous years which remain in operation.
C30: Technical Support Document (TSD) | D30: TSDs are published by the DOE as companion documents to Federal Register notices (e.g., ANOPRs/preliminary analyses and NOPRs). The TSDs include technical detail that supports the notices. The final rule TSD includes the discussion of the Manufacturer Impact Analysis (MIA) and National Impact Analysis (NIA).
C31: Cumulative Savings through 2034 | D31: The sum of incremental savings from 2010 through 2034
C32: Trial Standard Level (TSL) | D32: A proposed efficiency standard evaluated by DOE during the NOPR and Final Rule phase analyses. A TSL may specify different standard efficiency levels for each product class included in the rulemaking.

Sheet Comments
C2: Comments
C4: NAVIGATION
C7: Tab | D7: Comment
C8: Example | D8: Please use this space to document your comments as you review the model. We look forward to receiving your feedback. Thank you.

Sheet Navigation
C2: NAVIGATION
C4: COMMENTS
C7: INFORMATION TABS | E7: INPUT TABS | G7: UEC CALCULATIONS | I7: RESULTS | K7: CHARTS
C9: COVER | E9: PRODUCT CLASSES
C11: DEFINITIONS | E11: EFFICIENCY LEVELS | G11: UEC DEVELOPMENT
C13: COMMENTS | E13: DATA BY BUILDING TYPE
C15: NAVIGATION | E15: PRODUCT CLASS DISTRIBUTION
C17: CENTRAL RESIDENTIAL MODEL (EXTERNAL) | E17: SHIPMENTS AND STOCK - SF | G17: UEC - SF | I17: RESULTS - SF | K17: CHARTS - SF
E19: EFFICIENCY DISTRIBUTION - SF
E21: SHIPMENTS AND STOCK - MF | G21: UEC - MF | I21: RESULTS - MF | K21: CHARTS - MF
E23: EFFICIENCY DISTRIBUTION - MF
E25: SHIPMENTS AND STOCK - MH | G25: UEC - MH | I25: RESULTS - MH | K25: CHARTS - MH
E27: EFFICIENCY DISTRIBUTION - MH
E29: 6P UEC DEVELOPMENT | I29: RESULTS - TH | K29: CHARTS - ALL
E31: CONSTANTS
I33: SUMMARY RESULTS

Sheet Product Classes
C2: Selection of Product Classes for Model
C4: NAVIGATION
C6: COMMENTS
C9: All Product Classes (PCs) | D9: 2011 DOE Final Rule PCs 1 | E9: DOE Representative PCs 1 | F9: 6P PCs 2 | H9: Model PCs | I9: Rationale 3
C10: Vented Electric, Standard (4.4 ft3 or greater capacity) | D10: PC1 | E10: PC1 | F10: PC1 | H10: PC1 | I10: Product class represents over 97% of shipments of electric products
C11: Vented Electric, Compact (120V) (less than 4.4 ft3 capacity) | D11: PC2 | E11: PC2
C12: Vented Electric, Compact (240V) (less than 4.4 ft3 capacity) | D12: PC3 | E12: PC3
C13: Vented Gas | D13: PC4 | E13: PC4
C14: Ventless Electric, Compact (240V) (less than 4.4 ft3 capacity) | D14: PC5 | E14: PC5
C15: Ventless Electric Combination Washer/Dryer | D15: PC6 | E15: PC6
C17: Sources
C18: 1. 2011 DOE Direct Final Rule: Table I-1—Amended Energy Conservation Standards for Residential Clothes Dryers and Room Air Conditioners
C19: 2. 6P Conservation Supply Curve Files: Clothes Washers and Dryers - Single Family
C20: 3. 2011 DOE Direct Final Rule: Technical Support Document Chapter 9, Table 9.3.1 Clothes Dryer Product Class Market Shares

Sheet Efficiency Levels
C2: Efficiency Levels and Standards for Each Product Class
C4: NAVIGATION
C6: COMMENTS
C9: PC1 | D9: =OFFSET('Product Classes'!$C$9,MATCH(C9,'Product Classes'!$H$10:$H$15,0),0) -> Vented Electric, Standard (4.4 ft3 or greater capacity)
C11: Model ELs | D11: Integrated Energy Factor (IEF) (lbs/kWh) 1 | E11: Standard Compliance Year 2 | F11: Model Efficiency Levels 1
C12: EL0 | D12: 3.55 | E12: 1994 | F12: 1994 DOE Standard +2.0 W Standby
C13: EL1 | D13: 3.56 | F13: 1994 DOE Standard +1.5 W Standby
C14: EL2 | D14: 3.61 | F14: 1994 DOE Standard +0.08 W Standby
C15: EL3 | D15: 3.73 | E15: 2015 | F15: Gap Fill +0.08W Standby
C16: EL4 | D16: 3.81 | F16: Gap Fill +0.08W Standby
C17: EL5 | D17: 4.08 | F17: Gap Fill/Maximum Available +0.08W Standby
C18: EL6 | D18: 5.42 | F18: Heat Pump (Max-Tech) +0.08W Standby
C20: Sources | D20: 1. 2011 DOE Direct Final Rule Technical Support Document Chapter 5: Table 5.4.25 Clothes Dryer Integrated Efficiency Levels (CEF) – Vented Product Classes
D21: 2. 2011 DOE Residential Clothes Dryers Direct Final Rule Amending Compliance Dates (page 2)

Sheet Data by Building Type
C2: Data by Building Type
C4: NAVIGATION
C6: COMMENTS
C9: =MODEL_NAME -> Electric Clothes Dryers | D9: Single Family | E9: Multi-Family | F9: Manufactured Homes | G9: Total Homes | H9: Source
C10: Lifetime (years) | D10: =ROUND(INDEX([1]!LIFETIMES_TABLE, MATCH($C$9,[1]!APPLIANCES,0), MATCH(D9,[1]!LIFETIMES_HOUSING_TYPE,0)),0) -> 16 | E10: =ROUND(INDEX([1]!LIFETIMES_TABLE, MATCH($C$9,[1]!APPLIANCES,0), MATCH(E9,[1]!LIFETIMES_HOUSING_TYPE,0)),0) -> 16 | F10: =ROUND(INDEX([1]!LIFETIMES_TABLE, MATCH($C$9,[1]!APPLIANCES,0), MATCH(F9,[1]!LIFETIMES_HOUSING_TYPE,0)),0) -> 16 | G10: =ROUND(INDEX([1]!LIFETIMES_TABLE, MATCH($C$9,[1]!APPLIANCES,0), MATCH(G9,[1]!LIFETIMES_HOUSING_TYPE,0)),0) -> 16 | H10: 2011 DOE Clothes Dryer Direct Final Rule: Technical Support Document Chapter 9: Shipments Analysis - Section 9.3.1.2 Markets and Model Calibration "lifetime distribution with an average value of 16 years"
C14: Cycles per Year | D14: Single Family | E14: Multi-Family | F14: Manufactured Homes | G14: Total Homes | H14: Source
C15: Cycles per Year | D15: =$G$15 -> 311 | E15: 311 | F15: =$G$15 -> 311 | G15: 311 | H15: 2014 NEEA Dryer Field Study: Section 3.4.8. Loads per Year (page 38)
C19: Load Characteristics | D19: Single Family | E19: Multi-Family | F19: Manufactured Homes | G19: Total Homes | H19: Source
C20: Average Bone-Dry Weight (lbs) | D20: =$G20 -> 7.64 | E20: =$G20 -> 7.64 | F20: =$G20 -> 7.64 | G20: 7.64 | H20: 2014 NEEA Dryer Field Study: Appendix A5.2. Dryer Load Characteristics - Table 33. Dryer Load Characteristics
C24: Clothes Dryer Energy Use by Vintage
C26: Manufacture Date Bin | D26: Single Family | E26: Multi-Family | F26: Manufactured Homes | G26: Total Homes | H26: Source
C27: 1990-1994 | D27: =$G27 -> 624.2 | E27: =$G27 -> 624.2 | F27: 624.2 | G27: 624.2 | H27: 2014 NEEA Residential Building Stock Assessment: Metering Study, Table 48. Annual Clothes Dryer Energy Use by Vintage
C28: 1995-1999 | D28: =$G28 -> 721.7 | E28: 721.7 | F28: 721.7 | G28: 721.7
C29: 2000-2004 | D29: 775.2 | E29: 775.2 | F29: 775.2 | G29: 775.2
C30: 2005-2009 | D30: 832.8 | E30: 832.8 | F30: 832.8 | G30: 832.8
C31: Post 2009 | D31: 635.5 | E31: 635.5 | F31: 635.5 | G31: 635.5
C32: Total | D32: 761.8 | E32: 761.8 | F32: 761.8 | G32: 761.8

Sheet Product Class Dist
C2: Product Class Distributions
C4: NAVIGATION
C6: COMMENTS
C9: PRE-Case | D9: 1990 | E9: =D9+1 -> 1991 | F9: =E9+1 -> 1992 | G9: 1993 | H9: 1994 | I9: 1995 | J9: 1996 | K9: 1997 | L9: 1998 | M9: 1999 | N9: 2000 | O9: 2001 | P9: 2002 | Q9: 2003 | R9: 2004 | S9: 2005 | T9: 2006 | U9: 2007 | V9: 2008 | W9: =V9+1 -> 2009 | X9: 2010 | Y9: 2011 | Z9: 2012 | AA9: 2013 | AB9: 2014 | AC9: 2015 | AD9: 2016 | AE9: 2017 | AF9: 2018 | AG9: 2019 | AH9: 2020 | AI9: 2021 | AJ9: 2022 | AK9: 2023 | AL9: 2024 | AM9: 2025 | AN9: 2026 | AO9: 2027 | AP9: 2028 | AQ9: 2029 | AR9: 2030 | AS9: 2031 | AT9: 2032 | AU9: 2033 | AV9: 2034
C10: ='Product Classes'!H10&" - "&OFFSET('Product Classes'!$C$9,MATCH('Product Classes'!H10,MODEL_PCS,0),0) -> PC1 - Vented Electric, Standard (4.4 ft3 or greater capacity) | D10: 1 | E10: 1 | F10: 1 | G10: 1 | H10: 1 | I10: 1 | J10: 1 | K10: 1 | L10: 1 | M10: 1 | N10: 1 | O10: 1 | P10: 1 | Q10: 1 | R10: 1 | S10: 1 | T10: 1 | U10: 1 | V10: 1 | W10: 1 | X10: 1 | Y10: 1 | Z10: 1 | AA10: 1 | AB10: 1 | AC10: 1 | AD10: 1 | AE10: 1 | AF10: 1 | AG10: 1 | AH10: 1 | AI10: 1 | AJ10: 1 | AK10: 1 | AL10: 1 | AM10: 1 | AN10: 1 | AO10: 1 | AP10: 1 | AQ10: 1 | AR10: 1 | AS10: 1 | AT10: 1 | AU10: 1 | AV10: 1
C12: POST-Case | D12: 1990 | E12: =D12+1 -> 1991 | F12: 1992 | G12: 1993 | H12: 1994 | I12: 1995 | J12: 1996 | K12: 1997 | L12: 1998 | M12: 1999 | N12: 2000 | O12: 2001 | P12: 2002 | Q12: 2003 | R12: 2004 | S12: 2005 | T12: 2006 | U12: 2007 | V12: 2008 | W12: 2009 | X12: 2010 | Y12: 2011 | Z12: 2012 | AA12: 2013 | AB12: 2014 | AC12: 2015 | AD12: 2016 | AE12: 2017 | AF12: 2018 | AG12: 2019 | AH12: 2020 | AI12: 2021 | AJ12: 2022 | AK12: 2023 | AL12: 2024 | AM12: 2025 | AN12: 2026 | AO12: 2027 | AP12: 2028 | AQ12: 2029 | AR12: 2030 | AS12: 2031 | AT12: 2032 | AU12: 2033 | AV12: 2034
C13: ='Product Classes'!H10&" - "&OFFSET('Product Classes'!$C$9,MATCH('Product Classes'!H10,MODEL_PCS,0),0) -> PC1 - Vented Electric, Standard (4.4 ft3 or greater capacity) | D13: 1 | E13: 1 | F13: 1 | G13: 1 | H13: 1 | I13: 1 | J13: 1 | K13: 1 | L13: 1 | M13: 1 | N13: 1 | O13: 1 | P13: 1 | Q13: 1 | R13: 1 | S13: 1 | T13: 1 | U13: 1 | V13: 1 | W13: 1 | X13: 1 | Y13: 1 | Z13: 1 | AA13: 1 | AB13: 1 | AC13: 1 | AD13: 1 | AE13: 1 | AF13: 1 | AG13: 1 | AH13: 1 | AI13: 1 | AJ13: 1 | AK13: 1 | AL13: 1 | AM13: 1 | AN13: 1 | AO13: 1 | AP13: 1 | AQ13: 1 | AR13: 1 | AS13: 1 | AT13: 1 | AU13: 1 | AV13: 1
C15: Source/Rationale | D15: Only product class included in model, no switching

Sheet Shipments and Stock - SF
C2: Shipments and Stock - SF
C4: NAVIGATION
C6: COMMENTS
C9: =MODEL_NAME -> Electric Clothes Dryers
E10: 1981 | F10: 1982 | G10: 1983 | H10: 1984 | I10: 1985 | J10: 1986 | K10: 1987 | L10: 1988 | M10: 1989 | N10: 1990 | O10: 1991 | P10: 1992 | Q10: 1993 | R10: 1994 | S10: 1995 | T10: 1996 | U10: 1997 | V10: 1998 | W10: 1999 | X10: 2000 | Y10: 2001 | Z10: 2002 | AA10: 2003 | AB10: 2004 | AC10: 2005 | AD10: 2006 | AE10: 2007 | AF10: 2008 | AG10: 2009 | AH10: 2010 | AI10: 2011 | AJ10: 2012 | AK10: 2013 | AL10: 2014 | AM10: 2015 | AN10: 2016 | AO10: 2017 | AP10: 2018 | AQ10: 2019 | AR10: 2020 | AS10: 2021 | AT10: 2022 | AU10: 2023 | AV10: 2024 | AW10: 2025 | AX10: 2026 | AY10: 2027 | AZ10: 2028 | BA10: 2029 | BB10: 2030 | BC10: 2031 | BD10: 2032 | BE10: 2033 | BF10: 2034
C11: 6P Shipments | D11: (units) | E11: =IF(ISNUMBER(MATCH(E10,[1]!SIXTH_PLAN_SF_YEARS,0)), INDEX([1]!SIXTH_PLAN_SF, MATCH($C$9,[1]!APPLIANCES,0), MATCH(E$10,[1]!SIXTH_PLAN_SF_YEARS,0)),"pre-dates plan") -> pre-dates plan | F11: =IF(ISNUMBER(MATCH(F10,[1]!SIXTH_PLAN_SF_YEARS,0)), INDEX([1]!SIXTH_PLAN_SF, MATCH($C$9,[1]!APPLIANCES,0), MATCH(F$10,[1]!SIXTH_PLAN_SF_YEARS,0)),"pre-dates plan") -> pre-dates plan | G11: =IF(ISNUMBER(MATCH(G10,[1]!SIXTH_PLAN_SF_YEARS,0)), INDEX([1]!SIXTH_PLAN_SF, MATCH($C$9,[1]!APPLIANCES,0), MATCH(G$10,[1]!SIXTH_PLAN_SF_YEARS,0)),"pre-dates plan") -> pre-dates plan | H11: =IF(ISNUMBER(MATCH(H10,[1]!SIXTH_PLAN_SF_YEARS,0)), INDEX([1]!SIXTH_PLAN_SF, MATCH($C$9,[1]!APPLIANCES,0), MATCH(H$10,[1]!SIXTH_PLAN_SF_YEARS,0)),"pre-dates plan") -> pre-dates plan | I11: =IF(ISNUMBER(MATCH(I10,[1]!SIXTH_PLAN_SF_YEARS,0)), INDEX([1]!SIXTH_PLAN_SF, MATCH($C$9,[1]!APPLIANCES,0), MATCH(I$10,[1]!SIXTH_PLAN_SF_YEARS,0)),"pre-dates plan") -> pre-dates plan | J11: =IF(ISNUMBER(MATCH(J10,[1]!SIXTH_PLAN_SF_YEARS,0)), INDEX([1]!SIXTH_PLAN_SF, MATCH($C$9,[1]!APPLIANCES,0), MATCH(J$10,[1]!SIXTH_PLAN_SF_YEARS,0)),"pre-dates plan") -> pre-dates plan | K11: =IF(ISNUMBER(MATCH(K10,[1]!SIXTH_PLAN_SF_YEARS,0)), INDEX([1]!SIXTH_PLAN_SF, MATCH($C$9,[1]!APPLIANCES,0), MATCH(K$10,[1]!SIXTH_PLAN_SF_YEARS,0)),"pre-dates plan") -> pre-dates plan | L11: =IF(ISNUMBER(MATCH(L10,[1]!SIXTH_PLAN_SF_YEARS,0)), INDEX([1]!SIXTH_PLAN_SF, MATCH($C$9,[1]!APPLIANCES,0), MATCH(L$10,[1]!SIXTH_PLAN_SF_YEARS,0)),"pre-dates plan") -> pre-dates plan | M11: =IF(ISNUMBER(MATCH(M10,[1]!SIXTH_PLAN_SF_YEARS,0)), INDEX([1]!SIXTH_PLAN_SF, MATCH($C$9,[1]!APPLIANCES,0), MATCH(M$10,[1]!SIXTH_PLAN_SF_YEARS,0)),"pre-dates plan") -> pre-dates plan | N11: =IF(ISNUMBER(MATCH(N10,[1]!SIXTH_PLAN_SF_YEARS,0)), INDEX([1]!SIXTH_PLAN_SF, MATCH($C$9,[1]!APPLIANCES,0), MATCH(N$10,[1]!SIXTH_PLAN_SF_YEARS,0)),"pre-dates plan") -> pre-dates plan | O11: =IF(ISNUMBER(MATCH(O10,[1]!SIXTH_PLAN_SF_YEARS,0)), INDEX([1]!SIXTH_PLAN_SF, MATCH($C$9,[1]!APPLIANCES,0), MATCH(O$10,[1]!SIXTH_PLAN_SF_YEARS,0)),"pre-dates plan") -> pre-dates plan | P11: =IF(ISNUMBER(MATCH(P10,[1]!SIXTH_PLAN_SF_YEARS,0)), INDEX([1]!SIXTH_PLAN_SF, MATCH($C$9,[1]!APPLIANCES,0), MATCH(P$10,[1]!SIXTH_PLAN_SF_YEARS,0)),"pre-dates plan") -> pre-dates plan | Q11: =IF(ISNUMBER(MATCH(Q10,[1]!SIXTH_PLAN_SF_YEARS,0)), INDEX([1]!SIXTH_PLAN_SF, MATCH($C$9,[1]!APPLIANCES,0), MATCH(Q$10,[1]!SIXTH_PLAN_SF_YEARS,0)),"pre-dates plan") -> pre-dates plan | R11: =IF(ISNUMBER(MATCH(R10,[1]!SIXTH_PLAN_SF_YEARS,0)), INDEX([1]!SIXTH_PLAN_SF, MATCH($C$9,[1]!APPLIANCES,0), MATCH(R$10,[1]!SIXTH_PLAN_SF_YEARS,0)),"pre-dates plan") -> pre-dates plan | S11: =IF(ISNUMBER(MATCH(S10,[1]!SIXTH_PLAN_SF_YEARS,0)), INDEX([1]!SIXTH_PLAN_SF, MATCH($C$9,[1]!APPLIANCES,0), MATCH(S$10,[1]!SIXTH_PLAN_SF_YEARS,0)),"pre-dates plan") -> pre-dates plan | T11: =IF(ISNUMBER(MATCH(T10,[1]!SIXTH_PLAN_SF_YEARS,0)), INDEX([1]!SIXTH_PLAN_SF, MATCH($C$9,[1]!APPLIANCES,0), MATCH(T$10,[1]!SIXTH_PLAN_SF_YEARS,0)),"pre-dates plan") -> pre-dates plan | U11: =IF(ISNUMBER(MATCH(U10,[1]!SIXTH_PLAN_SF_YEARS,0)), INDEX([1]!SIXTH_PLAN_SF, MATCH($C$9,[1]!APPLIANCES,0), MATCH(U$10,[1]!SIXTH_PLAN_SF_YEARS,0)),"pre-dates plan") -> pre-dates plan | V11: =IF(ISNUMBER(MATCH(V10,[1]!SIXTH_PLAN_SF_YEARS,0)), INDEX([1]!SIXTH_PLAN_SF, MATCH($C$9,[1]!APPLIANCES,0), MATCH(V$10,[1]!SIXTH_PLAN_SF_YEARS,0)),"pre-dates plan") -> pre-dates plan | W11: =IF(ISNUMBER(MATCH(W10,[1]!SIXTH_PLAN_SF_YEARS,0)), INDEX([1]!SIXTH_PLAN_SF, MATCH($C$9,[1]!APPLIANCES,0), MATCH(W$10,[1]!SIXTH_PLAN_SF_YEARS,0)),"pre-dates plan") -> pre-dates plan | X11: =IF(ISNUMBER(MATCH(X10,[1]!SIXTH_PLAN_SF_YEARS,0)), INDEX([1]!SIXTH_PLAN_SF, MATCH($C$9,[1]!APPLIANCES,0), MATCH(X$10,[1]!SIXTH_PLAN_SF_YEARS,0)),"pre-dates plan") -> pre-dates plan | Y11: =IF(ISNUMBER(MATCH(Y10,[1]!SIXTH_PLAN_SF_YEARS,0)), INDEX([1]!SIXTH_PLAN_SF, MATCH($C$9,[1]!APPLIANCES,0), MATCH(Y$10,[1]!SIXTH_PLAN_SF_YEARS,0)),"pre-dates plan") -> pre-dates plan | Z11: =IF(ISNUMBER(MATCH(Z10,[1]!SIXTH_PLAN_SF_YEARS,0)), INDEX([1]!SIXTH_PLAN_SF, MATCH($C$9,[1]!APPLIANCES,0), MATCH(Z$10,[1]!SIXTH_PLAN_SF_YEARS,0)),"pre-dates plan") -> pre-dates plan | AA11: =IF(ISNUMBER(MATCH(AA10,[1]!SIXTH_PLAN_SF_YEARS,0)), INDEX([1]!SIXTH_PLAN_SF, MATCH($C$9,[1]!APPLIANCES,0), MATCH(AA$10,[1]!SIXTH_PLAN_SF_YEARS,0)),"pre-dates plan") -> pre-dates plan | AB11: =IF(ISNUMBER(MATCH(AB10,[1]!SIXTH_PLAN_SF_YEARS,0)), INDEX([1]!SIXTH_PLAN_SF, MATCH($C$9,[1]!APPLIANCES,0), MATCH(AB$10,[1]!SIXTH_PLAN_SF_YEARS,0)),"pre-dates plan") -> pre-dates plan | AC11: =IF(ISNUMBER(MATCH(AC10,[1]!SIXTH_PLAN_SF_YEARS,0)), INDEX([1]!SIXTH_PLAN_SF, MATCH($C$9,[1]!APPLIANCES,0), MATCH(AC$10,[1]!SIXTH_PLAN_SF_YEARS,0)),"pre-dates plan") -> pre-dates plan | AD11: =IF(ISNUMBER(MATCH(AD10,[1]!SIXTH_PLAN_SF_YEARS,0)), INDEX([1]!SIXTH_PLAN_SF, MATCH($C$9,[1]!APPLIANCES,0), MATCH(AD$10,[1]!SIXTH_PLAN_SF_YEARS,0)),"pre-dates plan") -> pre-dates plan | AE11: =IF(ISNUMBER(MATCH(AE10,[1]!SIXTH_PLAN_SF_YEARS,0)), INDEX([1]!SIXTH_PLAN_SF, MATCH($C$9,[1]!APPLIANCES,0), MATCH(AE$10,[1]!SIXTH_PLAN_SF_YEARS,0)),"pre-dates plan") -> pre-dates plan | AF11: =IF(ISNUMBER(MATCH(AF10,[1]!SIXTH_PLAN_SF_YEARS,0)), INDEX([1]!SIXTH_PLAN_SF, MATCH($C$9,[1]!APPLIANCES,0), MATCH(AF$10,[1]!SIXTH_PLAN_SF_YEARS,0)),"pre-dates plan") -> pre-dates plan | AG11: =IF(ISNUMBER(MATCH(AG10,[1]!SIXTH_PLAN_SF_YEARS,0)), INDEX([1]!SIXTH_PLAN_SF, MATCH($C$9,[1]!APPLIANCES,0), MATCH(AG$10,[1]!SIXTH_PLAN_SF_YEARS,0)),"pre-dates plan") -> pre-dates plan | AH11: =IF(ISNUMBER(MATCH(AH10,[1]!SIXTH_PLAN_SF_YEARS,0)), INDEX([1]!SIXTH_PLAN_SF, MATCH($C$9,[1]!APPLIANCES,0), MATCH(AH$10,[1]!SIXTH_PLAN_SF_YEARS,0)),"pre-dates plan") -> 277293.6452 | AI11: =IF(ISNUMBER(MATCH(AI10,[1]!SIXTH_PLAN_SF_YEARS,0)), INDEX([1]!SIXTH_PLAN_SF, MATCH($C$9,[1]!APPLIANCES,0), MATCH(AI$10,[1]!SIXTH_PLAN_SF_YEARS,0)),"pre-dates plan") -> 290696.7984 | AJ11: =IF(ISNUMBER(MATCH(AJ10,[1]!SIXTH_PLAN_SF_YEARS,0)), INDEX([1]!SIXTH_PLAN_SF, MATCH($C$9,[1]!APPLIANCES,0), MATCH(AJ$10,[1]!SIXTH_PLAN_SF_YEARS,0)),"pre-dates plan") -> 298404.3657 | AK11: =IF(ISNUMBER(MATCH(AK10,[1]!SIXTH_PLAN_SF_YEARS,0)), INDEX([1]!SIXTH_PLAN_SF, MATCH($C$9,[1]!APPLIANCES,0), MATCH(AK$10,[1]!SIXTH_PLAN_SF_YEARS,0)),"pre-dates plan") -> 299831.5997 | AL11: =IF(ISNUMBER(MATCH(AL10,[1]!SIXTH_PLAN_SF_YEARS,0)), INDEX([1]!SIXTH_PLAN_SF, MATCH($C$9,[1]!APPLIANCES,0), MATCH(AL$10,[1]!SIXTH_PLAN_SF_YEARS,0)),"pre-dates plan") -> 299423.6148 | AM11: =IF(ISNUMBER(MATCH(AM10,[1]!SIXTH_PLAN_SF_YEARS,0)), INDEX([1]!SIXTH_PLAN_SF, MATCH($C$9,[1]!APPLIANCES,0), MATCH(AM$10,[1]!SIXTH_PLAN_SF_YEARS,0)),"pre-dates plan") -> 299602.0918 | AN11: =IF(ISNUMBER(MATCH(AN10,[1]!SIXTH_PLAN_SF_YEARS,0)), INDEX([1]!SIXTH_PLAN_SF, MATCH($C$9,[1]!APPLIANCES,0), MATCH(AN$10,[1]!SIXTH_PLAN_SF_YEARS,0)),"pre-dates plan") -> 303915.9326 | AO11: =IF(ISNUMBER(MATCH(AO10,[1]!SIXTH_PLAN_SF_YEARS,0)), INDEX([1]!SIXTH_PLAN_SF, MATCH($C$9,[1]!APPLIANCES,0), MATCH(AO$10,[1]!SIXTH_PLAN_SF_YEARS,0)),"pre-dates plan") -> 302831.0867 | AP11: =IF(ISNUMBER(MATCH(AP10,[1]!SIXTH_PLAN_SF_YEARS,0)), INDEX([1]!SIXTH_PLAN_SF, MATCH($C$9,[1]!APPLIANCES,0), MATCH(AP$10,[1]!SIXTH_PLAN_SF_YEARS,0)),"pre-dates plan") -> 301619.2371 | AQ11: =IF(ISNUMBER(MATCH(AQ10,[1]!SIXTH_PLAN_SF_YEARS,0)), INDEX([1]!SIXTH_PLAN_SF, MATCH($C$9,[1]!APPLIANCES,0), MATCH(AQ$10,[1]!SIXTH_PLAN_SF_YEARS,0)),"pre-dates plan") -> 300313.1805 | AR11: =IF(ISNUMBER(MATCH(AR10,[1]!SIXTH_PLAN_SF_YEARS,0)), INDEX([1]!SIXTH_PLAN_SF, MATCH($C$9,[1]!APPLIANCES,0), MATCH(AR$10,[1]!SIXTH_PLAN_SF_YEARS,0)),"pre-dates plan") -> 299326.8411 | AS11: =IF(ISNUMBER(MATCH(AS10,[1]!SIXTH_PLAN_SF_YEARS,0)), INDEX([1]!SIXTH_PLAN_SF, MATCH($C$9,[1]!APPLIANCES,0), MATCH(AS$10,[1]!SIXTH_PLAN_SF_YEARS,0)),"pre-dates plan") -> 297827.7189 | AT11: =IF(ISNUMBER(MATCH(AT10,[1]!SIXTH_PLAN_SF_YEARS,0)), INDEX([1]!SIXTH_PLAN_SF, MATCH($C$9,[1]!APPLIANCES,0), MATCH(AT$10,[1]!SIXTH_PLAN_SF_YEARS,0)),"pre-dates plan") -> 296835.775 | AU11: =IF(ISNUMBER(MATCH(AU10,[1]!SIXTH_PLAN_SF_YEARS,0)), INDEX([1]!SIXTH_PLAN_SF, MATCH($C$9,[1]!APPLIANCES,0), MATCH(AU$10,[1]!SIXTH_PLAN_SF_YEARS,0)),"pre-dates plan") -> 296120.5751 | AV11: =IF(ISNUMBER(MATCH(AV10,[1]!SIXTH_PLAN_SF_YEARS,0)), INDEX([1]!SIXTH_PLAN_SF, MATCH($C$9,[1]!APPLIANCES,0), MATCH(AV$10,[1]!SIXTH_PLAN_SF_YEARS,0)),"pre-dates plan") -> 53311.11065 | AW11: =IF(ISNUMBER(MATCH(AW10,[1]!SIXTH_PLAN_SF_YEARS,0)), INDEX([1]!SIXTH_PLAN_SF, MATCH($C$9,[1]!APPLIANCES,0), MATCH(AW$10,[1]!SIXTH_PLAN_SF_YEARS,0)),"pre-dates plan") -> 53129.27316 | AX11: =IF(ISNUMBER(MATCH(AX10,[1]!SIXTH_PLAN_SF_YEARS,0)), INDEX([1]!SIXTH_PLAN_SF, MATCH($C$9,[1]!APPLIANCES,0), MATCH(AX$10,[1]!SIXTH_PLAN_SF_YEARS,0)),"pre-dates plan") -> 52646.13866 | AY11: =IF(ISNUMBER(MATCH(AY10,[1]!SIXTH_PLAN_SF_YEARS,0)), INDEX([1]!SIXTH_PLAN_SF, MATCH($C$9,[1]!APPLIANCES,0), MATCH(AY$10,[1]!SIXTH_PLAN_SF_YEARS,0)),"pre-dates plan") -> 51613.36853 | AZ11: =IF(ISNUMBER(MATCH(AZ10,[1]!SIXTH_PLAN_SF_YEARS,0)), INDEX([1]!SIXTH_PLAN_SF, MATCH($C$9,[1]!APPLIANCES,0), MATCH(AZ$10,[1]!SIXTH_PLAN_SF_YEARS,0)),"pre-dates plan") -> 50269.36413 | BA11: =IF(ISNUMBER(MATCH(BA10,[1]!SIXTH_PLAN_SF_YEARS,0)), INDEX([1]!SIXTH_PLAN_SF, MATCH($C$9,[1]!APPLIANCES,0), MATCH(BA$10,[1]!SIXTH_PLAN_SF_YEARS,0)),"pre-dates plan") -> 49352.9902 | BB11: =IF(ISNUMBER(MATCH(BB10,[1]!SIXTH_PLAN_SF_YEARS,0)), INDEX([1]!SIXTH_PLAN_SF, MATCH($C$9,[1]!APPLIANCES,0), MATCH(BB$10,[1]!SIXTH_PLAN_SF_YEARS,0)),"pre-dates plan") -> 49154.80623 | BC11: =IF(ISNUMBER(MATCH(BC10,[1]!SIXTH_PLAN_SF_YEARS,0)), INDEX([1]!SIXTH_PLAN_SF, MATCH($C$9,[1]!APPLIANCES,0), MATCH(BC$10,[1]!SIXTH_PLAN_SF_YEARS,0)),"pre-dates plan") -> 49154.80623 | BD11: =IF(ISNUMBER(MATCH(BD10,[1]!SIXTH_PLAN_SF_YEARS,0)), INDEX([1]!SIXTH_PLAN_SF, MATCH($C$9,[1]!APPLIANCES,0), MATCH(BD$10,[1]!SIXTH_PLAN_SF_YEARS,0)),"pre-dates plan") -> 49154.80623 | BE11: =IF(ISNUMBER(MATCH(BE10,[1]!SIXTH_PLAN_SF_YEARS,0)), INDEX([1]!SIXTH_PLAN_SF, MATCH($C$9,[1]!APPLIANCES,0), MATCH(BE$10,[1]!SIXTH_PLAN_SF_YEARS,0)),"pre-dates plan") -> 49154.80623 | BF11: =IF(ISNUMBER(MATCH(BF10,[1]!SIXTH_PLAN_SF_YEARS,0)), INDEX([1]!SIXTH_PLAN_SF, MATCH($C$9,[1]!APPLIANCES,0), MATCH(BF$10,[1]!SIXTH_PLAN_SF_YEARS,0)),"pre-dates plan") -> 49154.80623
C12: Replacement Shipments | D12: (units) | E12: =INDEX([1]!SHIPMENTS_SF, ((MATCH($C$9,[1]!APPLIANCES,0)-1)*2)+1, MATCH(E$10,[1]!SHIPMENTS_SF_YEARS,0)) -> 154401.4311 | F12: =INDEX([1]!SHIPMENTS_SF, ((MATCH($C$9,[1]!APPLIANCES,0)-1)*2)+1, MATCH(F$10,[1]!SHIPMENTS_SF_YEARS,0)) -> 154401.4311 | G12: =INDEX([1]!SHIPMENTS_SF, ((MATCH($C$9,[1]!APPLIANCES,0)-1)*2)+1, MATCH(G$10,[1]!SHIPMENTS_SF_YEARS,0)) -> 154401.4311 | H12: =INDEX([1]!SHIPMENTS_SF, ((MATCH($C$9,[1]!APPLIANCES,0)-1)*2)+1, MATCH(H$10,[1]!SHIPMENTS_SF_YEARS,0)) -> 154401.4311 | I12: =INDEX([1]!SHIPMENTS_SF, ((MATCH($C$9,[1]!APPLIANCES,0)-1)*2)+1, MATCH(I$10,[1]!SHIPMENTS_SF_YEARS,0)) -> 154401.4311 | J12: =INDEX([1]!SHIPMENTS_SF, ((MATCH($C$9,[1]!APPLIANCES,0)-1)*2)+1, MATCH(J$10,[1]!SHIPMENTS_SF_YEARS,0)) -> 154401.4311 | K12: =INDEX([1]!SHIPMENTS_SF, ((MATCH($C$9,[1]!APPLIANCES,0)-1)*2)+1, MATCH(K$10,[1]!SHIPMENTS_SF_YEARS,0)) -> 154401.4311 | L12: =INDEX([1]!SHIPMENTS_SF, ((MATCH($C$9,[1]!APPLIANCES,0)-1)*2)+1, MATCH(L$10,[1]!SHIPMENTS_SF_YEARS,0)) -> 154401.4311 | M12: =INDEX([1]!SHIPMENTS_SF, ((MATCH($C$9,[1]!APPLIANCES,0)-1)*2)+1, MATCH(M$10,[1]!SHIPMENTS_SF_YEARS,0)) -> 154401.4311 | N12: =INDEX([1]!SHIPMENTS_SF, ((MATCH($C$9,[1]!APPLIANCES,0)-1)*2)+1, MATCH(N$10,[1]!SHIPMENTS_SF_YEARS,0)) -> 154401.4311 | O12: =INDEX([1]!SHIPMENTS_SF, ((MATCH($C$9,[1]!APPLIANCES,0)-1)*2)+1, MATCH(O$10,[1]!SHIPMENTS_SF_YEARS,0)) -> 154401.4311 | P12: =INDEX([1]!SHIPMENTS_SF, ((MATCH($C$9,[1]!APPLIANCES,0)-1)*2)+1, MATCH(P$10,[1]!SHIPMENTS_SF_YEARS,0)) -> 154401.4311 | Q12: =INDEX([1]!SHIPMENTS_SF, ((MATCH($C$9,[1]!APPLIANCES,0)-1)*2)+1, MATCH(Q$10,[1]!SHIPMENTS_SF_YEARS,0)) -> 154401.4311 | R12: =INDEX([1]!SHIPMENTS_SF, ((MATCH($C$9,[1]!APPLIANCES,0)-1)*2)+1, MATCH(R$10,[1]!SHIPMENTS_SF_YEARS,0)) -> 154401.4311 | S12: =INDEX([1]!SHIPMENTS_SF, ((MATCH($C$9,[1]!APPLIANCES,0)-1)*2)+1, MATCH(S$10,[1]!SHIPMENTS_SF_YEARS,0)) -> 154401.4311 | T12: =INDEX([1]!SHIPMENTS_SF, ((MATCH($C$9,[1]!APPLIANCES,0)-1)*2)+1, MATCH(T$10,[1]!SHIPMENTS_SF_YEARS,0)) -> 154401.4311 | U12: =INDEX([1]!SHIPMENTS_SF, ((MATCH($C$9,[1]!APPLIANCES,0)-1)*2)+1, MATCH(U$10,[1]!SHIPMENTS_SF_YEARS,0)) -> 185606.3598 | V12: =INDEX([1]!SHIPMENTS_SF, ((MATCH($C$9,[1]!APPLIANCES,0)-1)*2)+1, MATCH(V$10,[1]!SHIPMENTS_SF_YEARS,0)) -> 175858.8563 | W12: =INDEX([1]!SHIPMENTS_SF, ((MATCH($C$9,[1]!APPLIANCES,0)-1)*2)+1, MATCH(W$10,[1]!SHIPMENTS_SF_YEARS,0)) -> 187681.8782 | X12: =INDEX([1]!SHIPMENTS_SF, ((MATCH($C$9,[1]!APPLIANCES,0)-1)*2)+1, MATCH(X$10,[1]!SHIPMENTS_SF_YEARS,0)) -> 185326.7303 | Y12: =INDEX([1]!SHIPMENTS_SF, ((MATCH($C$9,[1]!APPLIANCES,0)-1)*2)+1, MATCH(Y$10,[1]!SHIPMENTS_SF_YEARS,0)) -> 183905.0362 | Z12: =INDEX([1]!SHIPMENTS_SF, ((MATCH($C$9,[1]!APPLIANCES,0)-1)*2)+1, MATCH(Z$10,[1]!SHIPMENTS_SF_YEARS,0)) -> 186266.7091 | AA12: =INDEX([1]!SHIPMENTS_SF, ((MATCH($C$9,[1]!APPLIANCES,0)-1)*2)+1, MATCH(AA$10,[1]!SHIPMENTS_SF_YEARS,0)) -> 186455.745 | AB12: =INDEX([1]!SHIPMENTS_SF, ((MATCH($C$9,[1]!APPLIANCES,0)-1)*2)+1, MATCH(AB$10,[1]!SHIPMENTS_SF_YEARS,0)) -> 189749.8313 | AC12: =INDEX([1]!SHIPMENTS_SF, ((MATCH($C$9,[1]!APPLIANCES,0)-1)*2)+1, MATCH(AC$10,[1]!SHIPMENTS_SF_YEARS,0)) -> 197838.1873 | AD12: =INDEX([1]!SHIPMENTS_SF, ((MATCH($C$9,[1]!APPLIANCES,0)-1)*2)+1, MATCH(AD$10,[1]!SHIPMENTS_SF_YEARS,0)) -> 203858.3064 | AE12: =INDEX([1]!SHIPMENTS_SF, ((MATCH($C$9,[1]!APPLIANCES,0)-1)*2)+1, MATCH(AE$10,[1]!SHIPMENTS_SF_YEARS,0)) -> 197725.3709 | AF12: =INDEX([1]!SHIPMENTS_SF, ((MATCH($C$9,[1]!APPLIANCES,0)-1)*2)+1, MATCH(AF$10,[1]!SHIPMENTS_SF_YEARS,0)) -> 208066.5551 | AG12: =INDEX([1]!SHIPMENTS_SF, ((MATCH($C$9,[1]!APPLIANCES,0)-1)*2)+1, MATCH(AG$10,[1]!SHIPMENTS_SF_YEARS,0)) -> 211532.0117 | AH12: =INDEX([1]!SHIPMENTS_SF, ((MATCH($C$9,[1]!APPLIANCES,0)-1)*2)+1, MATCH(AH$10,[1]!SHIPMENTS_SF_YEARS,0)) -> 215007.2103 | AI12: =INDEX([1]!SHIPMENTS_SF, ((MATCH($C$9,[1]!APPLIANCES,0)-1)*2)+1, MATCH(AI$10,[1]!SHIPMENTS_SF_YEARS,0)) -> 208139.1869 | AJ12: =INDEX([1]!SHIPMENTS_SF, ((MATCH($C$9,[1]!APPLIANCES,0)-1)*2)+1, MATCH(AJ$10,[1]!SHIPMENTS_SF_YEARS,0)) -> 210428.2125 | AK12: =INDEX([1]!SHIPMENTS_SF, ((MATCH($C$9,[1]!APPLIANCES,0)-1)*2)+1, MATCH(AK$10,[1]!SHIPMENTS_SF_YEARS,0)) -> 241168.5369 | AL12: =INDEX([1]!SHIPMENTS_SF, ((MATCH($C$9,[1]!APPLIANCES,0)-1)*2)+1, MATCH(AL$10,[1]!SHIPMENTS_SF_YEARS,0)) -> 233458.7689 | AM12: =INDEX([1]!SHIPMENTS_SF, ((MATCH($C$9,[1]!APPLIANCES,0)-1)*2)+1, MATCH(AM$10,[1]!SHIPMENTS_SF_YEARS,0)) -> 243966.0369 | AN12: =INDEX([1]!SHIPMENTS_SF, ((MATCH($C$9,[1]!APPLIANCES,0)-1)*2)+1, MATCH(AN$10,[1]!SHIPMENTS_SF_YEARS,0)) -> 236851.4482 | AO12: =INDEX([1]!SHIPMENTS_SF, ((MATCH($C$9,[1]!APPLIANCES,0)-1)*2)+1, MATCH(AO$10,[1]!SHIPMENTS_SF_YEARS,0)) -> 236518.4247 | AP12: =INDEX([1]!SHIPMENTS_SF, ((MATCH($C$9,[1]!APPLIANCES,0)-1)*2)+1, MATCH(AP$10,[1]!SHIPMENTS_SF_YEARS,0)) -> 245535.5451 | AQ12: =INDEX([1]!SHIPMENTS_SF, ((MATCH($C$9,[1]!APPLIANCES,0)-1)*2)+1, MATCH(AQ$10,[1]!SHIPMENTS_SF_YEARS,0)) -> 252246.3351 | AR12: =INDEX([1]!SHIPMENTS_SF, ((MATCH($C$9,[1]!APPLIANCES,0)-1)*2)+1, MATCH(AR$10,[1]!SHIPMENTS_SF_YEARS,0)) -> 258892.0882 | AS12: =INDEX([1]!SHIPMENTS_SF, ((MATCH($C$9,[1]!APPLIANCES,0)-1)*2)+1, MATCH(AS$10,[1]!SHIPMENTS_SF_YEARS,0)) -> 274752.234 | AT12: =INDEX([1]!SHIPMENTS_SF, ((MATCH($C$9,[1]!APPLIANCES,0)-1)*2)+1, MATCH(AT$10,[1]!SHIPMENTS_SF_YEARS,0)) -> 272469.8247 | AU12: =INDEX([1]!SHIPMENTS_SF, ((MATCH($C$9,[1]!APPLIANCES,0)-1)*2)+1, MATCH(AU$10,[1]!SHIPMENTS_SF_YEARS,0)) -> 249219.9531 | AV12: =INDEX([1]!SHIPMENTS_SF, ((MATCH($C$9,[1]!APPLIANCES,0)-1)*2)+1, MATCH(AV$10,[1]!SHIPMENTS_SF_YEARS,0)) -> 237129.668 | AW12: =INDEX([1]!SHIPMENTS_SF, ((MATCH($C$9,[1]!APPLIANCES,0)-1)*2)+1, MATCH(AW$10,[1]!SHIPMENTS_SF_YEARS,0)) -> 233060.3492 | AX12: =INDEX([1]!SHIPMENTS_SF, ((MATCH($C$9,[1]!APPLIANCES,0)-1)*2)+1, MATCH(AX$10,[1]!SHIPMENTS_SF_YEARS,0)) -> 251898.6534 | AY12: =INDEX([1]!SHIPMENTS_SF, ((MATCH($C$9,[1]!APPLIANCES,0)-1)*2)+1, MATCH(AY$10,[1]!SHIPMENTS_SF_YEARS,0)) -> 260166.0267 | AZ12: =INDEX([1]!SHIPMENTS_SF, ((MATCH($C$9,[1]!APPLIANCES,0)-1)*2)+1, MATCH(AZ$10,[1]!SHIPMENTS_SF_YEARS,0)) -> 274412.9744 | BA12: =INDEX([1]!SHIPMENTS_SF, ((MATCH($C$9,[1]!APPLIANCES,0)-1)*2)+1, MATCH(BA$10,[1]!SHIPMENTS_SF_YEARS,0)) -> 306772.0543 | BB12: =INDEX([1]!SHIPMENTS_SF, ((MATCH($C$9,[1]!APPLIANCES,0)-1)*2)+1, MATCH(BB$10,[1]!SHIPMENTS_SF_YEARS,0)) -> 298599.5538 | BC12: =INDEX([1]!SHIPMENTS_SF, ((MATCH($C$9,[1]!APPLIANCES,0)-1)*2)+1, MATCH(BC$10,[1]!SHIPMENTS_SF_YEARS,0)) -> 309309.2486 | BD12: =INDEX([1]!SHIPMENTS_SF, ((MATCH($C$9,[1]!APPLIANCES,0)-1)*2)+1, MATCH(BD$10,[1]!SHIPMENTS_SF_YEARS,0)) -> 302404.9829 | BE12: =INDEX([1]!SHIPMENTS_SF, ((MATCH($C$9,[1]!APPLIANCES,0)-1)*2)+1, MATCH(BE$10,[1]!SHIPMENTS_SF_YEARS,0)) -> 300923.5654 | BF12: =INDEX([1]!SHIPMENTS_SF, ((MATCH($C$9,[1]!APPLIANCES,0)-1)*2)+1, MATCH(BF$10,[1]!SHIPMENTS_SF_YEARS,0)) -> 308657.8484
C13: Net New Shipments | D13: (units) | E13: =INDEX([1]!SHIPMENTS_SF, ((MATCH($C$9,[1]!APPLIANCES,0)-1)*2)+2, MATCH(E$10,[1]!SHIPMENTS_SF_YEARS,0)) -> 31204.92876 | F13: =INDEX([1]!SHIPMENTS_SF, ((MATCH($C$9,[1]!APPLIANCES,0)-1)*2)+2, MATCH(F$10,[1]!SHIPMENTS_SF_YEARS,0)) -> 21457.42528 | G13: =INDEX([1]!SHIPMENTS_SF, ((MATCH($C$9,[1]!APPLIANCES,0)-1)*2)+2, MATCH(G$10,[1]!SHIPMENTS_SF_YEARS,0)) -> 33280.44712 | H13: =INDEX([1]!SHIPMENTS_SF, ((MATCH($C$9,[1]!APPLIANCES,0)-1)*2)+2, MATCH(H$10,[1]!SHIPMENTS_SF_YEARS,0)) -> 30925.29928 | I13: =INDEX([1]!SHIPMENTS_SF, ((MATCH($C$9,[1]!APPLIANCES,0)-1)*2)+2, MATCH(I$10,[1]!SHIPMENTS_SF_YEARS,0)) -> 29503.60513 | J13: =INDEX([1]!SHIPMENTS_SF, ((MATCH($C$9,[1]!APPLIANCES,0)-1)*2)+2, MATCH(J$10,[1]!SHIPMENTS_SF_YEARS,0)) -> 31865.27798 | K13: =INDEX([1]!SHIPMENTS_SF, ((MATCH($C$9,[1]!APPLIANCES,0)-1)*2)+2, MATCH(K$10,[1]!SHIPMENTS_SF_YEARS,0)) -> 32054.31394 | L13: =INDEX([1]!SHIPMENTS_SF, ((MATCH($C$9,[1]!APPLIANCES,0)-1)*2)+2, MATCH(L$10,[1]!SHIPMENTS_SF_YEARS,0)) -> 35348.40026 | M13: =INDEX([1]!SHIPMENTS_SF, ((MATCH($C$9,[1]!APPLIANCES,0)-1)*2)+2, MATCH(M$10,[1]!SHIPMENTS_SF_YEARS,0)) -> 43436.75623 | N13: =INDEX([1]!SHIPMENTS_SF, ((MATCH($C$9,[1]!APPLIANCES,0)-1)*2)+2, MATCH(N$10,[1]!SHIPMENTS_SF_YEARS,0)) -> 49456.87536 | O13: =INDEX([1]!SHIPMENTS_SF, ((MATCH($C$9,[1]!APPLIANCES,0)-1)*2)+2, MATCH(O$10,[1]!SHIPMENTS_SF_YEARS,0)) -> 43323.93987 | P13: =INDEX([1]!SHIPMENTS_SF, ((MATCH($C$9,[1]!APPLIANCES,0)-1)*2)+2, MATCH(P$10,[1]!SHIPMENTS_SF_YEARS,0)) -> 53665.12407 | Q13: =INDEX([1]!SHIPMENTS_SF, ((MATCH($C$9,[1]!APPLIANCES,0)-1)*2)+2, MATCH(Q$10,[1]!SHIPMENTS_SF_YEARS,0)) -> 57130.58062 | R13: =INDEX([1]!SHIPMENTS_SF, ((MATCH($C$9,[1]!APPLIANCES,0)-1)*2)+2, MATCH(R$10,[1]!SHIPMENTS_SF_YEARS,0)) -> 60605.77921 | S13: =INDEX([1]!SHIPMENTS_SF, ((MATCH($C$9,[1]!APPLIANCES,0)-1)*2)+2, MATCH(S$10,[1]!SHIPMENTS_SF_YEARS,0)) -> 53737.7558 | T13: =INDEX([1]!SHIPMENTS_SF, ((MATCH($C$9,[1]!APPLIANCES,0)-1)*2)+2, MATCH(T$10,[1]!SHIPMENTS_SF_YEARS,0)) -> 56026.78145 | U13: =INDEX([1]!SHIPMENTS_SF, ((MATCH($C$9,[1]!APPLIANCES,0)-1)*2)+2, MATCH(U$10,[1]!SHIPMENTS_SF_YEARS,0)) -> 55562.17707 | V13: =INDEX([1]!SHIPMENTS_SF, ((MATCH($C$9,[1]!APPLIANCES,0)-1)*2)+2, MATCH(V$10,[1]!SHIPMENTS_SF_YEARS,0)) -> 57599.9126 | W13: =INDEX([1]!SHIPMENTS_SF, ((MATCH($C$9,[1]!APPLIANCES,0)-1)*2)+2, MATCH(W$10,[1]!SHIPMENTS_SF_YEARS,0)) -> 56284.15868 | X13: =INDEX([1]!SHIPMENTS_SF, ((MATCH($C$9,[1]!APPLIANCES,0)-1)*2)+2, MATCH(X$10,[1]!SHIPMENTS_SF_YEARS,0)) -> 51524.71783 | Y13: =INDEX([1]!SHIPMENTS_SF, ((MATCH($C$9,[1]!APPLIANCES,0)-1)*2)+2, MATCH(Y$10,[1]!SHIPMENTS_SF_YEARS,0)) -> 52613.38846 | Z13: =INDEX([1]!SHIPMENTS_SF, ((MATCH($C$9,[1]!APPLIANCES,0)-1)*2)+2, MATCH(Z$10,[1]!SHIPMENTS_SF_YEARS,0)) -> 59268.83603 | AA13: =INDEX([1]!SHIPMENTS_SF, ((MATCH($C$9,[1]!APPLIANCES,0)-1)*2)+2, MATCH(AA$10,[1]!SHIPMENTS_SF_YEARS,0)) -> 65790.59007 | AB13: =INDEX([1]!SHIPMENTS_SF, ((MATCH($C$9,[1]!APPLIANCES,0)-1)*2)+2, MATCH(AB$10,[1]!SHIPMENTS_SF_YEARS,0)) -> 69142.25687 | AC13: =INDEX([1]!SHIPMENTS_SF, ((MATCH($C$9,[1]!APPLIANCES,0)-1)*2)+2, MATCH(AC$10,[1]!SHIPMENTS_SF_YEARS,0)) -> 76914.04669 | AD13: =INDEX([1]!SHIPMENTS_SF, ((MATCH($C$9,[1]!APPLIANCES,0)-1)*2)+2, MATCH(AD$10,[1]!SHIPMENTS_SF_YEARS,0)) -> 68611.51832 | AE13: =INDEX([1]!SHIPMENTS_SF, ((MATCH($C$9,[1]!APPLIANCES,0)-1)*2)+2, MATCH(AE$10,[1]!SHIPMENTS_SF_YEARS,0)) -> 51494.58219 | AF13: =INDEX([1]!SHIPMENTS_SF, ((MATCH($C$9,[1]!APPLIANCES,0)-1)*2)+2, MATCH(AF$10,[1]!SHIPMENTS_SF_YEARS,0)) -> 29063.11285 | AG13: =INDEX([1]!SHIPMENTS_SF, ((MATCH($C$9,[1]!APPLIANCES,0)-1)*2)+2, MATCH(AG$10,[1]!SHIPMENTS_SF_YEARS,0)) -> 21528.33752 | AH13: =INDEX([1]!SHIPMENTS_SF, ((MATCH($C$9,[1]!APPLIANCES,0)-1)*2)+2, MATCH(AH$10,[1]!SHIPMENTS_SF_YEARS,0)) -> 36891.44312 | AI13: =INDEX([1]!SHIPMENTS_SF, ((MATCH($C$9,[1]!APPLIANCES,0)-1)*2)+2, MATCH(AI$10,[1]!SHIPMENTS_SF_YEARS,0)) -> 52026.83981 | AJ13: =INDEX([1]!SHIPMENTS_SF, ((MATCH($C$9,[1]!APPLIANCES,0)-1)*2)+2, MATCH(AJ$10,[1]!SHIPMENTS_SF_YEARS,0)) -> 63984.76186 | AK13: =INDEX([1]!SHIPMENTS_SF, ((MATCH($C$9,[1]!APPLIANCES,0)-1)*2)+2, MATCH(AK$10,[1]!SHIPMENTS_SF_YEARS,0)) -> 65603.51743 | AL13: =INDEX([1]!SHIPMENTS_SF, ((MATCH($C$9,[1]!APPLIANCES,0)-1)*2)+2, MATCH(AL$10,[1]!SHIPMENTS_SF_YEARS,0)) -> 65140.78481 | AM13: =INDEX([1]!SHIPMENTS_SF, ((MATCH($C$9,[1]!APPLIANCES,0)-1)*2)+2, MATCH(AM$10,[1]!SHIPMENTS_SF_YEARS,0)) -> 65343.21175 | AN13: =INDEX([1]!SHIPMENTS_SF, ((MATCH($C$9,[1]!APPLIANCES,0)-1)*2)+2, MATCH(AN$10,[1]!SHIPMENTS_SF_YEARS,0)) -> 65553.53475 | AO13: =INDEX([1]!SHIPMENTS_SF, ((MATCH($C$9,[1]!APPLIANCES,0)-1)*2)+2, MATCH(AO$10,[1]!SHIPMENTS_SF_YEARS,0)) -> 64405.14072 | AP13: =INDEX([1]!SHIPMENTS_SF, ((MATCH($C$9,[1]!APPLIANCES,0)-1)*2)+2, MATCH(AP$10,[1]!SHIPMENTS_SF_YEARS,0)) -> 63122.30333 | AQ13: =INDEX([1]!SHIPMENTS_SF, ((MATCH($C$9,[1]!APPLIANCES,0)-1)*2)+2, MATCH(AQ$10,[1]!SHIPMENTS_SF_YEARS,0)) -> 61739.74052 | AR13: =INDEX([1]!SHIPMENTS_SF, ((MATCH($C$9,[1]!APPLIANCES,0)-1)*2)+2, MATCH(AR$10,[1]!SHIPMENTS_SF_YEARS,0)) -> 60695.62329 | AS13: =INDEX([1]!SHIPMENTS_SF, ((MATCH($C$9,[1]!APPLIANCES,0)-1)*2)+2, MATCH(AS$10,[1]!SHIPMENTS_SF_YEARS,0)) -> 59108.68537 | AT13: =INDEX([1]!SHIPMENTS_SF, ((MATCH($C$9,[1]!APPLIANCES,0)-1)*2)+2, MATCH(AT$10,[1]!SHIPMENTS_SF_YEARS,0)) -> 58058.63535 | AU13: =INDEX([1]!SHIPMENTS_SF, ((MATCH($C$9,[1]!APPLIANCES,0)-1)*2)+2, MATCH(AU$10,[1]!SHIPMENTS_SF_YEARS,0)) -> 57301.54041 | AV13: =INDEX([1]!SHIPMENTS_SF, ((MATCH($C$9,[1]!APPLIANCES,0)-1)*2)+2, MATCH(AV$10,[1]!SHIPMENTS_SF_YEARS,0)) -> 56433.97168 | AW13: =INDEX([1]!SHIPMENTS_SF, ((MATCH($C$9,[1]!APPLIANCES,0)-1)*2)+2, MATCH(AW$10,[1]!SHIPMENTS_SF_YEARS,0)) -> 56241.4825 | AX13: =INDEX([1]!SHIPMENTS_SF, ((MATCH($C$9,[1]!APPLIANCES,0)-1)*2)+2, MATCH(AX$10,[1]!SHIPMENTS_SF_YEARS,0)) -> 55730.04692 | AY13: =INDEX([1]!SHIPMENTS_SF, ((MATCH($C$9,[1]!APPLIANCES,0)-1)*2)+2, MATCH(AY$10,[1]!SHIPMENTS_SF_YEARS,0)) -> 54636.77914 | AZ13: =INDEX([1]!SHIPMENTS_SF, ((MATCH($C$9,[1]!APPLIANCES,0)-1)*2)+2, MATCH(AZ$10,[1]!SHIPMENTS_SF_YEARS,0)) -> 53214.04557 | BA13: =INDEX([1]!SHIPMENTS_SF, ((MATCH($C$9,[1]!APPLIANCES,0)-1)*2)+2, MATCH(BA$10,[1]!SHIPMENTS_SF_YEARS,0)) -> 52243.99225 | BB13: =INDEX([1]!SHIPMENTS_SF, ((MATCH($C$9,[1]!APPLIANCES,0)-1)*2)+2, MATCH(BB$10,[1]!SHIPMENTS_SF_YEARS,0)) -> 52034.19904 | BC13: =INDEX([1]!SHIPMENTS_SF, ((MATCH($C$9,[1]!APPLIANCES,0)-1)*2)+2, MATCH(BC$10,[1]!SHIPMENTS_SF_YEARS,0)) -> 52554.54103 | BD13: =INDEX([1]!SHIPMENTS_SF, ((MATCH($C$9,[1]!APPLIANCES,0)-1)*2)+2, MATCH(BD$10,[1]!SHIPMENTS_SF_YEARS,0)) -> 53080.08645 | BE13: =INDEX([1]!SHIPMENTS_SF, ((MATCH($C$9,[1]!APPLIANCES,0)-1)*2)+2, MATCH(BE$10,[1]!SHIPMENTS_SF_YEARS,0)) -> 53610.88731 | BF13: =INDEX([1]!SHIPMENTS_SF, ((MATCH($C$9,[1]!APPLIANCES,0)-1)*2)+2, MATCH(BF$10,[1]!SHIPMENTS_SF_YEARS,0)) -> 54146.99618
C14: Total Model Shipments | D14: (units) | E14: =SUM(E12:E13) -> 185606.3598 | F14: =SUM(F12:F13) -> 175858.8563 | G14: 187681.8782 | H14: 185326.7303 | I14: 183905.0362 | J14: 186266.7091 | K14: 186455.745 | L14: 189749.8313 | M14: 197838.1873 | N14: 203858.3064 | O14: 197725.3709 | P14: 208066.5551 | Q14: 211532.0117 | R14: 215007.2103 | S14: 208139.1869 | T14: 210428.2125 | U14: 241168.5369 | V14: 233458.7689 | W14: 243966.0369 | X14: 236851.4482 | Y14: 236518.4247 | Z14: 245535.5451 | AA14: 252246.3351 | AB14: 258892.0882 | AC14: 274752.234 | AD14: 272469.8247 | AE14: 249219.9531 | AF14: 237129.668 | AG14: 233060.3492 | AH14: 251898.6534 | AI14: 260166.0267 | AJ14: 274412.9744 | AK14: 306772.0543 | AL14: 298599.5538 | AM14: 309309.2486 | AN14: 302404.9829 | AO14: 300923.5654 | AP14: 308657.8484 | AQ14: 313986.0756 | AR14: 319587.7115 | AS14: 333860.9194 | AT14: 330528.4601 | AU14: 306521.4935 | AV14: 293563.6397 | AW14: 289301.8317 | AX14: 307628.7003 | AY14: 314802.8058 | AZ14: 327627.02 | BA14: 359016.0466 | BB14: 350633.7528 | BC14: 361863.7897 | BD14: 355485.0694 | BE14: 354534.4527 | BF14: 362804.8446
C15: Model Installed Stock | D15: (units) | E15: =INDEX([1]!STOCK_SF, MATCH($C$9,[1]!APPLIANCES,0), MATCH(E$10,[1]!STOCK_SF_YEARS,0)) -> 2501627.826 | F15: =INDEX([1]!STOCK_SF, MATCH($C$9,[1]!APPLIANCES,0), MATCH(F$10,[1]!STOCK_SF_YEARS,0)) -> 2523085.251 | G15: =INDEX([1]!STOCK_SF, MATCH($C$9,[1]!APPLIANCES,0), MATCH(G$10,[1]!STOCK_SF_YEARS,0)) -> 2556365.698 | H15: =INDEX([1]!STOCK_SF, MATCH($C$9,[1]!APPLIANCES,0), MATCH(H$10,[1]!STOCK_SF_YEARS,0)) -> 2587290.998 | I15: =INDEX([1]!STOCK_SF, MATCH($C$9,[1]!APPLIANCES,0), MATCH(I$10,[1]!STOCK_SF_YEARS,0)) -> 2616794.603 | J15: =INDEX([1]!STOCK_SF, MATCH($C$9,[1]!APPLIANCES,0), MATCH(J$10,[1]!STOCK_SF_YEARS,0)) -> 2648659.881 | K15: =INDEX([1]!STOCK_SF, MATCH($C$9,[1]!APPLIANCES,0), MATCH(K$10,[1]!STOCK_SF_YEARS,0)) -> 2680714.195 | L15: =INDEX([1]!STOCK_SF, MATCH($C$9,[1]!APPLIANCES,0), MATCH(L$10,[1]!STOCK_SF_YEARS,0)) -> 2716062.595 | M15: =INDEX([1]!STOCK_SF, MATCH($C$9,[1]!APPLIANCES,0), MATCH(M$10,[1]!STOCK_SF_YEARS,0)) -> 2759499.351 | N15: =INDEX([1]!STOCK_SF, MATCH($C$9,[1]!APPLIANCES,0), MATCH(N$10,[1]!STOCK_SF_YEARS,0)) -> 2808956.226 | O15: =INDEX([1]!STOCK_SF, MATCH($C$9,[1]!APPLIANCES,0), MATCH(O$10,[1]!STOCK_SF_YEARS,0)) -> 2852280.166 | P15: =INDEX([1]!STOCK_SF, MATCH($C$9,[1]!APPLIANCES,0), MATCH(P$10,[1]!STOCK_SF_YEARS,0)) -> 2905945.29 | Q15: =INDEX([1]!STOCK_SF, MATCH($C$9,[1]!APPLIANCES,0), MATCH(Q$10,[1]!STOCK_SF_YEARS,0)) -> 2963075.871 | R15: =INDEX([1]!STOCK_SF, MATCH($C$9,[1]!APPLIANCES,0), MATCH(R$10,[1]!STOCK_SF_YEARS,0)) -> 3023681.65 | S15: =INDEX([1]!STOCK_SF, MATCH($C$9,[1]!APPLIANCES,0), MATCH(S$10,[1]!STOCK_SF_YEARS,0)) -> 3077419.406 | T15: =INDEX([1]!STOCK_SF, MATCH($C$9,[1]!APPLIANCES,0), MATCH(T$10,[1]!STOCK_SF_YEARS,0)) -> 3133446.187 | U15: =INDEX([1]!STOCK_SF, MATCH($C$9,[1]!APPLIANCES,0), MATCH(U$10,[1]!STOCK_SF_YEARS,0)) -> 3189008.365 | V15: =INDEX([1]!STOCK_SF, MATCH($C$9,[1]!APPLIANCES,0), MATCH(V$10,[1]!STOCK_SF_YEARS,0)) -> 3246608.277 | W15: =INDEX([1]!STOCK_SF, MATCH($C$9,[1]!APPLIANCES,0), MATCH(W$10,[1]!STOCK_SF_YEARS,0)) -> 3302892.436 | X15: =INDEX([1]!STOCK_SF, MATCH($C$9,[1]!APPLIANCES,0), MATCH(X$10,[1]!STOCK_SF_YEARS,0)) -> 3354417.154 | Y15: =INDEX([1]!STOCK_SF, MATCH($C$9,[1]!APPLIANCES,0), MATCH(Y$10,[1]!STOCK_SF_YEARS,0)) -> 3407030.542 | Z15: =INDEX([1]!STOCK_SF, MATCH($C$9,[1]!APPLIANCES,0), MATCH(Z$10,[1]!STOCK_SF_YEARS,0)) -> 3466299.378 | AA15: =INDEX([1]!STOCK_SF, MATCH($C$9,[1]!APPLIANCES,0), MATCH(AA$10,[1]!STOCK_SF_YEARS,0)) -> 3532089.968 | AB15: =INDEX([1]!STOCK_SF, MATCH($C$9,[1]!APPLIANCES,0), MATCH(AB$10,[1]!STOCK_SF_YEARS,0)) -> 3601232.225 | AC15: =INDEX([1]!STOCK_SF, MATCH($C$9,[1]!APPLIANCES,0), MATCH(AC$10,[1]!STOCK_SF_YEARS,0)) -> 3678146.272 | AD15: =INDEX([1]!STOCK_SF, MATCH($C$9,[1]!APPLIANCES,0), MATCH(AD$10,[1]!STOCK_SF_YEARS,0)) -> 3746757.79 | AE15: =INDEX([1]!STOCK_SF, MATCH($C$9,[1]!APPLIANCES,0), MATCH(AE$10,[1]!STOCK_SF_YEARS,0)) -> 3798252.372 | AF15: =INDEX([1]!STOCK_SF, MATCH($C$9,[1]!APPLIANCES,0), MATCH(AF$10,[1]!STOCK_SF_YEARS,0)) -> 3827315.485 | AG15: =INDEX([1]!STOCK_SF, MATCH($C$9,[1]!APPLIANCES,0), MATCH(AG$10,[1]!STOCK_SF_YEARS,0)) -> 3848843.823 | AH15: =INDEX([1]!STOCK_SF, MATCH($C$9,[1]!APPLIANCES,0), MATCH(AH$10,[1]!STOCK_SF_YEARS,0)) -> 3885735.266 | AI15: =INDEX([1]!STOCK_SF, MATCH($C$9,[1]!APPLIANCES,0), MATCH(AI$10,[1]!STOCK_SF_YEARS,0)) -> 3937762.106 | AJ15: =INDEX([1]!STOCK_SF, MATCH($C$9,[1]!APPLIANCES,0), MATCH(AJ$10,[1]!STOCK_SF_YEARS,0)) -> 4001746.867 | AK15: =INDEX([1]!STOCK_SF, MATCH($C$9,[1]!APPLIANCES,0), MATCH(AK$10,[1]!STOCK_SF_YEARS,0)) -> 4067350.385 | AL15: =INDEX([1]!STOCK_SF, MATCH($C$9,[1]!APPLIANCES,0), MATCH(AL$10,[1]!STOCK_SF_YEARS,0)) -> 4132491.17 | AM15: =INDEX([1]!STOCK_SF, MATCH($C$9,[1]!APPLIANCES,0), MATCH(AM$10,[1]!STOCK_SF_YEARS,0)) -> 4197834.381 | AN15: =INDEX([1]!STOCK_SF, MATCH($C$9,[1]!APPLIANCES,0), MATCH(AN$10,[1]!STOCK_SF_YEARS,0)) -> 4263387.916 | AO15: =INDEX([1]!STOCK_SF, MATCH($C$9,[1]!APPLIANCES,0), MATCH(AO$10,[1]!STOCK_SF_YEARS,0)) -> 4327793.057 | AP15: =INDEX([1]!STOCK_SF, MATCH($C$9,[1]!APPLIANCES,0), MATCH(AP$10,[1]!STOCK_SF_YEARS,0)) -> 4390915.36 | AQ15: =INDEX([1]!STOCK_SF, MATCH($C$9,[1]!APPLIANCES,0), MATCH(AQ$10,[1]!STOCK_SF_YEARS,0)) -> 4452655.101 | AR15: =INDEX([1]!STOCK_SF, MATCH($C$9,[1]!APPLIANCES,0), MATCH(AR$10,[1]!STOCK_SF_YEARS,0)) -> 4513350.724 | AS15: =INDEX([1]!STOCK_SF, MATCH($C$9,[1]!APPLIANCES,0), MATCH(AS$10,[1]!STOCK_SF_YEARS,0)) -> 4572459.409 | AT15: =INDEX([1]!STOCK_SF, MATCH($C$9,[1]!APPLIANCES,0), MATCH(AT$10,[1]!STOCK_SF_YEARS,0)) -> 4630518.045 | AU15: =INDEX([1]!STOCK_SF, MATCH($C$9,[1]!APPLIANCES,0), MATCH(AU$10,[1]!STOCK_SF_YEARS,0)) -> 4687819.585 | AV15: =INDEX([1]!STOCK_SF, MATCH($C$9,[1]!APPLIANCES,0), MATCH(AV$10,[1]!STOCK_SF_YEARS,0)) -> 4744253.557 | AW15: =INDEX([1]!STOCK_SF, MATCH($C$9,[1]!APPLIANCES,0), MATCH(AW$10,[1]!STOCK_SF_YEARS,0)) -> 4800495.039 | AX15: =INDEX([1]!STOCK_SF, MATCH($C$9,[1]!APPLIANCES,0), MATCH(AX$10,[1]!STOCK_SF_YEARS,0)) -> 4856225.086 | AY15: =INDEX([1]!STOCK_SF, MATCH($C$9,[1]!APPLIANCES,0), MATCH(AY$10,[1]!STOCK_SF_YEARS,0)) -> 4910861.865 | AZ15: =INDEX([1]!STOCK_SF, MATCH($C$9,[1]!APPLIANCES,0), MATCH(AZ$10,[1]!STOCK_SF_YEARS,0)) -> 4964075.911 | BA15: =INDEX([1]!STOCK_SF, MATCH($C$9,[1]!APPLIANCES,0), MATCH(BA$10,[1]!STOCK_SF_YEARS,0)) -> 5016319.903 | BB15: =INDEX([1]!STOCK_SF, MATCH($C$9,[1]!APPLIANCES,0), MATCH(BB$10,[1]!STOCK_SF_YEARS,0)) -> 5068354.102 | BC15: =INDEX([1]!STOCK_SF, MATCH($C$9,[1]!APPLIANCES,0), MATCH(BC$10,[1]!STOCK_SF_YEARS,0)) -> 5120908.643 | BD15: =INDEX([1]!STOCK_SF, MATCH($C$9,[1]!APPLIANCES,0), MATCH(BD$10,[1]!STOCK_SF_YEARS,0)) -> 5173988.73 | BE15: =INDEX([1]!STOCK_SF, MATCH($C$9,[1]!APPLIANCES,0), MATCH(BE$10,[1]!STOCK_SF_YEARS,0)) -> 5227599.617 | BF15: =INDEX([1]!STOCK_SF, MATCH($C$9,[1]!APPLIANCES,0), MATCH(BF$10,[1]!STOCK_SF_YEARS,0)) -> 5281746.613

Sheet Shipments and Stock - MF
C2: Shipments and Stock - MF
C4: NAVIGATION
C6: COMMENTS
C9: =MODEL_NAME -> Electric Clothes Dryers
E10: 1981 | F10: 1982 | G10: 1983 | H10: 1984 | I10: 1985 | J10: 1986 | K10: 1987 | L10: 1988 | M10: 1989 | N10: 1990 | O10: 1991 | P10: 1992 | Q10: 1993 | R10: 1994 | S10: 1995 | T10: 1996 | U10: 1997 | V10: 1998 | W10: 1999 | X10: 2000 | Y10: 2001 | Z10: 2002 | AA10: 2003 | AB10: 2004 | AC10: 2005 | AD10: 2006 | AE10: 2007 | AF10: 2008 | AG10: 2009 | AH10: 2010 | AI10: 2011 | AJ10: 2012 | AK10: 2013 | AL10: 2014 | AM10: 2015 | AN10: 2016 | AO10: 2017 | AP10: 2018 | AQ10: 2019 | AR10: 2020 | AS10: 2021 | AT10: 2022 | AU10: 2023 | AV10: 2024 | AW10: 2025 | AX10: 2026 | AY10: 2027 | AZ10: 2028 | BA10: 2029 | BB10: 2030 | BC10: 2031 | BD10: 2032 | BE10: 2033 | BF10: 2034
C11: 6P Shipments | D11: (units) | E11: =IF(ISNUMBER(MATCH(E10,[1]!SIXTH_PLAN_MF_YEARS,0)), INDEX([1]!SIXTH_PLAN_MF, MATCH($C$9,[1]!APPLIANCES,0), MATCH(E$10,[1]!SIXTH_PLAN_MF_YEARS,0)),"pre-dates plan") -> pre-dates plan | F11: =IF(ISNUMBER(MATCH(F10,[1]!SIXTH_PLAN_MF_YEARS,0)), INDEX([1]!SIXTH_PLAN_MF, MATCH($C$9,[1]!APPLIANCES,0), MATCH(F$10,[1]!SIXTH_PLAN_MF_YEARS,0)),"pre-dates plan") -> pre-dates plan | G11: =IF(ISNUMBER(MATCH(G10,[1]!SIXTH_PLAN_MF_YEARS,0)), INDEX([1]!SIXTH_PLAN_MF, MATCH($C$9,[1]!APPLIANCES,0), MATCH(G$10,[1]!SIXTH_PLAN_MF_YEARS,0)),"pre-dates plan") -> pre-dates plan | H11: =IF(ISNUMBER(MATCH(H10,[1]!SIXTH_PLAN_MF_YEARS,0)), INDEX([1]!SIXTH_PLAN_MF, MATCH($C$9,[1]!APPLIANCES,0), MATCH(H$10,[1]!SIXTH_PLAN_MF_YEARS,0)),"pre-dates plan") -> pre-dates plan | I11: =IF(ISNUMBER(MATCH(I10,[1]!SIXTH_PLAN_MF_YEARS,0)), INDEX([1]!SIXTH_PLAN_MF, MATCH($C$9,[1]!APPLIANCES,0), MATCH(I$10,[1]!SIXTH_PLAN_MF_YEARS,0)),"pre-dates plan") -> pre-dates plan | J11: =IF(ISNUMBER(MATCH(J10,[1]!SIXTH_PLAN_MF_YEARS,0)), INDEX([1]!SIXTH_PLAN_MF, MATCH($C$9,[1]!APPLIANCES,0), MATCH(J$10,[1]!SIXTH_PLAN_MF_YEARS,0)),"pre-dates plan") -> pre-dates plan | K11: =IF(ISNUMBER(MATCH(K10,[1]!SIXTH_PLAN_MF_YEARS,0)), INDEX([1]!SIXTH_PLAN_MF, MATCH($C$9,[1]!APPLIANCES,0), MATCH(K$10,[1]!SIXTH_PLAN_MF_YEARS,0)),"pre-dates plan") -> pre-dates plan | L11: =IF(ISNUMBER(MATCH(L10,[1]!SIXTH_PLAN_MF_YEARS,0)), INDEX([1]!SIXTH_PLAN_MF, MATCH($C$9,[1]!APPLIANCES,0), MATCH(L$10,[1]!SIXTH_PLAN_MF_YEARS,0)),"pre-dates plan") -> pre-dates plan | M11: =IF(ISNUMBER(MATCH(M10,[1]!SIXTH_PLAN_MF_YEARS,0)), INDEX([1]!SIXTH_PLAN_MF, MATCH($C$9,[1]!APPLIANCES,0), MATCH(M$10,[1]!SIXTH_PLAN_MF_YEARS,0)),"pre-dates plan") -> pre-dates plan | N11: =IF(ISNUMBER(MATCH(N10,[1]!SIXTH_PLAN_MF_YEARS,0)), INDEX([1]!SIXTH_PLAN_MF, MATCH($C$9,[1]!APPLIANCES,0), MATCH(N$10,[1]!SIXTH_PLAN_MF_YEARS,0)),"pre-dates plan") -> pre-dates plan | O11: =IF(ISNUMBER(MATCH(O10,[1]!SIXTH_PLAN_MF_YEARS,0)), INDEX([1]!SIXTH_PLAN_MF, MATCH($C$9,[1]!APPLIANCES,0), MATCH(O$10,[1]!SIXTH_PLAN_MF_YEARS,0)),"pre-dates plan") -> pre-dates plan | P11: =IF(ISNUMBER(MATCH(P10,[1]!SIXTH_PLAN_MF_YEARS,0)), INDEX([1]!SIXTH_PLAN_MF, MATCH($C$9,[1]!APPLIANCES,0), MATCH(P$10,[1]!SIXTH_PLAN_MF_YEARS,0)),"pre-dates plan") -> pre-dates plan | Q11: =IF(ISNUMBER(MATCH(Q10,[1]!SIXTH_PLAN_MF_YEARS,0)), INDEX([1]!SIXTH_PLAN_MF, MATCH($C$9,[1]!APPLIANCES,0), MATCH(Q$10,[1]!SIXTH_PLAN_MF_YEARS,0)),"pre-dates plan") -> pre-dates plan | R11: =IF(ISNUMBER(MATCH(R10,[1]!SIXTH_PLAN_MF_YEARS,0)), INDEX([1]!SIXTH_PLAN_MF, MATCH($C$9,[1]!APPLIANCES,0), MATCH(R$10,[1]!SIXTH_PLAN_MF_YEARS,0)),"pre-dates plan") -> pre-dates plan | S11: =IF(ISNUMBER(MATCH(S10,[1]!SIXTH_PLAN_MF_YEARS,0)), INDEX([1]!SIXTH_PLAN_MF, MATCH($C$9,[1]!APPLIANCES,0), MATCH(S$10,[1]!SIXTH_PLAN_MF_YEARS,0)),"pre-dates plan") -> pre-dates plan | T11: =IF(ISNUMBER(MATCH(T10,[1]!SIXTH_PLAN_MF_YEARS,0)), INDEX([1]!SIXTH_PLAN_MF, MATCH($C$9,[1]!APPLIANCES,0), MATCH(T$10,[1]!SIXTH_PLAN_MF_YEARS,0)),"pre-dates plan") -> pre-dates plan | U11: =IF(ISNUMBER(MATCH(U10,[1]!SIXTH_PLAN_MF_YEARS,0)), INDEX([1]!SIXTH_PLAN_MF, MATCH($C$9,[1]!APPLIANCES,0), MATCH(U$10,[1]!SIXTH_PLAN_MF_YEARS,0)),"pre-dates plan") -> pre-dates plan | V11: =IF(ISNUMBER(MATCH(V10,[1]!SIXTH_PLAN_MF_YEARS,0)), INDEX([1]!SIXTH_PLAN_MF, MATCH($C$9,[1]!APPLIANCES,0), MATCH(V$10,[1]!SIXTH_PLAN_MF_YEARS,0)),"pre-dates plan") -> pre-dates plan | W11: =IF(ISNUMBER(MATCH(W10,[1]!SIXTH_PLAN_MF_YEARS,0)), INDEX([1]!SIXTH_PLAN_MF, MATCH($C$9,[1]!APPLIANCES,0), MATCH(W$10,[1]!SIXTH_PLAN_MF_YEARS,0)),"pre-dates plan") -> pre-dates plan | X11: =IF(ISNUMBER(MATCH(X10,[1]!SIXTH_PLAN_MF_YEARS,0)), INDEX([1]!SIXTH_PLAN_MF, MATCH($C$9,[1]!APPLIANCES,0), MATCH(X$10,[1]!SIXTH_PLAN_MF_YEARS,0)),"pre-dates plan") -> pre-dates plan | Y11: =IF(ISNUMBER(MATCH(Y10,[1]!SIXTH_PLAN_MF_YEARS,0)), INDEX([1]!SIXTH_PLAN_MF, MATCH($C$9,[1]!APPLIANCES,0), MATCH(Y$10,[1]!SIXTH_PLAN_MF_YEARS,0)),"pre-dates plan") -> pre-dates plan | Z11: =IF(ISNUMBER(MATCH(Z10,[1]!SIXTH_PLAN_MF_YEARS,0)), INDEX([1]!SIXTH_PLAN_MF, MATCH($C$9,[1]!APPLIANCES,0), MATCH(Z$10,[1]!SIXTH_PLAN_MF_YEARS,0)),"pre-dates plan") -> pre-dates plan | AA11: =IF(ISNUMBER(MATCH(AA10,[1]!SIXTH_PLAN_MF_YEARS,0)), INDEX([1]!SIXTH_PLAN_MF, MATCH($C$9,[1]!APPLIANCES,0), MATCH(AA$10,[1]!SIXTH_PLAN_MF_YEARS,0)),"pre-dates plan") -> pre-dates plan | AB11: =IF(ISNUMBER(MATCH(AB10,[1]!SIXTH_PLAN_MF_YEARS,0)), INDEX([1]!SIXTH_PLAN_MF, MATCH($C$9,[1]!APPLIANCES,0), MATCH(AB$10,[1]!SIXTH_PLAN_MF_YEARS,0)),"pre-dates plan") -> pre-dates plan | AC11: =IF(ISNUMBER(MATCH(AC10,[1]!SIXTH_PLAN_MF_YEARS,0)), INDEX([1]!SIXTH_PLAN_MF, MATCH($C$9,[1]!APPLIANCES,0), MATCH(AC$10,[1]!SIXTH_PLAN_MF_YEARS,0)),"pre-dates plan") -> pre-dates plan | AD11: =IF(ISNUMBER(MATCH(AD10,[1]!SIXTH_PLAN_MF_YEARS,0)), INDEX([1]!SIXTH_PLAN_MF, MATCH($C$9,[1]!APPLIANCES,0), MATCH(AD$10,[1]!SIXTH_PLAN_MF_YEARS,0)),"pre-dates plan") -> pre-dates plan | AE11: =IF(ISNUMBER(MATCH(AE10,[1]!SIXTH_PLAN_MF_YEARS,0)), INDEX([1]!SIXTH_PLAN_MF, MATCH($C$9,[1]!APPLIANCES,0), MATCH(AE$10,[1]!SIXTH_PLAN_MF_YEARS,0)),"pre-dates plan") -> pre-dates plan | AF11: =IF(ISNUMBER(MATCH(AF10,[1]!SIXTH_PLAN_MF_YEARS,0)), INDEX([1]!SIXTH_PLAN_MF, MATCH($C$9,[1]!APPLIANCES,0), MATCH(AF$10,[1]!SIXTH_PLAN_MF_YEARS,0)),"pre-dates plan") -> pre-dates plan | AG11: =IF(ISNUMBER(MATCH(AG10,[1]!SIXTH_PLAN_MF_YEARS,0)), INDEX([1]!SIXTH_PLAN_MF, MATCH($C$9,[1]!APPLIANCES,0), MATCH(AG$10,[1]!SIXTH_PLAN_MF_YEARS,0)),"pre-dates plan") -> pre-dates plan | AH11: =IF(ISNUMBER(MATCH(AH10,[1]!SIXTH_PLAN_MF_YEARS,0)), INDEX([1]!SIXTH_PLAN_MF, MATCH($C$9,[1]!APPLIANCES,0), MATCH(AH$10,[1]!SIXTH_PLAN_MF_YEARS,0)),"pre-dates plan") -> 66509.12236 | AI11: =IF(ISNUMBER(MATCH(AI10,[1]!SIXTH_PLAN_MF_YEARS,0)), INDEX([1]!SIXTH_PLAN_MF, MATCH($C$9,[1]!APPLIANCES,0), MATCH(AI$10,[1]!SIXTH_PLAN_MF_YEARS,0)),"pre-dates plan") -> 70024.19139 | AJ11: =IF(ISNUMBER(MATCH(AJ10,[1]!SIXTH_PLAN_MF_YEARS,0)), INDEX([1]!SIXTH_PLAN_MF, MATCH($C$9,[1]!APPLIANCES,0), MATCH(AJ$10,[1]!SIXTH_PLAN_MF_YEARS,0)),"pre-dates plan") -> 71011.73817 | AK11: =IF(ISNUMBER(MATCH(AK10,[1]!SIXTH_PLAN_MF_YEARS,0)), INDEX([1]!SIXTH_PLAN_MF, MATCH($C$9,[1]!APPLIANCES,0), MATCH(AK$10,[1]!SIXTH_PLAN_MF_YEARS,0)),"pre-dates plan") -> 71698.41604 | AL11: =IF(ISNUMBER(MATCH(AL10,[1]!SIXTH_PLAN_MF_YEARS,0)), INDEX([1]!SIXTH_PLAN_MF, MATCH($C$9,[1]!APPLIANCES,0), MATCH(AL$10,[1]!SIXTH_PLAN_MF_YEARS,0)),"pre-dates plan") -> 72650.88858 | AM11: =IF(ISNUMBER(MATCH(AM10,[1]!SIXTH_PLAN_MF_YEARS,0)), INDEX([1]!SIXTH_PLAN_MF, MATCH($C$9,[1]!APPLIANCES,0), MATCH(AM$10,[1]!SIXTH_PLAN_MF_YEARS,0)),"pre-dates plan") -> 73781.82175 | AN11: =IF(ISNUMBER(MATCH(AN10,[1]!SIXTH_PLAN_MF_YEARS,0)), INDEX([1]!SIXTH_PLAN_MF, MATCH($C$9,[1]!APPLIANCES,0), MATCH(AN$10,[1]!SIXTH_PLAN_MF_YEARS,0)),"pre-dates plan") -> 75845.62539 | AO11: =IF(ISNUMBER(MATCH(AO10,[1]!SIXTH_PLAN_MF_YEARS,0)), INDEX([1]!SIXTH_PLAN_MF, MATCH($C$9,[1]!APPLIANCES,0), MATCH(AO$10,[1]!SIXTH_PLAN_MF_YEARS,0)),"pre-dates plan") -> 76404.26 | AP11: =IF(ISNUMBER(MATCH(AP10,[1]!SIXTH_PLAN_MF_YEARS,0)), INDEX([1]!SIXTH_PLAN_MF, MATCH($C$9,[1]!APPLIANCES,0), MATCH(AP$10,[1]!SIXTH_PLAN_MF_YEARS,0)),"pre-dates plan") -> 77017.15007 | AQ11: =IF(ISNUMBER(MATCH(AQ10,[1]!SIXTH_PLAN_MF_YEARS,0)), INDEX([1]!SIXTH_PLAN_MF, MATCH($C$9,[1]!APPLIANCES,0), MATCH(AQ$10,[1]!SIXTH_PLAN_MF_YEARS,0)),"pre-dates plan") -> 77725.63484 | AR11: =IF(ISNUMBER(MATCH(AR10,[1]!SIXTH_PLAN_MF_YEARS,0)), INDEX([1]!SIXTH_PLAN_MF, MATCH($C$9,[1]!APPLIANCES,0), MATCH(AR$10,[1]!SIXTH_PLAN_MF_YEARS,0)),"pre-dates plan") -> 78144.35201 | AS11: =IF(ISNUMBER(MATCH(AS10,[1]!SIXTH_PLAN_MF_YEARS,0)), INDEX([1]!SIXTH_PLAN_MF, MATCH($C$9,[1]!APPLIANCES,0), MATCH(AS$10,[1]!SIXTH_PLAN_MF_YEARS,0)),"pre-dates plan") -> 77803.05745 | AT11: =IF(ISNUMBER(MATCH(AT10,[1]!SIXTH_PLAN_MF_YEARS,0)), INDEX([1]!SIXTH_PLAN_MF, MATCH($C$9,[1]!APPLIANCES,0), MATCH(AT$10,[1]!SIXTH_PLAN_MF_YEARS,0)),"pre-dates plan") -> 78015.44227 | AU11: =IF(ISNUMBER(MATCH(AU10,[1]!SIXTH_PLAN_MF_YEARS,0)), INDEX([1]!SIXTH_PLAN_MF, MATCH($C$9,[1]!APPLIANCES,0), MATCH(AU$10,[1]!SIXTH_PLAN_MF_YEARS,0)),"pre-dates plan") -> 78103.66417 | AV11: =IF(ISNUMBER(MATCH(AV10,[1]!SIXTH_PLAN_MF_YEARS,0)), INDEX([1]!SIXTH_PLAN_MF, MATCH($C$9,[1]!APPLIANCES,0), MATCH(AV$10,[1]!SIXTH_PLAN_MF_YEARS,0)),"pre-dates plan") -> 19226.12622 | AW11: =IF(ISNUMBER(MATCH(AW10,[1]!SIXTH_PLAN_MF_YEARS,0)), INDEX([1]!SIXTH_PLAN_MF, MATCH($C$9,[1]!APPLIANCES,0), MATCH(AW$10,[1]!SIXTH_PLAN_MF_YEARS,0)),"pre-dates plan") -> 19018.35426 | AX11: =IF(ISNUMBER(MATCH(AX10,[1]!SIXTH_PLAN_MF_YEARS,0)), INDEX([1]!SIXTH_PLAN_MF, MATCH($C$9,[1]!APPLIANCES,0), MATCH(AX$10,[1]!SIXTH_PLAN_MF_YEARS,0)),"pre-dates plan") -> 18733.14614 | AY11: =IF(ISNUMBER(MATCH(AY10,[1]!SIXTH_PLAN_MF_YEARS,0)), INDEX([1]!SIXTH_PLAN_MF, MATCH($C$9,[1]!APPLIANCES,0), MATCH(AY$10,[1]!SIXTH_PLAN_MF_YEARS,0)),"pre-dates plan") -> 18644.66093 | AZ11: =IF(ISNUMBER(MATCH(AZ10,[1]!SIXTH_PLAN_MF_YEARS,0)), INDEX([1]!SIXTH_PLAN_MF, MATCH($C$9,[1]!APPLIANCES,0), MATCH(AZ$10,[1]!SIXTH_PLAN_MF_YEARS,0)),"pre-dates plan") -> 18607.22791 | BA11: =IF(ISNUMBER(MATCH(BA10,[1]!SIXTH_PLAN_MF_YEARS,0)), INDEX([1]!SIXTH_PLAN_MF, MATCH($C$9,[1]!APPLIANCES,0), MATCH(BA$10,[1]!SIXTH_PLAN_MF_YEARS,0)),"pre-dates plan") -> 18545.19765 | BB11: =IF(ISNUMBER(MATCH(BB10,[1]!SIXTH_PLAN_MF_YEARS,0)), INDEX([1]!SIXTH_PLAN_MF, MATCH($C$9,[1]!APPLIANCES,0), MATCH(BB$10,[1]!SIXTH_PLAN_MF_YEARS,0)),"pre-dates plan") -> 18343.42529 | BC11: =IF(ISNUMBER(MATCH(BC10,[1]!SIXTH_PLAN_MF_YEARS,0)), INDEX([1]!SIXTH_PLAN_MF, MATCH($C$9,[1]!APPLIANCES,0), MATCH(BC$10,[1]!SIXTH_PLAN_MF_YEARS,0)),"pre-dates plan") -> 18343.42529 | BD11: =IF(ISNUMBER(MATCH(BD10,[1]!SIXTH_PLAN_MF_YEARS,0)), INDEX([1]!SIXTH_PLAN_MF, MATCH($C$9,[1]!APPLIANCES,0), MATCH(BD$10,[1]!SIXTH_PLAN_MF_YEARS,0)),"pre-dates plan") -> 18343.42529 | BE11: =IF(ISNUMBER(MATCH(BE10,[1]!SIXTH_PLAN_MF_YEARS,0)), INDEX([1]!SIXTH_PLAN_MF, MATCH($C$9,[1]!APPLIANCES,0), MATCH(BE$10,[1]!SIXTH_PLAN_MF_YEARS,0)),"pre-dates plan") -> 18343.42529 | BF11: =IF(ISNUMBER(MATCH(BF10,[1]!SIXTH_PLAN_MF_YEARS,0)), INDEX([1]!SIXTH_PLAN_MF, MATCH($C$9,[1]!APPLIANCES,0), MATCH(BF$10,[1]!SIXTH_PLAN_MF_YEARS,0)),"pre-dates plan") -> 18343.42529
C12: Replacement Shipments | D12: (units) | E12: =INDEX([1]!SHIPMENTS_MF, ((MATCH($C$9,[1]!APPLIANCES,0)-1)*2)+1, MATCH(E$10,[1]!SHIPMENTS_MF_YEARS,0)) -> 15041.17302 | F12: =INDEX([1]!SHIPMENTS_MF, ((MATCH($C$9,[1]!APPLIANCES,0)-1)*2)+1, MATCH(F$10,[1]!SHIPMENTS_MF_YEARS,0)) -> 15041.17302 | G12: =INDEX([1]!SHIPMENTS_MF, ((MATCH($C$9,[1]!APPLIANCES,0)-1)*2)+1, MATCH(G$10,[1]!SHIPMENTS_MF_YEARS,0)) -> 15041.17302 | H12: =INDEX([1]!SHIPMENTS_MF, ((MATCH($C$9,[1]!APPLIANCES,0)-1)*2)+1, MATCH(H$10,[1]!SHIPMENTS_MF_YEARS,0)) -> 15041.17302 | I12: =INDEX([1]!SHIPMENTS_MF, ((MATCH($C$9,[1]!APPLIANCES,0)-1)*2)+1, MATCH(I$10,[1]!SHIPMENTS_MF_YEARS,0)) -> 15041.17302 | J12: =INDEX([1]!SHIPMENTS_MF, ((MATCH($C$9,[1]!APPLIANCES,0)-1)*2)+1, MATCH(J$10,[1]!SHIPMENTS_MF_YEARS,0)) -> 15041.17302 | K12: =INDEX([1]!SHIPMENTS_MF, ((MATCH($C$9,[1]!APPLIANCES,0)-1)*2)+1, MATCH(K$10,[1]!SHIPMENTS_MF_YEARS,0)) -> 15041.17302 | L12: =INDEX([1]!SHIPMENTS_MF, ((MATCH($C$9,[1]!APPLIANCES,0)-1)*2)+1, MATCH(L$10,[1]!SHIPMENTS_MF_YEARS,0)) -> 15041.17302 | M12: =INDEX([1]!SHIPMENTS_MF, ((MATCH($C$9,[1]!APPLIANCES,0)-1)*2)+1, MATCH(M$10,[1]!SHIPMENTS_MF_YEARS,0)) -> 15041.17302 | N12: =INDEX([1]!SHIPMENTS_MF, ((MATCH($C$9,[1]!APPLIANCES,0)-1)*2)+1, MATCH(N$10,[1]!SHIPMENTS_MF_YEARS,0)) -> 15041.17302 | O12: =INDEX([1]!SHIPMENTS_MF, ((MATCH($C$9,[1]!APPLIANCES,0)-1)*2)+1, MATCH(O$10,[1]!SHIPMENTS_MF_YEARS,0)) -> 15041.17302 | P12: =INDEX([1]!SHIPMENTS_MF, ((MATCH($C$9,[1]!APPLIANCES,0)-1)*2)+1, MATCH(P$10,[1]!SHIPMENTS_MF_YEARS,0)) -> 15041.17302 | Q12: =INDEX([1]!SHIPMENTS_MF, ((MATCH($C$9,[1]!APPLIANCES,0)-1)*2)+1, MATCH(Q$10,[1]!SHIPMENTS_MF_YEARS,0)) -> 15041.17302 | R12: =INDEX([1]!SHIPMENTS_MF, ((MATCH($C$9,[1]!APPLIANCES,0)-1)*2)+1, MATCH(R$10,[1]!SHIPMENTS_MF_YEARS,0)) -> 15041.17302 | S12: =INDEX([1]!SHIPMENTS_MF, ((MATCH($C$9,[1]!APPLIANCES,0)-1)*2)+1, MATCH(S$10,[1]!SHIPMENTS_MF_YEARS,0)) -> 15041.17302 | T12: =INDEX([1]!SHIPMENTS_MF, ((MATCH($C$9,[1]!APPLIANCES,0)-1)*2)+1, MATCH(T$10,[1]!SHIPMENTS_MF_YEARS,0)) -> 15041.17302 | U12: =INDEX([1]!SHIPMENTS_MF, ((MATCH($C$9,[1]!APPLIANCES,0)-1)*2)+1, MATCH(U$10,[1]!SHIPMENTS_MF_YEARS,0)) -> 20095.73594 | V12: =INDEX([1]!SHIPMENTS_MF, ((MATCH($C$9,[1]!APPLIANCES,0)-1)*2)+1, MATCH(V$10,[1]!SHIPMENTS_MF_YEARS,0)) -> 18638.78052 | W12: =INDEX([1]!SHIPMENTS_MF, ((MATCH($C$9,[1]!APPLIANCES,0)-1)*2)+1, MATCH(W$10,[1]!SHIPMENTS_MF_YEARS,0)) -> 19284.62007 | X12: =INDEX([1]!SHIPMENTS_MF, ((MATCH($C$9,[1]!APPLIANCES,0)-1)*2)+1, MATCH(X$10,[1]!SHIPMENTS_MF_YEARS,0)) -> 21517.29188 | Y12: =INDEX([1]!SHIPMENTS_MF, ((MATCH($C$9,[1]!APPLIANCES,0)-1)*2)+1, MATCH(Y$10,[1]!SHIPMENTS_MF_YEARS,0)) -> 25002.17876 | Z12: =INDEX([1]!SHIPMENTS_MF, ((MATCH($C$9,[1]!APPLIANCES,0)-1)*2)+1, MATCH(Z$10,[1]!SHIPMENTS_MF_YEARS,0)) -> 23890.23824 | AA12: =INDEX([1]!SHIPMENTS_MF, ((MATCH($C$9,[1]!APPLIANCES,0)-1)*2)+1, MATCH(AA$10,[1]!SHIPMENTS_MF_YEARS,0)) -> 24917.53195 | AB12: =INDEX([1]!SHIPMENTS_MF, ((MATCH($C$9,[1]!APPLIANCES,0)-1)*2)+1, MATCH(AB$10,[1]!SHIPMENTS_MF_YEARS,0)) -> 27329.23341 | AC12: =INDEX([1]!SHIPMENTS_MF, ((MATCH($C$9,[1]!APPLIANCES,0)-1)*2)+1, MATCH(AC$10,[1]!SHIPMENTS_MF_YEARS,0)) -> 29749.72567 | AD12: =INDEX([1]!SHIPMENTS_MF, ((MATCH($C$9,[1]!APPLIANCES,0)-1)*2)+1, MATCH(AD$10,[1]!SHIPMENTS_MF_YEARS,0)) -> 27474.80135 | AE12: =INDEX([1]!SHIPMENTS_MF, ((MATCH($C$9,[1]!APPLIANCES,0)-1)*2)+1, MATCH(AE$10,[1]!SHIPMENTS_MF_YEARS,0)) -> 20862.7088 | AF12: =INDEX([1]!SHIPMENTS_MF, ((MATCH($C$9,[1]!APPLIANCES,0)-1)*2)+1, MATCH(AF$10,[1]!SHIPMENTS_MF_YEARS,0)) -> 21006.95339 | AG12: =INDEX([1]!SHIPMENTS_MF, ((MATCH($C$9,[1]!APPLIANCES,0)-1)*2)+1, MATCH(AG$10,[1]!SHIPMENTS_MF_YEARS,0)) -> 21736.30659 | AH12: =INDEX([1]!SHIPMENTS_MF, ((MATCH($C$9,[1]!APPLIANCES,0)-1)*2)+1, MATCH(AH$10,[1]!SHIPMENTS_MF_YEARS,0)) -> 23202.95539 | AI12: =INDEX([1]!SHIPMENTS_MF, ((MATCH($C$9,[1]!APPLIANCES,0)-1)*2)+1, MATCH(AI$10,[1]!SHIPMENTS_MF_YEARS,0)) -> 23917.8586 | AJ12: =INDEX([1]!SHIPMENTS_MF, ((MATCH($C$9,[1]!APPLIANCES,0)-1)*2)+1, MATCH(AJ$10,[1]!SHIPMENTS_MF_YEARS,0)) -> 23981.44756 | AK12: =INDEX([1]!SHIPMENTS_MF, ((MATCH($C$9,[1]!APPLIANCES,0)-1)*2)+1, MATCH(AK$10,[1]!SHIPMENTS_MF_YEARS,0)) -> 29167.98698 | AL12: =INDEX([1]!SHIPMENTS_MF, ((MATCH($C$9,[1]!APPLIANCES,0)-1)*2)+1, MATCH(AL$10,[1]!SHIPMENTS_MF_YEARS,0)) -> 28951.78016 | AM12: =INDEX([1]!SHIPMENTS_MF, ((MATCH($C$9,[1]!APPLIANCES,0)-1)*2)+1, MATCH(AM$10,[1]!SHIPMENTS_MF_YEARS,0)) -> 27897.82496 | AN12: =INDEX([1]!SHIPMENTS_MF, ((MATCH($C$9,[1]!APPLIANCES,0)-1)*2)+1, MATCH(AN$10,[1]!SHIPMENTS_MF_YEARS,0)) -> 28544.2444 | AO12: =INDEX([1]!SHIPMENTS_MF, ((MATCH($C$9,[1]!APPLIANCES,0)-1)*2)+1, MATCH(AO$10,[1]!SHIPMENTS_MF_YEARS,0)) -> 32122.61518 | AP12: =INDEX([1]!SHIPMENTS_MF, ((MATCH($C$9,[1]!APPLIANCES,0)-1)*2)+1, MATCH(AP$10,[1]!SHIPMENTS_MF_YEARS,0)) -> 30407.40162 | AQ12: =INDEX([1]!SHIPMENTS_MF, ((MATCH($C$9,[1]!APPLIANCES,0)-1)*2)+1, MATCH(AQ$10,[1]!SHIPMENTS_MF_YEARS,0)) -> 31592.036 | AR12: =INDEX([1]!SHIPMENTS_MF, ((MATCH($C$9,[1]!APPLIANCES,0)-1)*2)+1, MATCH(AR$10,[1]!SHIPMENTS_MF_YEARS,0)) -> 34875.72889 | AS12: =INDEX([1]!SHIPMENTS_MF, ((MATCH($C$9,[1]!APPLIANCES,0)-1)*2)+1, MATCH(AS$10,[1]!SHIPMENTS_MF_YEARS,0)) -> 37139.83061 | AT12: =INDEX([1]!SHIPMENTS_MF, ((MATCH($C$9,[1]!APPLIANCES,0)-1)*2)+1, MATCH(AT$10,[1]!SHIPMENTS_MF_YEARS,0)) -> 35760.56198 | AU12: =INDEX([1]!SHIPMENTS_MF, ((MATCH($C$9,[1]!APPLIANCES,0)-1)*2)+1, MATCH(AU$10,[1]!SHIPMENTS_MF_YEARS,0)) -> 28963.03199 | AV12: =INDEX([1]!SHIPMENTS_MF, ((MATCH($C$9,[1]!APPLIANCES,0)-1)*2)+1, MATCH(AV$10,[1]!SHIPMENTS_MF_YEARS,0)) -> 26945.87975 | AW12: =INDEX([1]!SHIPMENTS_MF, ((MATCH($C$9,[1]!APPLIANCES,0)-1)*2)+1, MATCH(AW$10,[1]!SHIPMENTS_MF_YEARS,0)) -> 24125.15868 | AX12: =INDEX([1]!SHIPMENTS_MF, ((MATCH($C$9,[1]!APPLIANCES,0)-1)*2)+1, MATCH(AX$10,[1]!SHIPMENTS_MF_YEARS,0)) -> 27176.18709 | AY12: =INDEX([1]!SHIPMENTS_MF, ((MATCH($C$9,[1]!APPLIANCES,0)-1)*2)+1, MATCH(AY$10,[1]!SHIPMENTS_MF_YEARS,0)) -> 29876.39621 | AZ12: =INDEX([1]!SHIPMENTS_MF, ((MATCH($C$9,[1]!APPLIANCES,0)-1)*2)+1, MATCH(AZ$10,[1]!SHIPMENTS_MF_YEARS,0)) -> 30890.07737 | BA12: =INDEX([1]!SHIPMENTS_MF, ((MATCH($C$9,[1]!APPLIANCES,0)-1)*2)+1, MATCH(BA$10,[1]!SHIPMENTS_MF_YEARS,0)) -> 36465.86133 | BB12: =INDEX([1]!SHIPMENTS_MF, ((MATCH($C$9,[1]!APPLIANCES,0)-1)*2)+1, MATCH(BB$10,[1]!SHIPMENTS_MF_YEARS,0)) -> 36789.56523 | BC12: =INDEX([1]!SHIPMENTS_MF, ((MATCH($C$9,[1]!APPLIANCES,0)-1)*2)+1, MATCH(BC$10,[1]!SHIPMENTS_MF_YEARS,0)) -> 36376.68145 | BD12: =INDEX([1]!SHIPMENTS_MF, ((MATCH($C$9,[1]!APPLIANCES,0)-1)*2)+1, MATCH(BD$10,[1]!SHIPMENTS_MF_YEARS,0)) -> 37549.72309 | BE12: =INDEX([1]!SHIPMENTS_MF, ((MATCH($C$9,[1]!APPLIANCES,0)-1)*2)+1, MATCH(BE$10,[1]!SHIPMENTS_MF_YEARS,0)) -> 41423.646 | BF12: =INDEX([1]!SHIPMENTS_MF, ((MATCH($C$9,[1]!APPLIANCES,0)-1)*2)+1, MATCH(BF$10,[1]!SHIPMENTS_MF_YEARS,0)) -> 40032.68906
C13: Net New Shipments | D13: (units) | E13: =INDEX([1]!SHIPMENTS_MF, ((MATCH($C$9,[1]!APPLIANCES,0)-1)*2)+2, MATCH(E$10,[1]!SHIPMENTS_MF_YEARS,0)) -> 5054.562919 | F13: =INDEX([1]!SHIPMENTS_MF, ((MATCH($C$9,[1]!APPLIANCES,0)-1)*2)+2, MATCH(F$10,[1]!SHIPMENTS_MF_YEARS,0)) -> 3597.607501 | G13: =INDEX([1]!SHIPMENTS_MF, ((MATCH($C$9,[1]!APPLIANCES,0)-1)*2)+2, MATCH(G$10,[1]!SHIPMENTS_MF_YEARS,0)) -> 4243.44705 | H13: =INDEX([1]!SHIPMENTS_MF, ((MATCH($C$9,[1]!APPLIANCES,0)-1)*2)+2, MATCH(H$10,[1]!SHIPMENTS_MF_YEARS,0)) -> 6476.118862 | I13: =INDEX([1]!SHIPMENTS_MF, ((MATCH($C$9,[1]!APPLIANCES,0)-1)*2)+2, MATCH(I$10,[1]!SHIPMENTS_MF_YEARS,0)) -> 9961.005739 | J13: =INDEX([1]!SHIPMENTS_MF, ((MATCH($C$9,[1]!APPLIANCES,0)-1)*2)+2, MATCH(J$10,[1]!SHIPMENTS_MF_YEARS,0)) -> 8849.065228 | K13: =INDEX([1]!SHIPMENTS_MF, ((MATCH($C$9,[1]!APPLIANCES,0)-1)*2)+2, MATCH(K$10,[1]!SHIPMENTS_MF_YEARS,0)) -> 9876.35893 | L13: =INDEX([1]!SHIPMENTS_MF, ((MATCH($C$9,[1]!APPLIANCES,0)-1)*2)+2, MATCH(L$10,[1]!SHIPMENTS_MF_YEARS,0)) -> 12288.0604 | M13: =INDEX([1]!SHIPMENTS_MF, ((MATCH($C$9,[1]!APPLIANCES,0)-1)*2)+2, MATCH(M$10,[1]!SHIPMENTS_MF_YEARS,0)) -> 14708.55265 | N13: =INDEX([1]!SHIPMENTS_MF, ((MATCH($C$9,[1]!APPLIANCES,0)-1)*2)+2, MATCH(N$10,[1]!SHIPMENTS_MF_YEARS,0)) -> 12433.62833 | O13: =INDEX([1]!SHIPMENTS_MF, ((MATCH($C$9,[1]!APPLIANCES,0)-1)*2)+2, MATCH(O$10,[1]!SHIPMENTS_MF_YEARS,0)) -> 5821.535784 | P13: =INDEX([1]!SHIPMENTS_MF, ((MATCH($C$9,[1]!APPLIANCES,0)-1)*2)+2, MATCH(P$10,[1]!SHIPMENTS_MF_YEARS,0)) -> 5965.780373 | Q13: =INDEX([1]!SHIPMENTS_MF, ((MATCH($C$9,[1]!APPLIANCES,0)-1)*2)+2, MATCH(Q$10,[1]!SHIPMENTS_MF_YEARS,0)) -> 6695.133571 | R13: =INDEX([1]!SHIPMENTS_MF, ((MATCH($C$9,[1]!APPLIANCES,0)-1)*2)+2, MATCH(R$10,[1]!SHIPMENTS_MF_YEARS,0)) -> 8161.782373 | S13: =INDEX([1]!SHIPMENTS_MF, ((MATCH($C$9,[1]!APPLIANCES,0)-1)*2)+2, MATCH(S$10,[1]!SHIPMENTS_MF_YEARS,0)) -> 8876.685584 | T13: =INDEX([1]!SHIPMENTS_MF, ((MATCH($C$9,[1]!APPLIANCES,0)-1)*2)+2, MATCH(T$10,[1]!SHIPMENTS_MF_YEARS,0)) -> 8940.274542 | U13: =INDEX([1]!SHIPMENTS_MF, ((MATCH($C$9,[1]!APPLIANCES,0)-1)*2)+2, MATCH(U$10,[1]!SHIPMENTS_MF_YEARS,0)) -> 9072.25104 | V13: =INDEX([1]!SHIPMENTS_MF, ((MATCH($C$9,[1]!APPLIANCES,0)-1)*2)+2, MATCH(V$10,[1]!SHIPMENTS_MF_YEARS,0)) -> 10312.99965 | W13: =INDEX([1]!SHIPMENTS_MF, ((MATCH($C$9,[1]!APPLIANCES,0)-1)*2)+2, MATCH(W$10,[1]!SHIPMENTS_MF_YEARS,0)) -> 8613.204893 | X13: =INDEX([1]!SHIPMENTS_MF, ((MATCH($C$9,[1]!APPLIANCES,0)-1)*2)+2, MATCH(X$10,[1]!SHIPMENTS_MF_YEARS,0)) -> 7026.952523 | Y13: =INDEX([1]!SHIPMENTS_MF, ((MATCH($C$9,[1]!APPLIANCES,0)-1)*2)+2, MATCH(Y$10,[1]!SHIPMENTS_MF_YEARS,0)) -> 7120.436424 | Z13: =INDEX([1]!SHIPMENTS_MF, ((MATCH($C$9,[1]!APPLIANCES,0)-1)*2)+2, MATCH(Z$10,[1]!SHIPMENTS_MF_YEARS,0)) -> 6517.163379 | AA13: =INDEX([1]!SHIPMENTS_MF, ((MATCH($C$9,[1]!APPLIANCES,0)-1)*2)+2, MATCH(AA$10,[1]!SHIPMENTS_MF_YEARS,0)) -> 6674.504057 | AB13: =INDEX([1]!SHIPMENTS_MF, ((MATCH($C$9,[1]!APPLIANCES,0)-1)*2)+2, MATCH(AB$10,[1]!SHIPMENTS_MF_YEARS,0)) -> 7546.495479 | AC13: =INDEX([1]!SHIPMENTS_MF, ((MATCH($C$9,[1]!APPLIANCES,0)-1)*2)+2, MATCH(AC$10,[1]!SHIPMENTS_MF_YEARS,0)) -> 7390.104945 | AD13: =INDEX([1]!SHIPMENTS_MF, ((MATCH($C$9,[1]!APPLIANCES,0)-1)*2)+2, MATCH(AD$10,[1]!SHIPMENTS_MF_YEARS,0)) -> 8285.760638 | AE13: =INDEX([1]!SHIPMENTS_MF, ((MATCH($C$9,[1]!APPLIANCES,0)-1)*2)+2, MATCH(AE$10,[1]!SHIPMENTS_MF_YEARS,0)) -> 8100.323186 | AF13: =INDEX([1]!SHIPMENTS_MF, ((MATCH($C$9,[1]!APPLIANCES,0)-1)*2)+2, MATCH(AF$10,[1]!SHIPMENTS_MF_YEARS,0)) -> 5938.926359 | AG13: =INDEX([1]!SHIPMENTS_MF, ((MATCH($C$9,[1]!APPLIANCES,0)-1)*2)+2, MATCH(AG$10,[1]!SHIPMENTS_MF_YEARS,0)) -> 2388.852092 | AH13: =INDEX([1]!SHIPMENTS_MF, ((MATCH($C$9,[1]!APPLIANCES,0)-1)*2)+2, MATCH(AH$10,[1]!SHIPMENTS_MF_YEARS,0)) -> 3973.231703 | AI13: =INDEX([1]!SHIPMENTS_MF, ((MATCH($C$9,[1]!APPLIANCES,0)-1)*2)+2, MATCH(AI$10,[1]!SHIPMENTS_MF_YEARS,0)) -> 5958.537611 | AJ13: =INDEX([1]!SHIPMENTS_MF, ((MATCH($C$9,[1]!APPLIANCES,0)-1)*2)+2, MATCH(AJ$10,[1]!SHIPMENTS_MF_YEARS,0)) -> 6908.629812 | AK13: =INDEX([1]!SHIPMENTS_MF, ((MATCH($C$9,[1]!APPLIANCES,0)-1)*2)+2, MATCH(AK$10,[1]!SHIPMENTS_MF_YEARS,0)) -> 7297.874354 | AL13: =INDEX([1]!SHIPMENTS_MF, ((MATCH($C$9,[1]!APPLIANCES,0)-1)*2)+2, MATCH(AL$10,[1]!SHIPMENTS_MF_YEARS,0)) -> 7837.785067 | AM13: =INDEX([1]!SHIPMENTS_MF, ((MATCH($C$9,[1]!APPLIANCES,0)-1)*2)+2, MATCH(AM$10,[1]!SHIPMENTS_MF_YEARS,0)) -> 8478.856493 | AN13: =INDEX([1]!SHIPMENTS_MF, ((MATCH($C$9,[1]!APPLIANCES,0)-1)*2)+2, MATCH(AN$10,[1]!SHIPMENTS_MF_YEARS,0)) -> 9005.478689 | AO13: =INDEX([1]!SHIPMENTS_MF, ((MATCH($C$9,[1]!APPLIANCES,0)-1)*2)+2, MATCH(AO$10,[1]!SHIPMENTS_MF_YEARS,0)) -> 9301.03082 | AP13: =INDEX([1]!SHIPMENTS_MF, ((MATCH($C$9,[1]!APPLIANCES,0)-1)*2)+2, MATCH(AP$10,[1]!SHIPMENTS_MF_YEARS,0)) -> 9625.287437 | AQ13: =INDEX([1]!SHIPMENTS_MF, ((MATCH($C$9,[1]!APPLIANCES,0)-1)*2)+2, MATCH(AQ$10,[1]!SHIPMENTS_MF_YEARS,0)) -> 10000.11954 | AR13: =INDEX([1]!SHIPMENTS_MF, ((MATCH($C$9,[1]!APPLIANCES,0)-1)*2)+2, MATCH(AR$10,[1]!SHIPMENTS_MF_YEARS,0)) -> 10221.64672 | AS13: =INDEX([1]!SHIPMENTS_MF, ((MATCH($C$9,[1]!APPLIANCES,0)-1)*2)+2, MATCH(AS$10,[1]!SHIPMENTS_MF_YEARS,0)) -> 10041.08086 | AT13: =INDEX([1]!SHIPMENTS_MF, ((MATCH($C$9,[1]!APPLIANCES,0)-1)*2)+2, MATCH(AT$10,[1]!SHIPMENTS_MF_YEARS,0)) -> 10153.44552 | AU13: =INDEX([1]!SHIPMENTS_MF, ((MATCH($C$9,[1]!APPLIANCES,0)-1)*2)+2, MATCH(AU$10,[1]!SHIPMENTS_MF_YEARS,0)) -> 10200.12034 | AV13: =INDEX([1]!SHIPMENTS_MF, ((MATCH($C$9,[1]!APPLIANCES,0)-1)*2)+2, MATCH(AV$10,[1]!SHIPMENTS_MF_YEARS,0)) -> 10171.80547 | AW13: =INDEX([1]!SHIPMENTS_MF, ((MATCH($C$9,[1]!APPLIANCES,0)-1)*2)+2, MATCH(AW$10,[1]!SHIPMENTS_MF_YEARS,0)) -> 10061.8813 | AX13: =INDEX([1]!SHIPMENTS_MF, ((MATCH($C$9,[1]!APPLIANCES,0)-1)*2)+2, MATCH(AX$10,[1]!SHIPMENTS_MF_YEARS,0)) -> 9910.988633 | AY13: =INDEX([1]!SHIPMENTS_MF, ((MATCH($C$9,[1]!APPLIANCES,0)-1)*2)+2, MATCH(AY$10,[1]!SHIPMENTS_MF_YEARS,0)) -> 9864.174505 | AZ13: =INDEX([1]!SHIPMENTS_MF, ((MATCH($C$9,[1]!APPLIANCES,0)-1)*2)+2, MATCH(AZ$10,[1]!SHIPMENTS_MF_YEARS,0)) -> 9844.370131 | BA13: =INDEX([1]!SHIPMENTS_MF, ((MATCH($C$9,[1]!APPLIANCES,0)-1)*2)+2, MATCH(BA$10,[1]!SHIPMENTS_MF_YEARS,0)) -> 9811.552301 | BB13: =INDEX([1]!SHIPMENTS_MF, ((MATCH($C$9,[1]!APPLIANCES,0)-1)*2)+2, MATCH(BB$10,[1]!SHIPMENTS_MF_YEARS,0)) -> 9704.802292 | BC13: =INDEX([1]!SHIPMENTS_MF, ((MATCH($C$9,[1]!APPLIANCES,0)-1)*2)+2, MATCH(BC$10,[1]!SHIPMENTS_MF_YEARS,0)) -> 9801.850315 | BD13: =INDEX([1]!SHIPMENTS_MF, ((MATCH($C$9,[1]!APPLIANCES,0)-1)*2)+2, MATCH(BD$10,[1]!SHIPMENTS_MF_YEARS,0)) -> 9899.868818 | BE13: =INDEX([1]!SHIPMENTS_MF, ((MATCH($C$9,[1]!APPLIANCES,0)-1)*2)+2, MATCH(BE$10,[1]!SHIPMENTS_MF_YEARS,0)) -> 9998.867507 | BF13: =INDEX([1]!SHIPMENTS_MF, ((MATCH($C$9,[1]!APPLIANCES,0)-1)*2)+2, MATCH(BF$10,[1]!SHIPMENTS_MF_YEARS,0)) -> 10098.85618
C14: Total Model Shipments | D14: (units) | E14: =SUM(E12:E13) -> 20095.73594 | F14: =SUM(F12:F13) -> 18638.78052 | G14: 19284.62007 | H14: 21517.29188 | I14: 25002.17876 | J14: 23890.23824 | K14: 24917.53195 | L14: 27329.23341 | M14: 29749.72567 | N14: 27474.80135 | O14: 20862.7088 | P14: 21006.95339 | Q14: 21736.30659 | R14: 23202.95539 | S14: 23917.8586 | T14: 23981.44756 | U14: 29167.98698 | V14: 28951.78016 | W14: 27897.82496 | X14: 28544.2444 | Y14: 32122.61518 | Z14: 30407.40162 | AA14: 31592.036 | AB14: 34875.72889 | AC14: 37139.83061 | AD14: 35760.56198 | AE14: 28963.03199 | AF14: 26945.87975 | AG14: 24125.15868 | AH14: 27176.18709 | AI14: 29876.39621 | AJ14: 30890.07737 | AK14: 36465.86133 | AL14: 36789.56523 | AM14: 36376.68145 | AN14: 37549.72309 | AO14: 41423.646 | AP14: 40032.68906 | AQ14: 41592.15554 | AR14: 45097.37561 | AS14: 47180.91148 | AT14: 45914.00751 | AU14: 39163.15233 | AV14: 37117.68522 | AW14: 34187.03998 | AX14: 37087.17573 | AY14: 39740.57072 | AZ14: 40734.4475 | BA14: 46277.41363 | BB14: 46494.36752 | BC14: 46178.53177 | BD14: 47449.59191 | BE14: 51422.51351 | BF14: 50131.54524
C15: Model Installed Stock | D15: (units) | E15: =INDEX([1]!STOCK_MF, MATCH($C$9,[1]!APPLIANCES,0), MATCH(E$10,[1]!STOCK_MF_YEARS,0)) -> 245713.3312 | F15: =INDEX([1]!STOCK_MF, MATCH($C$9,[1]!APPLIANCES,0), MATCH(F$10,[1]!STOCK_MF_YEARS,0)) -> 249310.9387 | G15: =INDEX([1]!STOCK_MF, MATCH($C$9,[1]!APPLIANCES,0), MATCH(G$10,[1]!STOCK_MF_YEARS,0)) -> 253554.3857 | H15: =INDEX([1]!STOCK_MF, MATCH($C$9,[1]!APPLIANCES,0), MATCH(H$10,[1]!STOCK_MF_YEARS,0)) -> 260030.5046 | I15: =INDEX([1]!STOCK_MF, MATCH($C$9,[1]!APPLIANCES,0), MATCH(I$10,[1]!STOCK_MF_YEARS,0)) -> 269991.5103 | J15: =INDEX([1]!STOCK_MF, MATCH($C$9,[1]!APPLIANCES,0), MATCH(J$10,[1]!STOCK_MF_YEARS,0)) -> 278840.5756 | K15: =INDEX([1]!STOCK_MF, MATCH($C$9,[1]!APPLIANCES,0), MATCH(K$10,[1]!STOCK_MF_YEARS,0)) -> 288716.9345 | L15: =INDEX([1]!STOCK_MF, MATCH($C$9,[1]!APPLIANCES,0), MATCH(L$10,[1]!STOCK_MF_YEARS,0)) -> 301004.9949 | M15: =INDEX([1]!STOCK_MF, MATCH($C$9,[1]!APPLIANCES,0), MATCH(M$10,[1]!STOCK_MF_YEARS,0)) -> 315713.5475 | N15: =INDEX([1]!STOCK_MF, MATCH($C$9,[1]!APPLIANCES,0), MATCH(N$10,[1]!STOCK_MF_YEARS,0)) -> 328147.1759 | O15: =INDEX([1]!STOCK_MF, MATCH($C$9,[1]!APPLIANCES,0), MATCH(O$10,[1]!STOCK_MF_YEARS,0)) -> 333968.7117 | P15: =INDEX([1]!STOCK_MF, MATCH($C$9,[1]!APPLIANCES,0), MATCH(P$10,[1]!STOCK_MF_YEARS,0)) -> 339934.492 | Q15: =INDEX([1]!STOCK_MF, MATCH($C$9,[1]!APPLIANCES,0), MATCH(Q$10,[1]!STOCK_MF_YEARS,0)) -> 346629.6256 | R15: =INDEX([1]!STOCK_MF, MATCH($C$9,[1]!APPLIANCES,0), MATCH(R$10,[1]!STOCK_MF_YEARS,0)) -> 354791.408 | S15: =INDEX([1]!STOCK_MF, MATCH($C$9,[1]!APPLIANCES,0), MATCH(S$10,[1]!STOCK_MF_YEARS,0)) -> 363668.0936 | T15: =INDEX([1]!STOCK_MF, MATCH($C$9,[1]!APPLIANCES,0), MATCH(T$10,[1]!STOCK_MF_YEARS,0)) -> 372608.3681 | U15: =INDEX([1]!STOCK_MF, MATCH($C$9,[1]!APPLIANCES,0), MATCH(U$10,[1]!STOCK_MF_YEARS,0)) -> 381680.6191 | V15: =INDEX([1]!STOCK_MF, MATCH($C$9,[1]!APPLIANCES,0), MATCH(V$10,[1]!STOCK_MF_YEARS,0)) -> 391993.6188 | W15: =INDEX([1]!STOCK_MF, MATCH($C$9,[1]!APPLIANCES,0), MATCH(W$10,[1]!STOCK_MF_YEARS,0)) -> 400606.8237 | X15: =INDEX([1]!STOCK_MF, MATCH($C$9,[1]!APPLIANCES,0), MATCH(X$10,[1]!STOCK_MF_YEARS,0)) -> 407633.7762 | Y15: =INDEX([1]!STOCK_MF, MATCH($C$9,[1]!APPLIANCES,0), MATCH(Y$10,[1]!STOCK_MF_YEARS,0)) -> 414754.2126 | Z15: =INDEX([1]!STOCK_MF, MATCH($C$9,[1]!APPLIANCES,0), MATCH(Z$10,[1]!STOCK_MF_YEARS,0)) -> 421271.376 | AA15: =INDEX([1]!STOCK_MF, MATCH($C$9,[1]!APPLIANCES,0), MATCH(AA$10,[1]!STOCK_MF_YEARS,0)) -> 427945.8801 | AB15: =INDEX([1]!STOCK_MF, MATCH($C$9,[1]!APPLIANCES,0), MATCH(AB$10,[1]!STOCK_MF_YEARS,0)) -> 435492.3755 | AC15: =INDEX([1]!STOCK_MF, MATCH($C$9,[1]!APPLIANCES,0), MATCH(AC$10,[1]!STOCK_MF_YEARS,0)) -> 442882.4805 | AD15: =INDEX([1]!STOCK_MF, MATCH($C$9,[1]!APPLIANCES,0), MATCH(AD$10,[1]!STOCK_MF_YEARS,0)) -> 451168.2411 | AE15: =INDEX([1]!STOCK_MF, MATCH($C$9,[1]!APPLIANCES,0), MATCH(AE$10,[1]!STOCK_MF_YEARS,0)) -> 459268.5643 | AF15: =INDEX([1]!STOCK_MF, MATCH($C$9,[1]!APPLIANCES,0), MATCH(AF$10,[1]!STOCK_MF_YEARS,0)) -> 465207.4907 | AG15: =INDEX([1]!STOCK_MF, MATCH($C$9,[1]!APPLIANCES,0), MATCH(AG$10,[1]!STOCK_MF_YEARS,0)) -> 467596.3428 | AH15: =INDEX([1]!STOCK_MF, MATCH($C$9,[1]!APPLIANCES,0), MATCH(AH$10,[1]!STOCK_MF_YEARS,0)) -> 471569.5745 | AI15: =INDEX([1]!STOCK_MF, MATCH($C$9,[1]!APPLIANCES,0), MATCH(AI$10,[1]!STOCK_MF_YEARS,0)) -> 477528.1121 | AJ15: =INDEX([1]!STOCK_MF, MATCH($C$9,[1]!APPLIANCES,0), MATCH(AJ$10,[1]!STOCK_MF_YEARS,0)) -> 484436.7419 | AK15: =INDEX([1]!STOCK_MF, MATCH($C$9,[1]!APPLIANCES,0), MATCH(AK$10,[1]!STOCK_MF_YEARS,0)) -> 491734.6162 | AL15: =INDEX([1]!STOCK_MF, MATCH($C$9,[1]!APPLIANCES,0), MATCH(AL$10,[1]!STOCK_MF_YEARS,0)) -> 499572.4013 | AM15: =INDEX([1]!STOCK_MF, MATCH($C$9,[1]!APPLIANCES,0), MATCH(AM$10,[1]!STOCK_MF_YEARS,0)) -> 508051.2578 | AN15: =INDEX([1]!STOCK_MF, MATCH($C$9,[1]!APPLIANCES,0), MATCH(AN$10,[1]!STOCK_MF_YEARS,0)) -> 517056.7365 | AO15: =INDEX([1]!STOCK_MF, MATCH($C$9,[1]!APPLIANCES,0), MATCH(AO$10,[1]!STOCK_MF_YEARS,0)) -> 526357.7673 | AP15: =INDEX([1]!STOCK_MF, MATCH($C$9,[1]!APPLIANCES,0), MATCH(AP$10,[1]!STOCK_MF_YEARS,0)) -> 535983.0548 | AQ15: =INDEX([1]!STOCK_MF, MATCH($C$9,[1]!APPLIANCES,0), MATCH(AQ$10,[1]!STOCK_MF_YEARS,0)) -> 545983.1743 | AR15: =INDEX([1]!STOCK_MF, MATCH($C$9,[1]!APPLIANCES,0), MATCH(AR$10,[1]!STOCK_MF_YEARS,0)) -> 556204.821 | AS15: =INDEX([1]!STOCK_MF, MATCH($C$9,[1]!APPLIANCES,0), MATCH(AS$10,[1]!STOCK_MF_YEARS,0)) -> 566245.9019 | AT15: =INDEX([1]!STOCK_MF, MATCH($C$9,[1]!APPLIANCES,0), MATCH(AT$10,[1]!STOCK_MF_YEARS,0)) -> 576399.3474 | AU15: =INDEX([1]!STOCK_MF, MATCH($C$9,[1]!APPLIANCES,0), MATCH(AU$10,[1]!STOCK_MF_YEARS,0)) -> 586599.4677 | AV15: =INDEX([1]!STOCK_MF, MATCH($C$9,[1]!APPLIANCES,0), MATCH(AV$10,[1]!STOCK_MF_YEARS,0)) -> 596771.2732 | AW15: =INDEX([1]!STOCK_MF, MATCH($C$9,[1]!APPLIANCES,0), MATCH(AW$10,[1]!STOCK_MF_YEARS,0)) -> 606833.1545 | AX15: =INDEX([1]!STOCK_MF, MATCH($C$9,[1]!APPLIANCES,0), MATCH(AX$10,[1]!STOCK_MF_YEARS,0)) -> 616744.1431 | AY15: =INDEX([1]!STOCK_MF, MATCH($C$9,[1]!APPLIANCES,0), MATCH(AY$10,[1]!STOCK_MF_YEARS,0)) -> 626608.3177 | AZ15: =INDEX([1]!STOCK_MF, MATCH($C$9,[1]!APPLIANCES,0), MATCH(AZ$10,[1]!STOCK_MF_YEARS,0)) -> 636452.6878 | BA15: =INDEX([1]!STOCK_MF, MATCH($C$9,[1]!APPLIANCES,0), MATCH(BA$10,[1]!STOCK_MF_YEARS,0)) -> 646264.2401 | BB15: =INDEX([1]!STOCK_MF, MATCH($C$9,[1]!APPLIANCES,0), MATCH(BB$10,[1]!STOCK_MF_YEARS,0)) -> 655969.0424 | BC15: =INDEX([1]!STOCK_MF, MATCH($C$9,[1]!APPLIANCES,0), MATCH(BC$10,[1]!STOCK_MF_YEARS,0)) -> 665770.8927 | BD15: =INDEX([1]!STOCK_MF, MATCH($C$9,[1]!APPLIANCES,0), MATCH(BD$10,[1]!STOCK_MF_YEARS,0)) -> 675670.7615 | BE15: =INDEX([1]!STOCK_MF, MATCH($C$9,[1]!APPLIANCES,0), MATCH(BE$10,[1]!STOCK_MF_YEARS,0)) -> 685669.629 | BF15: =INDEX([1]!STOCK_MF, MATCH($C$9,[1]!APPLIANCES,0), MATCH(BF$10,[1]!STOCK_MF_YEARS,0)) -> 695768.4852

Sheet Shipments and Stock - MH
C2: Shipments and Stock - MH
C4: NAVIGATION
C6: COMMENTS
C9: =MODEL_NAME -> Electric Clothes Dryers
E10: 1981 | F10: 1982 | G10: 1983 | H10: 1984 | I10: 1985 | J10: 1986 | K10: 1987 | L10: 1988 | M10: 1989 | N10: 1990 | O10: 1991 | P10: 1992 | Q10: 1993 | R10: 1994 | S10: 1995 | T10: 1996 | U10: 1997 | V10: 1998 | W10: 1999 | X10: 2000 | Y10: 2001 | Z10: 2002 | AA10: 2003 | AB10: 2004 | AC10: 2005 | AD10: 2006 | AE10: 2007 | AF10: 2008 | AG10: 2009 | AH10: 2010 | AI10: 2011 | AJ10: 2012 | AK10: 2013 | AL10: 2014 | AM10: 2015 | AN10: 2016 | AO10: 2017 | AP10: 2018 | AQ10: 2019 | AR10: 2020 | AS10: 2021 | AT10: 2022 | AU10: 2023 | AV10: 2024 | AW10: 2025 | AX10: 2026 | AY10: 2027 | AZ10: 2028 | BA10: 2029 | BB10: 2030 | BC10: 2031 | BD10: 2032 | BE10: 2033 | BF10: 2034
C11: 6P Shipments | D11: (units) | E11: =IF(ISNUMBER(MATCH(E10,[1]!SIXTH_PLAN_MH_YEARS,0)), INDEX([1]!SIXTH_PLAN_MH, MATCH($C$9,[1]!APPLIANCES,0), MATCH(E$10,[1]!SIXTH_PLAN_MH_YEARS,0)),"pre-dates plan") -> pre-dates plan | F11: =IF(ISNUMBER(MATCH(F10,[1]!SIXTH_PLAN_MH_YEARS,0)), INDEX([1]!SIXTH_PLAN_MH, MATCH($C$9,[1]!APPLIANCES,0), MATCH(F$10,[1]!SIXTH_PLAN_MH_YEARS,0)),"pre-dates plan") -> pre-dates plan | G11: =IF(ISNUMBER(MATCH(G10,[1]!SIXTH_PLAN_MH_YEARS,0)), INDEX([1]!SIXTH_PLAN_MH, MATCH($C$9,[1]!APPLIANCES,0), MATCH(G$10,[1]!SIXTH_PLAN_MH_YEARS,0)),"pre-dates plan") -> pre-dates plan | H11: =IF(ISNUMBER(MATCH(H10,[1]!SIXTH_PLAN_MH_YEARS,0)), INDEX([1]!SIXTH_PLAN_MH, MATCH($C$9,[1]!APPLIANCES,0), MATCH(H$10,[1]!SIXTH_PLAN_MH_YEARS,0)),"pre-dates plan") -> pre-dates plan | I11: =IF(ISNUMBER(MATCH(I10,[1]!SIXTH_PLAN_MH_YEARS,0)), INDEX([1]!SIXTH_PLAN_MH, MATCH($C$9,[1]!APPLIANCES,0), MATCH(I$10,[1]!SIXTH_PLAN_MH_YEARS,0)),"pre-dates plan") -> pre-dates plan | J11: =IF(ISNUMBER(MATCH(J10,[1]!SIXTH_PLAN_MH_YEARS,0)), INDEX([1]!SIXTH_PLAN_MH, MATCH($C$9,[1]!APPLIANCES,0), MATCH(J$10,[1]!SIXTH_PLAN_MH_YEARS,0)),"pre-dates plan") -> pre-dates plan | K11: =IF(ISNUMBER(MATCH(K10,[1]!SIXTH_PLAN_MH_YEARS,0)), INDEX([1]!SIXTH_PLAN_MH, MATCH($C$9,[1]!APPLIANCES,0), MATCH(K$10,[1]!SIXTH_PLAN_MH_YEARS,0)),"pre-dates plan") -> pre-dates plan | L11: =IF(ISNUMBER(MATCH(L10,[1]!SIXTH_PLAN_MH_YEARS,0)), INDEX([1]!SIXTH_PLAN_MH, MATCH($C$9,[1]!APPLIANCES,0), MATCH(L$10,[1]!SIXTH_PLAN_MH_YEARS,0)),"pre-dates plan") -> pre-dates plan | M11: =IF(ISNUMBER(MATCH(M10,[1]!SIXTH_PLAN_MH_YEARS,0)), INDEX([1]!SIXTH_PLAN_MH, MATCH($C$9,[1]!APPLIANCES,0), MATCH(M$10,[1]!SIXTH_PLAN_MH_YEARS,0)),"pre-dates plan") -> pre-dates plan | N11: =IF(ISNUMBER(MATCH(N10,[1]!SIXTH_PLAN_MH_YEARS,0)), INDEX([1]!SIXTH_PLAN_MH, MATCH($C$9,[1]!APPLIANCES,0), MATCH(N$10,[1]!SIXTH_PLAN_MH_YEARS,0)),"pre-dates plan") -> pre-dates plan | O11: =IF(ISNUMBER(MATCH(O10,[1]!SIXTH_PLAN_MH_YEARS,0)), INDEX([1]!SIXTH_PLAN_MH, MATCH($C$9,[1]!APPLIANCES,0), MATCH(O$10,[1]!SIXTH_PLAN_MH_YEARS,0)),"pre-dates plan") -> pre-dates plan | P11: =IF(ISNUMBER(MATCH(P10,[1]!SIXTH_PLAN_MH_YEARS,0)), INDEX([1]!SIXTH_PLAN_MH, MATCH($C$9,[1]!APPLIANCES,0), MATCH(P$10,[1]!SIXTH_PLAN_MH_YEARS,0)),"pre-dates plan") -> pre-dates plan | Q11: =IF(ISNUMBER(MATCH(Q10,[1]!SIXTH_PLAN_MH_YEARS,0)), INDEX([1]!SIXTH_PLAN_MH, MATCH($C$9,[1]!APPLIANCES,0), MATCH(Q$10,[1]!SIXTH_PLAN_MH_YEARS,0)),"pre-dates plan") -> pre-dates plan | R11: =IF(ISNUMBER(MATCH(R10,[1]!SIXTH_PLAN_MH_YEARS,0)), INDEX([1]!SIXTH_PLAN_MH, MATCH($C$9,[1]!APPLIANCES,0), MATCH(R$10,[1]!SIXTH_PLAN_MH_YEARS,0)),"pre-dates plan") -> pre-dates plan | S11: =IF(ISNUMBER(MATCH(S10,[1]!SIXTH_PLAN_MH_YEARS,0)), INDEX([1]!SIXTH_PLAN_MH, MATCH($C$9,[1]!APPLIANCES,0), MATCH(S$10,[1]!SIXTH_PLAN_MH_YEARS,0)),"pre-dates plan") -> pre-dates plan | T11: =IF(ISNUMBER(MATCH(T10,[1]!SIXTH_PLAN_MH_YEARS,0)), INDEX([1]!SIXTH_PLAN_MH, MATCH($C$9,[1]!APPLIANCES,0), MATCH(T$10,[1]!SIXTH_PLAN_MH_YEARS,0)),"pre-dates plan") -> pre-dates plan | U11: =IF(ISNUMBER(MATCH(U10,[1]!SIXTH_PLAN_MH_YEARS,0)), INDEX([1]!SIXTH_PLAN_MH, MATCH($C$9,[1]!APPLIANCES,0), MATCH(U$10,[1]!SIXTH_PLAN_MH_YEARS,0)),"pre-dates plan") -> pre-dates plan | V11: =IF(ISNUMBER(MATCH(V10,[1]!SIXTH_PLAN_MH_YEARS,0)), INDEX([1]!SIXTH_PLAN_MH, MATCH($C$9,[1]!APPLIANCES,0), MATCH(V$10,[1]!SIXTH_PLAN_MH_YEARS,0)),"pre-dates plan") -> pre-dates plan | W11: =IF(ISNUMBER(MATCH(W10,[1]!SIXTH_PLAN_MH_YEARS,0)), INDEX([1]!SIXTH_PLAN_MH, MATCH($C$9,[1]!APPLIANCES,0), MATCH(W$10,[1]!SIXTH_PLAN_MH_YEARS,0)),"pre-dates plan") -> pre-dates plan | X11: =IF(ISNUMBER(MATCH(X10,[1]!SIXTH_PLAN_MH_YEARS,0)), INDEX([1]!SIXTH_PLAN_MH, MATCH($C$9,[1]!APPLIANCES,0), MATCH(X$10,[1]!SIXTH_PLAN_MH_YEARS,0)),"pre-dates plan") -> pre-dates plan | Y11: =IF(ISNUMBER(MATCH(Y10,[1]!SIXTH_PLAN_MH_YEARS,0)), INDEX([1]!SIXTH_PLAN_MH, MATCH($C$9,[1]!APPLIANCES,0), MATCH(Y$10,[1]!SIXTH_PLAN_MH_YEARS,0)),"pre-dates plan") -> pre-dates plan | Z11: =IF(ISNUMBER(MATCH(Z10,[1]!SIXTH_PLAN_MH_YEARS,0)), INDEX([1]!SIXTH_PLAN_MH, MATCH($C$9,[1]!APPLIANCES,0), MATCH(Z$10,[1]!SIXTH_PLAN_MH_YEARS,0)),"pre-dates plan") -> pre-dates plan | AA11: =IF(ISNUMBER(MATCH(AA10,[1]!SIXTH_PLAN_MH_YEARS,0)), INDEX([1]!SIXTH_PLAN_MH, MATCH($C$9,[1]!APPLIANCES,0), MATCH(AA$10,[1]!SIXTH_PLAN_MH_YEARS,0)),"pre-dates plan") -> pre-dates plan | AB11: =IF(ISNUMBER(MATCH(AB10,[1]!SIXTH_PLAN_MH_YEARS,0)), INDEX([1]!SIXTH_PLAN_MH, MATCH($C$9,[1]!APPLIANCES,0), MATCH(AB$10,[1]!SIXTH_PLAN_MH_YEARS,0)),"pre-dates plan") -> pre-dates plan | AC11: =IF(ISNUMBER(MATCH(AC10,[1]!SIXTH_PLAN_MH_YEARS,0)), INDEX([1]!SIXTH_PLAN_MH, MATCH($C$9,[1]!APPLIANCES,0), MATCH(AC$10,[1]!SIXTH_PLAN_MH_YEARS,0)),"pre-dates plan") -> pre-dates plan | AD11: =IF(ISNUMBER(MATCH(AD10,[1]!SIXTH_PLAN_MH_YEARS,0)), INDEX([1]!SIXTH_PLAN_MH, MATCH($C$9,[1]!APPLIANCES,0), MATCH(AD$10,[1]!SIXTH_PLAN_MH_YEARS,0)),"pre-dates plan") -> pre-dates plan | AE11: =IF(ISNUMBER(MATCH(AE10,[1]!SIXTH_PLAN_MH_YEARS,0)), INDEX([1]!SIXTH_PLAN_MH, MATCH($C$9,[1]!APPLIANCES,0), MATCH(AE$10,[1]!SIXTH_PLAN_MH_YEARS,0)),"pre-dates plan") -> pre-dates plan | AF11: =IF(ISNUMBER(MATCH(AF10,[1]!SIXTH_PLAN_MH_YEARS,0)), INDEX([1]!SIXTH_PLAN_MH, MATCH($C$9,[1]!APPLIANCES,0), MATCH(AF$10,[1]!SIXTH_PLAN_MH_YEARS,0)),"pre-dates plan") -> pre-dates plan | AG11: =IF(ISNUMBER(MATCH(AG10,[1]!SIXTH_PLAN_MH_YEARS,0)), INDEX([1]!SIXTH_PLAN_MH, MATCH($C$9,[1]!APPLIANCES,0), MATCH(AG$10,[1]!SIXTH_PLAN_MH_YEARS,0)),"pre-dates plan") -> pre-dates plan | AH11: =IF(ISNUMBER(MATCH(AH10,[1]!SIXTH_PLAN_MH_YEARS,0)), INDEX([1]!SIXTH_PLAN_MH, MATCH($C$9,[1]!APPLIANCES,0), MATCH(AH$10,[1]!SIXTH_PLAN_MH_YEARS,0)),"pre-dates plan") -> 42270.30458 | AI11: =IF(ISNUMBER(MATCH(AI10,[1]!SIXTH_PLAN_MH_YEARS,0)), INDEX([1]!SIXTH_PLAN_MH, MATCH($C$9,[1]!APPLIANCES,0), MATCH(AI$10,[1]!SIXTH_PLAN_MH_YEARS,0)),"pre-dates plan") -> 42164.95209 | AJ11: =IF(ISNUMBER(MATCH(AJ10,[1]!SIXTH_PLAN_MH_YEARS,0)), INDEX([1]!SIXTH_PLAN_MH, MATCH($C$9,[1]!APPLIANCES,0), MATCH(AJ$10,[1]!SIXTH_PLAN_MH_YEARS,0)),"pre-dates plan") -> 41930.28375 | AK11: =IF(ISNUMBER(MATCH(AK10,[1]!SIXTH_PLAN_MH_YEARS,0)), INDEX([1]!SIXTH_PLAN_MH, MATCH($C$9,[1]!APPLIANCES,0), MATCH(AK$10,[1]!SIXTH_PLAN_MH_YEARS,0)),"pre-dates plan") -> 41635.37094 | AL11: =IF(ISNUMBER(MATCH(AL10,[1]!SIXTH_PLAN_MH_YEARS,0)), INDEX([1]!SIXTH_PLAN_MH, MATCH($C$9,[1]!APPLIANCES,0), MATCH(AL$10,[1]!SIXTH_PLAN_MH_YEARS,0)),"pre-dates plan") -> 41257.75071 | AM11: =IF(ISNUMBER(MATCH(AM10,[1]!SIXTH_PLAN_MH_YEARS,0)), INDEX([1]!SIXTH_PLAN_MH, MATCH($C$9,[1]!APPLIANCES,0), MATCH(AM$10,[1]!SIXTH_PLAN_MH_YEARS,0)),"pre-dates plan") -> 40908.26171 | AN11: =IF(ISNUMBER(MATCH(AN10,[1]!SIXTH_PLAN_MH_YEARS,0)), INDEX([1]!SIXTH_PLAN_MH, MATCH($C$9,[1]!APPLIANCES,0), MATCH(AN$10,[1]!SIXTH_PLAN_MH_YEARS,0)),"pre-dates plan") -> 41024.68982 | AO11: =IF(ISNUMBER(MATCH(AO10,[1]!SIXTH_PLAN_MH_YEARS,0)), INDEX([1]!SIXTH_PLAN_MH, MATCH($C$9,[1]!APPLIANCES,0), MATCH(AO$10,[1]!SIXTH_PLAN_MH_YEARS,0)),"pre-dates plan") -> 40860.28915 | AP11: =IF(ISNUMBER(MATCH(AP10,[1]!SIXTH_PLAN_MH_YEARS,0)), INDEX([1]!SIXTH_PLAN_MH, MATCH($C$9,[1]!APPLIANCES,0), MATCH(AP$10,[1]!SIXTH_PLAN_MH_YEARS,0)),"pre-dates plan") -> 40830.84583 | AQ11: =IF(ISNUMBER(MATCH(AQ10,[1]!SIXTH_PLAN_MH_YEARS,0)), INDEX([1]!SIXTH_PLAN_MH, MATCH($C$9,[1]!APPLIANCES,0), MATCH(AQ$10,[1]!SIXTH_PLAN_MH_YEARS,0)),"pre-dates plan") -> 40929.95416 | AR11: =IF(ISNUMBER(MATCH(AR10,[1]!SIXTH_PLAN_MH_YEARS,0)), INDEX([1]!SIXTH_PLAN_MH, MATCH($C$9,[1]!APPLIANCES,0), MATCH(AR$10,[1]!SIXTH_PLAN_MH_YEARS,0)),"pre-dates plan") -> 41122.36659 | AS11: =IF(ISNUMBER(MATCH(AS10,[1]!SIXTH_PLAN_MH_YEARS,0)), INDEX([1]!SIXTH_PLAN_MH, MATCH($C$9,[1]!APPLIANCES,0), MATCH(AS$10,[1]!SIXTH_PLAN_MH_YEARS,0)),"pre-dates plan") -> 41368.93748 | AT11: =IF(ISNUMBER(MATCH(AT10,[1]!SIXTH_PLAN_MH_YEARS,0)), INDEX([1]!SIXTH_PLAN_MH, MATCH($C$9,[1]!APPLIANCES,0), MATCH(AT$10,[1]!SIXTH_PLAN_MH_YEARS,0)),"pre-dates plan") -> 41616.40193 | AU11: =IF(ISNUMBER(MATCH(AU10,[1]!SIXTH_PLAN_MH_YEARS,0)), INDEX([1]!SIXTH_PLAN_MH, MATCH($C$9,[1]!APPLIANCES,0), MATCH(AU$10,[1]!SIXTH_PLAN_MH_YEARS,0)),"pre-dates plan") -> 41813.41431 | AV11: =IF(ISNUMBER(MATCH(AV10,[1]!SIXTH_PLAN_MH_YEARS,0)), INDEX([1]!SIXTH_PLAN_MH, MATCH($C$9,[1]!APPLIANCES,0), MATCH(AV$10,[1]!SIXTH_PLAN_MH_YEARS,0)),"pre-dates plan") -> 6612.868716 | AW11: =IF(ISNUMBER(MATCH(AW10,[1]!SIXTH_PLAN_MH_YEARS,0)), INDEX([1]!SIXTH_PLAN_MH, MATCH($C$9,[1]!APPLIANCES,0), MATCH(AW$10,[1]!SIXTH_PLAN_MH_YEARS,0)),"pre-dates plan") -> 6609.124882 | AX11: =IF(ISNUMBER(MATCH(AX10,[1]!SIXTH_PLAN_MH_YEARS,0)), INDEX([1]!SIXTH_PLAN_MH, MATCH($C$9,[1]!APPLIANCES,0), MATCH(AX$10,[1]!SIXTH_PLAN_MH_YEARS,0)),"pre-dates plan") -> 6491.821443 | AY11: =IF(ISNUMBER(MATCH(AY10,[1]!SIXTH_PLAN_MH_YEARS,0)), INDEX([1]!SIXTH_PLAN_MH, MATCH($C$9,[1]!APPLIANCES,0), MATCH(AY$10,[1]!SIXTH_PLAN_MH_YEARS,0)),"pre-dates plan") -> 6280.476541 | AZ11: =IF(ISNUMBER(MATCH(AZ10,[1]!SIXTH_PLAN_MH_YEARS,0)), INDEX([1]!SIXTH_PLAN_MH, MATCH($C$9,[1]!APPLIANCES,0), MATCH(AZ$10,[1]!SIXTH_PLAN_MH_YEARS,0)),"pre-dates plan") -> 6009.191116 | BA11: =IF(ISNUMBER(MATCH(BA10,[1]!SIXTH_PLAN_MH_YEARS,0)), INDEX([1]!SIXTH_PLAN_MH, MATCH($C$9,[1]!APPLIANCES,0), MATCH(BA$10,[1]!SIXTH_PLAN_MH_YEARS,0)),"pre-dates plan") -> 5720.933744 | BB11: =IF(ISNUMBER(MATCH(BB10,[1]!SIXTH_PLAN_MH_YEARS,0)), INDEX([1]!SIXTH_PLAN_MH, MATCH($C$9,[1]!APPLIANCES,0), MATCH(BB$10,[1]!SIXTH_PLAN_MH_YEARS,0)),"pre-dates plan") -> 5460.262251 | BC11: =IF(ISNUMBER(MATCH(BC10,[1]!SIXTH_PLAN_MH_YEARS,0)), INDEX([1]!SIXTH_PLAN_MH, MATCH($C$9,[1]!APPLIANCES,0), MATCH(BC$10,[1]!SIXTH_PLAN_MH_YEARS,0)),"pre-dates plan") -> 5460.262251 | BD11: =IF(ISNUMBER(MATCH(BD10,[1]!SIXTH_PLAN_MH_YEARS,0)), INDEX([1]!SIXTH_PLAN_MH, MATCH($C$9,[1]!APPLIANCES,0), MATCH(BD$10,[1]!SIXTH_PLAN_MH_YEARS,0)),"pre-dates plan") -> 5460.262251 | BE11: =IF(ISNUMBER(MATCH(BE10,[1]!SIXTH_PLAN_MH_YEARS,0)), INDEX([1]!SIXTH_PLAN_MH, MATCH($C$9,[1]!APPLIANCES,0), MATCH(BE$10,[1]!SIXTH_PLAN_MH_YEARS,0)),"pre-dates plan") -> 5460.262251 | BF11: =IF(ISNUMBER(MATCH(BF10,[1]!SIXTH_PLAN_MH_YEARS,0)), INDEX([1]!SIXTH_PLAN_MH, MATCH($C$9,[1]!APPLIANCES,0), MATCH(BF$10,[1]!SIXTH_PLAN_MH_YEARS,0)),"pre-dates plan") -> 5460.262251
C12: Replacement Shipments | D12: (units) | E12: =INDEX([1]!SHIPMENTS_MH, ((MATCH($C$9,[1]!APPLIANCES,0)-1)*2)+1, MATCH(E$10,[1]!SHIPMENTS_MH_YEARS,0)) -> 15776.24783 | F12: =INDEX([1]!SHIPMENTS_MH, ((MATCH($C$9,[1]!APPLIANCES,0)-1)*2)+1, MATCH(F$10,[1]!SHIPMENTS_MH_YEARS,0)) -> 15776.24783 | G12: =INDEX([1]!SHIPMENTS_MH, ((MATCH($C$9,[1]!APPLIANCES,0)-1)*2)+1, MATCH(G$10,[1]!SHIPMENTS_MH_YEARS,0)) -> 15776.24783 | H12: =INDEX([1]!SHIPMENTS_MH, ((MATCH($C$9,[1]!APPLIANCES,0)-1)*2)+1, MATCH(H$10,[1]!SHIPMENTS_MH_YEARS,0)) -> 15776.24783 | I12: =INDEX([1]!SHIPMENTS_MH, ((MATCH($C$9,[1]!APPLIANCES,0)-1)*2)+1, MATCH(I$10,[1]!SHIPMENTS_MH_YEARS,0)) -> 15776.24783 | J12: =INDEX([1]!SHIPMENTS_MH, ((MATCH($C$9,[1]!APPLIANCES,0)-1)*2)+1, MATCH(J$10,[1]!SHIPMENTS_MH_YEARS,0)) -> 15776.24783 | K12: =INDEX([1]!SHIPMENTS_MH, ((MATCH($C$9,[1]!APPLIANCES,0)-1)*2)+1, MATCH(K$10,[1]!SHIPMENTS_MH_YEARS,0)) -> 15776.24783 | L12: =INDEX([1]!SHIPMENTS_MH, ((MATCH($C$9,[1]!APPLIANCES,0)-1)*2)+1, MATCH(L$10,[1]!SHIPMENTS_MH_YEARS,0)) -> 15776.24783 | M12: =INDEX([1]!SHIPMENTS_MH, ((MATCH($C$9,[1]!APPLIANCES,0)-1)*2)+1, MATCH(M$10,[1]!SHIPMENTS_MH_YEARS,0)) -> 15776.24783 | N12: =INDEX([1]!SHIPMENTS_MH, ((MATCH($C$9,[1]!APPLIANCES,0)-1)*2)+1, MATCH(N$10,[1]!SHIPMENTS_MH_YEARS,0)) -> 15776.24783 | O12: =INDEX([1]!SHIPMENTS_MH, ((MATCH($C$9,[1]!APPLIANCES,0)-1)*2)+1, MATCH(O$10,[1]!SHIPMENTS_MH_YEARS,0)) -> 15776.24783 | P12: =INDEX([1]!SHIPMENTS_MH, ((MATCH($C$9,[1]!APPLIANCES,0)-1)*2)+1, MATCH(P$10,[1]!SHIPMENTS_MH_YEARS,0)) -> 15776.24783 | Q12: =INDEX([1]!SHIPMENTS_MH, ((MATCH($C$9,[1]!APPLIANCES,0)-1)*2)+1, MATCH(Q$10,[1]!SHIPMENTS_MH_YEARS,0)) -> 15776.24783 | R12: =INDEX([1]!SHIPMENTS_MH, ((MATCH($C$9,[1]!APPLIANCES,0)-1)*2)+1, MATCH(R$10,[1]!SHIPMENTS_MH_YEARS,0)) -> 15776.24783 | S12: =INDEX([1]!SHIPMENTS_MH, ((MATCH($C$9,[1]!APPLIANCES,0)-1)*2)+1, MATCH(S$10,[1]!SHIPMENTS_MH_YEARS,0)) -> 15776.24783 | T12: =INDEX([1]!SHIPMENTS_MH, ((MATCH($C$9,[1]!APPLIANCES,0)-1)*2)+1, MATCH(T$10,[1]!SHIPMENTS_MH_YEARS,0)) -> 15776.24783 | U12: =INDEX([1]!SHIPMENTS_MH, ((MATCH($C$9,[1]!APPLIANCES,0)-1)*2)+1, MATCH(U$10,[1]!SHIPMENTS_MH_YEARS,0)) -> 25716.07003 | V12: =INDEX([1]!SHIPMENTS_MH, ((MATCH($C$9,[1]!APPLIANCES,0)-1)*2)+1, MATCH(V$10,[1]!SHIPMENTS_MH_YEARS,0)) -> 23804.74205 | W12: =INDEX([1]!SHIPMENTS_MH, ((MATCH($C$9,[1]!APPLIANCES,0)-1)*2)+1, MATCH(W$10,[1]!SHIPMENTS_MH_YEARS,0)) -> 26881.2009 | X12: =INDEX([1]!SHIPMENTS_MH, ((MATCH($C$9,[1]!APPLIANCES,0)-1)*2)+1, MATCH(X$10,[1]!SHIPMENTS_MH_YEARS,0)) -> 26677.6926 | Y12: =INDEX([1]!SHIPMENTS_MH, ((MATCH($C$9,[1]!APPLIANCES,0)-1)*2)+1, MATCH(Y$10,[1]!SHIPMENTS_MH_YEARS,0)) -> 25025.79187 | Z12: =INDEX([1]!SHIPMENTS_MH, ((MATCH($C$9,[1]!APPLIANCES,0)-1)*2)+1, MATCH(Z$10,[1]!SHIPMENTS_MH_YEARS,0)) -> 23432.5602 | AA12: =INDEX([1]!SHIPMENTS_MH, ((MATCH($C$9,[1]!APPLIANCES,0)-1)*2)+1, MATCH(AA$10,[1]!SHIPMENTS_MH_YEARS,0)) -> 23020.04337 | AB12: =INDEX([1]!SHIPMENTS_MH, ((MATCH($C$9,[1]!APPLIANCES,0)-1)*2)+1, MATCH(AB$10,[1]!SHIPMENTS_MH_YEARS,0)) -> 24071.50294 | AC12: =INDEX([1]!SHIPMENTS_MH, ((MATCH($C$9,[1]!APPLIANCES,0)-1)*2)+1, MATCH(AC$10,[1]!SHIPMENTS_MH_YEARS,0)) -> 24913.03727 | AD12: =INDEX([1]!SHIPMENTS_MH, ((MATCH($C$9,[1]!APPLIANCES,0)-1)*2)+1, MATCH(AD$10,[1]!SHIPMENTS_MH_YEARS,0)) -> 26662.10863 | AE12: =INDEX([1]!SHIPMENTS_MH, ((MATCH($C$9,[1]!APPLIANCES,0)-1)*2)+1, MATCH(AE$10,[1]!SHIPMENTS_MH_YEARS,0)) -> 26607.10639 | AF12: =INDEX([1]!SHIPMENTS_MH, ((MATCH($C$9,[1]!APPLIANCES,0)-1)*2)+1, MATCH(AF$10,[1]!SHIPMENTS_MH_YEARS,0)) -> 28412.0967 | AG12: =INDEX([1]!SHIPMENTS_MH, ((MATCH($C$9,[1]!APPLIANCES,0)-1)*2)+1, MATCH(AG$10,[1]!SHIPMENTS_MH_YEARS,0)) -> 31537.16839 | AH12: =INDEX([1]!SHIPMENTS_MH, ((MATCH($C$9,[1]!APPLIANCES,0)-1)*2)+1, MATCH(AH$10,[1]!SHIPMENTS_MH_YEARS,0)) -> 34235.52757 | AI12: =INDEX([1]!SHIPMENTS_MH, ((MATCH($C$9,[1]!APPLIANCES,0)-1)*2)+1, MATCH(AI$10,[1]!SHIPMENTS_MH_YEARS,0)) -> 33408.36294 | AJ12: =INDEX([1]!SHIPMENTS_MH, ((MATCH($C$9,[1]!APPLIANCES,0)-1)*2)+1, MATCH(AJ$10,[1]!SHIPMENTS_MH_YEARS,0)) -> 31080.09264 | AK12: =INDEX([1]!SHIPMENTS_MH, ((MATCH($C$9,[1]!APPLIANCES,0)-1)*2)+1, MATCH(AK$10,[1]!SHIPMENTS_MH_YEARS,0)) -> 41154.99218 | AL12: =INDEX([1]!SHIPMENTS_MH, ((MATCH($C$9,[1]!APPLIANCES,0)-1)*2)+1, MATCH(AL$10,[1]!SHIPMENTS_MH_YEARS,0)) -> 39851.78826 | AM12: =INDEX([1]!SHIPMENTS_MH, ((MATCH($C$9,[1]!APPLIANCES,0)-1)*2)+1, MATCH(AM$10,[1]!SHIPMENTS_MH_YEARS,0)) -> 39824.21406 | AN12: =INDEX([1]!SHIPMENTS_MH, ((MATCH($C$9,[1]!APPLIANCES,0)-1)*2)+1, MATCH(AN$10,[1]!SHIPMENTS_MH_YEARS,0)) -> 34994.2289 | AO12: =INDEX([1]!SHIPMENTS_MH, ((MATCH($C$9,[1]!APPLIANCES,0)-1)*2)+1, MATCH(AO$10,[1]!SHIPMENTS_MH_YEARS,0)) -> 31252.37355 | AP12: =INDEX([1]!SHIPMENTS_MH, ((MATCH($C$9,[1]!APPLIANCES,0)-1)*2)+1, MATCH(AP$10,[1]!SHIPMENTS_MH_YEARS,0)) -> 29812.82291 | AQ12: =INDEX([1]!SHIPMENTS_MH, ((MATCH($C$9,[1]!APPLIANCES,0)-1)*2)+1, MATCH(AQ$10,[1]!SHIPMENTS_MH_YEARS,0)) -> 28872.22067 | AR12: =INDEX([1]!SHIPMENTS_MH, ((MATCH($C$9,[1]!APPLIANCES,0)-1)*2)+1, MATCH(AR$10,[1]!SHIPMENTS_MH_YEARS,0)) -> 29699.14606 | AS12: =INDEX([1]!SHIPMENTS_MH, ((MATCH($C$9,[1]!APPLIANCES,0)-1)*2)+1, MATCH(AS$10,[1]!SHIPMENTS_MH_YEARS,0)) -> 30528.91012 | AT12: =INDEX([1]!SHIPMENTS_MH, ((MATCH($C$9,[1]!APPLIANCES,0)-1)*2)+1, MATCH(AT$10,[1]!SHIPMENTS_MH_YEARS,0)) -> 31983.46947 | AU12: =INDEX([1]!SHIPMENTS_MH, ((MATCH($C$9,[1]!APPLIANCES,0)-1)*2)+1, MATCH(AU$10,[1]!SHIPMENTS_MH_YEARS,0)) -> 33450.24944 | AV12: =INDEX([1]!SHIPMENTS_MH, ((MATCH($C$9,[1]!APPLIANCES,0)-1)*2)+1, MATCH(AV$10,[1]!SHIPMENTS_MH_YEARS,0)) -> 35507.25172 | AW12: =INDEX([1]!SHIPMENTS_MH, ((MATCH($C$9,[1]!APPLIANCES,0)-1)*2)+1, MATCH(AW$10,[1]!SHIPMENTS_MH_YEARS,0)) -> 38729.52634 | AX12: =INDEX([1]!SHIPMENTS_MH, ((MATCH($C$9,[1]!APPLIANCES,0)-1)*2)+1, MATCH(AX$10,[1]!SHIPMENTS_MH_YEARS,0)) -> 41446.29156 | AY12: =INDEX([1]!SHIPMENTS_MH, ((MATCH($C$9,[1]!APPLIANCES,0)-1)*2)+1, MATCH(AY$10,[1]!SHIPMENTS_MH_YEARS,0)) -> 40490.6136 | AZ12: =INDEX([1]!SHIPMENTS_MH, ((MATCH($C$9,[1]!APPLIANCES,0)-1)*2)+1, MATCH(AZ$10,[1]!SHIPMENTS_MH_YEARS,0)) -> 38360.86663 | BA12: =INDEX([1]!SHIPMENTS_MH, ((MATCH($C$9,[1]!APPLIANCES,0)-1)*2)+1, MATCH(BA$10,[1]!SHIPMENTS_MH_YEARS,0)) -> 48111.5182 | BB12: =INDEX([1]!SHIPMENTS_MH, ((MATCH($C$9,[1]!APPLIANCES,0)-1)*2)+1, MATCH(BB$10,[1]!SHIPMENTS_MH_YEARS,0)) -> 46393.13192 | BC12: =INDEX([1]!SHIPMENTS_MH, ((MATCH($C$9,[1]!APPLIANCES,0)-1)*2)+1, MATCH(BC$10,[1]!SHIPMENTS_MH_YEARS,0)) -> 45981.30482 | BD12: =INDEX([1]!SHIPMENTS_MH, ((MATCH($C$9,[1]!APPLIANCES,0)-1)*2)+1, MATCH(BD$10,[1]!SHIPMENTS_MH_YEARS,0)) -> 40860.32228 | BE12: =INDEX([1]!SHIPMENTS_MH, ((MATCH($C$9,[1]!APPLIANCES,0)-1)*2)+1, MATCH(BE$10,[1]!SHIPMENTS_MH_YEARS,0)) -> 36949.76347 | BF12: =INDEX([1]!SHIPMENTS_MH, ((MATCH($C$9,[1]!APPLIANCES,0)-1)*2)+1, MATCH(BF$10,[1]!SHIPMENTS_MH_YEARS,0)) -> 35479.99889
C13: Net New Shipments | D13: (units) | E13: =INDEX([1]!SHIPMENTS_MH, ((MATCH($C$9,[1]!APPLIANCES,0)-1)*2)+2, MATCH(E$10,[1]!SHIPMENTS_MH_YEARS,0)) -> 9939.822206 | F13: =INDEX([1]!SHIPMENTS_MH, ((MATCH($C$9,[1]!APPLIANCES,0)-1)*2)+2, MATCH(F$10,[1]!SHIPMENTS_MH_YEARS,0)) -> 8028.494225 | G13: =INDEX([1]!SHIPMENTS_MH, ((MATCH($C$9,[1]!APPLIANCES,0)-1)*2)+2, MATCH(G$10,[1]!SHIPMENTS_MH_YEARS,0)) -> 11104.95308 | H13: =INDEX([1]!SHIPMENTS_MH, ((MATCH($C$9,[1]!APPLIANCES,0)-1)*2)+2, MATCH(H$10,[1]!SHIPMENTS_MH_YEARS,0)) -> 10901.44477 | I13: =INDEX([1]!SHIPMENTS_MH, ((MATCH($C$9,[1]!APPLIANCES,0)-1)*2)+2, MATCH(I$10,[1]!SHIPMENTS_MH_YEARS,0)) -> 9249.544043 | J13: =INDEX([1]!SHIPMENTS_MH, ((MATCH($C$9,[1]!APPLIANCES,0)-1)*2)+2, MATCH(J$10,[1]!SHIPMENTS_MH_YEARS,0)) -> 7656.312373 | K13: =INDEX([1]!SHIPMENTS_MH, ((MATCH($C$9,[1]!APPLIANCES,0)-1)*2)+2, MATCH(K$10,[1]!SHIPMENTS_MH_YEARS,0)) -> 7243.795543 | L13: =INDEX([1]!SHIPMENTS_MH, ((MATCH($C$9,[1]!APPLIANCES,0)-1)*2)+2, MATCH(L$10,[1]!SHIPMENTS_MH_YEARS,0)) -> 8295.255108 | M13: =INDEX([1]!SHIPMENTS_MH, ((MATCH($C$9,[1]!APPLIANCES,0)-1)*2)+2, MATCH(M$10,[1]!SHIPMENTS_MH_YEARS,0)) -> 9136.789443 | N13: =INDEX([1]!SHIPMENTS_MH, ((MATCH($C$9,[1]!APPLIANCES,0)-1)*2)+2, MATCH(N$10,[1]!SHIPMENTS_MH_YEARS,0)) -> 10885.8608 | O13: =INDEX([1]!SHIPMENTS_MH, ((MATCH($C$9,[1]!APPLIANCES,0)-1)*2)+2, MATCH(O$10,[1]!SHIPMENTS_MH_YEARS,0)) -> 10830.85856 | P13: =INDEX([1]!SHIPMENTS_MH, ((MATCH($C$9,[1]!APPLIANCES,0)-1)*2)+2, MATCH(P$10,[1]!SHIPMENTS_MH_YEARS,0)) -> 12635.84887 | Q13: =INDEX([1]!SHIPMENTS_MH, ((MATCH($C$9,[1]!APPLIANCES,0)-1)*2)+2, MATCH(Q$10,[1]!SHIPMENTS_MH_YEARS,0)) -> 15760.92056 | R13: =INDEX([1]!SHIPMENTS_MH, ((MATCH($C$9,[1]!APPLIANCES,0)-1)*2)+2, MATCH(R$10,[1]!SHIPMENTS_MH_YEARS,0)) -> 18459.27974 | S13: =INDEX([1]!SHIPMENTS_MH, ((MATCH($C$9,[1]!APPLIANCES,0)-1)*2)+2, MATCH(S$10,[1]!SHIPMENTS_MH_YEARS,0)) -> 17632.11511 | T13: =INDEX([1]!SHIPMENTS_MH, ((MATCH($C$9,[1]!APPLIANCES,0)-1)*2)+2, MATCH(T$10,[1]!SHIPMENTS_MH_YEARS,0)) -> 15303.84481 | U13: =INDEX([1]!SHIPMENTS_MH, ((MATCH($C$9,[1]!APPLIANCES,0)-1)*2)+2, MATCH(U$10,[1]!SHIPMENTS_MH_YEARS,0)) -> 15438.92215 | V13: =INDEX([1]!SHIPMENTS_MH, ((MATCH($C$9,[1]!APPLIANCES,0)-1)*2)+2, MATCH(V$10,[1]!SHIPMENTS_MH_YEARS,0)) -> 16047.04621 | W13: =INDEX([1]!SHIPMENTS_MH, ((MATCH($C$9,[1]!APPLIANCES,0)-1)*2)+2, MATCH(W$10,[1]!SHIPMENTS_MH_YEARS,0)) -> 12943.01316 | X13: =INDEX([1]!SHIPMENTS_MH, ((MATCH($C$9,[1]!APPLIANCES,0)-1)*2)+2, MATCH(X$10,[1]!SHIPMENTS_MH_YEARS,0)) -> 8316.536294 | Y13: =INDEX([1]!SHIPMENTS_MH, ((MATCH($C$9,[1]!APPLIANCES,0)-1)*2)+2, MATCH(Y$10,[1]!SHIPMENTS_MH_YEARS,0)) -> 6226.581679 | Z13: =INDEX([1]!SHIPMENTS_MH, ((MATCH($C$9,[1]!APPLIANCES,0)-1)*2)+2, MATCH(Z$10,[1]!SHIPMENTS_MH_YEARS,0)) -> 6380.262704 | AA13: =INDEX([1]!SHIPMENTS_MH, ((MATCH($C$9,[1]!APPLIANCES,0)-1)*2)+2, MATCH(AA$10,[1]!SHIPMENTS_MH_YEARS,0)) -> 5852.177297 | AB13: =INDEX([1]!SHIPMENTS_MH, ((MATCH($C$9,[1]!APPLIANCES,0)-1)*2)+2, MATCH(AB$10,[1]!SHIPMENTS_MH_YEARS,0)) -> 5627.643128 | AC13: =INDEX([1]!SHIPMENTS_MH, ((MATCH($C$9,[1]!APPLIANCES,0)-1)*2)+2, MATCH(AC$10,[1]!SHIPMENTS_MH_YEARS,0)) -> 5615.872853 | AD13: =INDEX([1]!SHIPMENTS_MH, ((MATCH($C$9,[1]!APPLIANCES,0)-1)*2)+2, MATCH(AD$10,[1]!SHIPMENTS_MH_YEARS,0)) -> 5321.360835 | AE13: =INDEX([1]!SHIPMENTS_MH, ((MATCH($C$9,[1]!APPLIANCES,0)-1)*2)+2, MATCH(AE$10,[1]!SHIPMENTS_MH_YEARS,0)) -> 6843.143047 | AF13: =INDEX([1]!SHIPMENTS_MH, ((MATCH($C$9,[1]!APPLIANCES,0)-1)*2)+2, MATCH(AF$10,[1]!SHIPMENTS_MH_YEARS,0)) -> 7095.155025 | AG13: =INDEX([1]!SHIPMENTS_MH, ((MATCH($C$9,[1]!APPLIANCES,0)-1)*2)+2, MATCH(AG$10,[1]!SHIPMENTS_MH_YEARS,0)) -> 7192.357951 | AH13: =INDEX([1]!SHIPMENTS_MH, ((MATCH($C$9,[1]!APPLIANCES,0)-1)*2)+2, MATCH(AH$10,[1]!SHIPMENTS_MH_YEARS,0)) -> 7210.763989 | AI13: =INDEX([1]!SHIPMENTS_MH, ((MATCH($C$9,[1]!APPLIANCES,0)-1)*2)+2, MATCH(AI$10,[1]!SHIPMENTS_MH_YEARS,0)) -> 7082.250667 | AJ13: =INDEX([1]!SHIPMENTS_MH, ((MATCH($C$9,[1]!APPLIANCES,0)-1)*2)+2, MATCH(AJ$10,[1]!SHIPMENTS_MH_YEARS,0)) -> 7280.773992 | AK13: =INDEX([1]!SHIPMENTS_MH, ((MATCH($C$9,[1]!APPLIANCES,0)-1)*2)+2, MATCH(AK$10,[1]!SHIPMENTS_MH_YEARS,0)) -> 6956.526013 | AL13: =INDEX([1]!SHIPMENTS_MH, ((MATCH($C$9,[1]!APPLIANCES,0)-1)*2)+2, MATCH(AL$10,[1]!SHIPMENTS_MH_YEARS,0)) -> 6541.343658 | AM13: =INDEX([1]!SHIPMENTS_MH, ((MATCH($C$9,[1]!APPLIANCES,0)-1)*2)+2, MATCH(AM$10,[1]!SHIPMENTS_MH_YEARS,0)) -> 6157.090763 | AN13: =INDEX([1]!SHIPMENTS_MH, ((MATCH($C$9,[1]!APPLIANCES,0)-1)*2)+2, MATCH(AN$10,[1]!SHIPMENTS_MH_YEARS,0)) -> 5866.093379 | AO13: =INDEX([1]!SHIPMENTS_MH, ((MATCH($C$9,[1]!APPLIANCES,0)-1)*2)+2, MATCH(AO$10,[1]!SHIPMENTS_MH_YEARS,0)) -> 5697.389917 | AP13: =INDEX([1]!SHIPMENTS_MH, ((MATCH($C$9,[1]!APPLIANCES,0)-1)*2)+2, MATCH(AP$10,[1]!SHIPMENTS_MH_YEARS,0)) -> 5667.175985 | AQ13: =INDEX([1]!SHIPMENTS_MH, ((MATCH($C$9,[1]!APPLIANCES,0)-1)*2)+2, MATCH(AQ$10,[1]!SHIPMENTS_MH_YEARS,0)) -> 5768.878243 | AR13: =INDEX([1]!SHIPMENTS_MH, ((MATCH($C$9,[1]!APPLIANCES,0)-1)*2)+2, MATCH(AR$10,[1]!SHIPMENTS_MH_YEARS,0)) -> 5966.326603 | AS13: =INDEX([1]!SHIPMENTS_MH, ((MATCH($C$9,[1]!APPLIANCES,0)-1)*2)+2, MATCH(AS$10,[1]!SHIPMENTS_MH_YEARS,0)) -> 6219.3509 | AT13: =INDEX([1]!SHIPMENTS_MH, ((MATCH($C$9,[1]!APPLIANCES,0)-1)*2)+2, MATCH(AT$10,[1]!SHIPMENTS_MH_YEARS,0)) -> 6473.292138 | AU13: =INDEX([1]!SHIPMENTS_MH, ((MATCH($C$9,[1]!APPLIANCES,0)-1)*2)+2, MATCH(AU$10,[1]!SHIPMENTS_MH_YEARS,0)) -> 6675.460838 | AV13: =INDEX([1]!SHIPMENTS_MH, ((MATCH($C$9,[1]!APPLIANCES,0)-1)*2)+2, MATCH(AV$10,[1]!SHIPMENTS_MH_YEARS,0)) -> 6785.944696 | AW13: =INDEX([1]!SHIPMENTS_MH, ((MATCH($C$9,[1]!APPLIANCES,0)-1)*2)+2, MATCH(AW$10,[1]!SHIPMENTS_MH_YEARS,0)) -> 6782.102875 | AX13: =INDEX([1]!SHIPMENTS_MH, ((MATCH($C$9,[1]!APPLIANCES,0)-1)*2)+2, MATCH(AX$10,[1]!SHIPMENTS_MH_YEARS,0)) -> 6661.7293 | AY13: =INDEX([1]!SHIPMENTS_MH, ((MATCH($C$9,[1]!APPLIANCES,0)-1)*2)+2, MATCH(AY$10,[1]!SHIPMENTS_MH_YEARS,0)) -> 6444.852953 | AZ13: =INDEX([1]!SHIPMENTS_MH, ((MATCH($C$9,[1]!APPLIANCES,0)-1)*2)+2, MATCH(AZ$10,[1]!SHIPMENTS_MH_YEARS,0)) -> 6166.467282 | BA13: =INDEX([1]!SHIPMENTS_MH, ((MATCH($C$9,[1]!APPLIANCES,0)-1)*2)+2, MATCH(BA$10,[1]!SHIPMENTS_MH_YEARS,0)) -> 5870.665465 | BB13: =INDEX([1]!SHIPMENTS_MH, ((MATCH($C$9,[1]!APPLIANCES,0)-1)*2)+2, MATCH(BB$10,[1]!SHIPMENTS_MH_YEARS,0)) -> 5603.17152 | BC13: =INDEX([1]!SHIPMENTS_MH, ((MATCH($C$9,[1]!APPLIANCES,0)-1)*2)+2, MATCH(BC$10,[1]!SHIPMENTS_MH_YEARS,0)) -> 5659.203235 | BD13: =INDEX([1]!SHIPMENTS_MH, ((MATCH($C$9,[1]!APPLIANCES,0)-1)*2)+2, MATCH(BD$10,[1]!SHIPMENTS_MH_YEARS,0)) -> 5715.795268 | BE13: =INDEX([1]!SHIPMENTS_MH, ((MATCH($C$9,[1]!APPLIANCES,0)-1)*2)+2, MATCH(BE$10,[1]!SHIPMENTS_MH_YEARS,0)) -> 5772.95322 | BF13: =INDEX([1]!SHIPMENTS_MH, ((MATCH($C$9,[1]!APPLIANCES,0)-1)*2)+2, MATCH(BF$10,[1]!SHIPMENTS_MH_YEARS,0)) -> 5830.682752
C14: Total Model Shipments | D14: (units) | E14: =SUM(E12:E13) -> 25716.07003 | F14: =SUM(F12:F13) -> 23804.74205 | G14: 26881.2009 | H14: 26677.6926 | I14: 25025.79187 | J14: 23432.5602 | K14: 23020.04337 | L14: 24071.50294 | M14: 24913.03727 | N14: 26662.10863 | O14: 26607.10639 | P14: 28412.0967 | Q14: 31537.16839 | R14: 34235.52757 | S14: 33408.36294 | T14: 31080.09264 | U14: 41154.99218 | V14: 39851.78826 | W14: 39824.21406 | X14: 34994.2289 | Y14: 31252.37355 | Z14: 29812.82291 | AA14: 28872.22067 | AB14: 29699.14606 | AC14: 30528.91012 | AD14: 31983.46947 | AE14: 33450.24944 | AF14: 35507.25172 | AG14: 38729.52634 | AH14: 41446.29156 | AI14: 40490.6136 | AJ14: 38360.86663 | AK14: 48111.5182 | AL14: 46393.13192 | AM14: 45981.30482 | AN14: 40860.32228 | AO14: 36949.76347 | AP14: 35479.99889 | AQ14: 34641.09891 | AR14: 35665.47267 | AS14: 36748.26102 | AT14: 38456.7616 | AU14: 40125.71027 | AV14: 42293.19642 | AW14: 45511.62921 | AX14: 48108.02086 | AY14: 46935.46656 | AZ14: 44527.33391 | BA14: 53982.18366 | BB14: 51996.30344 | BC14: 51640.50806 | BD14: 46576.11754 | BE14: 42722.71669 | BF14: 41310.68164
C15: Model Installed Stock | D15: (units) | E15: =INDEX([1]!STOCK_MH, MATCH($C$9,[1]!APPLIANCES,0), MATCH(E$10,[1]!STOCK_MH_YEARS,0)) -> 262359.7875 | F15: =INDEX([1]!STOCK_MH, MATCH($C$9,[1]!APPLIANCES,0), MATCH(F$10,[1]!STOCK_MH_YEARS,0)) -> 270388.2817 | G15: =INDEX([1]!STOCK_MH, MATCH($C$9,[1]!APPLIANCES,0), MATCH(G$10,[1]!STOCK_MH_YEARS,0)) -> 281493.2348 | H15: =INDEX([1]!STOCK_MH, MATCH($C$9,[1]!APPLIANCES,0), MATCH(H$10,[1]!STOCK_MH_YEARS,0)) -> 292394.6795 | I15: =INDEX([1]!STOCK_MH, MATCH($C$9,[1]!APPLIANCES,0), MATCH(I$10,[1]!STOCK_MH_YEARS,0)) -> 301644.2236 | J15: =INDEX([1]!STOCK_MH, MATCH($C$9,[1]!APPLIANCES,0), MATCH(J$10,[1]!STOCK_MH_YEARS,0)) -> 309300.536 | K15: =INDEX([1]!STOCK_MH, MATCH($C$9,[1]!APPLIANCES,0), MATCH(K$10,[1]!STOCK_MH_YEARS,0)) -> 316544.3315 | L15: =INDEX([1]!STOCK_MH, MATCH($C$9,[1]!APPLIANCES,0), MATCH(L$10,[1]!STOCK_MH_YEARS,0)) -> 324839.5866 | M15: =INDEX([1]!STOCK_MH, MATCH($C$9,[1]!APPLIANCES,0), MATCH(M$10,[1]!STOCK_MH_YEARS,0)) -> 333976.376 | N15: =INDEX([1]!STOCK_MH, MATCH($C$9,[1]!APPLIANCES,0), MATCH(N$10,[1]!STOCK_MH_YEARS,0)) -> 344862.2369 | O15: =INDEX([1]!STOCK_MH, MATCH($C$9,[1]!APPLIANCES,0), MATCH(O$10,[1]!STOCK_MH_YEARS,0)) -> 355693.0954 | P15: =INDEX([1]!STOCK_MH, MATCH($C$9,[1]!APPLIANCES,0), MATCH(P$10,[1]!STOCK_MH_YEARS,0)) -> 368328.9443 | Q15: =INDEX([1]!STOCK_MH, MATCH($C$9,[1]!APPLIANCES,0), MATCH(Q$10,[1]!STOCK_MH_YEARS,0)) -> 384089.8648 | R15: =INDEX([1]!STOCK_MH, MATCH($C$9,[1]!APPLIANCES,0), MATCH(R$10,[1]!STOCK_MH_YEARS,0)) -> 402549.1446 | S15: =INDEX([1]!STOCK_MH, MATCH($C$9,[1]!APPLIANCES,0), MATCH(S$10,[1]!STOCK_MH_YEARS,0)) -> 420181.2597 | T15: =INDEX([1]!STOCK_MH, MATCH($C$9,[1]!APPLIANCES,0), MATCH(T$10,[1]!STOCK_MH_YEARS,0)) -> 435485.1045 | U15: =INDEX([1]!STOCK_MH, MATCH($C$9,[1]!APPLIANCES,0), MATCH(U$10,[1]!STOCK_MH_YEARS,0)) -> 450924.0266 | V15: =INDEX([1]!STOCK_MH, MATCH($C$9,[1]!APPLIANCES,0), MATCH(V$10,[1]!STOCK_MH_YEARS,0)) -> 466971.0729 | W15: =INDEX([1]!STOCK_MH, MATCH($C$9,[1]!APPLIANCES,0), MATCH(W$10,[1]!STOCK_MH_YEARS,0)) -> 479914.086 | X15: =INDEX([1]!STOCK_MH, MATCH($C$9,[1]!APPLIANCES,0), MATCH(X$10,[1]!STOCK_MH_YEARS,0)) -> 488230.6223 | Y15: =INDEX([1]!STOCK_MH, MATCH($C$9,[1]!APPLIANCES,0), MATCH(Y$10,[1]!STOCK_MH_YEARS,0)) -> 494457.204 | Z15: =INDEX([1]!STOCK_MH, MATCH($C$9,[1]!APPLIANCES,0), MATCH(Z$10,[1]!STOCK_MH_YEARS,0)) -> 500837.4667 | AA15: =INDEX([1]!STOCK_MH, MATCH($C$9,[1]!APPLIANCES,0), MATCH(AA$10,[1]!STOCK_MH_YEARS,0)) -> 506689.644 | AB15: =INDEX([1]!STOCK_MH, MATCH($C$9,[1]!APPLIANCES,0), MATCH(AB$10,[1]!STOCK_MH_YEARS,0)) -> 512317.2871 | AC15: =INDEX([1]!STOCK_MH, MATCH($C$9,[1]!APPLIANCES,0), MATCH(AC$10,[1]!STOCK_MH_YEARS,0)) -> 517933.16 | AD15: =INDEX([1]!STOCK_MH, MATCH($C$9,[1]!APPLIANCES,0), MATCH(AD$10,[1]!STOCK_MH_YEARS,0)) -> 523254.5208 | AE15: =INDEX([1]!STOCK_MH, MATCH($C$9,[1]!APPLIANCES,0), MATCH(AE$10,[1]!STOCK_MH_YEARS,0)) -> 530097.6638 | AF15: =INDEX([1]!STOCK_MH, MATCH($C$9,[1]!APPLIANCES,0), MATCH(AF$10,[1]!STOCK_MH_YEARS,0)) -> 537192.8189 | AG15: =INDEX([1]!STOCK_MH, MATCH($C$9,[1]!APPLIANCES,0), MATCH(AG$10,[1]!STOCK_MH_YEARS,0)) -> 544385.1768 | AH15: =INDEX([1]!STOCK_MH, MATCH($C$9,[1]!APPLIANCES,0), MATCH(AH$10,[1]!STOCK_MH_YEARS,0)) -> 551595.9408 | AI15: =INDEX([1]!STOCK_MH, MATCH($C$9,[1]!APPLIANCES,0), MATCH(AI$10,[1]!STOCK_MH_YEARS,0)) -> 558678.1915 | AJ15: =INDEX([1]!STOCK_MH, MATCH($C$9,[1]!APPLIANCES,0), MATCH(AJ$10,[1]!STOCK_MH_YEARS,0)) -> 565958.9655 | AK15: =INDEX([1]!STOCK_MH, MATCH($C$9,[1]!APPLIANCES,0), MATCH(AK$10,[1]!STOCK_MH_YEARS,0)) -> 572915.4915 | AL15: =INDEX([1]!STOCK_MH, MATCH($C$9,[1]!APPLIANCES,0), MATCH(AL$10,[1]!STOCK_MH_YEARS,0)) -> 579456.8351 | AM15: =INDEX([1]!STOCK_MH, MATCH($C$9,[1]!APPLIANCES,0), MATCH(AM$10,[1]!STOCK_MH_YEARS,0)) -> 585613.9259 | AN15: =INDEX([1]!STOCK_MH, MATCH($C$9,[1]!APPLIANCES,0), MATCH(AN$10,[1]!STOCK_MH_YEARS,0)) -> 591480.0193 | AO15: =INDEX([1]!STOCK_MH, MATCH($C$9,[1]!APPLIANCES,0), MATCH(AO$10,[1]!STOCK_MH_YEARS,0)) -> 597177.4092 | AP15: =INDEX([1]!STOCK_MH, MATCH($C$9,[1]!APPLIANCES,0), MATCH(AP$10,[1]!STOCK_MH_YEARS,0)) -> 602844.5852 | AQ15: =INDEX([1]!STOCK_MH, MATCH($C$9,[1]!APPLIANCES,0), MATCH(AQ$10,[1]!STOCK_MH_YEARS,0)) -> 608613.4634 | AR15: =INDEX([1]!STOCK_MH, MATCH($C$9,[1]!APPLIANCES,0), MATCH(AR$10,[1]!STOCK_MH_YEARS,0)) -> 614579.79 | AS15: =INDEX([1]!STOCK_MH, MATCH($C$9,[1]!APPLIANCES,0), MATCH(AS$10,[1]!STOCK_MH_YEARS,0)) -> 620799.1409 | AT15: =INDEX([1]!STOCK_MH, MATCH($C$9,[1]!APPLIANCES,0), MATCH(AT$10,[1]!STOCK_MH_YEARS,0)) -> 627272.4331 | AU15: =INDEX([1]!STOCK_MH, MATCH($C$9,[1]!APPLIANCES,0), MATCH(AU$10,[1]!STOCK_MH_YEARS,0)) -> 633947.8939 | AV15: =INDEX([1]!STOCK_MH, MATCH($C$9,[1]!APPLIANCES,0), MATCH(AV$10,[1]!STOCK_MH_YEARS,0)) -> 640733.8386 | AW15: =INDEX([1]!STOCK_MH, MATCH($C$9,[1]!APPLIANCES,0), MATCH(AW$10,[1]!STOCK_MH_YEARS,0)) -> 647515.9415 | AX15: =INDEX([1]!STOCK_MH, MATCH($C$9,[1]!APPLIANCES,0), MATCH(AX$10,[1]!STOCK_MH_YEARS,0)) -> 654177.6708 | AY15: =INDEX([1]!STOCK_MH, MATCH($C$9,[1]!APPLIANCES,0), MATCH(AY$10,[1]!STOCK_MH_YEARS,0)) -> 660622.5237 | AZ15: =INDEX([1]!STOCK_MH, MATCH($C$9,[1]!APPLIANCES,0), MATCH(AZ$10,[1]!STOCK_MH_YEARS,0)) -> 666788.991 | BA15: =INDEX([1]!STOCK_MH, MATCH($C$9,[1]!APPLIANCES,0), MATCH(BA$10,[1]!STOCK_MH_YEARS,0)) -> 672659.6565 | BB15: =INDEX([1]!STOCK_MH, MATCH($C$9,[1]!APPLIANCES,0), MATCH(BB$10,[1]!STOCK_MH_YEARS,0)) -> 678262.828 | BC15: =INDEX([1]!STOCK_MH, MATCH($C$9,[1]!APPLIANCES,0), MATCH(BC$10,[1]!STOCK_MH_YEARS,0)) -> 683922.0312 | BD15: =INDEX([1]!STOCK_MH, MATCH($C$9,[1]!APPLIANCES,0), MATCH(BD$10,[1]!STOCK_MH_YEARS,0)) -> 689637.8265 | BE15: =INDEX([1]!STOCK_MH, MATCH($C$9,[1]!APPLIANCES,0), MATCH(BE$10,[1]!STOCK_MH_YEARS,0)) -> 695410.7797 | BF15: =INDEX([1]!STOCK_MH, MATCH($C$9,[1]!APPLIANCES,0), MATCH(BF$10,[1]!STOCK_MH_YEARS,0)) -> 701241.4625

Sheet Efficiency Dist - SF
C2: Efficiency Distributions by Product Class - Single Family
C4: =Navigation!$C$15 -> NAVIGATION
C6: COMMENTS
D9: ='Product Classes'!H10&" - "&OFFSET('Product Classes'!$C$9,MATCH('Product Classes'!H10,MODEL_PCS,0),0) -> PC1 - Vented Electric, Standard (4.4 ft3 or greater capacity)
D11: PRE-Case | F11: Static Distribution 1
D12: Efficiency Level | E12: IEF (lbs/kWh) | F12: 2014 | H12: 1981 | I12: 1982 | J12: 1983 | K12: 1984 | L12: 1985 | M12: 1986 | N12: 1987 | O12: 1988 | P12: 1989 | Q12: 1990 | R12: 1991 | S12: 1992 | T12: 1993 | U12: 1994 | V12: 1995 | W12: 1996 | X12: 1997 | Y12: 1998 | Z12: 1999 | AA12: 2000 | AB12: 2001 | AC12: 2002 | AD12: 2003 | AE12: 2004 | AF12: 2005 | AG12: 2006 | AH12: 2007 | AI12: 2008 | AJ12: 2009 | AK12: 2010 | AL12: 2011 | AM12: 2012 | AN12: 2013 | AO12: 2014 | AP12: 2015 | AQ12: 2016 | AR12: 2017 | AS12: 2018 | AT12: 2019 | AU12: 2020 | AV12: 2021 | AW12: 2022 | AX12: 2023 | AY12: 2024 | AZ12: 2025 | BA12: 2026 | BB12: 2027 | BC12: 2028 | BD12: 2029 | BE12: 2030 | BF12: 2031 | BG12: 2032 | BH12: 2033 | BI12: 2034
D13: ='Efficiency Levels'!C12 -> EL0 | E13: ='Efficiency Levels'!D12 -> 3.55 | F13: 0.026 | H13: =$F13 -> 0.026 | I13: 0.026 | J13: 0.026 | K13: 0.026 | L13: 0.026 | M13: 0.026 | N13: 0.026 | O13: 0.026 | P13: 0.026 | Q13: 0.026 | R13: =$F13 -> 0.026 | S13: 0.026 | T13: 0.026 | U13: 0.026 | V13: 0.026 | W13: 0.026 | X13: 0.026 | Y13: 0.026 | Z13: 0.026 | AA13: 0.026 | AB13: 0.026 | AC13: 0.026 | AD13: 0.026 | AE13: 0.026 | AF13: 0.026 | AG13: 0.026 | AH13: 0.026 | AI13: 0.026 | AJ13: 0.026 | AK13: 0.026 | AL13: 0.026 | AM13: 0.026 | AN13: 0.026 | AO13: 0.026 | AP13: 0.026 | AQ13: 0.026 | AR13: 0.026 | AS13: 0.026 | AT13: 0.026 | AU13: 0.026 | AV13: 0.026 | AW13: 0.026 | AX13: 0.026 | AY13: 0.026 | AZ13: 0.026 | BA13: 0.026 | BB13: 0.026 | BC13: 0.026 | BD13: 0.026 | BE13: 0.026 | BF13: 0.026 | BG13: 0.026 | BH13: 0.026 | BI13: 0.026
D14: ='Efficiency Levels'!C13 -> EL1 | E14: ='Efficiency Levels'!D13 -> 3.56 | F14: 0.189 | H14: 0.189 | I14: 0.189 | J14: 0.189 | K14: 0.189 | L14: 0.189 | M14: 0.189 | N14: 0.189 | O14: 0.189 | P14: 0.189 | Q14: 0.189 | R14: =$F14 -> 0.189 | S14: 0.189 | T14: 0.189 | U14: 0.189 | V14: 0.189 | W14: 0.189 | X14: 0.189 | Y14: 0.189 | Z14: 0.189 | AA14: 0.189 | AB14: 0.189 | AC14: 0.189 | AD14: 0.189 | AE14: 0.189 | AF14: 0.189 | AG14: 0.189 | AH14: 0.189 | AI14: 0.189 | AJ14: 0.189 | AK14: 0.189 | AL14: 0.189 | AM14: 0.189 | AN14: 0.189 | AO14: 0.189 | AP14: 0.189 | AQ14: 0.189 | AR14: 0.189 | AS14: 0.189 | AT14: 0.189 | AU14: 0.189 | AV14: 0.189 | AW14: 0.189 | AX14: 0.189 | AY14: 0.189 | AZ14: 0.189 | BA14: 0.189 | BB14: 0.189 | BC14: 0.189 | BD14: 0.189 | BE14: 0.189 | BF14: 0.189 | BG14: 0.189 | BH14: 0.189 | BI14: 0.189
D15: ='Efficiency Levels'!C14 -> EL2 | E15: ='Efficiency Levels'!D14 -> 3.61 | F15: 0.535 | H15: 0.535 | I15: 0.535 | J15: 0.535 | K15: 0.535 | L15: 0.535 | M15: 0.535 | N15: 0.535 | O15: 0.535 | P15: 0.535 | Q15: 0.535 | R15: 0.535 | S15: 0.535 | T15: 0.535 | U15: 0.535 | V15: 0.535 | W15: 0.535 | X15: 0.535 | Y15: 0.535 | Z15: 0.535 | AA15: 0.535 | AB15: 0.535 | AC15: 0.535 | AD15: 0.535 | AE15: 0.535 | AF15: 0.535 | AG15: 0.535 | AH15: 0.535 | AI15: 0.535 | AJ15: 0.535 | AK15: 0.535 | AL15: 0.535 | AM15: 0.535 | AN15: 0.535 | AO15: 0.535 | AP15: 0.535 | AQ15: 0.535 | AR15: 0.535 | AS15: 0.535 | AT15: 0.535 | AU15: 0.535 | AV15: 0.535 | AW15: 0.535 | AX15: 0.535 | AY15: 0.535 | AZ15: 0.535 | BA15: 0.535 | BB15: 0.535 | BC15: 0.535 | BD15: 0.535 | BE15: 0.535 | BF15: 0.535 | BG15: 0.535 | BH15: 0.535 | BI15: 0.535
D16: ='Efficiency Levels'!C15 -> EL3 | E16: ='Efficiency Levels'!D15 -> 3.73 | F16: 0.179 | H16: 0.179 | I16: 0.179 | J16: 0.179 | K16: 0.179 | L16: 0.179 | M16: 0.179 | N16: 0.179 | O16: 0.179 | P16: 0.179 | Q16: 0.179 | R16: 0.179 | S16: 0.179 | T16: 0.179 | U16: 0.179 | V16: 0.179 | W16: 0.179 | X16: 0.179 | Y16: 0.179 | Z16: 0.179 | AA16: 0.179 | AB16: 0.179 | AC16: 0.179 | AD16: 0.179 | AE16: 0.179 | AF16: 0.179 | AG16: 0.179 | AH16: 0.179 | AI16: 0.179 | AJ16: 0.179 | AK16: 0.179 | AL16: 0.179 | AM16: 0.179 | AN16: 0.179 | AO16: 0.179 | AP16: 0.179 | AQ16: 0.179 | AR16: 0.179 | AS16: 0.179 | AT16: 0.179 | AU16: 0.179 | AV16: 0.179 | AW16: 0.179 | AX16: 0.179 | AY16: 0.179 | AZ16: 0.179 | BA16: 0.179 | BB16: 0.179 | BC16: 0.179 | BD16: 0.179 | BE16: 0.179 | BF16: 0.179 | BG16: 0.179 | BH16: 0.179 | BI16: 0.179
D17: ='Efficiency Levels'!C16 -> EL4 | E17: ='Efficiency Levels'!D16 -> 3.81 | F17: 0.061 | H17: 0.061 | I17: 0.061 | J17: 0.061 | K17: 0.061 | L17: 0.061 | M17: 0.061 | N17: 0.061 | O17: 0.061 | P17: 0.061 | Q17: 0.061 | R17: 0.061 | S17: 0.061 | T17: 0.061 | U17: 0.061 | V17: 0.061 | W17: 0.061 | X17: 0.061 | Y17: 0.061 | Z17: 0.061 | AA17: 0.061 | AB17: 0.061 | AC17: 0.061 | AD17: 0.061 | AE17: 0.061 | AF17: 0.061 | AG17: 0.061 | AH17: 0.061 | AI17: 0.061 | AJ17: 0.061 | AK17: 0.061 | AL17: 0.061 | AM17: 0.061 | AN17: 0.061 | AO17: 0.061 | AP17: 0.061 | AQ17: 0.061 | AR17: 0.061 | AS17: 0.061 | AT17: 0.061 | AU17: 0.061 | AV17: 0.061 | AW17: 0.061 | AX17: 0.061 | AY17: 0.061 | AZ17: 0.061 | BA17: 0.061 | BB17: 0.061 | BC17: 0.061 | BD17: 0.061 | BE17: 0.061 | BF17: 0.061 | BG17: 0.061 | BH17: 0.061 | BI17: 0.061
D18: ='Efficiency Levels'!C17 -> EL5 | E18: ='Efficiency Levels'!D17 -> 4.08 | F18: 0.01 | H18: 0.01 | I18: 0.01 | J18: 0.01 | K18: 0.01 | L18: 0.01 | M18: 0.01 | N18: 0.01 | O18: 0.01 | P18: 0.01 | Q18: 0.01 | R18: 0.01 | S18: 0.01 | T18: 0.01 | U18: 0.01 | V18: 0.01 | W18: 0.01 | X18: 0.01 | Y18: 0.01 | Z18: 0.01 | AA18: 0.01 | AB18: 0.01 | AC18: 0.01 | AD18: 0.01 | AE18: 0.01 | AF18: 0.01 | AG18: 0.01 | AH18: 0.01 | AI18: 0.01 | AJ18: 0.01 | AK18: 0.01 | AL18: 0.01 | AM18: 0.01 | AN18: 0.01 | AO18: 0.01 | AP18: 0.01 | AQ18: 0.01 | AR18: 0.01 | AS18: 0.01 | AT18: 0.01 | AU18: 0.01 | AV18: 0.01 | AW18: 0.01 | AX18: 0.01 | AY18: 0.01 | AZ18: 0.01 | BA18: 0.01 | BB18: 0.01 | BC18: 0.01 | BD18: 0.01 | BE18: 0.01 | BF18: 0.01 | BG18: 0.01 | BH18: 0.01 | BI18: 0.01
D19: ='Efficiency Levels'!C18 -> EL6 | E19: ='Efficiency Levels'!D18 -> 5.42 | F19: 0 | H19: 0 | I19: 0 | J19: 0 | K19: 0 | L19: 0 | M19: 0 | N19: 0 | O19: 0 | P19: 0 | Q19: 0 | R19: 0 | S19: 0 | T19: 0 | U19: 0 | V19: 0 | W19: 0 | X19: =$F19 -> 0 | Y19: 0 | Z19: 0 | AA19: 0 | AB19: 0 | AC19: 0 | AD19: 0 | AE19: 0 | AF19: 0 | AG19: 0 | AH19: 0 | AI19: 0 | AJ19: 0 | AK19: 0 | AL19: 0 | AM19: 0 | AN19: 0 | AO19: 0 | AP19: 0 | AQ19: 0 | AR19: 0 | AS19: 0 | AT19: 0 | AU19: 0 | AV19: 0 | AW19: 0 | AX19: 0 | AY19: 0 | AZ19: 0 | BA19: 0 | BB19: 0 | BC19: 0 | BD19: 0 | BE19: 0 | BF19: 0 | BG19: 0 | BH19: 0 | BI19: 0
D20: TOTAL | F20: =SUM(F13:F19) -> 1 | H20: =SUM(H13:H19) -> 1 | I20: 1 | J20: 1 | K20: 1 | L20: 1 | M20: 1 | N20: 1 | O20: 1 | P20: 1 | Q20: 1 | R20: =SUM(R13:R19) -> 1 | S20: 1 | T20: 1 | U20: 1 | V20: 1 | W20: 1 | X20: 1 | Y20: 1 | Z20: 1 | AA20: 1 | AB20: 1 | AC20: 1 | AD20: 1 | AE20: 1 | AF20: 1 | AG20: 1 | AH20: 1 | AI20: 1 | AJ20: 1 | AK20: 1 | AL20: 1 | AM20: 1 | AN20: 1 | AO20: 1 | AP20: 1 | AQ20: 1 | AR20: 1 | AS20: 1 | AT20: 1 | AU20: 1 | AV20: 1 | AW20: 1 | AX20: 1 | AY20: 1 | AZ20: 1 | BA20: 1 | BB20: 1 | BC20: 1 | BD20: 1 | BE20: 1 | BF20: 1 | BG20: 1 | BH20: 1 | BI20: 1
D22: POST-Case
D23: Efficiency Level | E23: IEF (lbs/kWh) | H23: 1981 | I23: 1982 | J23: 1983 | K23: 1984 | L23: 1985 | M23: 1986 | N23: 1987 | O23: 1988 | P23: 1989 | Q23: 1990 | R23: 1991 | S23: 1992 | T23: 1993 | U23: 1994 | V23: 1995 | W23: 1996 | X23: 1997 | Y23: 1998 | Z23: 1999 | AA23: 2000 | AB23: 2001 | AC23: 2002 | AD23: 2003 | AE23: 2004 | AF23: 2005 | AG23: 2006 | AH23: 2007 | AI23: 2008 | AJ23: 2009 | AK23: 2010 | AL23: 2011 | AM23: 2012 | AN23: 2013 | AO23: 2014 | AP23: 2015 | AQ23: 2016 | AR23: 2017 | AS23: 2018 | AT23: 2019 | AU23: 2020 | AV23: 2021 | AW23: 2022 | AX23: 2023 | AY23: 2024 | AZ23: 2025 | BA23: 2026 | BB23: 2027 | BC23: 2028 | BD23: 2029 | BE23: 2030 | BF23: 2031 | BG23: 2032 | BH23: 2033 | BI23: 2034
D24: ='Efficiency Levels'!C12 -> EL0 | E24: ='Efficiency Levels'!D12 -> 3.55 | H24: =H13 -> 0.026 | I24: 0.026 | J24: 0.026 | K24: 0.026 | L24: 0.026 | M24: 0.026 | N24: 0.026 | O24: 0.026 | P24: 0.026 | Q24: 0.026 | R24: =R13 -> 0.026 | S24: 0.026 | T24: 0.026 | U24: 0.026 | V24: 0.026 | W24: 0.026 | X24: 0.026 | Y24: 0.026 | Z24: 0.026 | AA24: 0.026 | AB24: 0.026 | AC24: 0.026 | AD24: 0.026 | AE24: 0.026 | AF24: 0.026 | AG24: 0.026 | AH24: 0.026 | AI24: 0.026 | AJ24: 0.026 | AK24: 0.026 | AL24: 0.026 | AM24: 0.026 | AN24: 0.026 | AO24: 0.026 | AP24: 0 | AQ24: 0 | AR24: 0 | AS24: 0 | AT24: 0 | AU24: 0 | AV24: 0 | AW24: 0 | AX24: 0 | AY24: 0 | AZ24: 0 | BA24: 0 | BB24: 0 | BC24: 0 | BD24: 0 | BE24: 0 | BF24: 0 | BG24: 0 | BH24: 0 | BI24: 0
D25: ='Efficiency Levels'!C13 -> EL1 | E25: ='Efficiency Levels'!D13 -> 3.56 | H25: =H14 -> 0.189 | I25: 0.189 | J25: 0.189 | K25: 0.189 | L25: 0.189 | M25: 0.189 | N25: 0.189 | O25: 0.189 | P25: 0.189 | Q25: 0.189 | R25: =R14 -> 0.189 | S25: 0.189 | T25: 0.189 | U25: 0.189 | V25: 0.189 | W25: 0.189 | X25: 0.189 | Y25: 0.189 | Z25: 0.189 | AA25: 0.189 | AB25: 0.189 | AC25: 0.189 | AD25: 0.189 | AE25: 0.189 | AF25: 0.189 | AG25: 0.189 | AH25: 0.189 | AI25: 0.189 | AJ25: 0.189 | AK25: 0.189 | AL25: 0.189 | AM25: 0.189 | AN25: 0.189 | AO25: 0.189 | AP25: 0 | AQ25: 0 | AR25: 0 | AS25: 0 | AT25: 0 | AU25: 0 | AV25: 0 | AW25: 0 | AX25: 0 | AY25: 0 | AZ25: 0 | BA25: 0 | BB25: 0 | BC25: 0 | BD25: 0 | BE25: 0 | BF25: 0 | BG25: 0 | BH25: 0 | BI25: 0
D26: ='Efficiency Levels'!C14 -> EL2 | E26: ='Efficiency Levels'!D14 -> 3.61 | H26: =H15 -> 0.535 | I26: 0.535 | J26: 0.535 | K26: 0.535 | L26: 0.535 | M26: 0.535 | N26: 0.535 | O26: 0.535 | P26: 0.535 | Q26: 0.535 | R26: 0.535 | S26: 0.535 | T26: 0.535 | U26: 0.535 | V26: 0.535 | W26: 0.535 | X26: 0.535 | Y26: 0.535 | Z26: 0.535 | AA26: 0.535 | AB26: 0.535 | AC26: 0.535 | AD26: 0.535 | AE26: 0.535 | AF26: 0.535 | AG26: 0.535 | AH26: 0.535 | AI26: 0.535 | AJ26: 0.535 | AK26: 0.535 | AL26: 0.535 | AM26: 0.535 | AN26: 0.535 | AO26: 0.535 | AP26: 0 | AQ26: 0 | AR26: 0 | AS26: 0 | AT26: 0 | AU26: 0 | AV26: 0 | AW26: 0 | AX26: 0 | AY26: 0 | AZ26: 0 | BA26: 0 | BB26: 0 | BC26: 0 | BD26: 0 | BE26: 0 | BF26: 0 | BG26: 0 | BH26: 0 | BI26: 0
D27: ='Efficiency Levels'!C15 -> EL3 | E27: ='Efficiency Levels'!D15 -> 3.73 | H27: =H16 -> 0.179 | I27: 0.179 | J27: 0.179 | K27: 0.179 | L27: 0.179 | M27: 0.179 | N27: 0.179 | O27: 0.179 | P27: 0.179 | Q27: 0.179 | R27: 0.179 | S27: 0.179 | T27: 0.179 | U27: 0.179 | V27: 0.179 | W27: 0.179 | X27: 0.179 | Y27: 0.179 | Z27: 0.179 | AA27: 0.179 | AB27: 0.179 | AC27: 0.179 | AD27: 0.179 | AE27: 0.179 | AF27: 0.179 | AG27: 0.179 | AH27: 0.179 | AI27: 0.179 | AJ27: 0.179 | AK27: 0.179 | AL27: 0.179 | AM27: 0.179 | AN27: 0.179 | AO27: 0.179 | AP27: =SUM(AP13:AP16) -> 0.929 | AQ27: =SUM(AQ13:AQ16) -> 0.929 | AR27: 0.929 | AS27: 0.929 | AT27: 0.929 | AU27: 0.929 | AV27: 0.929 | AW27: 0.929 | AX27: 0.929 | AY27: 0.929 | AZ27: 0.929 | BA27: 0.929 | BB27: 0.929 | BC27: 0.929 | BD27: 0.929 | BE27: 0.929 | BF27: 0.929 | BG27: 0.929 | BH27: 0.929 | BI27: 0.929
D28: ='Efficiency Levels'!C16 -> EL4 | E28: ='Efficiency Levels'!D16 -> 3.81 | H28: =H17 -> 0.061 | I28: 0.061 | J28: 0.061 | K28: 0.061 | L28: 0.061 | M28: 0.061 | N28: 0.061 | O28: 0.061 | P28: 0.061 | Q28: 0.061 | R28: 0.061 | S28: 0.061 | T28: 0.061 | U28: 0.061 | V28: 0.061 | W28: 0.061 | X28: 0.061 | Y28: 0.061 | Z28: 0.061 | AA28: 0.061 | AB28: 0.061 | AC28: 0.061 | AD28: 0.061 | AE28: 0.061 | AF28: 0.061 | AG28: 0.061 | AH28: 0.061 | AI28: 0.061 | AJ28: 0.061 | AK28: 0.061 | AL28: 0.061 | AM28: 0.061 | AN28: 0.061 | AO28: 0.061 | AP28: =AP17 -> 0.061 | AQ28: =AQ17 -> 0.061 | AR28: 0.061 | AS28: 0.061 | AT28: 0.061 | AU28: 0.061 | AV28: 0.061 | AW28: 0.061 | AX28: 0.061 | AY28: 0.061 | AZ28: 0.061 | BA28: 0.061 | BB28: 0.061 | BC28: 0.061 | BD28: 0.061 | BE28: 0.061 | BF28: 0.061 | BG28: 0.061 | BH28: 0.061 | BI28: 0.061
D29: ='Efficiency Levels'!C17 -> EL5 | E29: ='Efficiency Levels'!D17 -> 4.08 | H29: =H18 -> 0.01 | I29: 0.01 | J29: 0.01 | K29: 0.01 | L29: 0.01 | M29: 0.01 | N29: 0.01 | O29: 0.01 | P29: 0.01 | Q29: 0.01 | R29: 0.01 | S29: 0.01 | T29: 0.01 | U29: 0.01 | V29: 0.01 | W29: 0.01 | X29: 0.01 | Y29: 0.01 | Z29: 0.01 | AA29: 0.01 | AB29: 0.01 | AC29: 0.01 | AD29: 0.01 | AE29: 0.01 | AF29: 0.01 | AG29: 0.01 | AH29: 0.01 | AI29: 0.01 | AJ29: 0.01 | AK29: 0.01 | AL29: 0.01 | AM29: 0.01 | AN29: 0.01 | AO29: 0.01 | AP29: =AP18 -> 0.01 | AQ29: =AQ18 -> 0.01 | AR29: 0.01 | AS29: 0.01 | AT29: 0.01 | AU29: 0.01 | AV29: 0.01 | AW29: 0.01 | AX29: 0.01 | AY29: 0.01 | AZ29: 0.01 | BA29: 0.01 | BB29: 0.01 | BC29: 0.01 | BD29: 0.01 | BE29: 0.01 | BF29: 0.01 | BG29: 0.01 | BH29: 0.01 | BI29: 0.01
D30: ='Efficiency Levels'!C18 -> EL6 | E30: ='Efficiency Levels'!D18 -> 5.42 | H30: =H19 -> 0 | I30: 0 | J30: 0 | K30: 0 | L30: 0 | M30: 0 | N30: 0 | O30: 0 | P30: 0 | Q30: 0 | R30: 0 | S30: 0 | T30: 0 | U30: 0 | V30: 0 | W30: 0 | X30: 0 | Y30: 0 | Z30: 0 | AA30: 0 | AB30: 0 | AC30: 0 | AD30: 0 | AE30: 0 | AF30: 0 | AG30: 0 | AH30: 0 | AI30: 0 | AJ30: 0 | AK30: 0 | AL30: 0 | AM30: 0 | AN30: 0 | AO30: 0 | AP30: =AP19 -> 0 | AQ30: =AQ19 -> 0 | AR30: 0 | AS30: 0 | AT30: 0 | AU30: 0 | AV30: 0 | AW30: 0 | AX30: 0 | AY30: 0 | AZ30: 0 | BA30: 0 | BB30: 0 | BC30: 0 | BD30: 0 | BE30: 0 | BF30: 0 | BG30: 0 | BH30: 0 | BI30: 0
D31: TOTAL | H31: =SUM(H24:H30) -> 1 | I31: 1 | J31: 1 | K31: 1 | L31: 1 | M31: 1 | N31: 1 | O31: 1 | P31: 1 | Q31: 1 | R31: =SUM(R24:R30) -> 1 | S31: 1 | T31: 1 | U31: 1 | V31: 1 | W31: 1 | X31: 1 | Y31: 1 | Z31: 1 | AA31: 1 | AB31: 1 | AC31: 1 | AD31: 1 | AE31: 1 | AF31: 1 | AG31: 1 | AH31: 1 | AI31: 1 | AJ31: 1 | AK31: 1 | AL31: 1 | AM31: 1 | AN31: 1 | AO31: 1 | AP31: 1 | AQ31: 1 | AR31: 1 | AS31: 1 | AT31: 1 | AU31: 1 | AV31: 1 | AW31: 1 | AX31: 1 | AY31: 1 | AZ31: 1 | BA31: 1 | BB31: 1 | BC31: 1 | BD31: 1 | BE31: 1 | BF31: 1 | BG31: 1 | BH31: 1 | BI31: 1
D33: Sources | E33: 1. 2011 DOE Direct Final Rule Technical Support Document Chapter 12: Table 12.4.8 Base-Case Distribution of Efficiencies for Residential Clothes Dryers in 2014

Sheet Efficiency Dist - MF
C2: Efficiency Distributions by Product Class - Multi-Family
C4: =Navigation!$C$15 -> NAVIGATION
C6: COMMENTS
D9: ='Product Classes'!H10&" - "&OFFSET('Product Classes'!$C$9,MATCH('Product Classes'!H10,MODEL_PCS,0),0) -> PC1 - Vented Electric, Standard (4.4 ft3 or greater capacity)
D11: PRE-Case | F11: Static Distribution 1
D12: Efficiency Level | E12: IEF (lbs/kWh) | F12: 2014 | H12: 1981 | I12: 1982 | J12: 1983 | K12: 1984 | L12: 1985 | M12: 1986 | N12: 1987 | O12: 1988 | P12: 1989 | Q12: 1990 | R12: 1991 | S12: 1992 | T12: 1993 | U12: 1994 | V12: 1995 | W12: 1996 | X12: 1997 | Y12: 1998 | Z12: 1999 | AA12: 2000 | AB12: 2001 | AC12: 2002 | AD12: 2003 | AE12: 2004 | AF12: 2005 | AG12: 2006 | AH12: 2007 | AI12: 2008 | AJ12: 2009 | AK12: 2010 | AL12: 2011 | AM12: 2012 | AN12: 2013 | AO12: 2014 | AP12: 2015 | AQ12: 2016 | AR12: 2017 | AS12: 2018 | AT12: 2019 | AU12: 2020 | AV12: 2021 | AW12: 2022 | AX12: 2023 | AY12: 2024 | AZ12: 2025 | BA12: 2026 | BB12: 2027 | BC12: 2028 | BD12: 2029 | BE12: 2030 | BF12: 2031 | BG12: 2032 | BH12: 2033 | BI12: 2034
D13: ='Efficiency Levels'!C12 -> EL0 | E13: ='Efficiency Levels'!D12 -> 3.55 | F13: 0.026 | H13: =$F13 -> 0.026 | I13: 0.026 | J13: 0.026 | K13: 0.026 | L13: 0.026 | M13: 0.026 | N13: 0.026 | O13: 0.026 | P13: 0.026 | Q13: 0.026 | R13: 0.026 | S13: 0.026 | T13: 0.026 | U13: 0.026 | V13: 0.026 | W13: 0.026 | X13: =$F13 -> 0.026 | Y13: 0.026 | Z13: 0.026 | AA13: 0.026 | AB13: 0.026 | AC13: 0.026 | AD13: 0.026 | AE13: 0.026 | AF13: 0.026 | AG13: 0.026 | AH13: 0.026 | AI13: 0.026 | AJ13: 0.026 | AK13: 0.026 | AL13: 0.026 | AM13: 0.026 | AN13: 0.026 | AO13: 0.026 | AP13: 0.026 | AQ13: 0.026 | AR13: 0.026 | AS13: 0.026 | AT13: 0.026 | AU13: 0.026 | AV13: 0.026 | AW13: 0.026 | AX13: 0.026 | AY13: 0.026 | AZ13: 0.026 | BA13: 0.026 | BB13: 0.026 | BC13: 0.026 | BD13: 0.026 | BE13: 0.026 | BF13: 0.026 | BG13: 0.026 | BH13: 0.026 | BI13: 0.026
D14: ='Efficiency Levels'!C13 -> EL1 | E14: ='Efficiency Levels'!D13 -> 3.56 | F14: 0.189 | H14: 0.189 | I14: 0.189 | J14: 0.189 | K14: 0.189 | L14: 0.189 | M14: 0.189 | N14: 0.189 | O14: 0.189 | P14: 0.189 | Q14: 0.189 | R14: 0.189 | S14: 0.189 | T14: 0.189 | U14: 0.189 | V14: 0.189 | W14: 0.189 | X14: 0.189 | Y14: 0.189 | Z14: 0.189 | AA14: 0.189 | AB14: 0.189 | AC14: 0.189 | AD14: 0.189 | AE14: 0.189 | AF14: 0.189 | AG14: 0.189 | AH14: 0.189 | AI14: 0.189 | AJ14: 0.189 | AK14: 0.189 | AL14: 0.189 | AM14: 0.189 | AN14: 0.189 | AO14: 0.189 | AP14: 0.189 | AQ14: 0.189 | AR14: 0.189 | AS14: 0.189 | AT14: 0.189 | AU14: 0.189 | AV14: 0.189 | AW14: 0.189 | AX14: 0.189 | AY14: 0.189 | AZ14: 0.189 | BA14: 0.189 | BB14: 0.189 | BC14: 0.189 | BD14: 0.189 | BE14: 0.189 | BF14: 0.189 | BG14: 0.189 | BH14: 0.189 | BI14: 0.189
D15: ='Efficiency Levels'!C14 -> EL2 | E15: ='Efficiency Levels'!D14 -> 3.61 | F15: 0.535 | H15: 0.535 | I15: 0.535 | J15: 0.535 | K15: 0.535 | L15: 0.535 | M15: 0.535 | N15: 0.535 | O15: 0.535 | P15: 0.535 | Q15: 0.535 | R15: 0.535 | S15: 0.535 | T15: 0.535 | U15: 0.535 | V15: 0.535 | W15: 0.535 | X15: 0.535 | Y15: 0.535 | Z15: 0.535 | AA15: 0.535 | AB15: 0.535 | AC15: 0.535 | AD15: 0.535 | AE15: 0.535 | AF15: 0.535 | AG15: 0.535 | AH15: 0.535 | AI15: 0.535 | AJ15: 0.535 | AK15: 0.535 | AL15: 0.535 | AM15: 0.535 | AN15: 0.535 | AO15: 0.535 | AP15: 0.535 | AQ15: 0.535 | AR15: 0.535 | AS15: 0.535 | AT15: 0.535 | AU15: 0.535 | AV15: 0.535 | AW15: 0.535 | AX15: 0.535 | AY15: 0.535 | AZ15: 0.535 | BA15: 0.535 | BB15: 0.535 | BC15: 0.535 | BD15: 0.535 | BE15: 0.535 | BF15: 0.535 | BG15: 0.535 | BH15: 0.535 | BI15: 0.535
D16: ='Efficiency Levels'!C15 -> EL3 | E16: ='Efficiency Levels'!D15 -> 3.73 | F16: 0.179 | H16: 0.179 | I16: 0.179 | J16: 0.179 | K16: 0.179 | L16: 0.179 | M16: 0.179 | N16: 0.179 | O16: 0.179 | P16: 0.179 | Q16: 0.179 | R16: 0.179 | S16: 0.179 | T16: 0.179 | U16: 0.179 | V16: 0.179 | W16: 0.179 | X16: 0.179 | Y16: 0.179 | Z16: 0.179 | AA16: 0.179 | AB16: 0.179 | AC16: 0.179 | AD16: 0.179 | AE16: 0.179 | AF16: 0.179 | AG16: 0.179 | AH16: 0.179 | AI16: 0.179 | AJ16: 0.179 | AK16: 0.179 | AL16: 0.179 | AM16: 0.179 | AN16: 0.179 | AO16: 0.179 | AP16: 0.179 | AQ16: 0.179 | AR16: 0.179 | AS16: 0.179 | AT16: 0.179 | AU16: 0.179 | AV16: 0.179 | AW16: 0.179 | AX16: 0.179 | AY16: 0.179 | AZ16: 0.179 | BA16: 0.179 | BB16: 0.179 | BC16: 0.179 | BD16: 0.179 | BE16: 0.179 | BF16: 0.179 | BG16: 0.179 | BH16: 0.179 | BI16: 0.179
D17: ='Efficiency Levels'!C16 -> EL4 | E17: ='Efficiency Levels'!D16 -> 3.81 | F17: 0.061 | H17: 0.061 | I17: 0.061 | J17: 0.061 | K17: 0.061 | L17: 0.061 | M17: 0.061 | N17: 0.061 | O17: 0.061 | P17: 0.061 | Q17: 0.061 | R17: 0.061 | S17: 0.061 | T17: 0.061 | U17: 0.061 | V17: 0.061 | W17: 0.061 | X17: 0.061 | Y17: 0.061 | Z17: 0.061 | AA17: 0.061 | AB17: 0.061 | AC17: 0.061 | AD17: 0.061 | AE17: 0.061 | AF17: 0.061 | AG17: 0.061 | AH17: 0.061 | AI17: 0.061 | AJ17: 0.061 | AK17: 0.061 | AL17: 0.061 | AM17: 0.061 | AN17: 0.061 | AO17: 0.061 | AP17: 0.061 | AQ17: 0.061 | AR17: 0.061 | AS17: 0.061 | AT17: 0.061 | AU17: 0.061 | AV17: 0.061 | AW17: 0.061 | AX17: 0.061 | AY17: 0.061 | AZ17: 0.061 | BA17: 0.061 | BB17: 0.061 | BC17: 0.061 | BD17: 0.061 | BE17: 0.061 | BF17: 0.061 | BG17: 0.061 | BH17: 0.061 | BI17: 0.061
D18: ='Efficiency Levels'!C17 -> EL5 | E18: ='Efficiency Levels'!D17 -> 4.08 | F18: 0.01 | H18: 0.01 | I18: 0.01 | J18: 0.01 | K18: 0.01 | L18: 0.01 | M18: 0.01 | N18: 0.01 | O18: 0.01 | P18: 0.01 | Q18: 0.01 | R18: 0.01 | S18: 0.01 | T18: 0.01 | U18: 0.01 | V18: 0.01 | W18: 0.01 | X18: 0.01 | Y18: 0.01 | Z18: 0.01 | AA18: 0.01 | AB18: 0.01 | AC18: 0.01 | AD18: 0.01 | AE18: 0.01 | AF18: 0.01 | AG18: 0.01 | AH18: 0.01 | AI18: 0.01 | AJ18: 0.01 | AK18: 0.01 | AL18: 0.01 | AM18: 0.01 | AN18: 0.01 | AO18: 0.01 | AP18: 0.01 | AQ18: 0.01 | AR18: 0.01 | AS18: 0.01 | AT18: 0.01 | AU18: 0.01 | AV18: 0.01 | AW18: 0.01 | AX18: 0.01 | AY18: 0.01 | AZ18: 0.01 | BA18: 0.01 | BB18: 0.01 | BC18: 0.01 | BD18: 0.01 | BE18: 0.01 | BF18: 0.01 | BG18: 0.01 | BH18: 0.01 | BI18: 0.01
D19: ='Efficiency Levels'!C18 -> EL6 | E19: ='Efficiency Levels'!D18 -> 5.42 | F19: 0 | H19: 0 | I19: 0 | J19: 0 | K19: 0 | L19: 0 | M19: 0 | N19: 0 | O19: 0 | P19: 0 | Q19: 0 | R19: 0 | S19: 0 | T19: 0 | U19: 0 | V19: 0 | W19: 0 | X19: 0 | Y19: 0 | Z19: 0 | AA19: 0 | AB19: 0 | AC19: 0 | AD19: 0 | AE19: 0 | AF19: 0 | AG19: 0 | AH19: 0 | AI19: 0 | AJ19: 0 | AK19: 0 | AL19: 0 | AM19: 0 | AN19: 0 | AO19: 0 | AP19: 0 | AQ19: 0 | AR19: 0 | AS19: 0 | AT19: 0 | AU19: 0 | AV19: 0 | AW19: 0 | AX19: 0 | AY19: =$F19 -> 0 | AZ19: 0 | BA19: 0 | BB19: 0 | BC19: 0 | BD19: 0 | BE19: 0 | BF19: 0 | BG19: 0 | BH19: 0 | BI19: 0
D20: TOTAL | F20: =SUM(F13:F19) -> 1 | H20: =SUM(H13:H19) -> 1 | I20: 1 | J20: 1 | K20: 1 | L20: 1 | M20: 1 | N20: 1 | O20: 1 | P20: 1 | Q20: 1 | R20: 1 | S20: 1 | T20: 1 | U20: 1 | V20: 1 | W20: 1 | X20: 1 | Y20: 1 | Z20: 1 | AA20: 1 | AB20: 1 | AC20: 1 | AD20: 1 | AE20: 1 | AF20: 1 | AG20: 1 | AH20: 1 | AI20: 1 | AJ20: 1 | AK20: 1 | AL20: 1 | AM20: 1 | AN20: 1 | AO20: 1 | AP20: 1 | AQ20: 1 | AR20: 1 | AS20: 1 | AT20: 1 | AU20: 1 | AV20: 1 | AW20: 1 | AX20: 1 | AY20: 1 | AZ20: 1 | BA20: 1 | BB20: 1 | BC20: 1 | BD20: 1 | BE20: 1 | BF20: 1 | BG20: 1 | BH20: 1 | BI20: 1
D22: POST-Case
D23: Efficiency Level | E23: IEF (lbs/kWh) | H23: 1981 | I23: 1982 | J23: 1983 | K23: 1984 | L23: 1985 | M23: 1986 | N23: 1987 | O23: 1988 | P23: 1989 | Q23: 1990 | R23: 1991 | S23: 1992 | T23: 1993 | U23: 1994 | V23: 1995 | W23: 1996 | X23: 1997 | Y23: 1998 | Z23: 1999 | AA23: 2000 | AB23: 2001 | AC23: 2002 | AD23: 2003 | AE23: 2004 | AF23: 2005 | AG23: 2006 | AH23: 2007 | AI23: 2008 | AJ23: 2009 | AK23: 2010 | AL23: 2011 | AM23: 2012 | AN23: 2013 | AO23: 2014 | AP23: 2015 | AQ23: 2016 | AR23: 2017 | AS23: 2018 | AT23: 2019 | AU23: 2020 | AV23: 2021 | AW23: 2022 | AX23: 2023 | AY23: 2024 | AZ23: 2025 | BA23: 2026 | BB23: 2027 | BC23: 2028 | BD23: 2029 | BE23: 2030 | BF23: 2031 | BG23: 2032 | BH23: 2033 | BI23: 2034
D24: ='Efficiency Levels'!C12 -> EL0 | E24: ='Efficiency Levels'!D12 -> 3.55 | H24: =H13 -> 0.026 | I24: 0.026 | J24: 0.026 | K24: 0.026 | L24: 0.026 | M24: 0.026 | N24: 0.026 | O24: 0.026 | P24: 0.026 | Q24: 0.026 | R24: 0.026 | S24: 0.026 | T24: 0.026 | U24: 0.026 | V24: 0.026 | W24: 0.026 | X24: 0.026 | Y24: 0.026 | Z24: 0.026 | AA24: 0.026 | AB24: 0.026 | AC24: 0.026 | AD24: 0.026 | AE24: 0.026 | AF24: 0.026 | AG24: 0.026 | AH24: 0.026 | AI24: 0.026 | AJ24: 0.026 | AK24: 0.026 | AL24: 0.026 | AM24: 0.026 | AN24: 0.026 | AO24: 0.026 | AP24: 0 | AQ24: 0 | AR24: 0 | AS24: 0 | AT24: 0 | AU24: 0 | AV24: 0 | AW24: 0 | AX24: 0 | AY24: 0 | AZ24: 0 | BA24: 0 | BB24: 0 | BC24: 0 | BD24: 0 | BE24: 0 | BF24: 0 | BG24: 0 | BH24: 0 | BI24: 0
D25: ='Efficiency Levels'!C13 -> EL1 | E25: ='Efficiency Levels'!D13 -> 3.56 | H25: 0.189 | I25: 0.189 | J25: 0.189 | K25: 0.189 | L25: 0.189 | M25: 0.189 | N25: 0.189 | O25: 0.189 | P25: 0.189 | Q25: 0.189 | R25: 0.189 | S25: 0.189 | T25: 0.189 | U25: 0.189 | V25: 0.189 | W25: 0.189 | X25: 0.189 | Y25: 0.189 | Z25: 0.189 | AA25: 0.189 | AB25: 0.189 | AC25: 0.189 | AD25: 0.189 | AE25: 0.189 | AF25: 0.189 | AG25: 0.189 | AH25: 0.189 | AI25: 0.189 | AJ25: 0.189 | AK25: 0.189 | AL25: 0.189 | AM25: 0.189 | AN25: 0.189 | AO25: 0.189 | AP25: 0 | AQ25: 0 | AR25: 0 | AS25: 0 | AT25: 0 | AU25: 0 | AV25: 0 | AW25: 0 | AX25: 0 | AY25: 0 | AZ25: 0 | BA25: 0 | BB25: 0 | BC25: 0 | BD25: 0 | BE25: 0 | BF25: 0 | BG25: 0 | BH25: 0 | BI25: 0
D26: ='Efficiency Levels'!C14 -> EL2 | E26: ='Efficiency Levels'!D14 -> 3.61 | H26: 0.535 | I26: 0.535 | J26: 0.535 | K26: 0.535 | L26: 0.535 | M26: 0.535 | N26: 0.535 | O26: 0.535 | P26: 0.535 | Q26: 0.535 | R26: 0.535 | S26: 0.535 | T26: 0.535 | U26: 0.535 | V26: 0.535 | W26: 0.535 | X26: 0.535 | Y26: 0.535 | Z26: 0.535 | AA26: 0.535 | AB26: 0.535 | AC26: 0.535 | AD26: 0.535 | AE26: 0.535 | AF26: 0.535 | AG26: 0.535 | AH26: 0.535 | AI26: 0.535 | AJ26: 0.535 | AK26: 0.535 | AL26: 0.535 | AM26: 0.535 | AN26: 0.535 | AO26: 0.535 | AP26: 0 | AQ26: 0 | AR26: 0 | AS26: 0 | AT26: 0 | AU26: 0 | AV26: 0 | AW26: 0 | AX26: 0 | AY26: 0 | AZ26: 0 | BA26: 0 | BB26: 0 | BC26: 0 | BD26: 0 | BE26: 0 | BF26: 0 | BG26: 0 | BH26: 0 | BI26: 0
D27: ='Efficiency Levels'!C15 -> EL3 | E27: ='Efficiency Levels'!D15 -> 3.73 | H27: 0.179 | I27: 0.179 | J27: 0.179 | K27: 0.179 | L27: 0.179 | M27: 0.179 | N27: 0.179 | O27: 0.179 | P27: 0.179 | Q27: 0.179 | R27: 0.179 | S27: 0.179 | T27: 0.179 | U27: 0.179 | V27: 0.179 | W27: 0.179 | X27: 0.179 | Y27: 0.179 | Z27: 0.179 | AA27: 0.179 | AB27: 0.179 | AC27: 0.179 | AD27: 0.179 | AE27: 0.179 | AF27: 0.179 | AG27: 0.179 | AH27: 0.179 | AI27: 0.179 | AJ27: 0.179 | AK27: 0.179 | AL27: 0.179 | AM27: 0.179 | AN27: 0.179 | AO27: 0.179 | AP27: =SUM(AP13:AP16) -> 0.929 | AQ27: =SUM(AQ13:AQ16) -> 0.929 | AR27: 0.929 | AS27: 0.929 | AT27: 0.929 | AU27: 0.929 | AV27: 0.929 | AW27: 0.929 | AX27: 0.929 | AY27: 0.929 | AZ27: 0.929 | BA27: 0.929 | BB27: 0.929 | BC27: 0.929 | BD27: 0.929 | BE27: 0.929 | BF27: 0.929 | BG27: 0.929 | BH27: 0.929 | BI27: 0.929
D28: ='Efficiency Levels'!C16 -> EL4 | E28: ='Efficiency Levels'!D16 -> 3.81 | H28: 0.061 | I28: 0.061 | J28: 0.061 | K28: 0.061 | L28: 0.061 | M28: 0.061 | N28: 0.061 | O28: 0.061 | P28: 0.061 | Q28: 0.061 | R28: 0.061 | S28: 0.061 | T28: 0.061 | U28: 0.061 | V28: 0.061 | W28: 0.061 | X28: 0.061 | Y28: 0.061 | Z28: 0.061 | AA28: 0.061 | AB28: 0.061 | AC28: 0.061 | AD28: 0.061 | AE28: 0.061 | AF28: 0.061 | AG28: 0.061 | AH28: 0.061 | AI28: 0.061 | AJ28: 0.061 | AK28: 0.061 | AL28: 0.061 | AM28: 0.061 | AN28: 0.061 | AO28: 0.061 | AP28: =AP17 -> 0.061 | AQ28: =AQ17 -> 0.061 | AR28: 0.061 | AS28: 0.061 | AT28: 0.061 | AU28: 0.061 | AV28: 0.061 | AW28: 0.061 | AX28: 0.061 | AY28: 0.061 | AZ28: 0.061 | BA28: 0.061 | BB28: 0.061 | BC28: 0.061 | BD28: 0.061 | BE28: 0.061 | BF28: 0.061 | BG28: 0.061 | BH28: 0.061 | BI28: 0.061
D29: ='Efficiency Levels'!C17 -> EL5 | E29: ='Efficiency Levels'!D17 -> 4.08 | H29: 0.01 | I29: 0.01 | J29: 0.01 | K29: 0.01 | L29: 0.01 | M29: 0.01 | N29: 0.01 | O29: 0.01 | P29: 0.01 | Q29: 0.01 | R29: 0.01 | S29: 0.01 | T29: 0.01 | U29: 0.01 | V29: 0.01 | W29: 0.01 | X29: 0.01 | Y29: 0.01 | Z29: 0.01 | AA29: 0.01 | AB29: 0.01 | AC29: 0.01 | AD29: 0.01 | AE29: 0.01 | AF29: 0.01 | AG29: 0.01 | AH29: 0.01 | AI29: 0.01 | AJ29: 0.01 | AK29: 0.01 | AL29: 0.01 | AM29: 0.01 | AN29: 0.01 | AO29: 0.01 | AP29: =AP18 -> 0.01 | AQ29: 0.01 | AR29: 0.01 | AS29: 0.01 | AT29: 0.01 | AU29: 0.01 | AV29: 0.01 | AW29: 0.01 | AX29: 0.01 | AY29: 0.01 | AZ29: 0.01 | BA29: 0.01 | BB29: 0.01 | BC29: 0.01 | BD29: 0.01 | BE29: 0.01 | BF29: 0.01 | BG29: 0.01 | BH29: 0.01 | BI29: 0.01
D30: ='Efficiency Levels'!C18 -> EL6 | E30: ='Efficiency Levels'!D18 -> 5.42 | H30: 0 | I30: 0 | J30: 0 | K30: 0 | L30: 0 | M30: 0 | N30: 0 | O30: 0 | P30: 0 | Q30: 0 | R30: 0 | S30: 0 | T30: 0 | U30: 0 | V30: 0 | W30: 0 | X30: 0 | Y30: 0 | Z30: 0 | AA30: 0 | AB30: 0 | AC30: 0 | AD30: 0 | AE30: 0 | AF30: 0 | AG30: 0 | AH30: 0 | AI30: 0 | AJ30: 0 | AK30: 0 | AL30: 0 | AM30: 0 | AN30: 0 | AO30: 0 | AP30: =AP19 -> 0 | AQ30: 0 | AR30: 0 | AS30: 0 | AT30: 0 | AU30: 0 | AV30: 0 | AW30: 0 | AX30: 0 | AY30: 0 | AZ30: 0 | BA30: 0 | BB30: 0 | BC30: 0 | BD30: 0 | BE30: 0 | BF30: 0 | BG30: 0 | BH30: 0 | BI30: 0
D31: TOTAL | H31: =SUM(H24:H30) -> 1 | I31: 1 | J31: 1 | K31: 1 | L31: 1 | M31: 1 | N31: 1 | O31: 1 | P31: 1 | Q31: 1 | R31: 1 | S31: 1 | T31: 1 | U31: 1 | V31: 1 | W31: 1 | X31: 1 | Y31: 1 | Z31: 1 | AA31: 1 | AB31: 1 | AC31: 1 | AD31: 1 | AE31: 1 | AF31: 1 | AG31: 1 | AH31: 1 | AI31: 1 | AJ31: 1 | AK31: 1 | AL31: 1 | AM31: 1 | AN31: 1 | AO31: 1 | AP31: 1 | AQ31: 1 | AR31: 1 | AS31: 1 | AT31: 1 | AU31: 1 | AV31: 1 | AW31: 1 | AX31: 1 | AY31: 1 | AZ31: 1 | BA31: 1 | BB31: 1 | BC31: 1 | BD31: 1 | BE31: 1 | BF31: 1 | BG31: 1 | BH31: 1 | BI31: 1
D33: Sources | E33: 1. 2011 DOE Direct Final Rule Technical Support Document Chapter 12: Table 12.4.8 Base-Case Distribution of Efficiencies for Residential Clothes Dryers in 2014

Sheet Efficiency Dist - MH
C2: Efficiency Distributions by Product Class - Multi-Family
C4: =Navigation!$C$15 -> NAVIGATION
C6: COMMENTS
D9: ='Product Classes'!H10&" - "&OFFSET('Product Classes'!$C$9,MATCH('Product Classes'!H10,MODEL_PCS,0),0) -> PC1 - Vented Electric, Standard (4.4 ft3 or greater capacity)
D11: PRE-Case | F11: Static Distribution 1
D12: Efficiency Level | E12: IEF (lbs/kWh) | F12: 2014 | H12: 1981 | I12: 1982 | J12: 1983 | K12: 1984 | L12: 1985 | M12: 1986 | N12: 1987 | O12: 1988 | P12: 1989 | Q12: 1990 | R12: 1991 | S12: 1992 | T12: 1993 | U12: 1994 | V12: 1995 | W12: 1996 | X12: 1997 | Y12: 1998 | Z12: 1999 | AA12: 2000 | AB12: 2001 | AC12: 2002 | AD12: 2003 | AE12: 2004 | AF12: 2005 | AG12: 2006 | AH12: 2007 | AI12: 2008 | AJ12: 2009 | AK12: 2010 | AL12: 2011 | AM12: 2012 | AN12: 2013 | AO12: 2014 | AP12: 2015 | AQ12: 2016 | AR12: 2017 | AS12: 2018 | AT12: 2019 | AU12: 2020 | AV12: 2021 | AW12: 2022 | AX12: 2023 | AY12: 2024 | AZ12: 2025 | BA12: 2026 | BB12: 2027 | BC12: 2028 | BD12: 2029 | BE12: 2030 | BF12: 2031 | BG12: 2032 | BH12: 2033 | BI12: 2034
D13: ='Efficiency Levels'!C12 -> EL0 | E13: ='Efficiency Levels'!D12 -> 3.55 | F13: 0.026 | H13: =$F13 -> 0.026 | I13: 0.026 | J13: 0.026 | K13: 0.026 | L13: 0.026 | M13: 0.026 | N13: 0.026 | O13: 0.026 | P13: 0.026 | Q13: 0.026 | R13: 0.026 | S13: 0.026 | T13: 0.026 | U13: 0.026 | V13: 0.026 | W13: 0.026 | X13: =$F13 -> 0.026 | Y13: 0.026 | Z13: 0.026 | AA13: 0.026 | AB13: 0.026 | AC13: 0.026 | AD13: 0.026 | AE13: 0.026 | AF13: 0.026 | AG13: 0.026 | AH13: 0.026 | AI13: 0.026 | AJ13: 0.026 | AK13: 0.026 | AL13: 0.026 | AM13: 0.026 | AN13: 0.026 | AO13: 0.026 | AP13: 0.026 | AQ13: 0.026 | AR13: 0.026 | AS13: 0.026 | AT13: 0.026 | AU13: 0.026 | AV13: 0.026 | AW13: 0.026 | AX13: 0.026 | AY13: 0.026 | AZ13: 0.026 | BA13: 0.026 | BB13: 0.026 | BC13: 0.026 | BD13: 0.026 | BE13: 0.026 | BF13: 0.026 | BG13: 0.026 | BH13: 0.026 | BI13: 0.026
D14: ='Efficiency Levels'!C13 -> EL1 | E14: ='Efficiency Levels'!D13 -> 3.56 | F14: 0.189 | H14: 0.189 | I14: 0.189 | J14: 0.189 | K14: 0.189 | L14: 0.189 | M14: 0.189 | N14: 0.189 | O14: 0.189 | P14: 0.189 | Q14: 0.189 | R14: 0.189 | S14: 0.189 | T14: 0.189 | U14: 0.189 | V14: 0.189 | W14: 0.189 | X14: 0.189 | Y14: 0.189 | Z14: 0.189 | AA14: 0.189 | AB14: 0.189 | AC14: 0.189 | AD14: 0.189 | AE14: 0.189 | AF14: 0.189 | AG14: 0.189 | AH14: 0.189 | AI14: 0.189 | AJ14: 0.189 | AK14: 0.189 | AL14: 0.189 | AM14: 0.189 | AN14: 0.189 | AO14: 0.189 | AP14: 0.189 | AQ14: 0.189 | AR14: 0.189 | AS14: 0.189 | AT14: 0.189 | AU14: 0.189 | AV14: 0.189 | AW14: 0.189 | AX14: 0.189 | AY14: 0.189 | AZ14: 0.189 | BA14: 0.189 | BB14: 0.189 | BC14: 0.189 | BD14: 0.189 | BE14: 0.189 | BF14: 0.189 | BG14: 0.189 | BH14: 0.189 | BI14: 0.189
D15: ='Efficiency Levels'!C14 -> EL2 | E15: ='Efficiency Levels'!D14 -> 3.61 | F15: 0.535 | H15: 0.535 | I15: 0.535 | J15: 0.535 | K15: 0.535 | L15: 0.535 | M15: 0.535 | N15: 0.535 | O15: 0.535 | P15: 0.535 | Q15: 0.535 | R15: 0.535 | S15: 0.535 | T15: 0.535 | U15: 0.535 | V15: 0.535 | W15: 0.535 | X15: 0.535 | Y15: 0.535 | Z15: 0.535 | AA15: 0.535 | AB15: 0.535 | AC15: 0.535 | AD15: 0.535 | AE15: 0.535 | AF15: 0.535 | AG15: 0.535 | AH15: 0.535 | AI15: 0.535 | AJ15: 0.535 | AK15: 0.535 | AL15: 0.535 | AM15: 0.535 | AN15: 0.535 | AO15: 0.535 | AP15: 0.535 | AQ15: 0.535 | AR15: 0.535 | AS15: 0.535 | AT15: 0.535 | AU15: 0.535 | AV15: 0.535 | AW15: 0.535 | AX15: 0.535 | AY15: 0.535 | AZ15: 0.535 | BA15: 0.535 | BB15: 0.535 | BC15: 0.535 | BD15: 0.535 | BE15: 0.535 | BF15: 0.535 | BG15: 0.535 | BH15: 0.535 | BI15: 0.535
D16: ='Efficiency Levels'!C15 -> EL3 | E16: ='Efficiency Levels'!D15 -> 3.73 | F16: 0.179 | H16: 0.179 | I16: 0.179 | J16: 0.179 | K16: 0.179 | L16: 0.179 | M16: 0.179 | N16: 0.179 | O16: 0.179 | P16: 0.179 | Q16: 0.179 | R16: 0.179 | S16: 0.179 | T16: 0.179 | U16: 0.179 | V16: 0.179 | W16: 0.179 | X16: 0.179 | Y16: 0.179 | Z16: 0.179 | AA16: 0.179 | AB16: 0.179 | AC16: 0.179 | AD16: 0.179 | AE16: 0.179 | AF16: 0.179 | AG16: 0.179 | AH16: 0.179 | AI16: 0.179 | AJ16: 0.179 | AK16: 0.179 | AL16: 0.179 | AM16: 0.179 | AN16: 0.179 | AO16: 0.179 | AP16: 0.179 | AQ16: 0.179 | AR16: 0.179 | AS16: 0.179 | AT16: 0.179 | AU16: 0.179 | AV16: 0.179 | AW16: 0.179 | AX16: 0.179 | AY16: 0.179 | AZ16: 0.179 | BA16: 0.179 | BB16: 0.179 | BC16: 0.179 | BD16: 0.179 | BE16: 0.179 | BF16: 0.179 | BG16: 0.179 | BH16: 0.179 | BI16: 0.179
D17: ='Efficiency Levels'!C16 -> EL4 | E17: ='Efficiency Levels'!D16 -> 3.81 | F17: 0.061 | H17: 0.061 | I17: 0.061 | J17: 0.061 | K17: 0.061 | L17: 0.061 | M17: 0.061 | N17: 0.061 | O17: 0.061 | P17: 0.061 | Q17: 0.061 | R17: 0.061 | S17: 0.061 | T17: 0.061 | U17: 0.061 | V17: 0.061 | W17: 0.061 | X17: 0.061 | Y17: 0.061 | Z17: 0.061 | AA17: 0.061 | AB17: 0.061 | AC17: 0.061 | AD17: 0.061 | AE17: 0.061 | AF17: 0.061 | AG17: 0.061 | AH17: 0.061 | AI17: 0.061 | AJ17: 0.061 | AK17: 0.061 | AL17: 0.061 | AM17: 0.061 | AN17: 0.061 | AO17: 0.061 | AP17: 0.061 | AQ17: 0.061 | AR17: 0.061 | AS17: 0.061 | AT17: 0.061 | AU17: 0.061 | AV17: 0.061 | AW17: 0.061 | AX17: 0.061 | AY17: 0.061 | AZ17: 0.061 | BA17: 0.061 | BB17: 0.061 | BC17: 0.061 | BD17: 0.061 | BE17: 0.061 | BF17: 0.061 | BG17: 0.061 | BH17: 0.061 | BI17: 0.061
D18: ='Efficiency Levels'!C17 -> EL5 | E18: ='Efficiency Levels'!D17 -> 4.08 | F18: 0.01 | H18: 0.01 | I18: 0.01 | J18: 0.01 | K18: 0.01 | L18: 0.01 | M18: 0.01 | N18: 0.01 | O18: 0.01 | P18: 0.01 | Q18: 0.01 | R18: 0.01 | S18: 0.01 | T18: 0.01 | U18: 0.01 | V18: 0.01 | W18: 0.01 | X18: 0.01 | Y18: 0.01 | Z18: 0.01 | AA18: 0.01 | AB18: 0.01 | AC18: 0.01 | AD18: 0.01 | AE18: 0.01 | AF18: 0.01 | AG18: 0.01 | AH18: 0.01 | AI18: 0.01 | AJ18: 0.01 | AK18: 0.01 | AL18: 0.01 | AM18: 0.01 | AN18: 0.01 | AO18: 0.01 | AP18: 0.01 | AQ18: 0.01 | AR18: 0.01 | AS18: 0.01 | AT18: 0.01 | AU18: 0.01 | AV18: 0.01 | AW18: 0.01 | AX18: 0.01 | AY18: 0.01 | AZ18: 0.01 | BA18: 0.01 | BB18: 0.01 | BC18: 0.01 | BD18: 0.01 | BE18: 0.01 | BF18: 0.01 | BG18: 0.01 | BH18: 0.01 | BI18: 0.01
D19: ='Efficiency Levels'!C18 -> EL6 | E19: ='Efficiency Levels'!D18 -> 5.42 | F19: 0 | H19: 0 | I19: 0 | J19: 0 | K19: 0 | L19: 0 | M19: 0 | N19: 0 | O19: 0 | P19: 0 | Q19: 0 | R19: 0 | S19: 0 | T19: 0 | U19: 0 | V19: 0 | W19: 0 | X19: 0 | Y19: 0 | Z19: 0 | AA19: 0 | AB19: 0 | AC19: 0 | AD19: 0 | AE19: 0 | AF19: 0 | AG19: 0 | AH19: 0 | AI19: 0 | AJ19: 0 | AK19: 0 | AL19: 0 | AM19: 0 | AN19: 0 | AO19: 0 | AP19: 0 | AQ19: 0 | AR19: 0 | AS19: 0 | AT19: 0 | AU19: 0 | AV19: 0 | AW19: 0 | AX19: 0 | AY19: =$F19 -> 0 | AZ19: 0 | BA19: 0 | BB19: 0 | BC19: 0 | BD19: 0 | BE19: 0 | BF19: 0 | BG19: 0 | BH19: 0 | BI19: 0
D20: TOTAL | F20: =SUM(F13:F19) -> 1 | H20: =SUM(H13:H19) -> 1 | I20: 1 | J20: 1 | K20: 1 | L20: 1 | M20: 1 | N20: 1 | O20: 1 | P20: 1 | Q20: 1 | R20: 1 | S20: 1 | T20: 1 | U20: 1 | V20: 1 | W20: 1 | X20: 1 | Y20: 1 | Z20: 1 | AA20: 1 | AB20: 1 | AC20: 1 | AD20: 1 | AE20: 1 | AF20: 1 | AG20: 1 | AH20: 1 | AI20: 1 | AJ20: 1 | AK20: 1 | AL20: 1 | AM20: 1 | AN20: 1 | AO20: 1 | AP20: 1 | AQ20: 1 | AR20: 1 | AS20: 1 | AT20: 1 | AU20: 1 | AV20: 1 | AW20: 1 | AX20: 1 | AY20: 1 | AZ20: 1 | BA20: 1 | BB20: 1 | BC20: 1 | BD20: 1 | BE20: 1 | BF20: 1 | BG20: 1 | BH20: 1 | BI20: 1
D22: POST-Case
D23: Efficiency Level | E23: IEF (lbs/kWh) | H23: 1981 | I23: 1982 | J23: 1983 | K23: 1984 | L23: 1985 | M23: 1986 | N23: 1987 | O23: 1988 | P23: 1989 | Q23: 1990 | R23: 1991 | S23: 1992 | T23: 1993 | U23: 1994 | V23: 1995 | W23: 1996 | X23: 1997 | Y23: 1998 | Z23: 1999 | AA23: 2000 | AB23: 2001 | AC23: 2002 | AD23: 2003 | AE23: 2004 | AF23: 2005 | AG23: 2006 | AH23: 2007 | AI23: 2008 | AJ23: 2009 | AK23: 2010 | AL23: 2011 | AM23: 2012 | AN23: 2013 | AO23: 2014 | AP23: 2015 | AQ23: 2016 | AR23: 2017 | AS23: 2018 | AT23: 2019 | AU23: 2020 | AV23: 2021 | AW23: 2022 | AX23: 2023 | AY23: 2024 | AZ23: 2025 | BA23: 2026 | BB23: 2027 | BC23: 2028 | BD23: 2029 | BE23: 2030 | BF23: 2031 | BG23: 2032 | BH23: 2033 | BI23: 2034
D24: ='Efficiency Levels'!C12 -> EL0 | E24: ='Efficiency Levels'!D12 -> 3.55 | H24: =H13 -> 0.026 | I24: 0.026 | J24: 0.026 | K24: 0.026 | L24: 0.026 | M24: 0.026 | N24: 0.026 | O24: 0.026 | P24: 0.026 | Q24: 0.026 | R24: 0.026 | S24: 0.026 | T24: 0.026 | U24: 0.026 | V24: 0.026 | W24: 0.026 | X24: 0.026 | Y24: 0.026 | Z24: 0.026 | AA24: 0.026 | AB24: 0.026 | AC24: 0.026 | AD24: 0.026 | AE24: 0.026 | AF24: 0.026 | AG24: 0.026 | AH24: 0.026 | AI24: 0.026 | AJ24: 0.026 | AK24: 0.026 | AL24: 0.026 | AM24: 0.026 | AN24: 0.026 | AO24: 0.026 | AP24: 0 | AQ24: 0 | AR24: 0 | AS24: 0 | AT24: 0 | AU24: 0 | AV24: 0 | AW24: 0 | AX24: 0 | AY24: 0 | AZ24: 0 | BA24: 0 | BB24: 0 | BC24: 0 | BD24: 0 | BE24: 0 | BF24: 0 | BG24: 0 | BH24: 0 | BI24: 0
D25: ='Efficiency Levels'!C13 -> EL1 | E25: ='Efficiency Levels'!D13 -> 3.56 | H25: 0.189 | I25: 0.189 | J25: 0.189 | K25: 0.189 | L25: 0.189 | M25: 0.189 | N25: 0.189 | O25: 0.189 | P25: 0.189 | Q25: 0.189 | R25: 0.189 | S25: 0.189 | T25: 0.189 | U25: 0.189 | V25: 0.189 | W25: 0.189 | X25: 0.189 | Y25: 0.189 | Z25: 0.189 | AA25: 0.189 | AB25: 0.189 | AC25: 0.189 | AD25: 0.189 | AE25: 0.189 | AF25: 0.189 | AG25: 0.189 | AH25: 0.189 | AI25: 0.189 | AJ25: 0.189 | AK25: 0.189 | AL25: 0.189 | AM25: 0.189 | AN25: 0.189 | AO25: 0.189 | AP25: 0 | AQ25: 0 | AR25: 0 | AS25: 0 | AT25: 0 | AU25: 0 | AV25: 0 | AW25: 0 | AX25: 0 | AY25: 0 | AZ25: 0 | BA25: 0 | BB25: 0 | BC25: 0 | BD25: 0 | BE25: 0 | BF25: 0 | BG25: 0 | BH25: 0 | BI25: 0
D26: ='Efficiency Levels'!C14 -> EL2 | E26: ='Efficiency Levels'!D14 -> 3.61 | H26: 0.535 | I26: 0.535 | J26: 0.535 | K26: 0.535 | L26: 0.535 | M26: 0.535 | N26: 0.535 | O26: 0.535 | P26: 0.535 | Q26: 0.535 | R26: 0.535 | S26: 0.535 | T26: 0.535 | U26: 0.535 | V26: 0.535 | W26: 0.535 | X26: 0.535 | Y26: 0.535 | Z26: 0.535 | AA26: 0.535 | AB26: 0.535 | AC26: 0.535 | AD26: 0.535 | AE26: 0.535 | AF26: 0.535 | AG26: 0.535 | AH26: 0.535 | AI26: 0.535 | AJ26: 0.535 | AK26: 0.535 | AL26: 0.535 | AM26: 0.535 | AN26: 0.535 | AO26: 0.535 | AP26: 0 | AQ26: 0 | AR26: 0 | AS26: 0 | AT26: 0 | AU26: 0 | AV26: 0 | AW26: 0 | AX26: 0 | AY26: 0 | AZ26: 0 | BA26: 0 | BB26: 0 | BC26: 0 | BD26: 0 | BE26: 0 | BF26: 0 | BG26: 0 | BH26: 0 | BI26: 0
D27: ='Efficiency Levels'!C15 -> EL3 | E27: ='Efficiency Levels'!D15 -> 3.73 | H27: 0.179 | I27: 0.179 | J27: 0.179 | K27: 0.179 | L27: 0.179 | M27: 0.179 | N27: 0.179 | O27: 0.179 | P27: 0.179 | Q27: 0.179 | R27: 0.179 | S27: 0.179 | T27: 0.179 | U27: 0.179 | V27: 0.179 | W27: 0.179 | X27: 0.179 | Y27: 0.179 | Z27: 0.179 | AA27: 0.179 | AB27: 0.179 | AC27: 0.179 | AD27: 0.179 | AE27: 0.179 | AF27: 0.179 | AG27: 0.179 | AH27: 0.179 | AI27: 0.179 | AJ27: 0.179 | AK27: 0.179 | AL27: 0.179 | AM27: 0.179 | AN27: 0.179 | AO27: 0.179 | AP27: =SUM(AP13:AP16) -> 0.929 | AQ27: =SUM(AQ13:AQ16) -> 0.929 | AR27: 0.929 | AS27: 0.929 | AT27: 0.929 | AU27: 0.929 | AV27: 0.929 | AW27: 0.929 | AX27: 0.929 | AY27: 0.929 | AZ27: 0.929 | BA27: 0.929 | BB27: 0.929 | BC27: 0.929 | BD27: 0.929 | BE27: 0.929 | BF27: 0.929 | BG27: 0.929 | BH27: 0.929 | BI27: 0.929
D28: ='Efficiency Levels'!C16 -> EL4 | E28: ='Efficiency Levels'!D16 -> 3.81 | H28: 0.061 | I28: 0.061 | J28: 0.061 | K28: 0.061 | L28: 0.061 | M28: 0.061 | N28: 0.061 | O28: 0.061 | P28: 0.061 | Q28: 0.061 | R28: 0.061 | S28: 0.061 | T28: 0.061 | U28: 0.061 | V28: 0.061 | W28: 0.061 | X28: 0.061 | Y28: 0.061 | Z28: 0.061 | AA28: 0.061 | AB28: 0.061 | AC28: 0.061 | AD28: 0.061 | AE28: 0.061 | AF28: 0.061 | AG28: 0.061 | AH28: 0.061 | AI28: 0.061 | AJ28: 0.061 | AK28: 0.061 | AL28: 0.061 | AM28: 0.061 | AN28: 0.061 | AO28: 0.061 | AP28: =AP17 -> 0.061 | AQ28: =AQ17 -> 0.061 | AR28: 0.061 | AS28: 0.061 | AT28: 0.061 | AU28: 0.061 | AV28: 0.061 | AW28: 0.061 | AX28: 0.061 | AY28: 0.061 | AZ28: 0.061 | BA28: 0.061 | BB28: 0.061 | BC28: 0.061 | BD28: 0.061 | BE28: 0.061 | BF28: 0.061 | BG28: 0.061 | BH28: 0.061 | BI28: 0.061
D29: ='Efficiency Levels'!C17 -> EL5 | E29: ='Efficiency Levels'!D17 -> 4.08 | H29: 0.01 | I29: 0.01 | J29: 0.01 | K29: 0.01 | L29: 0.01 | M29: 0.01 | N29: 0.01 | O29: 0.01 | P29: 0.01 | Q29: 0.01 | R29: 0.01 | S29: 0.01 | T29: 0.01 | U29: 0.01 | V29: 0.01 | W29: 0.01 | X29: 0.01 | Y29: 0.01 | Z29: 0.01 | AA29: 0.01 | AB29: 0.01 | AC29: 0.01 | AD29: 0.01 | AE29: 0.01 | AF29: 0.01 | AG29: 0.01 | AH29: 0.01 | AI29: 0.01 | AJ29: 0.01 | AK29: 0.01 | AL29: 0.01 | AM29: 0.01 | AN29: 0.01 | AO29: 0.01 | AP29: =AP18 -> 0.01 | AQ29: 0.01 | AR29: 0.01 | AS29: 0.01 | AT29: 0.01 | AU29: 0.01 | AV29: 0.01 | AW29: 0.01 | AX29: 0.01 | AY29: 0.01 | AZ29: 0.01 | BA29: 0.01 | BB29: 0.01 | BC29: 0.01 | BD29: 0.01 | BE29: 0.01 | BF29: 0.01 | BG29: 0.01 | BH29: 0.01 | BI29: 0.01
D30: ='Efficiency Levels'!C18 -> EL6 | E30: ='Efficiency Levels'!D18 -> 5.42 | H30: 0 | I30: 0 | J30: 0 | K30: 0 | L30: 0 | M30: 0 | N30: 0 | O30: 0 | P30: 0 | Q30: 0 | R30: 0 | S30: 0 | T30: 0 | U30: 0 | V30: 0 | W30: 0 | X30: 0 | Y30: 0 | Z30: 0 | AA30: 0 | AB30: 0 | AC30: 0 | AD30: 0 | AE30: 0 | AF30: 0 | AG30: 0 | AH30: 0 | AI30: 0 | AJ30: 0 | AK30: 0 | AL30: 0 | AM30: 0 | AN30: 0 | AO30: 0 | AP30: =AP19 -> 0 | AQ30: 0 | AR30: 0 | AS30: 0 | AT30: 0 | AU30: 0 | AV30: 0 | AW30: 0 | AX30: 0 | AY30: 0 | AZ30: 0 | BA30: 0 | BB30: 0 | BC30: 0 | BD30: 0 | BE30: 0 | BF30: 0 | BG30: 0 | BH30: 0 | BI30: 0
D31: TOTAL | H31: =SUM(H24:H30) -> 1 | I31: 1 | J31: 1 | K31: 1 | L31: 1 | M31: 1 | N31: 1 | O31: 1 | P31: 1 | Q31: 1 | R31: 1 | S31: 1 | T31: 1 | U31: 1 | V31: 1 | W31: 1 | X31: 1 | Y31: 1 | Z31: 1 | AA31: 1 | AB31: 1 | AC31: 1 | AD31: 1 | AE31: 1 | AF31: 1 | AG31: 1 | AH31: 1 | AI31: 1 | AJ31: 1 | AK31: 1 | AL31: 1 | AM31: 1 | AN31: 1 | AO31: 1 | AP31: 1 | AQ31: 1 | AR31: 1 | AS31: 1 | AT31: 1 | AU31: 1 | AV31: 1 | AW31: 1 | AX31: 1 | AY31: 1 | AZ31: 1 | BA31: 1 | BB31: 1 | BC31: 1 | BD31: 1 | BE31: 1 | BF31: 1 | BG31: 1 | BH31: 1 | BI31: 1
D33: Sources | E33: 1. 2011 DOE Direct Final Rule Technical Support Document Chapter 12: Table 12.4.8 Base-Case Distribution of Efficiencies for Residential Clothes Dryers in 2014

Sheet 6P UEC Development
C2: 6P UEC Development
C4: NAVIGATION
C6: COMMENTS
C9: Top "10" Washer RMC
C11: Dryer Capacity (cu.ft.) | D11: Test Load (lbs) | E11: RMC-Wet | F11: RMC-Dry | G11: EF (lbs/kWh) | H11: DEF - Dryer Efficiency (kWh/lb moisture removed) | I11: DUF | J11: FUF | K11: kWh/cycle | L11: Annual Use w/PNW Washer Cycles/yr (kWh)
C12: 7 | D12: 6.603589744 | E12: 0.3587980306 | F12: 0.04 | G12: 3.01 | H12: 0.484012193 | I12: 0.84 | J12: 1.04 | K12: 0.8901529632 | L12: 263.2004281
C13: 7 | D13: 6.603589744 | E13: 0.3587980306 | F13: 0.04 | G13: 3.08 | H13: 0.4730119167 | I13: 0.84 | J13: 1.04 | K13: 0.8699222155 | L13: 257.2186007
C14: 7 | D14: 6.603589744 | E14: 0.3587980306 | F14: 0.04 | G14: 3.15 | H14: 0.4625005448 | I14: 0.84 | J14: 1.04 | K14: 0.8505906181 | L14: 251.502634
C15: 7 | D15: 6.603589744 | E15: 0.3587980306 | F15: 0.04 | G15: 3.19 | H15: 0.4567011288 | I15: 0.84 | J15: 1.04 | K15: 0.8399248386 | L15: 248.3489763
C16: 7 | D16: 6.603589744 | E16: 0.3587980306 | F16: 0.04 | G16: 3.26 | H16: 0.4468947053 | I16: 0.84 | J16: 1.04 | K16: 0.8218897207 | L16: 243.0163526
C17: 7 | D17: 6.603589744 | E17: 0.3587980306 | F17: 0.04 | G17: 3.3 | H17: 0.441477738 | I17: 0.84 | J17: 1.04 | K17: 0.8119273074 | L17: 240.0706663
C19: Source | D19: 6P Conservation Supply Curves: Clothes Washers and Dryers - Single Family, 'Dryer Input Assumptions' Tab, Range K70:T76

Sheet Constants
C2: Constants
C4: NAVIGATION
C6: COMMENTS
C9: Constant | D9: Value
C10: Hours/Day | D10: 24
C11: Days/Week | D11: 7
C12: Days/Year | D12: 365.25
C13: kW/MW | D13: 1000

Sheet UEC Development
C2: UEC Development by Building Type
C4: NAVIGATION
C6: COMMENTS
C9: ='Product Classes'!H10&" - "&OFFSET('Product Classes'!$C$9,MATCH('Product Classes'!H10,MODEL_PCS,0),0) -> PC1 - Vented Electric, Standard (4.4 ft3 or greater capacity)
D11: Per Cycle Energy Consumption | H11: Usage | L11: Unit Energy Consumption (UEC)
C12: Efficiency Level | D12: Energy Factor | E12: Average Load | F12: Energy Consumption | H12: Single Family | I12: Multi-Family | J12: Manufactured Homes | L12: Single Family | M12: Multi-Family | N12: Manufactured Homes
D13: lbs/kWh | E13: lbs | F13: kWh / cycle | H13: cycles / year | I13: cycles / year | J13: cycles / year | L13: kWh / year | M13: kWh / year | N13: kWh / year
C14: ='Efficiency Levels'!C12&" - "&'Efficiency Levels'!D12 -> EL0 - 3.55 | D14: ='Efficiency Levels'!D12 -> 3.55 | E14: ='Data by Building Type'!$G$20 -> 7.64 | F14: =E14/D14 -> 2.152112676 | H14: 311 | I14: =Cycles_per_year_MF -> 311 | J14: =Cycles_per_year_MH -> 311 | L14: =$F14*H14 -> 669.3070423 | M14: =$F14*I14 -> 669.3070423 | N14: 669.3070423
C15: ='Efficiency Levels'!C13&" - "&'Efficiency Levels'!D13 -> EL1 - 3.56 | D15: ='Efficiency Levels'!D13 -> 3.56 | E15: ='Data by Building Type'!$G$20 -> 7.64 | F15: =E15/D15 -> 2.146067416 | H15: 311 | I15: 311 | J15: 311 | L15: =$F15*H15 -> 667.4269663 | M15: 667.4269663 | N15: 667.4269663
C16: ='Efficiency Levels'!C14&" - "&'Efficiency Levels'!D14 -> EL2 - 3.61 | D16: ='Efficiency Levels'!D14 -> 3.61 | E16: ='Data by Building Type'!$G$20 -> 7.64 | F16: 2.11634349 | H16: 311 | I16: 311 | J16: 311 | L16: 658.1828255 | M16: 658.1828255 | N16: 658.1828255
C17: ='Efficiency Levels'!C15&" - "&'Efficiency Levels'!D15 -> EL3 - 3.73 | D17: ='Efficiency Levels'!D15 -> 3.73 | E17: ='Data by Building Type'!$G$20 -> 7.64 | F17: 2.048257373 | H17: 311 | I17: 311 | J17: 311 | L17: 637.0080429 | M17: 637.0080429 | N17: 637.0080429
C18: ='Efficiency Levels'!C16&" - "&'Efficiency Levels'!D16 -> EL4 - 3.81 | D18: ='Efficiency Levels'!D16 -> 3.81 | E18: ='Data by Building Type'!$G$20 -> 7.64 | F18: 2.005249344 | H18: 311 | I18: 311 | J18: 311 | L18: 623.6325459 | M18: 623.6325459 | N18: 623.6325459
C19: ='Efficiency Levels'!C17&" - "&'Efficiency Levels'!D17 -> EL5 - 4.08 | D19: ='Efficiency Levels'!D17 -> 4.08 | E19: ='Data by Building Type'!$G$20 -> 7.64 | F19: 1.87254902 | H19: 311 | I19: 311 | J19: 311 | L19: 582.3627451 | M19: 582.3627451 | N19: 582.3627451
C20: ='Efficiency Levels'!C18&" - "&'Efficiency Levels'!D18 -> EL6 - 5.42 | D20: ='Efficiency Levels'!D18 -> 5.42 | E20: ='Data by Building Type'!$G$20 -> 7.64 | F20: 1.409594096 | H20: 311 | I20: 311 | J20: 311 | L20: 438.3837638 | M20: 438.3837638 | N20: 438.3837638

Sheet UEC-SF
C2: Weighted Average Annual UEC - Single Family
C4: NAVIGATION
C6: COMMENTS
C9: Market UEC (Shipment Weighted Average)
D10: 1981 | E10: 1982 | F10: 1983 | G10: 1984 | H10: 1985 | I10: 1986 | J10: 1987 | K10: 1988 | L10: 1989 | M10: 1990 | N10: 1991 | O10: 1992 | P10: 1993 | Q10: 1994 | R10: 1995 | S10: 1996 | T10: 1997 | U10: 1998 | V10: 1999 | W10: 2000 | X10: 2001 | Y10: 2002 | Z10: 2003 | AA10: 2004 | AB10: 2005 | AC10: 2006 | AD10: 2007 | AE10: 2008 | AF10: 2009 | AG10: 2010 | AH10: 2011 | AI10: 2012 | AJ10: 2013 | AK10: 2014 | AL10: 2015 | AM10: 2016 | AN10: 2017 | AO10: 2018 | AP10: 2019 | AQ10: 2020 | AR10: 2021 | AS10: 2022 | AT10: 2023 | AU10: 2024 | AV10: 2025 | AW10: 2026 | AX10: 2027 | AY10: 2028 | AZ10: 2029 | BA10: 2030 | BB10: 2031 | BC10: 2032 | BD10: 2033 | BE10: 2034
C11: PRE-Case UEC | D11: ='Data by Building Type'!$D$27 -> 624.2 | E11: ='Data by Building Type'!$D$27 -> 624.2 | F11: ='Data by Building Type'!$D$27 -> 624.2 | G11: ='Data by Building Type'!$D$27 -> 624.2 | H11: ='Data by Building Type'!$D$27 -> 624.2 | I11: ='Data by Building Type'!$D$27 -> 624.2 | J11: ='Data by Building Type'!$D$27 -> 624.2 | K11: ='Data by Building Type'!$D$27 -> 624.2 | L11: ='Data by Building Type'!$D$27 -> 624.2 | M11: ='Data by Building Type'!$D$27 -> 624.2 | N11: ='Data by Building Type'!$D$27 -> 624.2 | O11: ='Data by Building Type'!$D$27 -> 624.2 | P11: ='Data by Building Type'!$D$27 -> 624.2 | Q11: ='Data by Building Type'!$D$27 -> 624.2 | R11: ='Data by Building Type'!$D$28 -> 721.7 | S11: ='Data by Building Type'!$D$28 -> 721.7 | T11: ='Data by Building Type'!$D$28 -> 721.7 | U11: ='Data by Building Type'!$D$28 -> 721.7 | V11: ='Data by Building Type'!$D$28 -> 721.7 | W11: ='Data by Building Type'!$D$29 -> 775.2 | X11: ='Data by Building Type'!$D$29 -> 775.2 | Y11: ='Data by Building Type'!$D$29 -> 775.2 | Z11: ='Data by Building Type'!$D$29 -> 775.2 | AA11: ='Data by Building Type'!$D$29 -> 775.2 | AB11: ='Data by Building Type'!$D$30 -> 832.8 | AC11: ='Data by Building Type'!$D$30 -> 832.8 | AD11: ='Data by Building Type'!$D$30 -> 832.8 | AE11: ='Data by Building Type'!$D$30 -> 832.8 | AF11: ='Data by Building Type'!$D$30 -> 832.8 | AG11: ='Data by Building Type'!$D$31 -> 635.5 | AH11: ='Data by Building Type'!$D$31 -> 635.5 | AI11: ='Data by Building Type'!$D$31 -> 635.5 | AJ11: ='Data by Building Type'!$D$31 -> 635.5 | AK11: =SUMPRODUCT('UEC Development'!$L$14:$L$20,'Efficiency Dist - SF'!AO13:AO19) -> 653.5631438 | AL11: =SUMPRODUCT('UEC Development'!$L$14:$L$20,'Efficiency Dist - SF'!AP13:AP19) -> 653.5631438 | AM11: =SUMPRODUCT('UEC Development'!$L$14:$L$20,'Efficiency Dist - SF'!AQ13:AQ19) -> 653.5631438 | AN11: =SUMPRODUCT('UEC Development'!$L$14:$L$20,'Efficiency Dist - SF'!AR13:AR19) -> 653.5631438 | AO11: =SUMPRODUCT('UEC Development'!$L$14:$L$20,'Efficiency Dist - SF'!AS13:AS19) -> 653.5631438 | AP11: =SUMPRODUCT('UEC Development'!$L$14:$L$20,'Efficiency Dist - SF'!AT13:AT19) -> 653.5631438 | AQ11: =SUMPRODUCT('UEC Development'!$L$14:$L$20,'Efficiency Dist - SF'!AU13:AU19) -> 653.5631438 | AR11: =SUMPRODUCT('UEC Development'!$L$14:$L$20,'Efficiency Dist - SF'!AV13:AV19) -> 653.5631438 | AS11: =SUMPRODUCT('UEC Development'!$L$14:$L$20,'Efficiency Dist - SF'!AW13:AW19) -> 653.5631438 | AT11: =SUMPRODUCT('UEC Development'!$L$14:$L$20,'Efficiency Dist - SF'!AX13:AX19) -> 653.5631438 | AU11: =SUMPRODUCT('UEC Development'!$L$14:$L$20,'Efficiency Dist - SF'!AY13:AY19) -> 653.5631438 | AV11: =SUMPRODUCT('UEC Development'!$L$14:$L$20,'Efficiency Dist - SF'!AZ13:AZ19) -> 653.5631438 | AW11: =SUMPRODUCT('UEC Development'!$L$14:$L$20,'Efficiency Dist - SF'!BA13:BA19) -> 653.5631438 | AX11: =SUMPRODUCT('UEC Development'!$L$14:$L$20,'Efficiency Dist - SF'!BB13:BB19) -> 653.5631438 | AY11: =SUMPRODUCT('UEC Development'!$L$14:$L$20,'Efficiency Dist - SF'!BC13:BC19) -> 653.5631438 | AZ11: =SUMPRODUCT('UEC Development'!$L$14:$L$20,'Efficiency Dist - SF'!BD13:BD19) -> 653.5631438 | BA11: =SUMPRODUCT('UEC Development'!$L$14:$L$20,'Efficiency Dist - SF'!BE13:BE19) -> 653.5631438 | BB11: =SUMPRODUCT('UEC Development'!$L$14:$L$20,'Efficiency Dist - SF'!BF13:BF19) -> 653.5631438 | BC11: =SUMPRODUCT('UEC Development'!$L$14:$L$20,'Efficiency Dist - SF'!BG13:BG19) -> 653.5631438 | BD11: =SUMPRODUCT('UEC Development'!$L$14:$L$20,'Efficiency Dist - SF'!BH13:BH19) -> 653.5631438 | BE11: =SUMPRODUCT('UEC Development'!$L$14:$L$20,'Efficiency Dist - SF'!BI13:BI19) -> 653.5631438
C12: POST-Case UEC | D12: ='Data by Building Type'!$D$27 -> 624.2 | E12: ='Data by Building Type'!$D$27 -> 624.2 | F12: ='Data by Building Type'!$D$27 -> 624.2 | G12: ='Data by Building Type'!$D$27 -> 624.2 | H12: ='Data by Building Type'!$D$27 -> 624.2 | I12: ='Data by Building Type'!$D$27 -> 624.2 | J12: ='Data by Building Type'!$D$27 -> 624.2 | K12: ='Data by Building Type'!$D$27 -> 624.2 | L12: ='Data by Building Type'!$D$27 -> 624.2 | M12: ='Data by Building Type'!$D$27 -> 624.2 | N12: ='Data by Building Type'!$D$27 -> 624.2 | O12: ='Data by Building Type'!$D$27 -> 624.2 | P12: ='Data by Building Type'!$D$27 -> 624.2 | Q12: ='Data by Building Type'!$D$27 -> 624.2 | R12: ='Data by Building Type'!$D$28 -> 721.7 | S12: ='Data by Building Type'!$D$28 -> 721.7 | T12: ='Data by Building Type'!$D$28 -> 721.7 | U12: ='Data by Building Type'!$D$28 -> 721.7 | V12: ='Data by Building Type'!$D$28 -> 721.7 | W12: ='Data by Building Type'!$D$29 -> 775.2 | X12: ='Data by Building Type'!$D$29 -> 775.2 | Y12: ='Data by Building Type'!$D$29 -> 775.2 | Z12: ='Data by Building Type'!$D$29 -> 775.2 | AA12: ='Data by Building Type'!$D$29 -> 775.2 | AB12: ='Data by Building Type'!$D$30 -> 832.8 | AC12: ='Data by Building Type'!$D$30 -> 832.8 | AD12: ='Data by Building Type'!$D$30 -> 832.8 | AE12: ='Data by Building Type'!$D$30 -> 832.8 | AF12: ='Data by Building Type'!$D$30 -> 832.8 | AG12: ='Data by Building Type'!$D$31 -> 635.5 | AH12: ='Data by Building Type'!$D$31 -> 635.5 | AI12: ='Data by Building Type'!$D$31 -> 635.5 | AJ12: ='Data by Building Type'!$D$31 -> 635.5 | AK12: =SUMPRODUCT('UEC Development'!$L$14:$L$20,'Efficiency Dist - SF'!AO24:AO30) -> 653.5631438 | AL12: =SUMPRODUCT('UEC Development'!$L$14:$L$20,'Efficiency Dist - SF'!AP24:AP30) -> 635.6456846 | AM12: =SUMPRODUCT('UEC Development'!$L$14:$L$20,'Efficiency Dist - SF'!AQ24:AQ30) -> 635.6456846 | AN12: =SUMPRODUCT('UEC Development'!$L$14:$L$20,'Efficiency Dist - SF'!AR24:AR30) -> 635.6456846 | AO12: =SUMPRODUCT('UEC Development'!$L$14:$L$20,'Efficiency Dist - SF'!AS24:AS30) -> 635.6456846 | AP12: =SUMPRODUCT('UEC Development'!$L$14:$L$20,'Efficiency Dist - SF'!AT24:AT30) -> 635.6456846 | AQ12: =SUMPRODUCT('UEC Development'!$L$14:$L$20,'Efficiency Dist - SF'!AU24:AU30) -> 635.6456846 | AR12: =SUMPRODUCT('UEC Development'!$L$14:$L$20,'Efficiency Dist - SF'!AV24:AV30) -> 635.6456846 | AS12: =SUMPRODUCT('UEC Development'!$L$14:$L$20,'Efficiency Dist - SF'!AW24:AW30) -> 635.6456846 | AT12: =SUMPRODUCT('UEC Development'!$L$14:$L$20,'Efficiency Dist - SF'!AX24:AX30) -> 635.6456846 | AU12: =SUMPRODUCT('UEC Development'!$L$14:$L$20,'Efficiency Dist - SF'!AY24:AY30) -> 635.6456846 | AV12: =SUMPRODUCT('UEC Development'!$L$14:$L$20,'Efficiency Dist - SF'!AZ24:AZ30) -> 635.6456846 | AW12: =SUMPRODUCT('UEC Development'!$L$14:$L$20,'Efficiency Dist - SF'!BA24:BA30) -> 635.6456846 | AX12: =SUMPRODUCT('UEC Development'!$L$14:$L$20,'Efficiency Dist - SF'!BB24:BB30) -> 635.6456846 | AY12: =SUMPRODUCT('UEC Development'!$L$14:$L$20,'Efficiency Dist - SF'!BC24:BC30) -> 635.6456846 | AZ12: =SUMPRODUCT('UEC Development'!$L$14:$L$20,'Efficiency Dist - SF'!BD24:BD30) -> 635.6456846 | BA12: =SUMPRODUCT('UEC Development'!$L$14:$L$20,'Efficiency Dist - SF'!BE24:BE30) -> 635.6456846 | BB12: =SUMPRODUCT('UEC Development'!$L$14:$L$20,'Efficiency Dist - SF'!BF24:BF30) -> 635.6456846 | BC12: =SUMPRODUCT('UEC Development'!$L$14:$L$20,'Efficiency Dist - SF'!BG24:BG30) -> 635.6456846 | BD12: =SUMPRODUCT('UEC Development'!$L$14:$L$20,'Efficiency Dist - SF'!BH24:BH30) -> 635.6456846 | BE12: =SUMPRODUCT('UEC Development'!$L$14:$L$20,'Efficiency Dist - SF'!BI24:BI30) -> 635.6456846
C14: Installed UEC (Vintage Weighted Average)
D15: 1981 | E15: 1982 | F15: 1983 | G15: 1984 | H15: 1985 | I15: 1986 | J15: 1987 | K15: 1988 | L15: 1989 | M15: 1990 | N15: 1991 | O15: 1992 | P15: 1993 | Q15: 1994 | R15: 1995 | S15: 1996 | T15: 1997 | U15: 1998 | V15: 1999 | W15: 2000 | X15: 2001 | Y15: 2002 | Z15: 2003 | AA15: 2004 | AB15: 2005 | AC15: 2006 | AD15: 2007 | AE15: 2008 | AF15: 2009 | AG15: 2010 | AH15: 2011 | AI15: 2012 | AJ15: 2013 | AK15: 2014 | AL15: 2015 | AM15: 2016 | AN15: 2017 | AO15: 2018 | AP15: 2019 | AQ15: 2020 | AR15: 2021 | AS15: 2022 | AT15: 2023 | AU15: 2024 | AV15: 2025 | AW15: 2026 | AX15: 2027 | AY15: 2028 | AZ15: 2029 | BA15: 2030 | BB15: 2031 | BC15: 2032 | BD15: 2033 | BE15: 2034
C16: PRE-Case UEC | D16: =IF(D$15-$D$15+2<=LIFETIME_SF,D11, SUMPRODUCT(OFFSET(D11,0,(-1*LIFETIME_SF)+1,1,LIFETIME_SF),OFFSET('Shipments and Stock - SF'!E$14,0,(-1*LIFETIME_SF)+1,1,LIFETIME_SF))/ SUM(OFFSET('Shipments and Stock - SF'!E$14,0,(-1*LIFETIME_SF)+1,1,LIFETIME_SF))) -> 624.2 | E16: =IF(E$15-$D$15+2<=LIFETIME_SF,E11, SUMPRODUCT(OFFSET(E11,0,(-1*LIFETIME_SF)+1,1,LIFETIME_SF),OFFSET('Shipments and Stock - SF'!F$14,0,(-1*LIFETIME_SF)+1,1,LIFETIME_SF))/ SUM(OFFSET('Shipments and Stock - SF'!F$14,0,(-1*LIFETIME_SF)+1,1,LIFETIME_SF))) -> 624.2 | F16: =IF(F$15-$D$15+2<=LIFETIME_SF,F11, SUMPRODUCT(OFFSET(F11,0,(-1*LIFETIME_SF)+1,1,LIFETIME_SF),OFFSET('Shipments and Stock - SF'!G$14,0,(-1*LIFETIME_SF)+1,1,LIFETIME_SF))/ SUM(OFFSET('Shipments and Stock - SF'!G$14,0,(-1*LIFETIME_SF)+1,1,LIFETIME_SF))) -> 624.2 | G16: =IF(G$15-$D$15+2<=LIFETIME_SF,G11, SUMPRODUCT(OFFSET(G11,0,(-1*LIFETIME_SF)+1,1,LIFETIME_SF),OFFSET('Shipments and Stock - SF'!H$14,0,(-1*LIFETIME_SF)+1,1,LIFETIME_SF))/ SUM(OFFSET('Shipments and Stock - SF'!H$14,0,(-1*LIFETIME_SF)+1,1,LIFETIME_SF))) -> 624.2 | H16: =IF(H$15-$D$15+2<=LIFETIME_SF,H11, SUMPRODUCT(OFFSET(H11,0,(-1*LIFETIME_SF)+1,1,LIFETIME_SF),OFFSET('Shipments and Stock - SF'!I$14,0,(-1*LIFETIME_SF)+1,1,LIFETIME_SF))/ SUM(OFFSET('Shipments and Stock - SF'!I$14,0,(-1*LIFETIME_SF)+1,1,LIFETIME_SF))) -> 624.2 | I16: =IF(I$15-$D$15+2<=LIFETIME_SF,I11, SUMPRODUCT(OFFSET(I11,0,(-1*LIFETIME_SF)+1,1,LIFETIME_SF),OFFSET('Shipments and Stock - SF'!J$14,0,(-1*LIFETIME_SF)+1,1,LIFETIME_SF))/ SUM(OFFSET('Shipments and Stock - SF'!J$14,0,(-1*LIFETIME_SF)+1,1,LIFETIME_SF))) -> 624.2 | J16: =IF(J$15-$D$15+2<=LIFETIME_SF,J11, SUMPRODUCT(OFFSET(J11,0,(-1*LIFETIME_SF)+1,1,LIFETIME_SF),OFFSET('Shipments and Stock - SF'!K$14,0,(-1*LIFETIME_SF)+1,1,LIFETIME_SF))/ SUM(OFFSET('Shipments and Stock - SF'!K$14,0,(-1*LIFETIME_SF)+1,1,LIFETIME_SF))) -> 624.2 | K16: =IF(K$15-$D$15+2<=LIFETIME_SF,K11, SUMPRODUCT(OFFSET(K11,0,(-1*LIFETIME_SF)+1,1,LIFETIME_SF),OFFSET('Shipments and Stock - SF'!L$14,0,(-1*LIFETIME_SF)+1,1,LIFETIME_SF))/ SUM(OFFSET('Shipments and Stock - SF'!L$14,0,(-1*LIFETIME_SF)+1,1,LIFETIME_SF))) -> 624.2 | L16: =IF(L$15-$D$15+2<=LIFETIME_SF,L11, SUMPRODUCT(OFFSET(L11,0,(-1*LIFETIME_SF)+1,1,LIFETIME_SF),OFFSET('Shipments and Stock - SF'!M$14,0,(-1*LIFETIME_SF)+1,1,LIFETIME_SF))/ SUM(OFFSET('Shipments and Stock - SF'!M$14,0,(-1*LIFETIME_SF)+1,1,LIFETIME_SF))) -> 624.2 | M16: =IF(M$15-$D$15+2<=LIFETIME_SF,M11, SUMPRODUCT(OFFSET(M11,0,(-1*LIFETIME_SF)+1,1,LIFETIME_SF),OFFSET('Shipments and Stock - SF'!N$14,0,(-1*LIFETIME_SF)+1,1,LIFETIME_SF))/ SUM(OFFSET('Shipments and Stock - SF'!N$14,0,(-1*LIFETIME_SF)+1,1,LIFETIME_SF))) -> 624.2 | N16: =IF(N$15-$D$15+2<=LIFETIME_SF,N11, SUMPRODUCT(OFFSET(N11,0,(-1*LIFETIME_SF)+1,1,LIFETIME_SF),OFFSET('Shipments and Stock - SF'!O$14,0,(-1*LIFETIME_SF)+1,1,LIFETIME_SF))/ SUM(OFFSET('Shipments and Stock - SF'!O$14,0,(-1*LIFETIME_SF)+1,1,LIFETIME_SF))) -> 624.2 | O16: =IF(O$15-$D$15+2<=LIFETIME_SF,O11, SUMPRODUCT(OFFSET(O11,0,(-1*LIFETIME_SF)+1,1,LIFETIME_SF),OFFSET('Shipments and Stock - SF'!P$14,0,(-1*LIFETIME_SF)+1,1,LIFETIME_SF))/ SUM(OFFSET('Shipments and Stock - SF'!P$14,0,(-1*LIFETIME_SF)+1,1,LIFETIME_SF))) -> 624.2 | P16: =IF(P$15-$D$15+2<=LIFETIME_SF,P11, SUMPRODUCT(OFFSET(P11,0,(-1*LIFETIME_SF)+1,1,LIFETIME_SF),OFFSET('Shipments and Stock - SF'!Q$14,0,(-1*LIFETIME_SF)+1,1,LIFETIME_SF))/ SUM(OFFSET('Shipments and Stock - SF'!Q$14,0,(-1*LIFETIME_SF)+1,1,LIFETIME_SF))) -> 624.2 | Q16: =IF(Q$15-$D$15+2<=LIFETIME_SF,Q11, SUMPRODUCT(OFFSET(Q11,0,(-1*LIFETIME_SF)+1,1,LIFETIME_SF),OFFSET('Shipments and Stock - SF'!R$14,0,(-1*LIFETIME_SF)+1,1,LIFETIME_SF))/ SUM(OFFSET('Shipments and Stock - SF'!R$14,0,(-1*LIFETIME_SF)+1,1,LIFETIME_SF))) -> 624.2 | R16: =IF(R$15-$D$15+2<=LIFETIME_SF,R11, SUMPRODUCT(OFFSET(R11,0,(-1*LIFETIME_SF)+1,1,LIFETIME_SF),OFFSET('Shipments and Stock - SF'!S$14,0,(-1*LIFETIME_SF)+1,1,LIFETIME_SF))/ SUM(OFFSET('Shipments and Stock - SF'!S$14,0,(-1*LIFETIME_SF)+1,1,LIFETIME_SF))) -> 721.7 | S16: =IF(S$15-$D$15+2<=LIFETIME_SF,S11, SUMPRODUCT(OFFSET(S11,0,(-1*LIFETIME_SF)+1,1,LIFETIME_SF),OFFSET('Shipments and Stock - SF'!T$14,0,(-1*LIFETIME_SF)+1,1,LIFETIME_SF))/ SUM(OFFSET('Shipments and Stock - SF'!T$14,0,(-1*LIFETIME_SF)+1,1,LIFETIME_SF))) -> 637.2241016 | T16: =IF(T$15-$D$15+2<=LIFETIME_SF,T11, SUMPRODUCT(OFFSET(T11,0,(-1*LIFETIME_SF)+1,1,LIFETIME_SF),OFFSET('Shipments and Stock - SF'!U$14,0,(-1*LIFETIME_SF)+1,1,LIFETIME_SF))/ SUM(OFFSET('Shipments and Stock - SF'!U$14,0,(-1*LIFETIME_SF)+1,1,LIFETIME_SF))) -> 644.3706131 | U16: =IF(U$15-$D$15+2<=LIFETIME_SF,U11, SUMPRODUCT(OFFSET(U11,0,(-1*LIFETIME_SF)+1,1,LIFETIME_SF),OFFSET('Shipments and Stock - SF'!V$14,0,(-1*LIFETIME_SF)+1,1,LIFETIME_SF))/ SUM(OFFSET('Shipments and Stock - SF'!V$14,0,(-1*LIFETIME_SF)+1,1,LIFETIME_SF))) -> 651.0238347 | V16: =IF(V$15-$D$15+2<=LIFETIME_SF,V11, SUMPRODUCT(OFFSET(V11,0,(-1*LIFETIME_SF)+1,1,LIFETIME_SF),OFFSET('Shipments and Stock - SF'!W$14,0,(-1*LIFETIME_SF)+1,1,LIFETIME_SF))/ SUM(OFFSET('Shipments and Stock - SF'!W$14,0,(-1*LIFETIME_SF)+1,1,LIFETIME_SF))) -> 657.7685084 | W16: =IF(W$15-$D$15+2<=LIFETIME_SF,W11, SUMPRODUCT(OFFSET(W11,0,(-1*LIFETIME_SF)+1,1,LIFETIME_SF),OFFSET('Shipments and Stock - SF'!X$14,0,(-1*LIFETIME_SF)+1,1,LIFETIME_SF))/ SUM(OFFSET('Shipments and Stock - SF'!X$14,0,(-1*LIFETIME_SF)+1,1,LIFETIME_SF))) -> 667.9148197 | X16: =IF(X$15-$D$15+2<=LIFETIME_SF,X11, SUMPRODUCT(OFFSET(X11,0,(-1*LIFETIME_SF)+1,1,LIFETIME_SF),OFFSET('Shipments and Stock - SF'!Y$14,0,(-1*LIFETIME_SF)+1,1,LIFETIME_SF))/ SUM(OFFSET('Shipments and Stock - SF'!Y$14,0,(-1*LIFETIME_SF)+1,1,LIFETIME_SF))) -> 677.7222743 | Y16: =IF(Y$15-$D$15+2<=LIFETIME_SF,Y11, SUMPRODUCT(OFFSET(Y11,0,(-1*LIFETIME_SF)+1,1,LIFETIME_SF),OFFSET('Shipments and Stock - SF'!Z$14,0,(-1*LIFETIME_SF)+1,1,LIFETIME_SF))/ SUM(OFFSET('Shipments and Stock - SF'!Z$14,0,(-1*LIFETIME_SF)+1,1,LIFETIME_SF))) -> 687.5032138 | Z16: =IF(Z$15-$D$15+2<=LIFETIME_SF,Z11, SUMPRODUCT(OFFSET(Z11,0,(-1*LIFETIME_SF)+1,1,LIFETIME_SF),OFFSET('Shipments and Stock - SF'!AA$14,0,(-1*LIFETIME_SF)+1,1,LIFETIME_SF))/ SUM(OFFSET('Shipments and Stock - SF'!AA$14,0,(-1*LIFETIME_SF)+1,1,LIFETIME_SF))) -> 697.1078504 | AA16: =IF(AA$15-$D$15+2<=LIFETIME_SF,AA11, SUMPRODUCT(OFFSET(AA11,0,(-1*LIFETIME_SF)+1,1,LIFETIME_SF),OFFSET('Shipments and Stock - SF'!AB$14,0,(-1*LIFETIME_SF)+1,1,LIFETIME_SF))/ SUM(OFFSET('Shipments and Stock - SF'!AB$14,0,(-1*LIFETIME_SF)+1,1,LIFETIME_SF))) -> 706.5634173 | AB16: =IF(AB$15-$D$15+2<=LIFETIME_SF,AB11, SUMPRODUCT(OFFSET(AB11,0,(-1*LIFETIME_SF)+1,1,LIFETIME_SF),OFFSET('Shipments and Stock - SF'!AC$14,0,(-1*LIFETIME_SF)+1,1,LIFETIME_SF))/ SUM(OFFSET('Shipments and Stock - SF'!AC$14,0,(-1*LIFETIME_SF)+1,1,LIFETIME_SF))) -> 720.4232283 | AC16: =IF(AC$15-$D$15+2<=LIFETIME_SF,AC11, SUMPRODUCT(OFFSET(AC11,0,(-1*LIFETIME_SF)+1,1,LIFETIME_SF),OFFSET('Shipments and Stock - SF'!AD$14,0,(-1*LIFETIME_SF)+1,1,LIFETIME_SF))/ SUM(OFFSET('Shipments and Stock - SF'!AD$14,0,(-1*LIFETIME_SF)+1,1,LIFETIME_SF))) -> 733.8308694 | AD16: =IF(AD$15-$D$15+2<=LIFETIME_SF,AD11, SUMPRODUCT(OFFSET(AD11,0,(-1*LIFETIME_SF)+1,1,LIFETIME_SF),OFFSET('Shipments and Stock - SF'!AE$14,0,(-1*LIFETIME_SF)+1,1,LIFETIME_SF))/ SUM(OFFSET('Shipments and Stock - SF'!AE$14,0,(-1*LIFETIME_SF)+1,1,LIFETIME_SF))) -> 746.0317138 | AE16: =IF(AE$15-$D$15+2<=LIFETIME_SF,AE11, SUMPRODUCT(OFFSET(AE11,0,(-1*LIFETIME_SF)+1,1,LIFETIME_SF),OFFSET('Shipments and Stock - SF'!AF$14,0,(-1*LIFETIME_SF)+1,1,LIFETIME_SF))/ SUM(OFFSET('Shipments and Stock - SF'!AF$14,0,(-1*LIFETIME_SF)+1,1,LIFETIME_SF))) -> 758.0308396 | AF16: =IF(AF$15-$D$15+2<=LIFETIME_SF,AF11, SUMPRODUCT(OFFSET(AF11,0,(-1*LIFETIME_SF)+1,1,LIFETIME_SF),OFFSET('Shipments and Stock - SF'!AG$14,0,(-1*LIFETIME_SF)+1,1,LIFETIME_SF))/ SUM(OFFSET('Shipments and Stock - SF'!AG$14,0,(-1*LIFETIME_SF)+1,1,LIFETIME_SF))) -> 769.9136895 | AG16: =IF(AG$15-$D$15+2<=LIFETIME_SF,AG11, SUMPRODUCT(OFFSET(AG11,0,(-1*LIFETIME_SF)+1,1,LIFETIME_SF),OFFSET('Shipments and Stock - SF'!AH$14,0,(-1*LIFETIME_SF)+1,1,LIFETIME_SF))/ SUM(OFFSET('Shipments and Stock - SF'!AH$14,0,(-1*LIFETIME_SF)+1,1,LIFETIME_SF))) -> 769.2628131 | AH16: =IF(AH$15-$D$15+2<=LIFETIME_SF,AH11, SUMPRODUCT(OFFSET(AH11,0,(-1*LIFETIME_SF)+1,1,LIFETIME_SF),OFFSET('Shipments and Stock - SF'!AI$14,0,(-1*LIFETIME_SF)+1,1,LIFETIME_SF))/ SUM(OFFSET('Shipments and Stock - SF'!AI$14,0,(-1*LIFETIME_SF)+1,1,LIFETIME_SF))) -> 762.9392075 | AI16: =IF(AI$15-$D$15+2<=LIFETIME_SF,AI11, SUMPRODUCT(OFFSET(AI11,0,(-1*LIFETIME_SF)+1,1,LIFETIME_SF),OFFSET('Shipments and Stock - SF'!AJ$14,0,(-1*LIFETIME_SF)+1,1,LIFETIME_SF))/ SUM(OFFSET('Shipments and Stock - SF'!AJ$14,0,(-1*LIFETIME_SF)+1,1,LIFETIME_SF))) -> 756.3688071 | AJ16: =IF(AJ$15-$D$15+2<=LIFETIME_SF,AJ11, SUMPRODUCT(OFFSET(AJ11,0,(-1*LIFETIME_SF)+1,1,LIFETIME_SF),OFFSET('Shipments and Stock - SF'!AK$14,0,(-1*LIFETIME_SF)+1,1,LIFETIME_SF))/ SUM(OFFSET('Shipments and Stock - SF'!AK$14,0,(-1*LIFETIME_SF)+1,1,LIFETIME_SF))) -> 749.3081548 | AK16: =IF(AK$15-$D$15+2<=LIFETIME_SF,AK11, SUMPRODUCT(OFFSET(AK11,0,(-1*LIFETIME_SF)+1,1,LIFETIME_SF),OFFSET('Shipments and Stock - SF'!AL$14,0,(-1*LIFETIME_SF)+1,1,LIFETIME_SF))/ SUM(OFFSET('Shipments and Stock - SF'!AL$14,0,(-1*LIFETIME_SF)+1,1,LIFETIME_SF))) -> 743.9496311 | AL16: =IF(AL$15-$D$15+2<=LIFETIME_SF,AL11, SUMPRODUCT(OFFSET(AL11,0,(-1*LIFETIME_SF)+1,1,LIFETIME_SF),OFFSET('Shipments and Stock - SF'!AM$14,0,(-1*LIFETIME_SF)+1,1,LIFETIME_SF))/ SUM(OFFSET('Shipments and Stock - SF'!AM$14,0,(-1*LIFETIME_SF)+1,1,LIFETIME_SF))) -> 738.5827633 | AM16: =IF(AM$15-$D$15+2<=LIFETIME_SF,AM11, SUMPRODUCT(OFFSET(AM11,0,(-1*LIFETIME_SF)+1,1,LIFETIME_SF),OFFSET('Shipments and Stock - SF'!AN$14,0,(-1*LIFETIME_SF)+1,1,LIFETIME_SF))/ SUM(OFFSET('Shipments and Stock - SF'!AN$14,0,(-1*LIFETIME_SF)+1,1,LIFETIME_SF))) -> 730.5180029 | AN16: =IF(AN$15-$D$15+2<=LIFETIME_SF,AN11, SUMPRODUCT(OFFSET(AN11,0,(-1*LIFETIME_SF)+1,1,LIFETIME_SF),OFFSET('Shipments and Stock - SF'!AO$14,0,(-1*LIFETIME_SF)+1,1,LIFETIME_SF))/ SUM(OFFSET('Shipments and Stock - SF'!AO$14,0,(-1*LIFETIME_SF)+1,1,LIFETIME_SF))) -> 722.7251982 | AO16: =IF(AO$15-$D$15+2<=LIFETIME_SF,AO11, SUMPRODUCT(OFFSET(AO11,0,(-1*LIFETIME_SF)+1,1,LIFETIME_SF),OFFSET('Shipments and Stock - SF'!AP$14,0,(-1*LIFETIME_SF)+1,1,LIFETIME_SF))/ SUM(OFFSET('Shipments and Stock - SF'!AP$14,0,(-1*LIFETIME_SF)+1,1,LIFETIME_SF))) -> 714.9291381 | AP16: =IF(AP$15-$D$15+2<=LIFETIME_SF,AP11, SUMPRODUCT(OFFSET(AP11,0,(-1*LIFETIME_SF)+1,1,LIFETIME_SF),OFFSET('Shipments and Stock - SF'!AQ$14,0,(-1*LIFETIME_SF)+1,1,LIFETIME_SF))/ SUM(OFFSET('Shipments and Stock - SF'!AQ$14,0,(-1*LIFETIME_SF)+1,1,LIFETIME_SF))) -> 707.1874265 | AQ16: =IF(AQ$15-$D$15+2<=LIFETIME_SF,AQ11, SUMPRODUCT(OFFSET(AQ11,0,(-1*LIFETIME_SF)+1,1,LIFETIME_SF),OFFSET('Shipments and Stock - SF'!AR$14,0,(-1*LIFETIME_SF)+1,1,LIFETIME_SF))/ SUM(OFFSET('Shipments and Stock - SF'!AR$14,0,(-1*LIFETIME_SF)+1,1,LIFETIME_SF))) -> 699.4890265 | AR16: =IF(AR$15-$D$15+2<=LIFETIME_SF,AR11, SUMPRODUCT(OFFSET(AR11,0,(-1*LIFETIME_SF)+1,1,LIFETIME_SF),OFFSET('Shipments and Stock - SF'!AS$14,0,(-1*LIFETIME_SF)+1,1,LIFETIME_SF))/ SUM(OFFSET('Shipments and Stock - SF'!AS$14,0,(-1*LIFETIME_SF)+1,1,LIFETIME_SF))) -> 688.1252635 | AS16: =IF(AS$15-$D$15+2<=LIFETIME_SF,AS11, SUMPRODUCT(OFFSET(AS11,0,(-1*LIFETIME_SF)+1,1,LIFETIME_SF),OFFSET('Shipments and Stock - SF'!AT$14,0,(-1*LIFETIME_SF)+1,1,LIFETIME_SF))/ SUM(OFFSET('Shipments and Stock - SF'!AT$14,0,(-1*LIFETIME_SF)+1,1,LIFETIME_SF))) -> 677.1452255 | AT16: =IF(AT$15-$D$15+2<=LIFETIME_SF,AT11, SUMPRODUCT(OFFSET(AT11,0,(-1*LIFETIME_SF)+1,1,LIFETIME_SF),OFFSET('Shipments and Stock - SF'!AU$14,0,(-1*LIFETIME_SF)+1,1,LIFETIME_SF))/ SUM(OFFSET('Shipments and Stock - SF'!AU$14,0,(-1*LIFETIME_SF)+1,1,LIFETIME_SF))) -> 667.3281475 | AU16: =IF(AU$15-$D$15+2<=LIFETIME_SF,AU11, SUMPRODUCT(OFFSET(AU11,0,(-1*LIFETIME_SF)+1,1,LIFETIME_SF),OFFSET('Shipments and Stock - SF'!AV$14,0,(-1*LIFETIME_SF)+1,1,LIFETIME_SF))/ SUM(OFFSET('Shipments and Stock - SF'!AV$14,0,(-1*LIFETIME_SF)+1,1,LIFETIME_SF))) -> 658.2057029 | AV16: =IF(AV$15-$D$15+2<=LIFETIME_SF,AV11, SUMPRODUCT(OFFSET(AV11,0,(-1*LIFETIME_SF)+1,1,LIFETIME_SF),OFFSET('Shipments and Stock - SF'!AW$14,0,(-1*LIFETIME_SF)+1,1,LIFETIME_SF))/ SUM(OFFSET('Shipments and Stock - SF'!AW$14,0,(-1*LIFETIME_SF)+1,1,LIFETIME_SF))) -> 649.4495 | AW16: =IF(AW$15-$D$15+2<=LIFETIME_SF,AW11, SUMPRODUCT(OFFSET(AW11,0,(-1*LIFETIME_SF)+1,1,LIFETIME_SF),OFFSET('Shipments and Stock - SF'!AX$14,0,(-1*LIFETIME_SF)+1,1,LIFETIME_SF))/ SUM(OFFSET('Shipments and Stock - SF'!AX$14,0,(-1*LIFETIME_SF)+1,1,LIFETIME_SF))) -> 650.4336667 | AX16: =IF(AX$15-$D$15+2<=LIFETIME_SF,AX11, SUMPRODUCT(OFFSET(AX11,0,(-1*LIFETIME_SF)+1,1,LIFETIME_SF),OFFSET('Shipments and Stock - SF'!AY$14,0,(-1*LIFETIME_SF)+1,1,LIFETIME_SF))/ SUM(OFFSET('Shipments and Stock - SF'!AY$14,0,(-1*LIFETIME_SF)+1,1,LIFETIME_SF))) -> 651.4254276 | AY16: =IF(AY$15-$D$15+2<=LIFETIME_SF,AY11, SUMPRODUCT(OFFSET(AY11,0,(-1*LIFETIME_SF)+1,1,LIFETIME_SF),OFFSET('Shipments and Stock - SF'!AZ$14,0,(-1*LIFETIME_SF)+1,1,LIFETIME_SF))/ SUM(OFFSET('Shipments and Stock - SF'!AZ$14,0,(-1*LIFETIME_SF)+1,1,LIFETIME_SF))) -> 652.44687 | AZ16: =IF(AZ$15-$D$15+2<=LIFETIME_SF,AZ11, SUMPRODUCT(OFFSET(AZ11,0,(-1*LIFETIME_SF)+1,1,LIFETIME_SF),OFFSET('Shipments and Stock - SF'!BA$14,0,(-1*LIFETIME_SF)+1,1,LIFETIME_SF))/ SUM(OFFSET('Shipments and Stock - SF'!BA$14,0,(-1*LIFETIME_SF)+1,1,LIFETIME_SF))) -> 653.5631438 | BA16: =IF(BA$15-$D$15+2<=LIFETIME_SF,BA11, SUMPRODUCT(OFFSET(BA11,0,(-1*LIFETIME_SF)+1,1,LIFETIME_SF),OFFSET('Shipments and Stock - SF'!BB$14,0,(-1*LIFETIME_SF)+1,1,LIFETIME_SF))/ SUM(OFFSET('Shipments and Stock - SF'!BB$14,0,(-1*LIFETIME_SF)+1,1,LIFETIME_SF))) -> 653.5631438 | BB16: =IF(BB$15-$D$15+2<=LIFETIME_SF,BB11, SUMPRODUCT(OFFSET(BB11,0,(-1*LIFETIME_SF)+1,1,LIFETIME_SF),OFFSET('Shipments and Stock - SF'!BC$14,0,(-1*LIFETIME_SF)+1,1,LIFETIME_SF))/ SUM(OFFSET('Shipments and Stock - SF'!BC$14,0,(-1*LIFETIME_SF)+1,1,LIFETIME_SF))) -> 653.5631438 | BC16: =IF(BC$15-$D$15+2<=LIFETIME_SF,BC11, SUMPRODUCT(OFFSET(BC11,0,(-1*LIFETIME_SF)+1,1,LIFETIME_SF),OFFSET('Shipments and Stock - SF'!BD$14,0,(-1*LIFETIME_SF)+1,1,LIFETIME_SF))/ SUM(OFFSET('Shipments and Stock - SF'!BD$14,0,(-1*LIFETIME_SF)+1,1,LIFETIME_SF))) -> 653.5631438 | BD16: =IF(BD$15-$D$15+2<=LIFETIME_SF,BD11, SUMPRODUCT(OFFSET(BD11,0,(-1*LIFETIME_SF)+1,1,LIFETIME_SF),OFFSET('Shipments and Stock - SF'!BE$14,0,(-1*LIFETIME_SF)+1,1,LIFETIME_SF))/ SUM(OFFSET('Shipments and Stock - SF'!BE$14,0,(-1*LIFETIME_SF)+1,1,LIFETIME_SF))) -> 653.5631438 | BE16: =IF(BE$15-$D$15+2<=LIFETIME_SF,BE11, SUMPRODUCT(OFFSET(BE11,0,(-1*LIFETIME_SF)+1,1,LIFETIME_SF),OFFSET('Shipments and Stock - SF'!BF$14,0,(-1*LIFETIME_SF)+1,1,LIFETIME_SF))/ SUM(OFFSET('Shipments and Stock - SF'!BF$14,0,(-1*LIFETIME_SF)+1,1,LIFETIME_SF))) -> 653.5631438
C17: POST-Case UEC | D17: =IF(D$15-$D$15+2<=LIFETIME_SF,D12, SUMPRODUCT(OFFSET(D12,0,(-1*LIFETIME_SF)+1,1,LIFETIME_SF),OFFSET('Shipments and Stock - SF'!E$14,0,(-1*LIFETIME_SF)+1,1,LIFETIME_SF))/ SUM(OFFSET('Shipments and Stock - SF'!E$14,0,(-1*LIFETIME_SF)+1,1,LIFETIME_SF))) -> 624.2 | E17: =IF(E$15-$D$15+2<=LIFETIME_SF,E12, SUMPRODUCT(OFFSET(E12,0,(-1*LIFETIME_SF)+1,1,LIFETIME_SF),OFFSET('Shipments and Stock - SF'!F$14,0,(-1*LIFETIME_SF)+1,1,LIFETIME_SF))/ SUM(OFFSET('Shipments and Stock - SF'!F$14,0,(-1*LIFETIME_SF)+1,1,LIFETIME_SF))) -> 624.2 | F17: =IF(F$15-$D$15+2<=LIFETIME_SF,F12, SUMPRODUCT(OFFSET(F12,0,(-1*LIFETIME_SF)+1,1,LIFETIME_SF),OFFSET('Shipments and Stock - SF'!G$14,0,(-1*LIFETIME_SF)+1,1,LIFETIME_SF))/ SUM(OFFSET('Shipments and Stock - SF'!G$14,0,(-1*LIFETIME_SF)+1,1,LIFETIME_SF))) -> 624.2 | G17: =IF(G$15-$D$15+2<=LIFETIME_SF,G12, SUMPRODUCT(OFFSET(G12,0,(-1*LIFETIME_SF)+1,1,LIFETIME_SF),OFFSET('Shipments and Stock - SF'!H$14,0,(-1*LIFETIME_SF)+1,1,LIFETIME_SF))/ SUM(OFFSET('Shipments and Stock - SF'!H$14,0,(-1*LIFETIME_SF)+1,1,LIFETIME_SF))) -> 624.2 | H17: =IF(H$15-$D$15+2<=LIFETIME_SF,H12, SUMPRODUCT(OFFSET(H12,0,(-1*LIFETIME_SF)+1,1,LIFETIME_SF),OFFSET('Shipments and Stock - SF'!I$14,0,(-1*LIFETIME_SF)+1,1,LIFETIME_SF))/ SUM(OFFSET('Shipments and Stock - SF'!I$14,0,(-1*LIFETIME_SF)+1,1,LIFETIME_SF))) -> 624.2 | I17: =IF(I$15-$D$15+2<=LIFETIME_SF,I12, SUMPRODUCT(OFFSET(I12,0,(-1*LIFETIME_SF)+1,1,LIFETIME_SF),OFFSET('Shipments and Stock - SF'!J$14,0,(-1*LIFETIME_SF)+1,1,LIFETIME_SF))/ SUM(OFFSET('Shipments and Stock - SF'!J$14,0,(-1*LIFETIME_SF)+1,1,LIFETIME_SF))) -> 624.2 | J17: =IF(J$15-$D$15+2<=LIFETIME_SF,J12, SUMPRODUCT(OFFSET(J12,0,(-1*LIFETIME_SF)+1,1,LIFETIME_SF),OFFSET('Shipments and Stock - SF'!K$14,0,(-1*LIFETIME_SF)+1,1,LIFETIME_SF))/ SUM(OFFSET('Shipments and Stock - SF'!K$14,0,(-1*LIFETIME_SF)+1,1,LIFETIME_SF))) -> 624.2 | K17: =IF(K$15-$D$15+2<=LIFETIME_SF,K12, SUMPRODUCT(OFFSET(K12,0,(-1*LIFETIME_SF)+1,1,LIFETIME_SF),OFFSET('Shipments and Stock - SF'!L$14,0,(-1*LIFETIME_SF)+1,1,LIFETIME_SF))/ SUM(OFFSET('Shipments and Stock - SF'!L$14,0,(-1*LIFETIME_SF)+1,1,LIFETIME_SF))) -> 624.2 | L17: =IF(L$15-$D$15+2<=LIFETIME_SF,L12, SUMPRODUCT(OFFSET(L12,0,(-1*LIFETIME_SF)+1,1,LIFETIME_SF),OFFSET('Shipments and Stock - SF'!M$14,0,(-1*LIFETIME_SF)+1,1,LIFETIME_SF))/ SUM(OFFSET('Shipments and Stock - SF'!M$14,0,(-1*LIFETIME_SF)+1,1,LIFETIME_SF))) -> 624.2 | M17: =IF(M$15-$D$15+2<=LIFETIME_SF,M12, SUMPRODUCT(OFFSET(M12,0,(-1*LIFETIME_SF)+1,1,LIFETIME_SF),OFFSET('Shipments and Stock - SF'!N$14,0,(-1*LIFETIME_SF)+1,1,LIFETIME_SF))/ SUM(OFFSET('Shipments and Stock - SF'!N$14,0,(-1*LIFETIME_SF)+1,1,LIFETIME_SF))) -> 624.2 | N17: =IF(N$15-$D$15+2<=LIFETIME_SF,N12, SUMPRODUCT(OFFSET(N12,0,(-1*LIFETIME_SF)+1,1,LIFETIME_SF),OFFSET('Shipments and Stock - SF'!O$14,0,(-1*LIFETIME_SF)+1,1,LIFETIME_SF))/ SUM(OFFSET('Shipments and Stock - SF'!O$14,0,(-1*LIFETIME_SF)+1,1,LIFETIME_SF))) -> 624.2 | O17: =IF(O$15-$D$15+2<=LIFETIME_SF,O12, SUMPRODUCT(OFFSET(O12,0,(-1*LIFETIME_SF)+1,1,LIFETIME_SF),OFFSET('Shipments and Stock - SF'!P$14,0,(-1*LIFETIME_SF)+1,1,LIFETIME_SF))/ SUM(OFFSET('Shipments and Stock - SF'!P$14,0,(-1*LIFETIME_SF)+1,1,LIFETIME_SF))) -> 624.2 | P17: =IF(P$15-$D$15+2<=LIFETIME_SF,P12, SUMPRODUCT(OFFSET(P12,0,(-1*LIFETIME_SF)+1,1,LIFETIME_SF),OFFSET('Shipments and Stock - SF'!Q$14,0,(-1*LIFETIME_SF)+1,1,LIFETIME_SF))/ SUM(OFFSET('Shipments and Stock - SF'!Q$14,0,(-1*LIFETIME_SF)+1,1,LIFETIME_SF))) -> 624.2 | Q17: =IF(Q$15-$D$15+2<=LIFETIME_SF,Q12, SUMPRODUCT(OFFSET(Q12,0,(-1*LIFETIME_SF)+1,1,LIFETIME_SF),OFFSET('Shipments and Stock - SF'!R$14,0,(-1*LIFETIME_SF)+1,1,LIFETIME_SF))/ SUM(OFFSET('Shipments and Stock - SF'!R$14,0,(-1*LIFETIME_SF)+1,1,LIFETIME_SF))) -> 624.2 | R17: =IF(R$15-$D$15+2<=LIFETIME_SF,R12, SUMPRODUCT(OFFSET(R12,0,(-1*LIFETIME_SF)+1,1,LIFETIME_SF),OFFSET('Shipments and Stock - SF'!S$14,0,(-1*LIFETIME_SF)+1,1,LIFETIME_SF))/ SUM(OFFSET('Shipments and Stock - SF'!S$14,0,(-1*LIFETIME_SF)+1,1,LIFETIME_SF))) -> 721.7 | S17: =IF(S$15-$D$15+2<=LIFETIME_SF,S12, SUMPRODUCT(OFFSET(S12,0,(-1*LIFETIME_SF)+1,1,LIFETIME_SF),OFFSET('Shipments and Stock - SF'!T$14,0,(-1*LIFETIME_SF)+1,1,LIFETIME_SF))/ SUM(OFFSET('Shipments and Stock - SF'!T$14,0,(-1*LIFETIME_SF)+1,1,LIFETIME_SF))) -> 637.2241016 | T17: =IF(T$15-$D$15+2<=LIFETIME_SF,T12, SUMPRODUCT(OFFSET(T12,0,(-1*LIFETIME_SF)+1,1,LIFETIME_SF),OFFSET('Shipments and Stock - SF'!U$14,0,(-1*LIFETIME_SF)+1,1,LIFETIME_SF))/ SUM(OFFSET('Shipments and Stock - SF'!U$14,0,(-1*LIFETIME_SF)+1,1,LIFETIME_SF))) -> 644.3706131 | U17: =IF(U$15-$D$15+2<=LIFETIME_SF,U12, SUMPRODUCT(OFFSET(U12,0,(-1*LIFETIME_SF)+1,1,LIFETIME_SF),OFFSET('Shipments and Stock - SF'!V$14,0,(-1*LIFETIME_SF)+1,1,LIFETIME_SF))/ SUM(OFFSET('Shipments and Stock - SF'!V$14,0,(-1*LIFETIME_SF)+1,1,LIFETIME_SF))) -> 651.0238347 | V17: =IF(V$15-$D$15+2<=LIFETIME_SF,V12, SUMPRODUCT(OFFSET(V12,0,(-1*LIFETIME_SF)+1,1,LIFETIME_SF),OFFSET('Shipments and Stock - SF'!W$14,0,(-1*LIFETIME_SF)+1,1,LIFETIME_SF))/ SUM(OFFSET('Shipments and Stock - SF'!W$14,0,(-1*LIFETIME_SF)+1,1,LIFETIME_SF))) -> 657.7685084 | W17: =IF(W$15-$D$15+2<=LIFETIME_SF,W12, SUMPRODUCT(OFFSET(W12,0,(-1*LIFETIME_SF)+1,1,LIFETIME_SF),OFFSET('Shipments and Stock - SF'!X$14,0,(-1*LIFETIME_SF)+1,1,LIFETIME_SF))/ SUM(OFFSET('Shipments and Stock - SF'!X$14,0,(-1*LIFETIME_SF)+1,1,LIFETIME_SF))) -> 667.9148197 | X17: =IF(X$15-$D$15+2<=LIFETIME_SF,X12, SUMPRODUCT(OFFSET(X12,0,(-1*LIFETIME_SF)+1,1,LIFETIME_SF),OFFSET('Shipments and Stock - SF'!Y$14,0,(-1*LIFETIME_SF)+1,1,LIFETIME_SF))/ SUM(OFFSET('Shipments and Stock - SF'!Y$14,0,(-1*LIFETIME_SF)+1,1,LIFETIME_SF))) -> 677.7222743 | Y17: =IF(Y$15-$D$15+2<=LIFETIME_SF,Y12, SUMPRODUCT(OFFSET(Y12,0,(-1*LIFETIME_SF)+1,1,LIFETIME_SF),OFFSET('Shipments and Stock - SF'!Z$14,0,(-1*LIFETIME_SF)+1,1,LIFETIME_SF))/ SUM(OFFSET('Shipments and Stock - SF'!Z$14,0,(-1*LIFETIME_SF)+1,1,LIFETIME_SF))) -> 687.5032138 | Z17: =IF(Z$15-$D$15+2<=LIFETIME_SF,Z12, SUMPRODUCT(OFFSET(Z12,0,(-1*LIFETIME_SF)+1,1,LIFETIME_SF),OFFSET('Shipments and Stock - SF'!AA$14,0,(-1*LIFETIME_SF)+1,1,LIFETIME_SF))/ SUM(OFFSET('Shipments and Stock - SF'!AA$14,0,(-1*LIFETIME_SF)+1,1,LIFETIME_SF))) -> 697.1078504 | AA17: =IF(AA$15-$D$15+2<=LIFETIME_SF,AA12, SUMPRODUCT(OFFSET(AA12,0,(-1*LIFETIME_SF)+1,1,LIFETIME_SF),OFFSET('Shipments and Stock - SF'!AB$14,0,(-1*LIFETIME_SF)+1,1,LIFETIME_SF))/ SUM(OFFSET('Shipments and Stock - SF'!AB$14,0,(-1*LIFETIME_SF)+1,1,LIFETIME_SF))) -> 706.5634173 | AB17: =IF(AB$15-$D$15+2<=LIFETIME_SF,AB12, SUMPRODUCT(OFFSET(AB12,0,(-1*LIFETIME_SF)+1,1,LIFETIME_SF),OFFSET('Shipments and Stock - SF'!AC$14,0,(-1*LIFETIME_SF)+1,1,LIFETIME_SF))/ SUM(OFFSET('Shipments and Stock - SF'!AC$14,0,(-1*LIFETIME_SF)+1,1,LIFETIME_SF))) -> 720.4232283 | AC17: =IF(AC$15-$D$15+2<=LIFETIME_SF,AC12, SUMPRODUCT(OFFSET(AC12,0,(-1*LIFETIME_SF)+1,1,LIFETIME_SF),OFFSET('Shipments and Stock - SF'!AD$14,0,(-1*LIFETIME_SF)+1,1,LIFETIME_SF))/ SUM(OFFSET('Shipments and Stock - SF'!AD$14,0,(-1*LIFETIME_SF)+1,1,LIFETIME_SF))) -> 733.8308694 | AD17: =IF(AD$15-$D$15+2<=LIFETIME_SF,AD12, SUMPRODUCT(OFFSET(AD12,0,(-1*LIFETIME_SF)+1,1,LIFETIME_SF),OFFSET('Shipments and Stock - SF'!AE$14,0,(-1*LIFETIME_SF)+1,1,LIFETIME_SF))/ SUM(OFFSET('Shipments and Stock - SF'!AE$14,0,(-1*LIFETIME_SF)+1,1,LIFETIME_SF))) -> 746.0317138 | AE17: =IF(AE$15-$D$15+2<=LIFETIME_SF,AE12, SUMPRODUCT(OFFSET(AE12,0,(-1*LIFETIME_SF)+1,1,LIFETIME_SF),OFFSET('Shipments and Stock - SF'!AF$14,0,(-1*LIFETIME_SF)+1,1,LIFETIME_SF))/ SUM(OFFSET('Shipments and Stock - SF'!AF$14,0,(-1*LIFETIME_SF)+1,1,LIFETIME_SF))) -> 758.0308396 | AF17: =IF(AF$15-$D$15+2<=LIFETIME_SF,AF12, SUMPRODUCT(OFFSET(AF12,0,(-1*LIFETIME_SF)+1,1,LIFETIME_SF),OFFSET('Shipments and Stock - SF'!AG$14,0,(-1*LIFETIME_SF)+1,1,LIFETIME_SF))/ SUM(OFFSET('Shipments and Stock - SF'!AG$14,0,(-1*LIFETIME_SF)+1,1,LIFETIME_SF))) -> 769.9136895 | AG17: =IF(AG$15-$D$15+2<=LIFETIME_SF,AG12, SUMPRODUCT(OFFSET(AG12,0,(-1*LIFETIME_SF)+1,1,LIFETIME_SF),OFFSET('Shipments and Stock - SF'!AH$14,0,(-1*LIFETIME_SF)+1,1,LIFETIME_SF))/ SUM(OFFSET('Shipments and Stock - SF'!AH$14,0,(-1*LIFETIME_SF)+1,1,LIFETIME_SF))) -> 769.2628131 | AH17: =IF(AH$15-$D$15+2<=LIFETIME_SF,AH12, SUMPRODUCT(OFFSET(AH12,0,(-1*LIFETIME_SF)+1,1,LIFETIME_SF),OFFSET('Shipments and Stock - SF'!AI$14,0,(-1*LIFETIME_SF)+1,1,LIFETIME_SF))/ SUM(OFFSET('Shipments and Stock - SF'!AI$14,0,(-1*LIFETIME_SF)+1,1,LIFETIME_SF))) -> 762.9392075 | AI17: =IF(AI$15-$D$15+2<=LIFETIME_SF,AI12, SUMPRODUCT(OFFSET(AI12,0,(-1*LIFETIME_SF)+1,1,LIFETIME_SF),OFFSET('Shipments and Stock - SF'!AJ$14,0,(-1*LIFETIME_SF)+1,1,LIFETIME_SF))/ SUM(OFFSET('Shipments and Stock - SF'!AJ$14,0,(-1*LIFETIME_SF)+1,1,LIFETIME_SF))) -> 756.3688071 | AJ17: =IF(AJ$15-$D$15+2<=LIFETIME_SF,AJ12, SUMPRODUCT(OFFSET(AJ12,0,(-1*LIFETIME_SF)+1,1,LIFETIME_SF),OFFSET('Shipments and Stock - SF'!AK$14,0,(-1*LIFETIME_SF)+1,1,LIFETIME_SF))/ SUM(OFFSET('Shipments and Stock - SF'!AK$14,0,(-1*LIFETIME_SF)+1,1,LIFETIME_SF))) -> 749.3081548 | AK17: =IF(AK$15-$D$15+2<=LIFETIME_SF,AK12, SUMPRODUCT(OFFSET(AK12,0,(-1*LIFETIME_SF)+1,1,LIFETIME_SF),OFFSET('Shipments and Stock - SF'!AL$14,0,(-1*LIFETIME_SF)+1,1,LIFETIME_SF))/ SUM(OFFSET('Shipments and Stock - SF'!AL$14,0,(-1*LIFETIME_SF)+1,1,LIFETIME_SF))) -> 743.9496311 | AL17: =IF(AL$15-$D$15+2<=LIFETIME_SF,AL12, SUMPRODUCT(OFFSET(AL12,0,(-1*LIFETIME_SF)+1,1,LIFETIME_SF),OFFSET('Shipments and Stock - SF'!AM$14,0,(-1*LIFETIME_SF)+1,1,LIFETIME_SF))/ SUM(OFFSET('Shipments and Stock - SF'!AM$14,0,(-1*LIFETIME_SF)+1,1,LIFETIME_SF))) -> 737.2625503 | AM17: =IF(AM$15-$D$15+2<=LIFETIME_SF,AM12, SUMPRODUCT(OFFSET(AM12,0,(-1*LIFETIME_SF)+1,1,LIFETIME_SF),OFFSET('Shipments and Stock - SF'!AN$14,0,(-1*LIFETIME_SF)+1,1,LIFETIME_SF))/ SUM(OFFSET('Shipments and Stock - SF'!AN$14,0,(-1*LIFETIME_SF)+1,1,LIFETIME_SF))) -> 727.9471919 | AN17: =IF(AN$15-$D$15+2<=LIFETIME_SF,AN12, SUMPRODUCT(OFFSET(AN12,0,(-1*LIFETIME_SF)+1,1,LIFETIME_SF),OFFSET('Shipments and Stock - SF'!AO$14,0,(-1*LIFETIME_SF)+1,1,LIFETIME_SF))/ SUM(OFFSET('Shipments and Stock - SF'!AO$14,0,(-1*LIFETIME_SF)+1,1,LIFETIME_SF))) -> 718.9467942 | AO17: =IF(AO$15-$D$15+2<=LIFETIME_SF,AO12, SUMPRODUCT(OFFSET(AO12,0,(-1*LIFETIME_SF)+1,1,LIFETIME_SF),OFFSET('Shipments and Stock - SF'!AP$14,0,(-1*LIFETIME_SF)+1,1,LIFETIME_SF))/ SUM(OFFSET('Shipments and Stock - SF'!AP$14,0,(-1*LIFETIME_SF)+1,1,LIFETIME_SF))) -> 709.9455497 | AP17: =IF(AP$15-$D$15+2<=LIFETIME_SF,AP12, SUMPRODUCT(OFFSET(AP12,0,(-1*LIFETIME_SF)+1,1,LIFETIME_SF),OFFSET('Shipments and Stock - SF'!AQ$14,0,(-1*LIFETIME_SF)+1,1,LIFETIME_SF))/ SUM(OFFSET('Shipments and Stock - SF'!AQ$14,0,(-1*LIFETIME_SF)+1,1,LIFETIME_SF))) -> 701.0094614 | AQ17: =IF(AQ$15-$D$15+2<=LIFETIME_SF,AQ12, SUMPRODUCT(OFFSET(AQ12,0,(-1*LIFETIME_SF)+1,1,LIFETIME_SF),OFFSET('Shipments and Stock - SF'!AR$14,0,(-1*LIFETIME_SF)+1,1,LIFETIME_SF))/ SUM(OFFSET('Shipments and Stock - SF'!AR$14,0,(-1*LIFETIME_SF)+1,1,LIFETIME_SF))) -> 692.1254181 | AR17: =IF(AR$15-$D$15+2<=LIFETIME_SF,AR12, SUMPRODUCT(OFFSET(AR12,0,(-1*LIFETIME_SF)+1,1,LIFETIME_SF),OFFSET('Shipments and Stock - SF'!AS$14,0,(-1*LIFETIME_SF)+1,1,LIFETIME_SF))/ SUM(OFFSET('Shipments and Stock - SF'!AS$14,0,(-1*LIFETIME_SF)+1,1,LIFETIME_SF))) -> 679.548591 | AS17: =IF(AS$15-$D$15+2<=LIFETIME_SF,AS12, SUMPRODUCT(OFFSET(AS12,0,(-1*LIFETIME_SF)+1,1,LIFETIME_SF),OFFSET('Shipments and Stock - SF'!AT$14,0,(-1*LIFETIME_SF)+1,1,LIFETIME_SF))/ SUM(OFFSET('Shipments and Stock - SF'!AT$14,0,(-1*LIFETIME_SF)+1,1,LIFETIME_SF))) -> 667.3971332 | AT17: =IF(AT$15-$D$15+2<=LIFETIME_SF,AT12, SUMPRODUCT(OFFSET(AT12,0,(-1*LIFETIME_SF)+1,1,LIFETIME_SF),OFFSET('Shipments and Stock - SF'!AU$14,0,(-1*LIFETIME_SF)+1,1,LIFETIME_SF))/ SUM(OFFSET('Shipments and Stock - SF'!AU$14,0,(-1*LIFETIME_SF)+1,1,LIFETIME_SF))) -> 656.5276458 | AU17: =IF(AU$15-$D$15+2<=LIFETIME_SF,AU12, SUMPRODUCT(OFFSET(AU12,0,(-1*LIFETIME_SF)+1,1,LIFETIME_SF),OFFSET('Shipments and Stock - SF'!AV$14,0,(-1*LIFETIME_SF)+1,1,LIFETIME_SF))/ SUM(OFFSET('Shipments and Stock - SF'!AV$14,0,(-1*LIFETIME_SF)+1,1,LIFETIME_SF))) -> 646.4249839 | AV17: =IF(AV$15-$D$15+2<=LIFETIME_SF,AV12, SUMPRODUCT(OFFSET(AV12,0,(-1*LIFETIME_SF)+1,1,LIFETIME_SF),OFFSET('Shipments and Stock - SF'!AW$14,0,(-1*LIFETIME_SF)+1,1,LIFETIME_SF))/ SUM(OFFSET('Shipments and Stock - SF'!AW$14,0,(-1*LIFETIME_SF)+1,1,LIFETIME_SF))) -> 636.7270055 | AW17: =IF(AW$15-$D$15+2<=LIFETIME_SF,AW12, SUMPRODUCT(OFFSET(AW12,0,(-1*LIFETIME_SF)+1,1,LIFETIME_SF),OFFSET('Shipments and Stock - SF'!AX$14,0,(-1*LIFETIME_SF)+1,1,LIFETIME_SF))/ SUM(OFFSET('Shipments and Stock - SF'!AX$14,0,(-1*LIFETIME_SF)+1,1,LIFETIME_SF))) -> 636.7221531 | AX17: =IF(AX$15-$D$15+2<=LIFETIME_SF,AX12, SUMPRODUCT(OFFSET(AX12,0,(-1*LIFETIME_SF)+1,1,LIFETIME_SF),OFFSET('Shipments and Stock - SF'!AY$14,0,(-1*LIFETIME_SF)+1,1,LIFETIME_SF))/ SUM(OFFSET('Shipments and Stock - SF'!AY$14,0,(-1*LIFETIME_SF)+1,1,LIFETIME_SF))) -> 636.7178947 | AY17: =IF(AY$15-$D$15+2<=LIFETIME_SF,AY12, SUMPRODUCT(OFFSET(AY12,0,(-1*LIFETIME_SF)+1,1,LIFETIME_SF),OFFSET('Shipments and Stock - SF'!AZ$14,0,(-1*LIFETIME_SF)+1,1,LIFETIME_SF))/ SUM(OFFSET('Shipments and Stock - SF'!AZ$14,0,(-1*LIFETIME_SF)+1,1,LIFETIME_SF))) -> 636.7144542 | AZ17: =IF(AZ$15-$D$15+2<=LIFETIME_SF,AZ12, SUMPRODUCT(OFFSET(AZ12,0,(-1*LIFETIME_SF)+1,1,LIFETIME_SF),OFFSET('Shipments and Stock - SF'!BA$14,0,(-1*LIFETIME_SF)+1,1,LIFETIME_SF))/ SUM(OFFSET('Shipments and Stock - SF'!BA$14,0,(-1*LIFETIME_SF)+1,1,LIFETIME_SF))) -> 636.7122325 | BA17: =IF(BA$15-$D$15+2<=LIFETIME_SF,BA12, SUMPRODUCT(OFFSET(BA12,0,(-1*LIFETIME_SF)+1,1,LIFETIME_SF),OFFSET('Shipments and Stock - SF'!BB$14,0,(-1*LIFETIME_SF)+1,1,LIFETIME_SF))/ SUM(OFFSET('Shipments and Stock - SF'!BB$14,0,(-1*LIFETIME_SF)+1,1,LIFETIME_SF))) -> 635.6456846 | BB17: =IF(BB$15-$D$15+2<=LIFETIME_SF,BB12, SUMPRODUCT(OFFSET(BB12,0,(-1*LIFETIME_SF)+1,1,LIFETIME_SF),OFFSET('Shipments and Stock - SF'!BC$14,0,(-1*LIFETIME_SF)+1,1,LIFETIME_SF))/ SUM(OFFSET('Shipments and Stock - SF'!BC$14,0,(-1*LIFETIME_SF)+1,1,LIFETIME_SF))) -> 635.6456846 | BC17: =IF(BC$15-$D$15+2<=LIFETIME_SF,BC12, SUMPRODUCT(OFFSET(BC12,0,(-1*LIFETIME_SF)+1,1,LIFETIME_SF),OFFSET('Shipments and Stock - SF'!BD$14,0,(-1*LIFETIME_SF)+1,1,LIFETIME_SF))/ SUM(OFFSET('Shipments and Stock - SF'!BD$14,0,(-1*LIFETIME_SF)+1,1,LIFETIME_SF))) -> 635.6456846 | BD17: =IF(BD$15-$D$15+2<=LIFETIME_SF,BD12, SUMPRODUCT(OFFSET(BD12,0,(-1*LIFETIME_SF)+1,1,LIFETIME_SF),OFFSET('Shipments and Stock - SF'!BE$14,0,(-1*LIFETIME_SF)+1,1,LIFETIME_SF))/ SUM(OFFSET('Shipments and Stock - SF'!BE$14,0,(-1*LIFETIME_SF)+1,1,LIFETIME_SF))) -> 635.6456846 | BE17: =IF(BE$15-$D$15+2<=LIFETIME_SF,BE12, SUMPRODUCT(OFFSET(BE12,0,(-1*LIFETIME_SF)+1,1,LIFETIME_SF),OFFSET('Shipments and Stock - SF'!BF$14,0,(-1*LIFETIME_SF)+1,1,LIFETIME_SF))/ SUM(OFFSET('Shipments and Stock - SF'!BF$14,0,(-1*LIFETIME_SF)+1,1,LIFETIME_SF))) -> 635.6456846

Sheet UEC-MF
C2: Weighted Average Annual UEC - Multi-Family
C4: NAVIGATION
C6: COMMENTS
C9: Market UEC (Shipment Weighted Average)
D10: 1981 | E10: 1982 | F10: 1983 | G10: 1984 | H10: 1985 | I10: 1986 | J10: 1987 | K10: 1988 | L10: 1989 | M10: 1990 | N10: 1991 | O10: 1992 | P10: 1993 | Q10: 1994 | R10: 1995 | S10: 1996 | T10: 1997 | U10: 1998 | V10: 1999 | W10: 2000 | X10: 2001 | Y10: 2002 | Z10: 2003 | AA10: 2004 | AB10: 2005 | AC10: 2006 | AD10: 2007 | AE10: 2008 | AF10: 2009 | AG10: 2010 | AH10: 2011 | AI10: 2012 | AJ10: 2013 | AK10: 2014 | AL10: 2015 | AM10: 2016 | AN10: 2017 | AO10: 2018 | AP10: 2019 | AQ10: 2020 | AR10: 2021 | AS10: 2022 | AT10: 2023 | AU10: 2024 | AV10: 2025 | AW10: 2026 | AX10: 2027 | AY10: 2028 | AZ10: 2029 | BA10: 2030 | BB10: 2031 | BC10: 2032 | BD10: 2033 | BE10: 2034
C11: PRE-Case UEC | D11: ='Data by Building Type'!$E$27 -> 624.2 | E11: ='Data by Building Type'!$E$27 -> 624.2 | F11: ='Data by Building Type'!$E$27 -> 624.2 | G11: ='Data by Building Type'!$E$27 -> 624.2 | H11: ='Data by Building Type'!$E$27 -> 624.2 | I11: ='Data by Building Type'!$E$27 -> 624.2 | J11: ='Data by Building Type'!$E$27 -> 624.2 | K11: ='Data by Building Type'!$E$27 -> 624.2 | L11: ='Data by Building Type'!$E$27 -> 624.2 | M11: ='Data by Building Type'!$E$27 -> 624.2 | N11: ='Data by Building Type'!$E$27 -> 624.2 | O11: ='Data by Building Type'!$E$27 -> 624.2 | P11: ='Data by Building Type'!$E$27 -> 624.2 | Q11: ='Data by Building Type'!$E$27 -> 624.2 | R11: ='Data by Building Type'!$E$28 -> 721.7 | S11: ='Data by Building Type'!$E$28 -> 721.7 | T11: ='Data by Building Type'!$E$28 -> 721.7 | U11: ='Data by Building Type'!$E$28 -> 721.7 | V11: ='Data by Building Type'!$E$28 -> 721.7 | W11: ='Data by Building Type'!$E$29 -> 775.2 | X11: ='Data by Building Type'!$E$29 -> 775.2 | Y11: ='Data by Building Type'!$E$29 -> 775.2 | Z11: ='Data by Building Type'!$E$29 -> 775.2 | AA11: ='Data by Building Type'!$E$29 -> 775.2 | AB11: ='Data by Building Type'!$E$30 -> 832.8 | AC11: ='Data by Building Type'!$E$30 -> 832.8 | AD11: ='Data by Building Type'!$E$30 -> 832.8 | AE11: ='Data by Building Type'!$E$30 -> 832.8 | AF11: ='Data by Building Type'!$E$30 -> 832.8 | AG11: ='Data by Building Type'!$E$31 -> 635.5 | AH11: ='Data by Building Type'!$E$31 -> 635.5 | AI11: ='Data by Building Type'!$E$31 -> 635.5 | AJ11: ='Data by Building Type'!$E$31 -> 635.5 | AK11: =SUMPRODUCT('UEC Development'!$L$14:$L$20,'Efficiency Dist - MF'!AO13:AO19) -> 653.5631438 | AL11: =SUMPRODUCT('UEC Development'!$L$14:$L$20,'Efficiency Dist - MF'!AP13:AP19) -> 653.5631438 | AM11: =SUMPRODUCT('UEC Development'!$L$14:$L$20,'Efficiency Dist - MF'!AQ13:AQ19) -> 653.5631438 | AN11: =SUMPRODUCT('UEC Development'!$L$14:$L$20,'Efficiency Dist - MF'!AR13:AR19) -> 653.5631438 | AO11: =SUMPRODUCT('UEC Development'!$L$14:$L$20,'Efficiency Dist - MF'!AS13:AS19) -> 653.5631438 | AP11: =SUMPRODUCT('UEC Development'!$L$14:$L$20,'Efficiency Dist - MF'!AT13:AT19) -> 653.5631438 | AQ11: =SUMPRODUCT('UEC Development'!$L$14:$L$20,'Efficiency Dist - MF'!AU13:AU19) -> 653.5631438 | AR11: =SUMPRODUCT('UEC Development'!$L$14:$L$20,'Efficiency Dist - MF'!AV13:AV19) -> 653.5631438 | AS11: =SUMPRODUCT('UEC Development'!$L$14:$L$20,'Efficiency Dist - MF'!AW13:AW19) -> 653.5631438 | AT11: =SUMPRODUCT('UEC Development'!$L$14:$L$20,'Efficiency Dist - MF'!AX13:AX19) -> 653.5631438 | AU11: =SUMPRODUCT('UEC Development'!$L$14:$L$20,'Efficiency Dist - MF'!AY13:AY19) -> 653.5631438 | AV11: =SUMPRODUCT('UEC Development'!$L$14:$L$20,'Efficiency Dist - MF'!AZ13:AZ19) -> 653.5631438 | AW11: =SUMPRODUCT('UEC Development'!$L$14:$L$20,'Efficiency Dist - MF'!BA13:BA19) -> 653.5631438 | AX11: =SUMPRODUCT('UEC Development'!$L$14:$L$20,'Efficiency Dist - MF'!BB13:BB19) -> 653.5631438 | AY11: =SUMPRODUCT('UEC Development'!$L$14:$L$20,'Efficiency Dist - MF'!BC13:BC19) -> 653.5631438 | AZ11: =SUMPRODUCT('UEC Development'!$L$14:$L$20,'Efficiency Dist - MF'!BD13:BD19) -> 653.5631438 | BA11: =SUMPRODUCT('UEC Development'!$L$14:$L$20,'Efficiency Dist - MF'!BE13:BE19) -> 653.5631438 | BB11: =SUMPRODUCT('UEC Development'!$L$14:$L$20,'Efficiency Dist - MF'!BF13:BF19) -> 653.5631438 | BC11: =SUMPRODUCT('UEC Development'!$L$14:$L$20,'Efficiency Dist - MF'!BG13:BG19) -> 653.5631438 | BD11: =SUMPRODUCT('UEC Development'!$L$14:$L$20,'Efficiency Dist - MF'!BH13:BH19) -> 653.5631438 | BE11: =SUMPRODUCT('UEC Development'!$L$14:$L$20,'Efficiency Dist - MF'!BI13:BI19) -> 653.5631438
C12: POST-Case UEC | D12: ='Data by Building Type'!$E$27 -> 624.2 | E12: ='Data by Building Type'!$E$27 -> 624.2 | F12: ='Data by Building Type'!$E$27 -> 624.2 | G12: ='Data by Building Type'!$E$27 -> 624.2 | H12: ='Data by Building Type'!$E$27 -> 624.2 | I12: ='Data by Building Type'!$E$27 -> 624.2 | J12: ='Data by Building Type'!$E$27 -> 624.2 | K12: ='Data by Building Type'!$E$27 -> 624.2 | L12: ='Data by Building Type'!$E$27 -> 624.2 | M12: ='Data by Building Type'!$E$27 -> 624.2 | N12: ='Data by Building Type'!$E$27 -> 624.2 | O12: ='Data by Building Type'!$E$27 -> 624.2 | P12: ='Data by Building Type'!$E$27 -> 624.2 | Q12: ='Data by Building Type'!$E$27 -> 624.2 | R12: ='Data by Building Type'!$E$28 -> 721.7 | S12: ='Data by Building Type'!$E$28 -> 721.7 | T12: ='Data by Building Type'!$E$28 -> 721.7 | U12: ='Data by Building Type'!$E$28 -> 721.7 | V12: ='Data by Building Type'!$E$28 -> 721.7 | W12: ='Data by Building Type'!$E$29 -> 775.2 | X12: ='Data by Building Type'!$E$29 -> 775.2 | Y12: ='Data by Building Type'!$E$29 -> 775.2 | Z12: ='Data by Building Type'!$E$29 -> 775.2 | AA12: ='Data by Building Type'!$E$29 -> 775.2 | AB12: ='Data by Building Type'!$E$30 -> 832.8 | AC12: ='Data by Building Type'!$E$30 -> 832.8 | AD12: ='Data by Building Type'!$E$30 -> 832.8 | AE12: ='Data by Building Type'!$E$30 -> 832.8 | AF12: ='Data by Building Type'!$E$30 -> 832.8 | AG12: ='Data by Building Type'!$E$31 -> 635.5 | AH12: ='Data by Building Type'!$E$31 -> 635.5 | AI12: ='Data by Building Type'!$E$31 -> 635.5 | AJ12: ='Data by Building Type'!$E$31 -> 635.5 | AK12: =SUMPRODUCT('UEC Development'!$L$14:$L$20,'Efficiency Dist - MF'!AO24:AO30) -> 653.5631438 | AL12: =SUMPRODUCT('UEC Development'!$L$14:$L$20,'Efficiency Dist - MF'!AP24:AP30) -> 635.6456846 | AM12: =SUMPRODUCT('UEC Development'!$L$14:$L$20,'Efficiency Dist - MF'!AQ24:AQ30) -> 635.6456846 | AN12: =SUMPRODUCT('UEC Development'!$L$14:$L$20,'Efficiency Dist - MF'!AR24:AR30) -> 635.6456846 | AO12: =SUMPRODUCT('UEC Development'!$L$14:$L$20,'Efficiency Dist - MF'!AS24:AS30) -> 635.6456846 | AP12: =SUMPRODUCT('UEC Development'!$L$14:$L$20,'Efficiency Dist - MF'!AT24:AT30) -> 635.6456846 | AQ12: =SUMPRODUCT('UEC Development'!$L$14:$L$20,'Efficiency Dist - MF'!AU24:AU30) -> 635.6456846 | AR12: =SUMPRODUCT('UEC Development'!$L$14:$L$20,'Efficiency Dist - MF'!AV24:AV30) -> 635.6456846 | AS12: =SUMPRODUCT('UEC Development'!$L$14:$L$20,'Efficiency Dist - MF'!AW24:AW30) -> 635.6456846 | AT12: =SUMPRODUCT('UEC Development'!$L$14:$L$20,'Efficiency Dist - MF'!AX24:AX30) -> 635.6456846 | AU12: =SUMPRODUCT('UEC Development'!$L$14:$L$20,'Efficiency Dist - MF'!AY24:AY30) -> 635.6456846 | AV12: =SUMPRODUCT('UEC Development'!$L$14:$L$20,'Efficiency Dist - MF'!AZ24:AZ30) -> 635.6456846 | AW12: =SUMPRODUCT('UEC Development'!$L$14:$L$20,'Efficiency Dist - MF'!BA24:BA30) -> 635.6456846 | AX12: =SUMPRODUCT('UEC Development'!$L$14:$L$20,'Efficiency Dist - MF'!BB24:BB30) -> 635.6456846 | AY12: =SUMPRODUCT('UEC Development'!$L$14:$L$20,'Efficiency Dist - MF'!BC24:BC30) -> 635.6456846 | AZ12: =SUMPRODUCT('UEC Development'!$L$14:$L$20,'Efficiency Dist - MF'!BD24:BD30) -> 635.6456846 | BA12: =SUMPRODUCT('UEC Development'!$L$14:$L$20,'Efficiency Dist - MF'!BE24:BE30) -> 635.6456846 | BB12: =SUMPRODUCT('UEC Development'!$L$14:$L$20,'Efficiency Dist - MF'!BF24:BF30) -> 635.6456846 | BC12: =SUMPRODUCT('UEC Development'!$L$14:$L$20,'Efficiency Dist - MF'!BG24:BG30) -> 635.6456846 | BD12: =SUMPRODUCT('UEC Development'!$L$14:$L$20,'Efficiency Dist - MF'!BH24:BH30) -> 635.6456846 | BE12: =SUMPRODUCT('UEC Development'!$L$14:$L$20,'Efficiency Dist - MF'!BI24:BI30) -> 635.6456846
C14: Installed UEC (Vintage Weighted Average)
D15: 1981 | E15: 1982 | F15: 1983 | G15: 1984 | H15: 1985 | I15: 1986 | J15: 1987 | K15: 1988 | L15: 1989 | M15: 1990 | N15: 1991 | O15: 1992 | P15: 1993 | Q15: 1994 | R15: 1995 | S15: 1996 | T15: 1997 | U15: 1998 | V15: 1999 | W15: 2000 | X15: 2001 | Y15: 2002 | Z15: 2003 | AA15: 2004 | AB15: 2005 | AC15: 2006 | AD15: 2007 | AE15: 2008 | AF15: 2009 | AG15: 2010 | AH15: 2011 | AI15: 2012 | AJ15: 2013 | AK15: 2014 | AL15: 2015 | AM15: 2016 | AN15: 2017 | AO15: 2018 | AP15: 2019 | AQ15: 2020 | AR15: 2021 | AS15: 2022 | AT15: 2023 | AU15: 2024 | AV15: 2025 | AW15: 2026 | AX15: 2027 | AY15: 2028 | AZ15: 2029 | BA15: 2030 | BB15: 2031 | BC15: 2032 | BD15: 2033 | BE15: 2034
C16: PRE-Case UEC | D16: =IF(D$15-$D$15+2<=LIFETIME_MF,D11, SUMPRODUCT(OFFSET(D11,0,(-1*LIFETIME_MF)+1,1,LIFETIME_MF),OFFSET('Shipments and Stock - MF'!E$14,0,(-1*LIFETIME_MF)+1,1,LIFETIME_MF))/ SUM(OFFSET('Shipments and Stock - MF'!E$14,0,(-1*LIFETIME_MF)+1,1,LIFETIME_MF))) -> 624.2 | E16: =IF(E$15-$D$15+2<=LIFETIME_MF,E11, SUMPRODUCT(OFFSET(E11,0,(-1*LIFETIME_MF)+1,1,LIFETIME_MF),OFFSET('Shipments and Stock - MF'!F$14,0,(-1*LIFETIME_MF)+1,1,LIFETIME_MF))/ SUM(OFFSET('Shipments and Stock - MF'!F$14,0,(-1*LIFETIME_MF)+1,1,LIFETIME_MF))) -> 624.2 | F16: =IF(F$15-$D$15+2<=LIFETIME_MF,F11, SUMPRODUCT(OFFSET(F11,0,(-1*LIFETIME_MF)+1,1,LIFETIME_MF),OFFSET('Shipments and Stock - MF'!G$14,0,(-1*LIFETIME_MF)+1,1,LIFETIME_MF))/ SUM(OFFSET('Shipments and Stock - MF'!G$14,0,(-1*LIFETIME_MF)+1,1,LIFETIME_MF))) -> 624.2 | G16: =IF(G$15-$D$15+2<=LIFETIME_MF,G11, SUMPRODUCT(OFFSET(G11,0,(-1*LIFETIME_MF)+1,1,LIFETIME_MF),OFFSET('Shipments and Stock - MF'!H$14,0,(-1*LIFETIME_MF)+1,1,LIFETIME_MF))/ SUM(OFFSET('Shipments and Stock - MF'!H$14,0,(-1*LIFETIME_MF)+1,1,LIFETIME_MF))) -> 624.2 | H16: =IF(H$15-$D$15+2<=LIFETIME_MF,H11, SUMPRODUCT(OFFSET(H11,0,(-1*LIFETIME_MF)+1,1,LIFETIME_MF),OFFSET('Shipments and Stock - MF'!I$14,0,(-1*LIFETIME_MF)+1,1,LIFETIME_MF))/ SUM(OFFSET('Shipments and Stock - MF'!I$14,0,(-1*LIFETIME_MF)+1,1,LIFETIME_MF))) -> 624.2 | I16: =IF(I$15-$D$15+2<=LIFETIME_MF,I11, SUMPRODUCT(OFFSET(I11,0,(-1*LIFETIME_MF)+1,1,LIFETIME_MF),OFFSET('Shipments and Stock - MF'!J$14,0,(-1*LIFETIME_MF)+1,1,LIFETIME_MF))/ SUM(OFFSET('Shipments and Stock - MF'!J$14,0,(-1*LIFETIME_MF)+1,1,LIFETIME_MF))) -> 624.2 | J16: =IF(J$15-$D$15+2<=LIFETIME_MF,J11, SUMPRODUCT(OFFSET(J11,0,(-1*LIFETIME_MF)+1,1,LIFETIME_MF),OFFSET('Shipments and Stock - MF'!K$14,0,(-1*LIFETIME_MF)+1,1,LIFETIME_MF))/ SUM(OFFSET('Shipments and Stock - MF'!K$14,0,(-1*LIFETIME_MF)+1,1,LIFETIME_MF))) -> 624.2 | K16: =IF(K$15-$D$15+2<=LIFETIME_MF,K11, SUMPRODUCT(OFFSET(K11,0,(-1*LIFETIME_MF)+1,1,LIFETIME_MF),OFFSET('Shipments and Stock - MF'!L$14,0,(-1*LIFETIME_MF)+1,1,LIFETIME_MF))/ SUM(OFFSET('Shipments and Stock - MF'!L$14,0,(-1*LIFETIME_MF)+1,1,LIFETIME_MF))) -> 624.2 | L16: =IF(L$15-$D$15+2<=LIFETIME_MF,L11, SUMPRODUCT(OFFSET(L11,0,(-1*LIFETIME_MF)+1,1,LIFETIME_MF),OFFSET('Shipments and Stock - MF'!M$14,0,(-1*LIFETIME_MF)+1,1,LIFETIME_MF))/ SUM(OFFSET('Shipments and Stock - MF'!M$14,0,(-1*LIFETIME_MF)+1,1,LIFETIME_MF))) -> 624.2 | M16: =IF(M$15-$D$15+2<=LIFETIME_MF,M11, SUMPRODUCT(OFFSET(M11,0,(-1*LIFETIME_MF)+1,1,LIFETIME_MF),OFFSET('Shipments and Stock - MF'!N$14,0,(-1*LIFETIME_MF)+1,1,LIFETIME_MF))/ SUM(OFFSET('Shipments and Stock - MF'!N$14,0,(-1*LIFETIME_MF)+1,1,LIFETIME_MF))) -> 624.2 | N16: =IF(N$15-$D$15+2<=LIFETIME_MF,N11, SUMPRODUCT(OFFSET(N11,0,(-1*LIFETIME_MF)+1,1,LIFETIME_MF),OFFSET('Shipments and Stock - MF'!O$14,0,(-1*LIFETIME_MF)+1,1,LIFETIME_MF))/ SUM(OFFSET('Shipments and Stock - MF'!O$14,0,(-1*LIFETIME_MF)+1,1,LIFETIME_MF))) -> 624.2 | O16: =IF(O$15-$D$15+2<=LIFETIME_MF,O11, SUMPRODUCT(OFFSET(O11,0,(-1*LIFETIME_MF)+1,1,LIFETIME_MF),OFFSET('Shipments and Stock - MF'!P$14,0,(-1*LIFETIME_MF)+1,1,LIFETIME_MF))/ SUM(OFFSET('Shipments and Stock - MF'!P$14,0,(-1*LIFETIME_MF)+1,1,LIFETIME_MF))) -> 624.2 | P16: =IF(P$15-$D$15+2<=LIFETIME_MF,P11, SUMPRODUCT(OFFSET(P11,0,(-1*LIFETIME_MF)+1,1,LIFETIME_MF),OFFSET('Shipments and Stock - MF'!Q$14,0,(-1*LIFETIME_MF)+1,1,LIFETIME_MF))/ SUM(OFFSET('Shipments and Stock - MF'!Q$14,0,(-1*LIFETIME_MF)+1,1,LIFETIME_MF))) -> 624.2 | Q16: =IF(Q$15-$D$15+2<=LIFETIME_MF,Q11, SUMPRODUCT(OFFSET(Q11,0,(-1*LIFETIME_MF)+1,1,LIFETIME_MF),OFFSET('Shipments and Stock - MF'!R$14,0,(-1*LIFETIME_MF)+1,1,LIFETIME_MF))/ SUM(OFFSET('Shipments and Stock - MF'!R$14,0,(-1*LIFETIME_MF)+1,1,LIFETIME_MF))) -> 624.2 | R16: =IF(R$15-$D$15+2<=LIFETIME_MF,R11, SUMPRODUCT(OFFSET(R11,0,(-1*LIFETIME_MF)+1,1,LIFETIME_MF),OFFSET('Shipments and Stock - MF'!S$14,0,(-1*LIFETIME_MF)+1,1,LIFETIME_MF))/ SUM(OFFSET('Shipments and Stock - MF'!S$14,0,(-1*LIFETIME_MF)+1,1,LIFETIME_MF))) -> 721.7 | S16: =IF(S$15-$D$15+2<=LIFETIME_MF,S11, SUMPRODUCT(OFFSET(S11,0,(-1*LIFETIME_MF)+1,1,LIFETIME_MF),OFFSET('Shipments and Stock - MF'!T$14,0,(-1*LIFETIME_MF)+1,1,LIFETIME_MF))/ SUM(OFFSET('Shipments and Stock - MF'!T$14,0,(-1*LIFETIME_MF)+1,1,LIFETIME_MF))) -> 636.7337559 | T16: =IF(T$15-$D$15+2<=LIFETIME_MF,T11, SUMPRODUCT(OFFSET(T11,0,(-1*LIFETIME_MF)+1,1,LIFETIME_MF),OFFSET('Shipments and Stock - MF'!U$14,0,(-1*LIFETIME_MF)+1,1,LIFETIME_MF))/ SUM(OFFSET('Shipments and Stock - MF'!U$14,0,(-1*LIFETIME_MF)+1,1,LIFETIME_MF))) -> 643.8867766 | U16: =IF(U$15-$D$15+2<=LIFETIME_MF,U11, SUMPRODUCT(OFFSET(U11,0,(-1*LIFETIME_MF)+1,1,LIFETIME_MF),OFFSET('Shipments and Stock - MF'!V$14,0,(-1*LIFETIME_MF)+1,1,LIFETIME_MF))/ SUM(OFFSET('Shipments and Stock - MF'!V$14,0,(-1*LIFETIME_MF)+1,1,LIFETIME_MF))) -> 650.5699692 | V16: =IF(V$15-$D$15+2<=LIFETIME_MF,V11, SUMPRODUCT(OFFSET(V11,0,(-1*LIFETIME_MF)+1,1,LIFETIME_MF),OFFSET('Shipments and Stock - MF'!W$14,0,(-1*LIFETIME_MF)+1,1,LIFETIME_MF))/ SUM(OFFSET('Shipments and Stock - MF'!W$14,0,(-1*LIFETIME_MF)+1,1,LIFETIME_MF))) -> 656.7927987 | W16: =IF(W$15-$D$15+2<=LIFETIME_MF,W11, SUMPRODUCT(OFFSET(W11,0,(-1*LIFETIME_MF)+1,1,LIFETIME_MF),OFFSET('Shipments and Stock - MF'!X$14,0,(-1*LIFETIME_MF)+1,1,LIFETIME_MF))/ SUM(OFFSET('Shipments and Stock - MF'!X$14,0,(-1*LIFETIME_MF)+1,1,LIFETIME_MF))) -> 666.804611 | X16: =IF(X$15-$D$15+2<=LIFETIME_MF,X11, SUMPRODUCT(OFFSET(X11,0,(-1*LIFETIME_MF)+1,1,LIFETIME_MF),OFFSET('Shipments and Stock - MF'!Y$14,0,(-1*LIFETIME_MF)+1,1,LIFETIME_MF))/ SUM(OFFSET('Shipments and Stock - MF'!Y$14,0,(-1*LIFETIME_MF)+1,1,LIFETIME_MF))) -> 677.7680958 | Y16: =IF(Y$15-$D$15+2<=LIFETIME_MF,Y11, SUMPRODUCT(OFFSET(Y11,0,(-1*LIFETIME_MF)+1,1,LIFETIME_MF),OFFSET('Shipments and Stock - MF'!Z$14,0,(-1*LIFETIME_MF)+1,1,LIFETIME_MF))/ SUM(OFFSET('Shipments and Stock - MF'!Z$14,0,(-1*LIFETIME_MF)+1,1,LIFETIME_MF))) -> 687.8385773 | Z16: =IF(Z$15-$D$15+2<=LIFETIME_MF,Z11, SUMPRODUCT(OFFSET(Z11,0,(-1*LIFETIME_MF)+1,1,LIFETIME_MF),OFFSET('Shipments and Stock - MF'!AA$14,0,(-1*LIFETIME_MF)+1,1,LIFETIME_MF))/ SUM(OFFSET('Shipments and Stock - MF'!AA$14,0,(-1*LIFETIME_MF)+1,1,LIFETIME_MF))) -> 697.9932293 | AA16: =IF(AA$15-$D$15+2<=LIFETIME_MF,AA11, SUMPRODUCT(OFFSET(AA11,0,(-1*LIFETIME_MF)+1,1,LIFETIME_MF),OFFSET('Shipments and Stock - MF'!AB$14,0,(-1*LIFETIME_MF)+1,1,LIFETIME_MF))/ SUM(OFFSET('Shipments and Stock - MF'!AB$14,0,(-1*LIFETIME_MF)+1,1,LIFETIME_MF))) -> 708.8070921 | AB16: =IF(AB$15-$D$15+2<=LIFETIME_MF,AB11, SUMPRODUCT(OFFSET(AB11,0,(-1*LIFETIME_MF)+1,1,LIFETIME_MF),OFFSET('Shipments and Stock - MF'!AC$14,0,(-1*LIFETIME_MF)+1,1,LIFETIME_MF))/ SUM(OFFSET('Shipments and Stock - MF'!AC$14,0,(-1*LIFETIME_MF)+1,1,LIFETIME_MF))) -> 724.8883635 | AC16: =IF(AC$15-$D$15+2<=LIFETIME_MF,AC11, SUMPRODUCT(OFFSET(AC11,0,(-1*LIFETIME_MF)+1,1,LIFETIME_MF),OFFSET('Shipments and Stock - MF'!AD$14,0,(-1*LIFETIME_MF)+1,1,LIFETIME_MF))/ SUM(OFFSET('Shipments and Stock - MF'!AD$14,0,(-1*LIFETIME_MF)+1,1,LIFETIME_MF))) -> 739.5732924 | AD16: =IF(AD$15-$D$15+2<=LIFETIME_MF,AD11, SUMPRODUCT(OFFSET(AD11,0,(-1*LIFETIME_MF)+1,1,LIFETIME_MF),OFFSET('Shipments and Stock - MF'!AE$14,0,(-1*LIFETIME_MF)+1,1,LIFETIME_MF))/ SUM(OFFSET('Shipments and Stock - MF'!AE$14,0,(-1*LIFETIME_MF)+1,1,LIFETIME_MF))) -> 750.6934254 | AE16: =IF(AE$15-$D$15+2<=LIFETIME_MF,AE11, SUMPRODUCT(OFFSET(AE11,0,(-1*LIFETIME_MF)+1,1,LIFETIME_MF),OFFSET('Shipments and Stock - MF'!AF$14,0,(-1*LIFETIME_MF)+1,1,LIFETIME_MF))/ SUM(OFFSET('Shipments and Stock - MF'!AF$14,0,(-1*LIFETIME_MF)+1,1,LIFETIME_MF))) -> 761.1611747 | AF16: =IF(AF$15-$D$15+2<=LIFETIME_MF,AF11, SUMPRODUCT(OFFSET(AF11,0,(-1*LIFETIME_MF)+1,1,LIFETIME_MF),OFFSET('Shipments and Stock - MF'!AG$14,0,(-1*LIFETIME_MF)+1,1,LIFETIME_MF))/ SUM(OFFSET('Shipments and Stock - MF'!AG$14,0,(-1*LIFETIME_MF)+1,1,LIFETIME_MF))) -> 771.2239739 | AG16: =IF(AG$15-$D$15+2<=LIFETIME_MF,AG11, SUMPRODUCT(OFFSET(AG11,0,(-1*LIFETIME_MF)+1,1,LIFETIME_MF),OFFSET('Shipments and Stock - MF'!AH$14,0,(-1*LIFETIME_MF)+1,1,LIFETIME_MF))/ SUM(OFFSET('Shipments and Stock - MF'!AH$14,0,(-1*LIFETIME_MF)+1,1,LIFETIME_MF))) -> 770.6364267 | AH16: =IF(AH$15-$D$15+2<=LIFETIME_MF,AH11, SUMPRODUCT(OFFSET(AH11,0,(-1*LIFETIME_MF)+1,1,LIFETIME_MF),OFFSET('Shipments and Stock - MF'!AI$14,0,(-1*LIFETIME_MF)+1,1,LIFETIME_MF))/ SUM(OFFSET('Shipments and Stock - MF'!AI$14,0,(-1*LIFETIME_MF)+1,1,LIFETIME_MF))) -> 764.632728 | AI16: =IF(AI$15-$D$15+2<=LIFETIME_MF,AI11, SUMPRODUCT(OFFSET(AI11,0,(-1*LIFETIME_MF)+1,1,LIFETIME_MF),OFFSET('Shipments and Stock - MF'!AJ$14,0,(-1*LIFETIME_MF)+1,1,LIFETIME_MF))/ SUM(OFFSET('Shipments and Stock - MF'!AJ$14,0,(-1*LIFETIME_MF)+1,1,LIFETIME_MF))) -> 758.5239201 | AJ16: =IF(AJ$15-$D$15+2<=LIFETIME_MF,AJ11, SUMPRODUCT(OFFSET(AJ11,0,(-1*LIFETIME_MF)+1,1,LIFETIME_MF),OFFSET('Shipments and Stock - MF'!AK$14,0,(-1*LIFETIME_MF)+1,1,LIFETIME_MF))/ SUM(OFFSET('Shipments and Stock - MF'!AK$14,0,(-1*LIFETIME_MF)+1,1,LIFETIME_MF))) -> 751.5850277 | AK16: =IF(AK$15-$D$15+2<=LIFETIME_MF,AK11, SUMPRODUCT(OFFSET(AK11,0,(-1*LIFETIME_MF)+1,1,LIFETIME_MF),OFFSET('Shipments and Stock - MF'!AL$14,0,(-1*LIFETIME_MF)+1,1,LIFETIME_MF))/ SUM(OFFSET('Shipments and Stock - MF'!AL$14,0,(-1*LIFETIME_MF)+1,1,LIFETIME_MF))) -> 746.0984201 | AL16: =IF(AL$15-$D$15+2<=LIFETIME_MF,AL11, SUMPRODUCT(OFFSET(AL11,0,(-1*LIFETIME_MF)+1,1,LIFETIME_MF),OFFSET('Shipments and Stock - MF'!AM$14,0,(-1*LIFETIME_MF)+1,1,LIFETIME_MF))/ SUM(OFFSET('Shipments and Stock - MF'!AM$14,0,(-1*LIFETIME_MF)+1,1,LIFETIME_MF))) -> 740.8126082 | AM16: =IF(AM$15-$D$15+2<=LIFETIME_MF,AM11, SUMPRODUCT(OFFSET(AM11,0,(-1*LIFETIME_MF)+1,1,LIFETIME_MF),OFFSET('Shipments and Stock - MF'!AN$14,0,(-1*LIFETIME_MF)+1,1,LIFETIME_MF))/ SUM(OFFSET('Shipments and Stock - MF'!AN$14,0,(-1*LIFETIME_MF)+1,1,LIFETIME_MF))) -> 732.5780083 | AN16: =IF(AN$15-$D$15+2<=LIFETIME_MF,AN11, SUMPRODUCT(OFFSET(AN11,0,(-1*LIFETIME_MF)+1,1,LIFETIME_MF),OFFSET('Shipments and Stock - MF'!AO$14,0,(-1*LIFETIME_MF)+1,1,LIFETIME_MF))/ SUM(OFFSET('Shipments and Stock - MF'!AO$14,0,(-1*LIFETIME_MF)+1,1,LIFETIME_MF))) -> 723.7585058 | AO16: =IF(AO$15-$D$15+2<=LIFETIME_MF,AO11, SUMPRODUCT(OFFSET(AO11,0,(-1*LIFETIME_MF)+1,1,LIFETIME_MF),OFFSET('Shipments and Stock - MF'!AP$14,0,(-1*LIFETIME_MF)+1,1,LIFETIME_MF))/ SUM(OFFSET('Shipments and Stock - MF'!AP$14,0,(-1*LIFETIME_MF)+1,1,LIFETIME_MF))) -> 715.5972193 | AP16: =IF(AP$15-$D$15+2<=LIFETIME_MF,AP11, SUMPRODUCT(OFFSET(AP11,0,(-1*LIFETIME_MF)+1,1,LIFETIME_MF),OFFSET('Shipments and Stock - MF'!AQ$14,0,(-1*LIFETIME_MF)+1,1,LIFETIME_MF))/ SUM(OFFSET('Shipments and Stock - MF'!AQ$14,0,(-1*LIFETIME_MF)+1,1,LIFETIME_MF))) -> 707.4227841 | AQ16: =IF(AQ$15-$D$15+2<=LIFETIME_MF,AQ11, SUMPRODUCT(OFFSET(AQ11,0,(-1*LIFETIME_MF)+1,1,LIFETIME_MF),OFFSET('Shipments and Stock - MF'!AR$14,0,(-1*LIFETIME_MF)+1,1,LIFETIME_MF))/ SUM(OFFSET('Shipments and Stock - MF'!AR$14,0,(-1*LIFETIME_MF)+1,1,LIFETIME_MF))) -> 698.8059795 | AR16: =IF(AR$15-$D$15+2<=LIFETIME_MF,AR11, SUMPRODUCT(OFFSET(AR11,0,(-1*LIFETIME_MF)+1,1,LIFETIME_MF),OFFSET('Shipments and Stock - MF'!AS$14,0,(-1*LIFETIME_MF)+1,1,LIFETIME_MF))/ SUM(OFFSET('Shipments and Stock - MF'!AS$14,0,(-1*LIFETIME_MF)+1,1,LIFETIME_MF))) -> 686.2476309 | AS16: =IF(AS$15-$D$15+2<=LIFETIME_MF,AS11, SUMPRODUCT(OFFSET(AS11,0,(-1*LIFETIME_MF)+1,1,LIFETIME_MF),OFFSET('Shipments and Stock - MF'!AT$14,0,(-1*LIFETIME_MF)+1,1,LIFETIME_MF))/ SUM(OFFSET('Shipments and Stock - MF'!AT$14,0,(-1*LIFETIME_MF)+1,1,LIFETIME_MF))) -> 674.5517972 | AT16: =IF(AT$15-$D$15+2<=LIFETIME_MF,AT11, SUMPRODUCT(OFFSET(AT11,0,(-1*LIFETIME_MF)+1,1,LIFETIME_MF),OFFSET('Shipments and Stock - MF'!AU$14,0,(-1*LIFETIME_MF)+1,1,LIFETIME_MF))/ SUM(OFFSET('Shipments and Stock - MF'!AU$14,0,(-1*LIFETIME_MF)+1,1,LIFETIME_MF))) -> 665.3371118 | AU16: =IF(AU$15-$D$15+2<=LIFETIME_MF,AU11, SUMPRODUCT(OFFSET(AU11,0,(-1*LIFETIME_MF)+1,1,LIFETIME_MF),OFFSET('Shipments and Stock - MF'!AV$14,0,(-1*LIFETIME_MF)+1,1,LIFETIME_MF))/ SUM(OFFSET('Shipments and Stock - MF'!AV$14,0,(-1*LIFETIME_MF)+1,1,LIFETIME_MF))) -> 657.043386 | AV16: =IF(AV$15-$D$15+2<=LIFETIME_MF,AV11, SUMPRODUCT(OFFSET(AV11,0,(-1*LIFETIME_MF)+1,1,LIFETIME_MF),OFFSET('Shipments and Stock - MF'!AW$14,0,(-1*LIFETIME_MF)+1,1,LIFETIME_MF))/ SUM(OFFSET('Shipments and Stock - MF'!AW$14,0,(-1*LIFETIME_MF)+1,1,LIFETIME_MF))) -> 649.8599694 | AW16: =IF(AW$15-$D$15+2<=LIFETIME_MF,AW11, SUMPRODUCT(OFFSET(AW11,0,(-1*LIFETIME_MF)+1,1,LIFETIME_MF),OFFSET('Shipments and Stock - MF'!AX$14,0,(-1*LIFETIME_MF)+1,1,LIFETIME_MF))/ SUM(OFFSET('Shipments and Stock - MF'!AX$14,0,(-1*LIFETIME_MF)+1,1,LIFETIME_MF))) -> 650.7154124 | AX16: =IF(AX$15-$D$15+2<=LIFETIME_MF,AX11, SUMPRODUCT(OFFSET(AX11,0,(-1*LIFETIME_MF)+1,1,LIFETIME_MF),OFFSET('Shipments and Stock - MF'!AY$14,0,(-1*LIFETIME_MF)+1,1,LIFETIME_MF))/ SUM(OFFSET('Shipments and Stock - MF'!AY$14,0,(-1*LIFETIME_MF)+1,1,LIFETIME_MF))) -> 651.6214843 | AY16: =IF(AY$15-$D$15+2<=LIFETIME_MF,AY11, SUMPRODUCT(OFFSET(AY11,0,(-1*LIFETIME_MF)+1,1,LIFETIME_MF),OFFSET('Shipments and Stock - MF'!AZ$14,0,(-1*LIFETIME_MF)+1,1,LIFETIME_MF))/ SUM(OFFSET('Shipments and Stock - MF'!AZ$14,0,(-1*LIFETIME_MF)+1,1,LIFETIME_MF))) -> 652.5282073 | AZ16: =IF(AZ$15-$D$15+2<=LIFETIME_MF,AZ11, SUMPRODUCT(OFFSET(AZ11,0,(-1*LIFETIME_MF)+1,1,LIFETIME_MF),OFFSET('Shipments and Stock - MF'!BA$14,0,(-1*LIFETIME_MF)+1,1,LIFETIME_MF))/ SUM(OFFSET('Shipments and Stock - MF'!BA$14,0,(-1*LIFETIME_MF)+1,1,LIFETIME_MF))) -> 653.5631438 | BA16: =IF(BA$15-$D$15+2<=LIFETIME_MF,BA11, SUMPRODUCT(OFFSET(BA11,0,(-1*LIFETIME_MF)+1,1,LIFETIME_MF),OFFSET('Shipments and Stock - MF'!BB$14,0,(-1*LIFETIME_MF)+1,1,LIFETIME_MF))/ SUM(OFFSET('Shipments and Stock - MF'!BB$14,0,(-1*LIFETIME_MF)+1,1,LIFETIME_MF))) -> 653.5631438 | BB16: =IF(BB$15-$D$15+2<=LIFETIME_MF,BB11, SUMPRODUCT(OFFSET(BB11,0,(-1*LIFETIME_MF)+1,1,LIFETIME_MF),OFFSET('Shipments and Stock - MF'!BC$14,0,(-1*LIFETIME_MF)+1,1,LIFETIME_MF))/ SUM(OFFSET('Shipments and Stock - MF'!BC$14,0,(-1*LIFETIME_MF)+1,1,LIFETIME_MF))) -> 653.5631438 | BC16: =IF(BC$15-$D$15+2<=LIFETIME_MF,BC11, SUMPRODUCT(OFFSET(BC11,0,(-1*LIFETIME_MF)+1,1,LIFETIME_MF),OFFSET('Shipments and Stock - MF'!BD$14,0,(-1*LIFETIME_MF)+1,1,LIFETIME_MF))/ SUM(OFFSET('Shipments and Stock - MF'!BD$14,0,(-1*LIFETIME_MF)+1,1,LIFETIME_MF))) -> 653.5631438 | BD16: =IF(BD$15-$D$15+2<=LIFETIME_MF,BD11, SUMPRODUCT(OFFSET(BD11,0,(-1*LIFETIME_MF)+1,1,LIFETIME_MF),OFFSET('Shipments and Stock - MF'!BE$14,0,(-1*LIFETIME_MF)+1,1,LIFETIME_MF))/ SUM(OFFSET('Shipments and Stock - MF'!BE$14,0,(-1*LIFETIME_MF)+1,1,LIFETIME_MF))) -> 653.5631438 | BE16: =IF(BE$15-$D$15+2<=LIFETIME_MF,BE11, SUMPRODUCT(OFFSET(BE11,0,(-1*LIFETIME_MF)+1,1,LIFETIME_MF),OFFSET('Shipments and Stock - MF'!BF$14,0,(-1*LIFETIME_MF)+1,1,LIFETIME_MF))/ SUM(OFFSET('Shipments and Stock - MF'!BF$14,0,(-1*LIFETIME_MF)+1,1,LIFETIME_MF))) -> 653.5631438
C17: POST-Case UEC | D17: =IF(D$15-$D$15+2<=LIFETIME_MF,D12, SUMPRODUCT(OFFSET(D12,0,(-1*LIFETIME_MF)+1,1,LIFETIME_MF),OFFSET('Shipments and Stock - MF'!E$14,0,(-1*LIFETIME_MF)+1,1,LIFETIME_MF))/ SUM(OFFSET('Shipments and Stock - MF'!E$14,0,(-1*LIFETIME_MF)+1,1,LIFETIME_MF))) -> 624.2 | E17: =IF(E$15-$D$15+2<=LIFETIME_MF,E12, SUMPRODUCT(OFFSET(E12,0,(-1*LIFETIME_MF)+1,1,LIFETIME_MF),OFFSET('Shipments and Stock - MF'!F$14,0,(-1*LIFETIME_MF)+1,1,LIFETIME_MF))/ SUM(OFFSET('Shipments and Stock - MF'!F$14,0,(-1*LIFETIME_MF)+1,1,LIFETIME_MF))) -> 624.2 | F17: =IF(F$15-$D$15+2<=LIFETIME_MF,F12, SUMPRODUCT(OFFSET(F12,0,(-1*LIFETIME_MF)+1,1,LIFETIME_MF),OFFSET('Shipments and Stock - MF'!G$14,0,(-1*LIFETIME_MF)+1,1,LIFETIME_MF))/ SUM(OFFSET('Shipments and Stock - MF'!G$14,0,(-1*LIFETIME_MF)+1,1,LIFETIME_MF))) -> 624.2 | G17: =IF(G$15-$D$15+2<=LIFETIME_MF,G12, SUMPRODUCT(OFFSET(G12,0,(-1*LIFETIME_MF)+1,1,LIFETIME_MF),OFFSET('Shipments and Stock - MF'!H$14,0,(-1*LIFETIME_MF)+1,1,LIFETIME_MF))/ SUM(OFFSET('Shipments and Stock - MF'!H$14,0,(-1*LIFETIME_MF)+1,1,LIFETIME_MF))) -> 624.2 | H17: =IF(H$15-$D$15+2<=LIFETIME_MF,H12, SUMPRODUCT(OFFSET(H12,0,(-1*LIFETIME_MF)+1,1,LIFETIME_MF),OFFSET('Shipments and Stock - MF'!I$14,0,(-1*LIFETIME_MF)+1,1,LIFETIME_MF))/ SUM(OFFSET('Shipments and Stock - MF'!I$14,0,(-1*LIFETIME_MF)+1,1,LIFETIME_MF))) -> 624.2 | I17: =IF(I$15-$D$15+2<=LIFETIME_MF,I12, SUMPRODUCT(OFFSET(I12,0,(-1*LIFETIME_MF)+1,1,LIFETIME_MF),OFFSET('Shipments and Stock - MF'!J$14,0,(-1*LIFETIME_MF)+1,1,LIFETIME_MF))/ SUM(OFFSET('Shipments and Stock - MF'!J$14,0,(-1*LIFETIME_MF)+1,1,LIFETIME_MF))) -> 624.2 | J17: =IF(J$15-$D$15+2<=LIFETIME_MF,J12, SUMPRODUCT(OFFSET(J12,0,(-1*LIFETIME_MF)+1,1,LIFETIME_MF),OFFSET('Shipments and Stock - MF'!K$14,0,(-1*LIFETIME_MF)+1,1,LIFETIME_MF))/ SUM(OFFSET('Shipments and Stock - MF'!K$14,0,(-1*LIFETIME_MF)+1,1,LIFETIME_MF))) -> 624.2 | K17: =IF(K$15-$D$15+2<=LIFETIME_MF,K12, SUMPRODUCT(OFFSET(K12,0,(-1*LIFETIME_MF)+1,1,LIFETIME_MF),OFFSET('Shipments and Stock - MF'!L$14,0,(-1*LIFETIME_MF)+1,1,LIFETIME_MF))/ SUM(OFFSET('Shipments and Stock - MF'!L$14,0,(-1*LIFETIME_MF)+1,1,LIFETIME_MF))) -> 624.2 | L17: =IF(L$15-$D$15+2<=LIFETIME_MF,L12, SUMPRODUCT(OFFSET(L12,0,(-1*LIFETIME_MF)+1,1,LIFETIME_MF),OFFSET('Shipments and Stock - MF'!M$14,0,(-1*LIFETIME_MF)+1,1,LIFETIME_MF))/ SUM(OFFSET('Shipments and Stock - MF'!M$14,0,(-1*LIFETIME_MF)+1,1,LIFETIME_MF))) -> 624.2 | M17: =IF(M$15-$D$15+2<=LIFETIME_MF,M12, SUMPRODUCT(OFFSET(M12,0,(-1*LIFETIME_MF)+1,1,LIFETIME_MF),OFFSET('Shipments and Stock - MF'!N$14,0,(-1*LIFETIME_MF)+1,1,LIFETIME_MF))/ SUM(OFFSET('Shipments and Stock - MF'!N$14,0,(-1*LIFETIME_MF)+1,1,LIFETIME_MF))) -> 624.2 | N17: =IF(N$15-$D$15+2<=LIFETIME_MF,N12, SUMPRODUCT(OFFSET(N12,0,(-1*LIFETIME_MF)+1,1,LIFETIME_MF),OFFSET('Shipments and Stock - MF'!O$14,0,(-1*LIFETIME_MF)+1,1,LIFETIME_MF))/ SUM(OFFSET('Shipments and Stock - MF'!O$14,0,(-1*LIFETIME_MF)+1,1,LIFETIME_MF))) -> 624.2 | O17: =IF(O$15-$D$15+2<=LIFETIME_MF,O12, SUMPRODUCT(OFFSET(O12,0,(-1*LIFETIME_MF)+1,1,LIFETIME_MF),OFFSET('Shipments and Stock - MF'!P$14,0,(-1*LIFETIME_MF)+1,1,LIFETIME_MF))/ SUM(OFFSET('Shipments and Stock - MF'!P$14,0,(-1*LIFETIME_MF)+1,1,LIFETIME_MF))) -> 624.2 | P17: =IF(P$15-$D$15+2<=LIFETIME_MF,P12, SUMPRODUCT(OFFSET(P12,0,(-1*LIFETIME_MF)+1,1,LIFETIME_MF),OFFSET('Shipments and Stock - MF'!Q$14,0,(-1*LIFETIME_MF)+1,1,LIFETIME_MF))/ SUM(OFFSET('Shipments and Stock - MF'!Q$14,0,(-1*LIFETIME_MF)+1,1,LIFETIME_MF))) -> 624.2 | Q17: =IF(Q$15-$D$15+2<=LIFETIME_MF,Q12, SUMPRODUCT(OFFSET(Q12,0,(-1*LIFETIME_MF)+1,1,LIFETIME_MF),OFFSET('Shipments and Stock - MF'!R$14,0,(-1*LIFETIME_MF)+1,1,LIFETIME_MF))/ SUM(OFFSET('Shipments and Stock - MF'!R$14,0,(-1*LIFETIME_MF)+1,1,LIFETIME_MF))) -> 624.2 | R17: =IF(R$15-$D$15+2<=LIFETIME_MF,R12, SUMPRODUCT(OFFSET(R12,0,(-1*LIFETIME_MF)+1,1,LIFETIME_MF),OFFSET('Shipments and Stock - MF'!S$14,0,(-1*LIFETIME_MF)+1,1,LIFETIME_MF))/ SUM(OFFSET('Shipments and Stock - MF'!S$14,0,(-1*LIFETIME_MF)+1,1,LIFETIME_MF))) -> 721.7 | S17: =IF(S$15-$D$15+2<=LIFETIME_MF,S12, SUMPRODUCT(OFFSET(S12,0,(-1*LIFETIME_MF)+1,1,LIFETIME_MF),OFFSET('Shipments and Stock - MF'!T$14,0,(-1*LIFETIME_MF)+1,1,LIFETIME_MF))/ SUM(OFFSET('Shipments and Stock - MF'!T$14,0,(-1*LIFETIME_MF)+1,1,LIFETIME_MF))) -> 636.7337559 | T17: =IF(T$15-$D$15+2<=LIFETIME_MF,T12, SUMPRODUCT(OFFSET(T12,0,(-1*LIFETIME_MF)+1,1,LIFETIME_MF),OFFSET('Shipments and Stock - MF'!U$14,0,(-1*LIFETIME_MF)+1,1,LIFETIME_MF))/ SUM(OFFSET('Shipments and Stock - MF'!U$14,0,(-1*LIFETIME_MF)+1,1,LIFETIME_MF))) -> 643.8867766 | U17: =IF(U$15-$D$15+2<=LIFETIME_MF,U12, SUMPRODUCT(OFFSET(U12,0,(-1*LIFETIME_MF)+1,1,LIFETIME_MF),OFFSET('Shipments and Stock - MF'!V$14,0,(-1*LIFETIME_MF)+1,1,LIFETIME_MF))/ SUM(OFFSET('Shipments and Stock - MF'!V$14,0,(-1*LIFETIME_MF)+1,1,LIFETIME_MF))) -> 650.5699692 | V17: =IF(V$15-$D$15+2<=LIFETIME_MF,V12, SUMPRODUCT(OFFSET(V12,0,(-1*LIFETIME_MF)+1,1,LIFETIME_MF),OFFSET('Shipments and Stock - MF'!W$14,0,(-1*LIFETIME_MF)+1,1,LIFETIME_MF))/ SUM(OFFSET('Shipments and Stock - MF'!W$14,0,(-1*LIFETIME_MF)+1,1,LIFETIME_MF))) -> 656.7927987 | W17: =IF(W$15-$D$15+2<=LIFETIME_MF,W12, SUMPRODUCT(OFFSET(W12,0,(-1*LIFETIME_MF)+1,1,LIFETIME_MF),OFFSET('Shipments and Stock - MF'!X$14,0,(-1*LIFETIME_MF)+1,1,LIFETIME_MF))/ SUM(OFFSET('Shipments and Stock - MF'!X$14,0,(-1*LIFETIME_MF)+1,1,LIFETIME_MF))) -> 666.804611 | X17: =IF(X$15-$D$15+2<=LIFETIME_MF,X12, SUMPRODUCT(OFFSET(X12,0,(-1*LIFETIME_MF)+1,1,LIFETIME_MF),OFFSET('Shipments and Stock - MF'!Y$14,0,(-1*LIFETIME_MF)+1,1,LIFETIME_MF))/ SUM(OFFSET('Shipments and Stock - MF'!Y$14,0,(-1*LIFETIME_MF)+1,1,LIFETIME_MF))) -> 677.7680958 | Y17: =IF(Y$15-$D$15+2<=LIFETIME_MF,Y12, SUMPRODUCT(OFFSET(Y12,0,(-1*LIFETIME_MF)+1,1,LIFETIME_MF),OFFSET('Shipments and Stock - MF'!Z$14,0,(-1*LIFETIME_MF)+1,1,LIFETIME_MF))/ SUM(OFFSET('Shipments and Stock - MF'!Z$14,0,(-1*LIFETIME_MF)+1,1,LIFETIME_MF))) -> 687.8385773 | Z17: =IF(Z$15-$D$15+2<=LIFETIME_MF,Z12, SUMPRODUCT(OFFSET(Z12,0,(-1*LIFETIME_MF)+1,1,LIFETIME_MF),OFFSET('Shipments and Stock - MF'!AA$14,0,(-1*LIFETIME_MF)+1,1,LIFETIME_MF))/ SUM(OFFSET('Shipments and Stock - MF'!AA$14,0,(-1*LIFETIME_MF)+1,1,LIFETIME_MF))) -> 697.9932293 | AA17: =IF(AA$15-$D$15+2<=LIFETIME_MF,AA12, SUMPRODUCT(OFFSET(AA12,0,(-1*LIFETIME_MF)+1,1,LIFETIME_MF),OFFSET('Shipments and Stock - MF'!AB$14,0,(-1*LIFETIME_MF)+1,1,LIFETIME_MF))/ SUM(OFFSET('Shipments and Stock - MF'!AB$14,0,(-1*LIFETIME_MF)+1,1,LIFETIME_MF))) -> 708.8070921 | AB17: =IF(AB$15-$D$15+2<=LIFETIME_MF,AB12, SUMPRODUCT(OFFSET(AB12,0,(-1*LIFETIME_MF)+1,1,LIFETIME_MF),OFFSET('Shipments and Stock - MF'!AC$14,0,(-1*LIFETIME_MF)+1,1,LIFETIME_MF))/ SUM(OFFSET('Shipments and Stock - MF'!AC$14,0,(-1*LIFETIME_MF)+1,1,LIFETIME_MF))) -> 724.8883635 | AC17: =IF(AC$15-$D$15+2<=LIFETIME_MF,AC12, SUMPRODUCT(OFFSET(AC12,0,(-1*LIFETIME_MF)+1,1,LIFETIME_MF),OFFSET('Shipments and Stock - MF'!AD$14,0,(-1*LIFETIME_MF)+1,1,LIFETIME_MF))/ SUM(OFFSET('Shipments and Stock - MF'!AD$14,0,(-1*LIFETIME_MF)+1,1,LIFETIME_MF))) -> 739.5732924 | AD17: =IF(AD$15-$D$15+2<=LIFETIME_MF,AD12, SUMPRODUCT(OFFSET(AD12,0,(-1*LIFETIME_MF)+1,1,LIFETIME_MF),OFFSET('Shipments and Stock - MF'!AE$14,0,(-1*LIFETIME_MF)+1,1,LIFETIME_MF))/ SUM(OFFSET('Shipments and Stock - MF'!AE$14,0,(-1*LIFETIME_MF)+1,1,LIFETIME_MF))) -> 750.6934254 | AE17: =IF(AE$15-$D$15+2<=LIFETIME_MF,AE12, SUMPRODUCT(OFFSET(AE12,0,(-1*LIFETIME_MF)+1,1,LIFETIME_MF),OFFSET('Shipments and Stock - MF'!AF$14,0,(-1*LIFETIME_MF)+1,1,LIFETIME_MF))/ SUM(OFFSET('Shipments and Stock - MF'!AF$14,0,(-1*LIFETIME_MF)+1,1,LIFETIME_MF))) -> 761.1611747 | AF17: =IF(AF$15-$D$15+2<=LIFETIME_MF,AF12, SUMPRODUCT(OFFSET(AF12,0,(-1*LIFETIME_MF)+1,1,LIFETIME_MF),OFFSET('Shipments and Stock - MF'!AG$14,0,(-1*LIFETIME_MF)+1,1,LIFETIME_MF))/ SUM(OFFSET('Shipments and Stock - MF'!AG$14,0,(-1*LIFETIME_MF)+1,1,LIFETIME_MF))) -> 771.2239739 | AG17: =IF(AG$15-$D$15+2<=LIFETIME_MF,AG12, SUMPRODUCT(OFFSET(AG12,0,(-1*LIFETIME_MF)+1,1,LIFETIME_MF),OFFSET('Shipments and Stock - MF'!AH$14,0,(-1*LIFETIME_MF)+1,1,LIFETIME_MF))/ SUM(OFFSET('Shipments and Stock - MF'!AH$14,0,(-1*LIFETIME_MF)+1,1,LIFETIME_MF))) -> 770.6364267 | AH17: =IF(AH$15-$D$15+2<=LIFETIME_MF,AH12, SUMPRODUCT(OFFSET(AH12,0,(-1*LIFETIME_MF)+1,1,LIFETIME_MF),OFFSET('Shipments and Stock - MF'!AI$14,0,(-1*LIFETIME_MF)+1,1,LIFETIME_MF))/ SUM(OFFSET('Shipments and Stock - MF'!AI$14,0,(-1*LIFETIME_MF)+1,1,LIFETIME_MF))) -> 764.632728 | AI17: =IF(AI$15-$D$15+2<=LIFETIME_MF,AI12, SUMPRODUCT(OFFSET(AI12,0,(-1*LIFETIME_MF)+1,1,LIFETIME_MF),OFFSET('Shipments and Stock - MF'!AJ$14,0,(-1*LIFETIME_MF)+1,1,LIFETIME_MF))/ SUM(OFFSET('Shipments and Stock - MF'!AJ$14,0,(-1*LIFETIME_MF)+1,1,LIFETIME_MF))) -> 758.5239201 | AJ17: =IF(AJ$15-$D$15+2<=LIFETIME_MF,AJ12, SUMPRODUCT(OFFSET(AJ12,0,(-1*LIFETIME_MF)+1,1,LIFETIME_MF),OFFSET('Shipments and Stock - MF'!AK$14,0,(-1*LIFETIME_MF)+1,1,LIFETIME_MF))/ SUM(OFFSET('Shipments and Stock - MF'!AK$14,0,(-1*LIFETIME_MF)+1,1,LIFETIME_MF))) -> 751.5850277 | AK17: =IF(AK$15-$D$15+2<=LIFETIME_MF,AK12, SUMPRODUCT(OFFSET(AK12,0,(-1*LIFETIME_MF)+1,1,LIFETIME_MF),OFFSET('Shipments and Stock - MF'!AL$14,0,(-1*LIFETIME_MF)+1,1,LIFETIME_MF))/ SUM(OFFSET('Shipments and Stock - MF'!AL$14,0,(-1*LIFETIME_MF)+1,1,LIFETIME_MF))) -> 746.0984201 | AL17: =IF(AL$15-$D$15+2<=LIFETIME_MF,AL12, SUMPRODUCT(OFFSET(AL12,0,(-1*LIFETIME_MF)+1,1,LIFETIME_MF),OFFSET('Shipments and Stock - MF'!AM$14,0,(-1*LIFETIME_MF)+1,1,LIFETIME_MF))/ SUM(OFFSET('Shipments and Stock - MF'!AM$14,0,(-1*LIFETIME_MF)+1,1,LIFETIME_MF))) -> 739.5297106 | AM17: =IF(AM$15-$D$15+2<=LIFETIME_MF,AM12, SUMPRODUCT(OFFSET(AM12,0,(-1*LIFETIME_MF)+1,1,LIFETIME_MF),OFFSET('Shipments and Stock - MF'!AN$14,0,(-1*LIFETIME_MF)+1,1,LIFETIME_MF))/ SUM(OFFSET('Shipments and Stock - MF'!AN$14,0,(-1*LIFETIME_MF)+1,1,LIFETIME_MF))) -> 730.016252 | AN17: =IF(AN$15-$D$15+2<=LIFETIME_MF,AN12, SUMPRODUCT(OFFSET(AN12,0,(-1*LIFETIME_MF)+1,1,LIFETIME_MF),OFFSET('Shipments and Stock - MF'!AO$14,0,(-1*LIFETIME_MF)+1,1,LIFETIME_MF))/ SUM(OFFSET('Shipments and Stock - MF'!AO$14,0,(-1*LIFETIME_MF)+1,1,LIFETIME_MF))) -> 719.8319373 | AO17: =IF(AO$15-$D$15+2<=LIFETIME_MF,AO12, SUMPRODUCT(OFFSET(AO12,0,(-1*LIFETIME_MF)+1,1,LIFETIME_MF),OFFSET('Shipments and Stock - MF'!AP$14,0,(-1*LIFETIME_MF)+1,1,LIFETIME_MF))/ SUM(OFFSET('Shipments and Stock - MF'!AP$14,0,(-1*LIFETIME_MF)+1,1,LIFETIME_MF))) -> 710.402906 | AP17: =IF(AP$15-$D$15+2<=LIFETIME_MF,AP12, SUMPRODUCT(OFFSET(AP12,0,(-1*LIFETIME_MF)+1,1,LIFETIME_MF),OFFSET('Shipments and Stock - MF'!AQ$14,0,(-1*LIFETIME_MF)+1,1,LIFETIME_MF))/ SUM(OFFSET('Shipments and Stock - MF'!AQ$14,0,(-1*LIFETIME_MF)+1,1,LIFETIME_MF))) -> 700.9586844 | AQ17: =IF(AQ$15-$D$15+2<=LIFETIME_MF,AQ12, SUMPRODUCT(OFFSET(AQ12,0,(-1*LIFETIME_MF)+1,1,LIFETIME_MF),OFFSET('Shipments and Stock - MF'!AR$14,0,(-1*LIFETIME_MF)+1,1,LIFETIME_MF))/ SUM(OFFSET('Shipments and Stock - MF'!AR$14,0,(-1*LIFETIME_MF)+1,1,LIFETIME_MF))) -> 691.0079169 | AR17: =IF(AR$15-$D$15+2<=LIFETIME_MF,AR12, SUMPRODUCT(OFFSET(AR12,0,(-1*LIFETIME_MF)+1,1,LIFETIME_MF),OFFSET('Shipments and Stock - MF'!AS$14,0,(-1*LIFETIME_MF)+1,1,LIFETIME_MF))/ SUM(OFFSET('Shipments and Stock - MF'!AS$14,0,(-1*LIFETIME_MF)+1,1,LIFETIME_MF))) -> 677.0949252 | AS17: =IF(AS$15-$D$15+2<=LIFETIME_MF,AS12, SUMPRODUCT(OFFSET(AS12,0,(-1*LIFETIME_MF)+1,1,LIFETIME_MF),OFFSET('Shipments and Stock - MF'!AT$14,0,(-1*LIFETIME_MF)+1,1,LIFETIME_MF))/ SUM(OFFSET('Shipments and Stock - MF'!AT$14,0,(-1*LIFETIME_MF)+1,1,LIFETIME_MF))) -> 664.1330754 | AT17: =IF(AT$15-$D$15+2<=LIFETIME_MF,AT12, SUMPRODUCT(OFFSET(AT12,0,(-1*LIFETIME_MF)+1,1,LIFETIME_MF),OFFSET('Shipments and Stock - MF'!AU$14,0,(-1*LIFETIME_MF)+1,1,LIFETIME_MF))/ SUM(OFFSET('Shipments and Stock - MF'!AU$14,0,(-1*LIFETIME_MF)+1,1,LIFETIME_MF))) -> 653.9033329 | AU17: =IF(AU$15-$D$15+2<=LIFETIME_MF,AU12, SUMPRODUCT(OFFSET(AU12,0,(-1*LIFETIME_MF)+1,1,LIFETIME_MF),OFFSET('Shipments and Stock - MF'!AV$14,0,(-1*LIFETIME_MF)+1,1,LIFETIME_MF))/ SUM(OFFSET('Shipments and Stock - MF'!AV$14,0,(-1*LIFETIME_MF)+1,1,LIFETIME_MF))) -> 644.6900715 | AV17: =IF(AV$15-$D$15+2<=LIFETIME_MF,AV12, SUMPRODUCT(OFFSET(AV12,0,(-1*LIFETIME_MF)+1,1,LIFETIME_MF),OFFSET('Shipments and Stock - MF'!AW$14,0,(-1*LIFETIME_MF)+1,1,LIFETIME_MF))/ SUM(OFFSET('Shipments and Stock - MF'!AW$14,0,(-1*LIFETIME_MF)+1,1,LIFETIME_MF))) -> 636.7020724 | AW17: =IF(AW$15-$D$15+2<=LIFETIME_MF,AW12, SUMPRODUCT(OFFSET(AW12,0,(-1*LIFETIME_MF)+1,1,LIFETIME_MF),OFFSET('Shipments and Stock - MF'!AX$14,0,(-1*LIFETIME_MF)+1,1,LIFETIME_MF))/ SUM(OFFSET('Shipments and Stock - MF'!AX$14,0,(-1*LIFETIME_MF)+1,1,LIFETIME_MF))) -> 636.6915158 | AX17: =IF(AX$15-$D$15+2<=LIFETIME_MF,AX12, SUMPRODUCT(OFFSET(AX12,0,(-1*LIFETIME_MF)+1,1,LIFETIME_MF),OFFSET('Shipments and Stock - MF'!AY$14,0,(-1*LIFETIME_MF)+1,1,LIFETIME_MF))/ SUM(OFFSET('Shipments and Stock - MF'!AY$14,0,(-1*LIFETIME_MF)+1,1,LIFETIME_MF))) -> 636.6819983 | AY17: =IF(AY$15-$D$15+2<=LIFETIME_MF,AY12, SUMPRODUCT(OFFSET(AY12,0,(-1*LIFETIME_MF)+1,1,LIFETIME_MF),OFFSET('Shipments and Stock - MF'!AZ$14,0,(-1*LIFETIME_MF)+1,1,LIFETIME_MF))/ SUM(OFFSET('Shipments and Stock - MF'!AZ$14,0,(-1*LIFETIME_MF)+1,1,LIFETIME_MF))) -> 636.6730399 | AZ17: =IF(AZ$15-$D$15+2<=LIFETIME_MF,AZ12, SUMPRODUCT(OFFSET(AZ12,0,(-1*LIFETIME_MF)+1,1,LIFETIME_MF),OFFSET('Shipments and Stock - MF'!BA$14,0,(-1*LIFETIME_MF)+1,1,LIFETIME_MF))/ SUM(OFFSET('Shipments and Stock - MF'!BA$14,0,(-1*LIFETIME_MF)+1,1,LIFETIME_MF))) -> 636.665663 | BA17: =IF(BA$15-$D$15+2<=LIFETIME_MF,BA12, SUMPRODUCT(OFFSET(BA12,0,(-1*LIFETIME_MF)+1,1,LIFETIME_MF),OFFSET('Shipments and Stock - MF'!BB$14,0,(-1*LIFETIME_MF)+1,1,LIFETIME_MF))/ SUM(OFFSET('Shipments and Stock - MF'!BB$14,0,(-1*LIFETIME_MF)+1,1,LIFETIME_MF))) -> 635.6456846 | BB17: =IF(BB$15-$D$15+2<=LIFETIME_MF,BB12, SUMPRODUCT(OFFSET(BB12,0,(-1*LIFETIME_MF)+1,1,LIFETIME_MF),OFFSET('Shipments and Stock - MF'!BC$14,0,(-1*LIFETIME_MF)+1,1,LIFETIME_MF))/ SUM(OFFSET('Shipments and Stock - MF'!BC$14,0,(-1*LIFETIME_MF)+1,1,LIFETIME_MF))) -> 635.6456846 | BC17: =IF(BC$15-$D$15+2<=LIFETIME_MF,BC12, SUMPRODUCT(OFFSET(BC12,0,(-1*LIFETIME_MF)+1,1,LIFETIME_MF),OFFSET('Shipments and Stock - MF'!BD$14,0,(-1*LIFETIME_MF)+1,1,LIFETIME_MF))/ SUM(OFFSET('Shipments and Stock - MF'!BD$14,0,(-1*LIFETIME_MF)+1,1,LIFETIME_MF))) -> 635.6456846 | BD17: =IF(BD$15-$D$15+2<=LIFETIME_MF,BD12, SUMPRODUCT(OFFSET(BD12,0,(-1*LIFETIME_MF)+1,1,LIFETIME_MF),OFFSET('Shipments and Stock - MF'!BE$14,0,(-1*LIFETIME_MF)+1,1,LIFETIME_MF))/ SUM(OFFSET('Shipments and Stock - MF'!BE$14,0,(-1*LIFETIME_MF)+1,1,LIFETIME_MF))) -> 635.6456846 | BE17: =IF(BE$15-$D$15+2<=LIFETIME_MF,BE12, SUMPRODUCT(OFFSET(BE12,0,(-1*LIFETIME_MF)+1,1,LIFETIME_MF),OFFSET('Shipments and Stock - MF'!BF$14,0,(-1*LIFETIME_MF)+1,1,LIFETIME_MF))/ SUM(OFFSET('Shipments and Stock - MF'!BF$14,0,(-1*LIFETIME_MF)+1,1,LIFETIME_MF))) -> 635.6456846

Sheet UEC-MH
C2: Weighted Average Annual UEC - Manufactured Homes
C4: NAVIGATION
C6: COMMENTS
C9: Market UEC (Shipment Weighted Average)
D10: 1981 | E10: 1982 | F10: 1983 | G10: 1984 | H10: 1985 | I10: 1986 | J10: 1987 | K10: 1988 | L10: 1989 | M10: 1990 | N10: 1991 | O10: 1992 | P10: 1993 | Q10: 1994 | R10: 1995 | S10: 1996 | T10: 1997 | U10: 1998 | V10: 1999 | W10: 2000 | X10: 2001 | Y10: 2002 | Z10: 2003 | AA10: 2004 | AB10: 2005 | AC10: 2006 | AD10: 2007 | AE10: 2008 | AF10: 2009 | AG10: 2010 | AH10: 2011 | AI10: 2012 | AJ10: 2013 | AK10: 2014 | AL10: 2015 | AM10: 2016 | AN10: 2017 | AO10: 2018 | AP10: 2019 | AQ10: 2020 | AR10: 2021 | AS10: 2022 | AT10: 2023 | AU10: 2024 | AV10: 2025 | AW10: 2026 | AX10: 2027 | AY10: 2028 | AZ10: 2029 | BA10: 2030 | BB10: 2031 | BC10: 2032 | BD10: 2033 | BE10: 2034
C11: PRE-Case UEC | D11: ='Data by Building Type'!$F$27 -> 624.2 | E11: ='Data by Building Type'!$F$27 -> 624.2 | F11: ='Data by Building Type'!$F$27 -> 624.2 | G11: ='Data by Building Type'!$F$27 -> 624.2 | H11: ='Data by Building Type'!$F$27 -> 624.2 | I11: ='Data by Building Type'!$F$27 -> 624.2 | J11: ='Data by Building Type'!$F$27 -> 624.2 | K11: ='Data by Building Type'!$F$27 -> 624.2 | L11: ='Data by Building Type'!$F$27 -> 624.2 | M11: ='Data by Building Type'!$F$27 -> 624.2 | N11: ='Data by Building Type'!$F$27 -> 624.2 | O11: ='Data by Building Type'!$F$27 -> 624.2 | P11: ='Data by Building Type'!$F$27 -> 624.2 | Q11: ='Data by Building Type'!$F$27 -> 624.2 | R11: ='Data by Building Type'!$F$28 -> 721.7 | S11: ='Data by Building Type'!$F$28 -> 721.7 | T11: ='Data by Building Type'!$F$28 -> 721.7 | U11: ='Data by Building Type'!$F$28 -> 721.7 | V11: ='Data by Building Type'!$F$28 -> 721.7 | W11: ='Data by Building Type'!$F$29 -> 775.2 | X11: ='Data by Building Type'!$F$29 -> 775.2 | Y11: ='Data by Building Type'!$F$29 -> 775.2 | Z11: ='Data by Building Type'!$F$29 -> 775.2 | AA11: ='Data by Building Type'!$F$29 -> 775.2 | AB11: ='Data by Building Type'!$F$30 -> 832.8 | AC11: ='Data by Building Type'!$F$30 -> 832.8 | AD11: ='Data by Building Type'!$F$30 -> 832.8 | AE11: ='Data by Building Type'!$F$30 -> 832.8 | AF11: ='Data by Building Type'!$F$30 -> 832.8 | AG11: ='Data by Building Type'!$F$31 -> 635.5 | AH11: ='Data by Building Type'!$F$31 -> 635.5 | AI11: ='Data by Building Type'!$F$31 -> 635.5 | AJ11: ='Data by Building Type'!$F$31 -> 635.5 | AK11: =SUMPRODUCT('UEC Development'!$L$14:$L$20,'Efficiency Dist - MH'!AO13:AO19) -> 653.5631438 | AL11: =SUMPRODUCT('UEC Development'!$L$14:$L$20,'Efficiency Dist - MH'!AP13:AP19) -> 653.5631438 | AM11: =SUMPRODUCT('UEC Development'!$L$14:$L$20,'Efficiency Dist - MH'!AQ13:AQ19) -> 653.5631438 | AN11: =SUMPRODUCT('UEC Development'!$L$14:$L$20,'Efficiency Dist - MH'!AR13:AR19) -> 653.5631438 | AO11: =SUMPRODUCT('UEC Development'!$L$14:$L$20,'Efficiency Dist - MH'!AS13:AS19) -> 653.5631438 | AP11: =SUMPRODUCT('UEC Development'!$L$14:$L$20,'Efficiency Dist - MH'!AT13:AT19) -> 653.5631438 | AQ11: =SUMPRODUCT('UEC Development'!$L$14:$L$20,'Efficiency Dist - MH'!AU13:AU19) -> 653.5631438 | AR11: =SUMPRODUCT('UEC Development'!$L$14:$L$20,'Efficiency Dist - MH'!AV13:AV19) -> 653.5631438 | AS11: =SUMPRODUCT('UEC Development'!$L$14:$L$20,'Efficiency Dist - MH'!AW13:AW19) -> 653.5631438 | AT11: =SUMPRODUCT('UEC Development'!$L$14:$L$20,'Efficiency Dist - MH'!AX13:AX19) -> 653.5631438 | AU11: =SUMPRODUCT('UEC Development'!$L$14:$L$20,'Efficiency Dist - MH'!AY13:AY19) -> 653.5631438 | AV11: =SUMPRODUCT('UEC Development'!$L$14:$L$20,'Efficiency Dist - MH'!AZ13:AZ19) -> 653.5631438 | AW11: =SUMPRODUCT('UEC Development'!$L$14:$L$20,'Efficiency Dist - MH'!BA13:BA19) -> 653.5631438 | AX11: =SUMPRODUCT('UEC Development'!$L$14:$L$20,'Efficiency Dist - MH'!BB13:BB19) -> 653.5631438 | AY11: =SUMPRODUCT('UEC Development'!$L$14:$L$20,'Efficiency Dist - MH'!BC13:BC19) -> 653.5631438 | AZ11: =SUMPRODUCT('UEC Development'!$L$14:$L$20,'Efficiency Dist - MH'!BD13:BD19) -> 653.5631438 | BA11: =SUMPRODUCT('UEC Development'!$L$14:$L$20,'Efficiency Dist - MH'!BE13:BE19) -> 653.5631438 | BB11: =SUMPRODUCT('UEC Development'!$L$14:$L$20,'Efficiency Dist - MH'!BF13:BF19) -> 653.5631438 | BC11: =SUMPRODUCT('UEC Development'!$L$14:$L$20,'Efficiency Dist - MH'!BG13:BG19) -> 653.5631438 | BD11: =SUMPRODUCT('UEC Development'!$L$14:$L$20,'Efficiency Dist - MH'!BH13:BH19) -> 653.5631438 | BE11: =SUMPRODUCT('UEC Development'!$L$14:$L$20,'Efficiency Dist - MH'!BI13:BI19) -> 653.5631438
C12: POST-Case UEC | D12: ='Data by Building Type'!$F$27 -> 624.2 | E12: ='Data by Building Type'!$F$27 -> 624.2 | F12: ='Data by Building Type'!$F$27 -> 624.2 | G12: ='Data by Building Type'!$F$27 -> 624.2 | H12: ='Data by Building Type'!$F$27 -> 624.2 | I12: ='Data by Building Type'!$F$27 -> 624.2 | J12: ='Data by Building Type'!$F$27 -> 624.2 | K12: ='Data by Building Type'!$F$27 -> 624.2 | L12: ='Data by Building Type'!$F$27 -> 624.2 | M12: ='Data by Building Type'!$F$27 -> 624.2 | N12: ='Data by Building Type'!$F$27 -> 624.2 | O12: ='Data by Building Type'!$F$27 -> 624.2 | P12: ='Data by Building Type'!$F$27 -> 624.2 | Q12: ='Data by Building Type'!$F$27 -> 624.2 | R12: ='Data by Building Type'!$F$28 -> 721.7 | S12: ='Data by Building Type'!$F$28 -> 721.7 | T12: ='Data by Building Type'!$F$28 -> 721.7 | U12: ='Data by Building Type'!$F$28 -> 721.7 | V12: ='Data by Building Type'!$F$28 -> 721.7 | W12: ='Data by Building Type'!$F$29 -> 775.2 | X12: ='Data by Building Type'!$F$29 -> 775.2 | Y12: ='Data by Building Type'!$F$29 -> 775.2 | Z12: ='Data by Building Type'!$F$29 -> 775.2 | AA12: ='Data by Building Type'!$F$29 -> 775.2 | AB12: ='Data by Building Type'!$F$30 -> 832.8 | AC12: ='Data by Building Type'!$F$30 -> 832.8 | AD12: ='Data by Building Type'!$F$30 -> 832.8 | AE12: ='Data by Building Type'!$F$30 -> 832.8 | AF12: ='Data by Building Type'!$F$30 -> 832.8 | AG12: ='Data by Building Type'!$F$31 -> 635.5 | AH12: ='Data by Building Type'!$F$31 -> 635.5 | AI12: ='Data by Building Type'!$F$31 -> 635.5 | AJ12: ='Data by Building Type'!$F$31 -> 635.5 | AK12: =SUMPRODUCT('UEC Development'!$L$14:$L$20,'Efficiency Dist - MH'!AO24:AO30) -> 653.5631438 | AL12: =SUMPRODUCT('UEC Development'!$L$14:$L$20,'Efficiency Dist - MH'!AP24:AP30) -> 635.6456846 | AM12: =SUMPRODUCT('UEC Development'!$L$14:$L$20,'Efficiency Dist - MH'!AQ24:AQ30) -> 635.6456846 | AN12: =SUMPRODUCT('UEC Development'!$L$14:$L$20,'Efficiency Dist - MH'!AR24:AR30) -> 635.6456846 | AO12: =SUMPRODUCT('UEC Development'!$L$14:$L$20,'Efficiency Dist - MH'!AS24:AS30) -> 635.6456846 | AP12: =SUMPRODUCT('UEC Development'!$L$14:$L$20,'Efficiency Dist - MH'!AT24:AT30) -> 635.6456846 | AQ12: =SUMPRODUCT('UEC Development'!$L$14:$L$20,'Efficiency Dist - MH'!AU24:AU30) -> 635.6456846 | AR12: =SUMPRODUCT('UEC Development'!$L$14:$L$20,'Efficiency Dist - MH'!AV24:AV30) -> 635.6456846 | AS12: =SUMPRODUCT('UEC Development'!$L$14:$L$20,'Efficiency Dist - MH'!AW24:AW30) -> 635.6456846 | AT12: =SUMPRODUCT('UEC Development'!$L$14:$L$20,'Efficiency Dist - MH'!AX24:AX30) -> 635.6456846 | AU12: =SUMPRODUCT('UEC Development'!$L$14:$L$20,'Efficiency Dist - MH'!AY24:AY30) -> 635.6456846 | AV12: =SUMPRODUCT('UEC Development'!$L$14:$L$20,'Efficiency Dist - MH'!AZ24:AZ30) -> 635.6456846 | AW12: =SUMPRODUCT('UEC Development'!$L$14:$L$20,'Efficiency Dist - MH'!BA24:BA30) -> 635.6456846 | AX12: =SUMPRODUCT('UEC Development'!$L$14:$L$20,'Efficiency Dist - MH'!BB24:BB30) -> 635.6456846 | AY12: =SUMPRODUCT('UEC Development'!$L$14:$L$20,'Efficiency Dist - MH'!BC24:BC30) -> 635.6456846 | AZ12: =SUMPRODUCT('UEC Development'!$L$14:$L$20,'Efficiency Dist - MH'!BD24:BD30) -> 635.6456846 | BA12: =SUMPRODUCT('UEC Development'!$L$14:$L$20,'Efficiency Dist - MH'!BE24:BE30) -> 635.6456846 | BB12: =SUMPRODUCT('UEC Development'!$L$14:$L$20,'Efficiency Dist - MH'!BF24:BF30) -> 635.6456846 | BC12: =SUMPRODUCT('UEC Development'!$L$14:$L$20,'Efficiency Dist - MH'!BG24:BG30) -> 635.6456846 | BD12: =SUMPRODUCT('UEC Development'!$L$14:$L$20,'Efficiency Dist - MH'!BH24:BH30) -> 635.6456846 | BE12: =SUMPRODUCT('UEC Development'!$L$14:$L$20,'Efficiency Dist - MH'!BI24:BI30) -> 635.6456846
C14: Installed UEC (Vintage Weighted Average)
D15: 1981 | E15: 1982 | F15: 1983 | G15: 1984 | H15: 1985 | I15: 1986 | J15: 1987 | K15: 1988 | L15: 1989 | M15: 1990 | N15: 1991 | O15: 1992 | P15: 1993 | Q15: 1994 | R15: 1995 | S15: 1996 | T15: 1997 | U15: 1998 | V15: 1999 | W15: 2000 | X15: 2001 | Y15: 2002 | Z15: 2003 | AA15: 2004 | AB15: 2005 | AC15: 2006 | AD15: 2007 | AE15: 2008 | AF15: 2009 | AG15: 2010 | AH15: 2011 | AI15: 2012 | AJ15: 2013 | AK15: 2014 | AL15: 2015 | AM15: 2016 | AN15: 2017 | AO15: 2018 | AP15: 2019 | AQ15: 2020 | AR15: 2021 | AS15: 2022 | AT15: 2023 | AU15: 2024 | AV15: 2025 | AW15: 2026 | AX15: 2027 | AY15: 2028 | AZ15: 2029 | BA15: 2030 | BB15: 2031 | BC15: 2032 | BD15: 2033 | BE15: 2034
C16: PRE-Case UEC | D16: =IF(D$15-$D$15+2<=LIFETIME_MH,D11, SUMPRODUCT(OFFSET(D11,0,(-1*LIFETIME_MH)+1,1,LIFETIME_MH),OFFSET('Shipments and Stock - MH'!E$14,0,(-1*LIFETIME_MH)+1,1,LIFETIME_MH))/ SUM(OFFSET('Shipments and Stock - MH'!E$14,0,(-1*LIFETIME_MH)+1,1,LIFETIME_MH))) -> 624.2 | E16: =IF(E$15-$D$15+2<=LIFETIME_MH,E11, SUMPRODUCT(OFFSET(E11,0,(-1*LIFETIME_MH)+1,1,LIFETIME_MH),OFFSET('Shipments and Stock - MH'!F$14,0,(-1*LIFETIME_MH)+1,1,LIFETIME_MH))/ SUM(OFFSET('Shipments and Stock - MH'!F$14,0,(-1*LIFETIME_MH)+1,1,LIFETIME_MH))) -> 624.2 | F16: =IF(F$15-$D$15+2<=LIFETIME_MH,F11, SUMPRODUCT(OFFSET(F11,0,(-1*LIFETIME_MH)+1,1,LIFETIME_MH),OFFSET('Shipments and Stock - MH'!G$14,0,(-1*LIFETIME_MH)+1,1,LIFETIME_MH))/ SUM(OFFSET('Shipments and Stock - MH'!G$14,0,(-1*LIFETIME_MH)+1,1,LIFETIME_MH))) -> 624.2 | G16: =IF(G$15-$D$15+2<=LIFETIME_MH,G11, SUMPRODUCT(OFFSET(G11,0,(-1*LIFETIME_MH)+1,1,LIFETIME_MH),OFFSET('Shipments and Stock - MH'!H$14,0,(-1*LIFETIME_MH)+1,1,LIFETIME_MH))/ SUM(OFFSET('Shipments and Stock - MH'!H$14,0,(-1*LIFETIME_MH)+1,1,LIFETIME_MH))) -> 624.2 | H16: =IF(H$15-$D$15+2<=LIFETIME_MH,H11, SUMPRODUCT(OFFSET(H11,0,(-1*LIFETIME_MH)+1,1,LIFETIME_MH),OFFSET('Shipments and Stock - MH'!I$14,0,(-1*LIFETIME_MH)+1,1,LIFETIME_MH))/ SUM(OFFSET('Shipments and Stock - MH'!I$14,0,(-1*LIFETIME_MH)+1,1,LIFETIME_MH))) -> 624.2 | I16: =IF(I$15-$D$15+2<=LIFETIME_MH,I11, SUMPRODUCT(OFFSET(I11,0,(-1*LIFETIME_MH)+1,1,LIFETIME_MH),OFFSET('Shipments and Stock - MH'!J$14,0,(-1*LIFETIME_MH)+1,1,LIFETIME_MH))/ SUM(OFFSET('Shipments and Stock - MH'!J$14,0,(-1*LIFETIME_MH)+1,1,LIFETIME_MH))) -> 624.2 | J16: =IF(J$15-$D$15+2<=LIFETIME_MH,J11, SUMPRODUCT(OFFSET(J11,0,(-1*LIFETIME_MH)+1,1,LIFETIME_MH),OFFSET('Shipments and Stock - MH'!K$14,0,(-1*LIFETIME_MH)+1,1,LIFETIME_MH))/ SUM(OFFSET('Shipments and Stock - MH'!K$14,0,(-1*LIFETIME_MH)+1,1,LIFETIME_MH))) -> 624.2 | K16: =IF(K$15-$D$15+2<=LIFETIME_MH,K11, SUMPRODUCT(OFFSET(K11,0,(-1*LIFETIME_MH)+1,1,LIFETIME_MH),OFFSET('Shipments and Stock - MH'!L$14,0,(-1*LIFETIME_MH)+1,1,LIFETIME_MH))/ SUM(OFFSET('Shipments and Stock - MH'!L$14,0,(-1*LIFETIME_MH)+1,1,LIFETIME_MH))) -> 624.2 | L16: =IF(L$15-$D$15+2<=LIFETIME_MH,L11, SUMPRODUCT(OFFSET(L11,0,(-1*LIFETIME_MH)+1,1,LIFETIME_MH),OFFSET('Shipments and Stock - MH'!M$14,0,(-1*LIFETIME_MH)+1,1,LIFETIME_MH))/ SUM(OFFSET('Shipments and Stock - MH'!M$14,0,(-1*LIFETIME_MH)+1,1,LIFETIME_MH))) -> 624.2 | M16: =IF(M$15-$D$15+2<=LIFETIME_MH,M11, SUMPRODUCT(OFFSET(M11,0,(-1*LIFETIME_MH)+1,1,LIFETIME_MH),OFFSET('Shipments and Stock - MH'!N$14,0,(-1*LIFETIME_MH)+1,1,LIFETIME_MH))/ SUM(OFFSET('Shipments and Stock - MH'!N$14,0,(-1*LIFETIME_MH)+1,1,LIFETIME_MH))) -> 624.2 | N16: =IF(N$15-$D$15+2<=LIFETIME_MH,N11, SUMPRODUCT(OFFSET(N11,0,(-1*LIFETIME_MH)+1,1,LIFETIME_MH),OFFSET('Shipments and Stock - MH'!O$14,0,(-1*LIFETIME_MH)+1,1,LIFETIME_MH))/ SUM(OFFSET('Shipments and Stock - MH'!O$14,0,(-1*LIFETIME_MH)+1,1,LIFETIME_MH))) -> 624.2 | O16: =IF(O$15-$D$15+2<=LIFETIME_MH,O11, SUMPRODUCT(OFFSET(O11,0,(-1*LIFETIME_MH)+1,1,LIFETIME_MH),OFFSET('Shipments and Stock - MH'!P$14,0,(-1*LIFETIME_MH)+1,1,LIFETIME_MH))/ SUM(OFFSET('Shipments and Stock - MH'!P$14,0,(-1*LIFETIME_MH)+1,1,LIFETIME_MH))) -> 624.2 | P16: =IF(P$15-$D$15+2<=LIFETIME_MH,P11, SUMPRODUCT(OFFSET(P11,0,(-1*LIFETIME_MH)+1,1,LIFETIME_MH),OFFSET('Shipments and Stock - MH'!Q$14,0,(-1*LIFETIME_MH)+1,1,LIFETIME_MH))/ SUM(OFFSET('Shipments and Stock - MH'!Q$14,0,(-1*LIFETIME_MH)+1,1,LIFETIME_MH))) -> 624.2 | Q16: =IF(Q$15-$D$15+2<=LIFETIME_MH,Q11, SUMPRODUCT(OFFSET(Q11,0,(-1*LIFETIME_MH)+1,1,LIFETIME_MH),OFFSET('Shipments and Stock - MH'!R$14,0,(-1*LIFETIME_MH)+1,1,LIFETIME_MH))/ SUM(OFFSET('Shipments and Stock - MH'!R$14,0,(-1*LIFETIME_MH)+1,1,LIFETIME_MH))) -> 624.2 | R16: =IF(R$15-$D$15+2<=LIFETIME_MH,R11, SUMPRODUCT(OFFSET(R11,0,(-1*LIFETIME_MH)+1,1,LIFETIME_MH),OFFSET('Shipments and Stock - MH'!S$14,0,(-1*LIFETIME_MH)+1,1,LIFETIME_MH))/ SUM(OFFSET('Shipments and Stock - MH'!S$14,0,(-1*LIFETIME_MH)+1,1,LIFETIME_MH))) -> 721.7 | S16: =IF(S$15-$D$15+2<=LIFETIME_MH,S11, SUMPRODUCT(OFFSET(S11,0,(-1*LIFETIME_MH)+1,1,LIFETIME_MH),OFFSET('Shipments and Stock - MH'!T$14,0,(-1*LIFETIME_MH)+1,1,LIFETIME_MH))/ SUM(OFFSET('Shipments and Stock - MH'!T$14,0,(-1*LIFETIME_MH)+1,1,LIFETIME_MH))) -> 638.6382078 | T16: =IF(T$15-$D$15+2<=LIFETIME_MH,T11, SUMPRODUCT(OFFSET(T11,0,(-1*LIFETIME_MH)+1,1,LIFETIME_MH),OFFSET('Shipments and Stock - MH'!U$14,0,(-1*LIFETIME_MH)+1,1,LIFETIME_MH))/ SUM(OFFSET('Shipments and Stock - MH'!U$14,0,(-1*LIFETIME_MH)+1,1,LIFETIME_MH))) -> 647.042509 | U16: =IF(U$15-$D$15+2<=LIFETIME_MH,U11, SUMPRODUCT(OFFSET(U11,0,(-1*LIFETIME_MH)+1,1,LIFETIME_MH),OFFSET('Shipments and Stock - MH'!V$14,0,(-1*LIFETIME_MH)+1,1,LIFETIME_MH))/ SUM(OFFSET('Shipments and Stock - MH'!V$14,0,(-1*LIFETIME_MH)+1,1,LIFETIME_MH))) -> 654.5782961 | V16: =IF(V$15-$D$15+2<=LIFETIME_MH,V11, SUMPRODUCT(OFFSET(V11,0,(-1*LIFETIME_MH)+1,1,LIFETIME_MH),OFFSET('Shipments and Stock - MH'!W$14,0,(-1*LIFETIME_MH)+1,1,LIFETIME_MH))/ SUM(OFFSET('Shipments and Stock - MH'!W$14,0,(-1*LIFETIME_MH)+1,1,LIFETIME_MH))) -> 661.8497521 | W16: =IF(W$15-$D$15+2<=LIFETIME_MH,W11, SUMPRODUCT(OFFSET(W11,0,(-1*LIFETIME_MH)+1,1,LIFETIME_MH),OFFSET('Shipments and Stock - MH'!X$14,0,(-1*LIFETIME_MH)+1,1,LIFETIME_MH))/ SUM(OFFSET('Shipments and Stock - MH'!X$14,0,(-1*LIFETIME_MH)+1,1,LIFETIME_MH))) -> 672.0314425 | X16: =IF(X$15-$D$15+2<=LIFETIME_MH,X11, SUMPRODUCT(OFFSET(X11,0,(-1*LIFETIME_MH)+1,1,LIFETIME_MH),OFFSET('Shipments and Stock - MH'!Y$14,0,(-1*LIFETIME_MH)+1,1,LIFETIME_MH))/ SUM(OFFSET('Shipments and Stock - MH'!Y$14,0,(-1*LIFETIME_MH)+1,1,LIFETIME_MH))) -> 680.9731305 | Y16: =IF(Y$15-$D$15+2<=LIFETIME_MH,Y11, SUMPRODUCT(OFFSET(Y11,0,(-1*LIFETIME_MH)+1,1,LIFETIME_MH),OFFSET('Shipments and Stock - MH'!Z$14,0,(-1*LIFETIME_MH)+1,1,LIFETIME_MH))/ SUM(OFFSET('Shipments and Stock - MH'!Z$14,0,(-1*LIFETIME_MH)+1,1,LIFETIME_MH))) -> 689.2383044 | Z16: =IF(Z$15-$D$15+2<=LIFETIME_MH,Z11, SUMPRODUCT(OFFSET(Z11,0,(-1*LIFETIME_MH)+1,1,LIFETIME_MH),OFFSET('Shipments and Stock - MH'!AA$14,0,(-1*LIFETIME_MH)+1,1,LIFETIME_MH))/ SUM(OFFSET('Shipments and Stock - MH'!AA$14,0,(-1*LIFETIME_MH)+1,1,LIFETIME_MH))) -> 697.0914146 | AA16: =IF(AA$15-$D$15+2<=LIFETIME_MH,AA11, SUMPRODUCT(OFFSET(AA11,0,(-1*LIFETIME_MH)+1,1,LIFETIME_MH),OFFSET('Shipments and Stock - MH'!AB$14,0,(-1*LIFETIME_MH)+1,1,LIFETIME_MH))/ SUM(OFFSET('Shipments and Stock - MH'!AB$14,0,(-1*LIFETIME_MH)+1,1,LIFETIME_MH))) -> 705.0442288 | AB16: =IF(AB$15-$D$15+2<=LIFETIME_MH,AB11, SUMPRODUCT(OFFSET(AB11,0,(-1*LIFETIME_MH)+1,1,LIFETIME_MH),OFFSET('Shipments and Stock - MH'!AC$14,0,(-1*LIFETIME_MH)+1,1,LIFETIME_MH))/ SUM(OFFSET('Shipments and Stock - MH'!AC$14,0,(-1*LIFETIME_MH)+1,1,LIFETIME_MH))) -> 716.463308 | AC16: =IF(AC$15-$D$15+2<=LIFETIME_MH,AC11, SUMPRODUCT(OFFSET(AC11,0,(-1*LIFETIME_MH)+1,1,LIFETIME_MH),OFFSET('Shipments and Stock - MH'!AD$14,0,(-1*LIFETIME_MH)+1,1,LIFETIME_MH))/ SUM(OFFSET('Shipments and Stock - MH'!AD$14,0,(-1*LIFETIME_MH)+1,1,LIFETIME_MH))) -> 728.2755048 | AD16: =IF(AD$15-$D$15+2<=LIFETIME_MH,AD11, SUMPRODUCT(OFFSET(AD11,0,(-1*LIFETIME_MH)+1,1,LIFETIME_MH),OFFSET('Shipments and Stock - MH'!AE$14,0,(-1*LIFETIME_MH)+1,1,LIFETIME_MH))/ SUM(OFFSET('Shipments and Stock - MH'!AE$14,0,(-1*LIFETIME_MH)+1,1,LIFETIME_MH))) -> 740.0950597 | AE16: =IF(AE$15-$D$15+2<=LIFETIME_MH,AE11, SUMPRODUCT(OFFSET(AE11,0,(-1*LIFETIME_MH)+1,1,LIFETIME_MH),OFFSET('Shipments and Stock - MH'!AF$14,0,(-1*LIFETIME_MH)+1,1,LIFETIME_MH))/ SUM(OFFSET('Shipments and Stock - MH'!AF$14,0,(-1*LIFETIME_MH)+1,1,LIFETIME_MH))) -> 752.3523332 | AF16: =IF(AF$15-$D$15+2<=LIFETIME_MH,AF11, SUMPRODUCT(OFFSET(AF11,0,(-1*LIFETIME_MH)+1,1,LIFETIME_MH),OFFSET('Shipments and Stock - MH'!AG$14,0,(-1*LIFETIME_MH)+1,1,LIFETIME_MH))/ SUM(OFFSET('Shipments and Stock - MH'!AG$14,0,(-1*LIFETIME_MH)+1,1,LIFETIME_MH))) -> 765.4997554 | AG16: =IF(AG$15-$D$15+2<=LIFETIME_MH,AG11, SUMPRODUCT(OFFSET(AG11,0,(-1*LIFETIME_MH)+1,1,LIFETIME_MH),OFFSET('Shipments and Stock - MH'!AH$14,0,(-1*LIFETIME_MH)+1,1,LIFETIME_MH))/ SUM(OFFSET('Shipments and Stock - MH'!AH$14,0,(-1*LIFETIME_MH)+1,1,LIFETIME_MH))) -> 764.5016768 | AH16: =IF(AH$15-$D$15+2<=LIFETIME_MH,AH11, SUMPRODUCT(OFFSET(AH11,0,(-1*LIFETIME_MH)+1,1,LIFETIME_MH),OFFSET('Shipments and Stock - MH'!AI$14,0,(-1*LIFETIME_MH)+1,1,LIFETIME_MH))/ SUM(OFFSET('Shipments and Stock - MH'!AI$14,0,(-1*LIFETIME_MH)+1,1,LIFETIME_MH))) -> 757.71168 | AI16: =IF(AI$15-$D$15+2<=LIFETIME_MH,AI11, SUMPRODUCT(OFFSET(AI11,0,(-1*LIFETIME_MH)+1,1,LIFETIME_MH),OFFSET('Shipments and Stock - MH'!AJ$14,0,(-1*LIFETIME_MH)+1,1,LIFETIME_MH))/ SUM(OFFSET('Shipments and Stock - MH'!AJ$14,0,(-1*LIFETIME_MH)+1,1,LIFETIME_MH))) -> 751.4057465 | AJ16: =IF(AJ$15-$D$15+2<=LIFETIME_MH,AJ11, SUMPRODUCT(OFFSET(AJ11,0,(-1*LIFETIME_MH)+1,1,LIFETIME_MH),OFFSET('Shipments and Stock - MH'!AK$14,0,(-1*LIFETIME_MH)+1,1,LIFETIME_MH))/ SUM(OFFSET('Shipments and Stock - MH'!AK$14,0,(-1*LIFETIME_MH)+1,1,LIFETIME_MH))) -> 743.8062633 | AK16: =IF(AK$15-$D$15+2<=LIFETIME_MH,AK11, SUMPRODUCT(OFFSET(AK11,0,(-1*LIFETIME_MH)+1,1,LIFETIME_MH),OFFSET('Shipments and Stock - MH'!AL$14,0,(-1*LIFETIME_MH)+1,1,LIFETIME_MH))/ SUM(OFFSET('Shipments and Stock - MH'!AL$14,0,(-1*LIFETIME_MH)+1,1,LIFETIME_MH))) -> 738.1014608 | AL16: =IF(AL$15-$D$15+2<=LIFETIME_MH,AL11, SUMPRODUCT(OFFSET(AL11,0,(-1*LIFETIME_MH)+1,1,LIFETIME_MH),OFFSET('Shipments and Stock - MH'!AM$14,0,(-1*LIFETIME_MH)+1,1,LIFETIME_MH))/ SUM(OFFSET('Shipments and Stock - MH'!AM$14,0,(-1*LIFETIME_MH)+1,1,LIFETIME_MH))) -> 732.5790394 | AM16: =IF(AM$15-$D$15+2<=LIFETIME_MH,AM11, SUMPRODUCT(OFFSET(AM11,0,(-1*LIFETIME_MH)+1,1,LIFETIME_MH),OFFSET('Shipments and Stock - MH'!AN$14,0,(-1*LIFETIME_MH)+1,1,LIFETIME_MH))/ SUM(OFFSET('Shipments and Stock - MH'!AN$14,0,(-1*LIFETIME_MH)+1,1,LIFETIME_MH))) -> 724.5988838 | AN16: =IF(AN$15-$D$15+2<=LIFETIME_MH,AN11, SUMPRODUCT(OFFSET(AN11,0,(-1*LIFETIME_MH)+1,1,LIFETIME_MH),OFFSET('Shipments and Stock - MH'!AO$14,0,(-1*LIFETIME_MH)+1,1,LIFETIME_MH))/ SUM(OFFSET('Shipments and Stock - MH'!AO$14,0,(-1*LIFETIME_MH)+1,1,LIFETIME_MH))) -> 717.5554848 | AO16: =IF(AO$15-$D$15+2<=LIFETIME_MH,AO11, SUMPRODUCT(OFFSET(AO11,0,(-1*LIFETIME_MH)+1,1,LIFETIME_MH),OFFSET('Shipments and Stock - MH'!AP$14,0,(-1*LIFETIME_MH)+1,1,LIFETIME_MH))/ SUM(OFFSET('Shipments and Stock - MH'!AP$14,0,(-1*LIFETIME_MH)+1,1,LIFETIME_MH))) -> 710.9385324 | AP16: =IF(AP$15-$D$15+2<=LIFETIME_MH,AP11, SUMPRODUCT(OFFSET(AP11,0,(-1*LIFETIME_MH)+1,1,LIFETIME_MH),OFFSET('Shipments and Stock - MH'!AQ$14,0,(-1*LIFETIME_MH)+1,1,LIFETIME_MH))/ SUM(OFFSET('Shipments and Stock - MH'!AQ$14,0,(-1*LIFETIME_MH)+1,1,LIFETIME_MH))) -> 704.6243149 | AQ16: =IF(AQ$15-$D$15+2<=LIFETIME_MH,AQ11, SUMPRODUCT(OFFSET(AQ11,0,(-1*LIFETIME_MH)+1,1,LIFETIME_MH),OFFSET('Shipments and Stock - MH'!AR$14,0,(-1*LIFETIME_MH)+1,1,LIFETIME_MH))/ SUM(OFFSET('Shipments and Stock - MH'!AR$14,0,(-1*LIFETIME_MH)+1,1,LIFETIME_MH))) -> 698.2505967 | AR16: =IF(AR$15-$D$15+2<=LIFETIME_MH,AR11, SUMPRODUCT(OFFSET(AR11,0,(-1*LIFETIME_MH)+1,1,LIFETIME_MH),OFFSET('Shipments and Stock - MH'!AS$14,0,(-1*LIFETIME_MH)+1,1,LIFETIME_MH))/ SUM(OFFSET('Shipments and Stock - MH'!AS$14,0,(-1*LIFETIME_MH)+1,1,LIFETIME_MH))) -> 688.9886109 | AS16: =IF(AS$15-$D$15+2<=LIFETIME_MH,AS11, SUMPRODUCT(OFFSET(AS11,0,(-1*LIFETIME_MH)+1,1,LIFETIME_MH),OFFSET('Shipments and Stock - MH'!AT$14,0,(-1*LIFETIME_MH)+1,1,LIFETIME_MH))/ SUM(OFFSET('Shipments and Stock - MH'!AT$14,0,(-1*LIFETIME_MH)+1,1,LIFETIME_MH))) -> 679.4840709 | AT16: =IF(AT$15-$D$15+2<=LIFETIME_MH,AT11, SUMPRODUCT(OFFSET(AT11,0,(-1*LIFETIME_MH)+1,1,LIFETIME_MH),OFFSET('Shipments and Stock - MH'!AU$14,0,(-1*LIFETIME_MH)+1,1,LIFETIME_MH))/ SUM(OFFSET('Shipments and Stock - MH'!AU$14,0,(-1*LIFETIME_MH)+1,1,LIFETIME_MH))) -> 669.7536945 | AU16: =IF(AU$15-$D$15+2<=LIFETIME_MH,AU11, SUMPRODUCT(OFFSET(AU11,0,(-1*LIFETIME_MH)+1,1,LIFETIME_MH),OFFSET('Shipments and Stock - MH'!AV$14,0,(-1*LIFETIME_MH)+1,1,LIFETIME_MH))/ SUM(OFFSET('Shipments and Stock - MH'!AV$14,0,(-1*LIFETIME_MH)+1,1,LIFETIME_MH))) -> 659.6495358 | AV16: =IF(AV$15-$D$15+2<=LIFETIME_MH,AV11, SUMPRODUCT(OFFSET(AV11,0,(-1*LIFETIME_MH)+1,1,LIFETIME_MH),OFFSET('Shipments and Stock - MH'!AW$14,0,(-1*LIFETIME_MH)+1,1,LIFETIME_MH))/ SUM(OFFSET('Shipments and Stock - MH'!AW$14,0,(-1*LIFETIME_MH)+1,1,LIFETIME_MH))) -> 648.8651881 | AW16: =IF(AW$15-$D$15+2<=LIFETIME_MH,AW11, SUMPRODUCT(OFFSET(AW11,0,(-1*LIFETIME_MH)+1,1,LIFETIME_MH),OFFSET('Shipments and Stock - MH'!AX$14,0,(-1*LIFETIME_MH)+1,1,LIFETIME_MH))/ SUM(OFFSET('Shipments and Stock - MH'!AX$14,0,(-1*LIFETIME_MH)+1,1,LIFETIME_MH))) -> 650.0574434 | AX16: =IF(AX$15-$D$15+2<=LIFETIME_MH,AX11, SUMPRODUCT(OFFSET(AX11,0,(-1*LIFETIME_MH)+1,1,LIFETIME_MH),OFFSET('Shipments and Stock - MH'!AY$14,0,(-1*LIFETIME_MH)+1,1,LIFETIME_MH))/ SUM(OFFSET('Shipments and Stock - MH'!AY$14,0,(-1*LIFETIME_MH)+1,1,LIFETIME_MH))) -> 651.1987631 | AY16: =IF(AY$15-$D$15+2<=LIFETIME_MH,AY11, SUMPRODUCT(OFFSET(AY11,0,(-1*LIFETIME_MH)+1,1,LIFETIME_MH),OFFSET('Shipments and Stock - MH'!AZ$14,0,(-1*LIFETIME_MH)+1,1,LIFETIME_MH))/ SUM(OFFSET('Shipments and Stock - MH'!AZ$14,0,(-1*LIFETIME_MH)+1,1,LIFETIME_MH))) -> 652.259815 | AZ16: =IF(AZ$15-$D$15+2<=LIFETIME_MH,AZ11, SUMPRODUCT(OFFSET(AZ11,0,(-1*LIFETIME_MH)+1,1,LIFETIME_MH),OFFSET('Shipments and Stock - MH'!BA$14,0,(-1*LIFETIME_MH)+1,1,LIFETIME_MH))/ SUM(OFFSET('Shipments and Stock - MH'!BA$14,0,(-1*LIFETIME_MH)+1,1,LIFETIME_MH))) -> 653.5631438 | BA16: =IF(BA$15-$D$15+2<=LIFETIME_MH,BA11, SUMPRODUCT(OFFSET(BA11,0,(-1*LIFETIME_MH)+1,1,LIFETIME_MH),OFFSET('Shipments and Stock - MH'!BB$14,0,(-1*LIFETIME_MH)+1,1,LIFETIME_MH))/ SUM(OFFSET('Shipments and Stock - MH'!BB$14,0,(-1*LIFETIME_MH)+1,1,LIFETIME_MH))) -> 653.5631438 | BB16: =IF(BB$15-$D$15+2<=LIFETIME_MH,BB11, SUMPRODUCT(OFFSET(BB11,0,(-1*LIFETIME_MH)+1,1,LIFETIME_MH),OFFSET('Shipments and Stock - MH'!BC$14,0,(-1*LIFETIME_MH)+1,1,LIFETIME_MH))/ SUM(OFFSET('Shipments and Stock - MH'!BC$14,0,(-1*LIFETIME_MH)+1,1,LIFETIME_MH))) -> 653.5631438 | BC16: =IF(BC$15-$D$15+2<=LIFETIME_MH,BC11, SUMPRODUCT(OFFSET(BC11,0,(-1*LIFETIME_MH)+1,1,LIFETIME_MH),OFFSET('Shipments and Stock - MH'!BD$14,0,(-1*LIFETIME_MH)+1,1,LIFETIME_MH))/ SUM(OFFSET('Shipments and Stock - MH'!BD$14,0,(-1*LIFETIME_MH)+1,1,LIFETIME_MH))) -> 653.5631438 | BD16: =IF(BD$15-$D$15+2<=LIFETIME_MH,BD11, SUMPRODUCT(OFFSET(BD11,0,(-1*LIFETIME_MH)+1,1,LIFETIME_MH),OFFSET('Shipments and Stock - MH'!BE$14,0,(-1*LIFETIME_MH)+1,1,LIFETIME_MH))/ SUM(OFFSET('Shipments and Stock - MH'!BE$14,0,(-1*LIFETIME_MH)+1,1,LIFETIME_MH))) -> 653.5631438 | BE16: =IF(BE$15-$D$15+2<=LIFETIME_MH,BE11, SUMPRODUCT(OFFSET(BE11,0,(-1*LIFETIME_MH)+1,1,LIFETIME_MH),OFFSET('Shipments and Stock - MH'!BF$14,0,(-1*LIFETIME_MH)+1,1,LIFETIME_MH))/ SUM(OFFSET('Shipments and Stock - MH'!BF$14,0,(-1*LIFETIME_MH)+1,1,LIFETIME_MH))) -> 653.5631438
C17: POST-Case UEC | D17: =IF(D$15-$D$15+2<=LIFETIME_MH,D12, SUMPRODUCT(OFFSET(D12,0,(-1*LIFETIME_MH)+1,1,LIFETIME_MH),OFFSET('Shipments and Stock - MH'!E$14,0,(-1*LIFETIME_MH)+1,1,LIFETIME_MH))/ SUM(OFFSET('Shipments and Stock - MH'!E$14,0,(-1*LIFETIME_MH)+1,1,LIFETIME_MH))) -> 624.2 | E17: =IF(E$15-$D$15+2<=LIFETIME_MH,E12, SUMPRODUCT(OFFSET(E12,0,(-1*LIFETIME_MH)+1,1,LIFETIME_MH),OFFSET('Shipments and Stock - MH'!F$14,0,(-1*LIFETIME_MH)+1,1,LIFETIME_MH))/ SUM(OFFSET('Shipments and Stock - MH'!F$14,0,(-1*LIFETIME_MH)+1,1,LIFETIME_MH))) -> 624.2 | F17: =IF(F$15-$D$15+2<=LIFETIME_MH,F12, SUMPRODUCT(OFFSET(F12,0,(-1*LIFETIME_MH)+1,1,LIFETIME_MH),OFFSET('Shipments and Stock - MH'!G$14,0,(-1*LIFETIME_MH)+1,1,LIFETIME_MH))/ SUM(OFFSET('Shipments and Stock - MH'!G$14,0,(-1*LIFETIME_MH)+1,1,LIFETIME_MH))) -> 624.2 | G17: =IF(G$15-$D$15+2<=LIFETIME_MH,G12, SUMPRODUCT(OFFSET(G12,0,(-1*LIFETIME_MH)+1,1,LIFETIME_MH),OFFSET('Shipments and Stock - MH'!H$14,0,(-1*LIFETIME_MH)+1,1,LIFETIME_MH))/ SUM(OFFSET('Shipments and Stock - MH'!H$14,0,(-1*LIFETIME_MH)+1,1,LIFETIME_MH))) -> 624.2 | H17: =IF(H$15-$D$15+2<=LIFETIME_MH,H12, SUMPRODUCT(OFFSET(H12,0,(-1*LIFETIME_MH)+1,1,LIFETIME_MH),OFFSET('Shipments and Stock - MH'!I$14,0,(-1*LIFETIME_MH)+1,1,LIFETIME_MH))/ SUM(OFFSET('Shipments and Stock - MH'!I$14,0,(-1*LIFETIME_MH)+1,1,LIFETIME_MH))) -> 624.2 | I17: =IF(I$15-$D$15+2<=LIFETIME_MH,I12, SUMPRODUCT(OFFSET(I12,0,(-1*LIFETIME_MH)+1,1,LIFETIME_MH),OFFSET('Shipments and Stock - MH'!J$14,0,(-1*LIFETIME_MH)+1,1,LIFETIME_MH))/ SUM(OFFSET('Shipments and Stock - MH'!J$14,0,(-1*LIFETIME_MH)+1,1,LIFETIME_MH))) -> 624.2 | J17: =IF(J$15-$D$15+2<=LIFETIME_MH,J12, SUMPRODUCT(OFFSET(J12,0,(-1*LIFETIME_MH)+1,1,LIFETIME_MH),OFFSET('Shipments and Stock - MH'!K$14,0,(-1*LIFETIME_MH)+1,1,LIFETIME_MH))/ SUM(OFFSET('Shipments and Stock - MH'!K$14,0,(-1*LIFETIME_MH)+1,1,LIFETIME_MH))) -> 624.2 | K17: =IF(K$15-$D$15+2<=LIFETIME_MH,K12, SUMPRODUCT(OFFSET(K12,0,(-1*LIFETIME_MH)+1,1,LIFETIME_MH),OFFSET('Shipments and Stock - MH'!L$14,0,(-1*LIFETIME_MH)+1,1,LIFETIME_MH))/ SUM(OFFSET('Shipments and Stock - MH'!L$14,0,(-1*LIFETIME_MH)+1,1,LIFETIME_MH))) -> 624.2 | L17: =IF(L$15-$D$15+2<=LIFETIME_MH,L12, SUMPRODUCT(OFFSET(L12,0,(-1*LIFETIME_MH)+1,1,LIFETIME_MH),OFFSET('Shipments and Stock - MH'!M$14,0,(-1*LIFETIME_MH)+1,1,LIFETIME_MH))/ SUM(OFFSET('Shipments and Stock - MH'!M$14,0,(-1*LIFETIME_MH)+1,1,LIFETIME_MH))) -> 624.2 | M17: =IF(M$15-$D$15+2<=LIFETIME_MH,M12, SUMPRODUCT(OFFSET(M12,0,(-1*LIFETIME_MH)+1,1,LIFETIME_MH),OFFSET('Shipments and Stock - MH'!N$14,0,(-1*LIFETIME_MH)+1,1,LIFETIME_MH))/ SUM(OFFSET('Shipments and Stock - MH'!N$14,0,(-1*LIFETIME_MH)+1,1,LIFETIME_MH))) -> 624.2 | N17: =IF(N$15-$D$15+2<=LIFETIME_MH,N12, SUMPRODUCT(OFFSET(N12,0,(-1*LIFETIME_MH)+1,1,LIFETIME_MH),OFFSET('Shipments and Stock - MH'!O$14,0,(-1*LIFETIME_MH)+1,1,LIFETIME_MH))/ SUM(OFFSET('Shipments and Stock - MH'!O$14,0,(-1*LIFETIME_MH)+1,1,LIFETIME_MH))) -> 624.2 | O17: =IF(O$15-$D$15+2<=LIFETIME_MH,O12, SUMPRODUCT(OFFSET(O12,0,(-1*LIFETIME_MH)+1,1,LIFETIME_MH),OFFSET('Shipments and Stock - MH'!P$14,0,(-1*LIFETIME_MH)+1,1,LIFETIME_MH))/ SUM(OFFSET('Shipments and Stock - MH'!P$14,0,(-1*LIFETIME_MH)+1,1,LIFETIME_MH))) -> 624.2 | P17: =IF(P$15-$D$15+2<=LIFETIME_MH,P12, SUMPRODUCT(OFFSET(P12,0,(-1*LIFETIME_MH)+1,1,LIFETIME_MH),OFFSET('Shipments and Stock - MH'!Q$14,0,(-1*LIFETIME_MH)+1,1,LIFETIME_MH))/ SUM(OFFSET('Shipments and Stock - MH'!Q$14,0,(-1*LIFETIME_MH)+1,1,LIFETIME_MH))) -> 624.2 | Q17: =IF(Q$15-$D$15+2<=LIFETIME_MH,Q12, SUMPRODUCT(OFFSET(Q12,0,(-1*LIFETIME_MH)+1,1,LIFETIME_MH),OFFSET('Shipments and Stock - MH'!R$14,0,(-1*LIFETIME_MH)+1,1,LIFETIME_MH))/ SUM(OFFSET('Shipments and Stock - MH'!R$14,0,(-1*LIFETIME_MH)+1,1,LIFETIME_MH))) -> 624.2 | R17: =IF(R$15-$D$15+2<=LIFETIME_MH,R12, SUMPRODUCT(OFFSET(R12,0,(-1*LIFETIME_MH)+1,1,LIFETIME_MH),OFFSET('Shipments and Stock - MH'!S$14,0,(-1*LIFETIME_MH)+1,1,LIFETIME_MH))/ SUM(OFFSET('Shipments and Stock - MH'!S$14,0,(-1*LIFETIME_MH)+1,1,LIFETIME_MH))) -> 721.7 | S17: =IF(S$15-$D$15+2<=LIFETIME_MH,S12, SUMPRODUCT(OFFSET(S12,0,(-1*LIFETIME_MH)+1,1,LIFETIME_MH),OFFSET('Shipments and Stock - MH'!T$14,0,(-1*LIFETIME_MH)+1,1,LIFETIME_MH))/ SUM(OFFSET('Shipments and Stock - MH'!T$14,0,(-1*LIFETIME_MH)+1,1,LIFETIME_MH))) -> 638.6382078 | T17: =IF(T$15-$D$15+2<=LIFETIME_MH,T12, SUMPRODUCT(OFFSET(T12,0,(-1*LIFETIME_MH)+1,1,LIFETIME_MH),OFFSET('Shipments and Stock - MH'!U$14,0,(-1*LIFETIME_MH)+1,1,LIFETIME_MH))/ SUM(OFFSET('Shipments and Stock - MH'!U$14,0,(-1*LIFETIME_MH)+1,1,LIFETIME_MH))) -> 647.042509 | U17: =IF(U$15-$D$15+2<=LIFETIME_MH,U12, SUMPRODUCT(OFFSET(U12,0,(-1*LIFETIME_MH)+1,1,LIFETIME_MH),OFFSET('Shipments and Stock - MH'!V$14,0,(-1*LIFETIME_MH)+1,1,LIFETIME_MH))/ SUM(OFFSET('Shipments and Stock - MH'!V$14,0,(-1*LIFETIME_MH)+1,1,LIFETIME_MH))) -> 654.5782961 | V17: =IF(V$15-$D$15+2<=LIFETIME_MH,V12, SUMPRODUCT(OFFSET(V12,0,(-1*LIFETIME_MH)+1,1,LIFETIME_MH),OFFSET('Shipments and Stock - MH'!W$14,0,(-1*LIFETIME_MH)+1,1,LIFETIME_MH))/ SUM(OFFSET('Shipments and Stock - MH'!W$14,0,(-1*LIFETIME_MH)+1,1,LIFETIME_MH))) -> 661.8497521 | W17: =IF(W$15-$D$15+2<=LIFETIME_MH,W12, SUMPRODUCT(OFFSET(W12,0,(-1*LIFETIME_MH)+1,1,LIFETIME_MH),OFFSET('Shipments and Stock - MH'!X$14,0,(-1*LIFETIME_MH)+1,1,LIFETIME_MH))/ SUM(OFFSET('Shipments and Stock - MH'!X$14,0,(-1*LIFETIME_MH)+1,1,LIFETIME_MH))) -> 672.0314425 | X17: =IF(X$15-$D$15+2<=LIFETIME_MH,X12, SUMPRODUCT(OFFSET(X12,0,(-1*LIFETIME_MH)+1,1,LIFETIME_MH),OFFSET('Shipments and Stock - MH'!Y$14,0,(-1*LIFETIME_MH)+1,1,LIFETIME_MH))/ SUM(OFFSET('Shipments and Stock - MH'!Y$14,0,(-1*LIFETIME_MH)+1,1,LIFETIME_MH))) -> 680.9731305 | Y17: =IF(Y$15-$D$15+2<=LIFETIME_MH,Y12, SUMPRODUCT(OFFSET(Y12,0,(-1*LIFETIME_MH)+1,1,LIFETIME_MH),OFFSET('Shipments and Stock - MH'!Z$14,0,(-1*LIFETIME_MH)+1,1,LIFETIME_MH))/ SUM(OFFSET('Shipments and Stock - MH'!Z$14,0,(-1*LIFETIME_MH)+1,1,LIFETIME_MH))) -> 689.2383044 | Z17: =IF(Z$15-$D$15+2<=LIFETIME_MH,Z12, SUMPRODUCT(OFFSET(Z12,0,(-1*LIFETIME_MH)+1,1,LIFETIME_MH),OFFSET('Shipments and Stock - MH'!AA$14,0,(-1*LIFETIME_MH)+1,1,LIFETIME_MH))/ SUM(OFFSET('Shipments and Stock - MH'!AA$14,0,(-1*LIFETIME_MH)+1,1,LIFETIME_MH))) -> 697.0914146 | AA17: =IF(AA$15-$D$15+2<=LIFETIME_MH,AA12, SUMPRODUCT(OFFSET(AA12,0,(-1*LIFETIME_MH)+1,1,LIFETIME_MH),OFFSET('Shipments and Stock - MH'!AB$14,0,(-1*LIFETIME_MH)+1,1,LIFETIME_MH))/ SUM(OFFSET('Shipments and Stock - MH'!AB$14,0,(-1*LIFETIME_MH)+1,1,LIFETIME_MH))) -> 705.0442288 | AB17: =IF(AB$15-$D$15+2<=LIFETIME_MH,AB12, SUMPRODUCT(OFFSET(AB12,0,(-1*LIFETIME_MH)+1,1,LIFETIME_MH),OFFSET('Shipments and Stock - MH'!AC$14,0,(-1*LIFETIME_MH)+1,1,LIFETIME_MH))/ SUM(OFFSET('Shipments and Stock - MH'!AC$14,0,(-1*LIFETIME_MH)+1,1,LIFETIME_MH))) -> 716.463308 | AC17: =IF(AC$15-$D$15+2<=LIFETIME_MH,AC12, SUMPRODUCT(OFFSET(AC12,0,(-1*LIFETIME_MH)+1,1,LIFETIME_MH),OFFSET('Shipments and Stock - MH'!AD$14,0,(-1*LIFETIME_MH)+1,1,LIFETIME_MH))/ SUM(OFFSET('Shipments and Stock - MH'!AD$14,0,(-1*LIFETIME_MH)+1,1,LIFETIME_MH))) -> 728.2755048 | AD17: =IF(AD$15-$D$15+2<=LIFETIME_MH,AD12, SUMPRODUCT(OFFSET(AD12,0,(-1*LIFETIME_MH)+1,1,LIFETIME_MH),OFFSET('Shipments and Stock - MH'!AE$14,0,(-1*LIFETIME_MH)+1,1,LIFETIME_MH))/ SUM(OFFSET('Shipments and Stock - MH'!AE$14,0,(-1*LIFETIME_MH)+1,1,LIFETIME_MH))) -> 740.0950597 | AE17: =IF(AE$15-$D$15+2<=LIFETIME_MH,AE12, SUMPRODUCT(OFFSET(AE12,0,(-1*LIFETIME_MH)+1,1,LIFETIME_MH),OFFSET('Shipments and Stock - MH'!AF$14,0,(-1*LIFETIME_MH)+1,1,LIFETIME_MH))/ SUM(OFFSET('Shipments and Stock - MH'!AF$14,0,(-1*LIFETIME_MH)+1,1,LIFETIME_MH))) -> 752.3523332 | AF17: =IF(AF$15-$D$15+2<=LIFETIME_MH,AF12, SUMPRODUCT(OFFSET(AF12,0,(-1*LIFETIME_MH)+1,1,LIFETIME_MH),OFFSET('Shipments and Stock - MH'!AG$14,0,(-1*LIFETIME_MH)+1,1,LIFETIME_MH))/ SUM(OFFSET('Shipments and Stock - MH'!AG$14,0,(-1*LIFETIME_MH)+1,1,LIFETIME_MH))) -> 765.4997554 | AG17: =IF(AG$15-$D$15+2<=LIFETIME_MH,AG12, SUMPRODUCT(OFFSET(AG12,0,(-1*LIFETIME_MH)+1,1,LIFETIME_MH),OFFSET('Shipments and Stock - MH'!AH$14,0,(-1*LIFETIME_MH)+1,1,LIFETIME_MH))/ SUM(OFFSET('Shipments and Stock - MH'!AH$14,0,(-1*LIFETIME_MH)+1,1,LIFETIME_MH))) -> 764.5016768 | AH17: =IF(AH$15-$D$15+2<=LIFETIME_MH,AH12, SUMPRODUCT(OFFSET(AH12,0,(-1*LIFETIME_MH)+1,1,LIFETIME_MH),OFFSET('Shipments and Stock - MH'!AI$14,0,(-1*LIFETIME_MH)+1,1,LIFETIME_MH))/ SUM(OFFSET('Shipments and Stock - MH'!AI$14,0,(-1*LIFETIME_MH)+1,1,LIFETIME_MH))) -> 757.71168 | AI17: =IF(AI$15-$D$15+2<=LIFETIME_MH,AI12, SUMPRODUCT(OFFSET(AI12,0,(-1*LIFETIME_MH)+1,1,LIFETIME_MH),OFFSET('Shipments and Stock - MH'!AJ$14,0,(-1*LIFETIME_MH)+1,1,LIFETIME_MH))/ SUM(OFFSET('Shipments and Stock - MH'!AJ$14,0,(-1*LIFETIME_MH)+1,1,LIFETIME_MH))) -> 751.4057465 | AJ17: =IF(AJ$15-$D$15+2<=LIFETIME_MH,AJ12, SUMPRODUCT(OFFSET(AJ12,0,(-1*LIFETIME_MH)+1,1,LIFETIME_MH),OFFSET('Shipments and Stock - MH'!AK$14,0,(-1*LIFETIME_MH)+1,1,LIFETIME_MH))/ SUM(OFFSET('Shipments and Stock - MH'!AK$14,0,(-1*LIFETIME_MH)+1,1,LIFETIME_MH))) -> 743.8062633 | AK17: =IF(AK$15-$D$15+2<=LIFETIME_MH,AK12, SUMPRODUCT(OFFSET(AK12,0,(-1*LIFETIME_MH)+1,1,LIFETIME_MH),OFFSET('Shipments and Stock - MH'!AL$14,0,(-1*LIFETIME_MH)+1,1,LIFETIME_MH))/ SUM(OFFSET('Shipments and Stock - MH'!AL$14,0,(-1*LIFETIME_MH)+1,1,LIFETIME_MH))) -> 738.1014608 | AL17: =IF(AL$15-$D$15+2<=LIFETIME_MH,AL12, SUMPRODUCT(OFFSET(AL12,0,(-1*LIFETIME_MH)+1,1,LIFETIME_MH),OFFSET('Shipments and Stock - MH'!AM$14,0,(-1*LIFETIME_MH)+1,1,LIFETIME_MH))/ SUM(OFFSET('Shipments and Stock - MH'!AM$14,0,(-1*LIFETIME_MH)+1,1,LIFETIME_MH))) -> 731.1721942 | AM17: =IF(AM$15-$D$15+2<=LIFETIME_MH,AM12, SUMPRODUCT(OFFSET(AM12,0,(-1*LIFETIME_MH)+1,1,LIFETIME_MH),OFFSET('Shipments and Stock - MH'!AN$14,0,(-1*LIFETIME_MH)+1,1,LIFETIME_MH))/ SUM(OFFSET('Shipments and Stock - MH'!AN$14,0,(-1*LIFETIME_MH)+1,1,LIFETIME_MH))) -> 721.9682264 | AN17: =IF(AN$15-$D$15+2<=LIFETIME_MH,AN12, SUMPRODUCT(OFFSET(AN12,0,(-1*LIFETIME_MH)+1,1,LIFETIME_MH),OFFSET('Shipments and Stock - MH'!AO$14,0,(-1*LIFETIME_MH)+1,1,LIFETIME_MH))/ SUM(OFFSET('Shipments and Stock - MH'!AO$14,0,(-1*LIFETIME_MH)+1,1,LIFETIME_MH))) -> 713.8413001 | AO17: =IF(AO$15-$D$15+2<=LIFETIME_MH,AO12, SUMPRODUCT(OFFSET(AO12,0,(-1*LIFETIME_MH)+1,1,LIFETIME_MH),OFFSET('Shipments and Stock - MH'!AP$14,0,(-1*LIFETIME_MH)+1,1,LIFETIME_MH))/ SUM(OFFSET('Shipments and Stock - MH'!AP$14,0,(-1*LIFETIME_MH)+1,1,LIFETIME_MH))) -> 706.2047441 | AP17: =IF(AP$15-$D$15+2<=LIFETIME_MH,AP12, SUMPRODUCT(OFFSET(AP12,0,(-1*LIFETIME_MH)+1,1,LIFETIME_MH),OFFSET('Shipments and Stock - MH'!AQ$14,0,(-1*LIFETIME_MH)+1,1,LIFETIME_MH))/ SUM(OFFSET('Shipments and Stock - MH'!AQ$14,0,(-1*LIFETIME_MH)+1,1,LIFETIME_MH))) -> 698.9155698 | AQ17: =IF(AQ$15-$D$15+2<=LIFETIME_MH,AQ12, SUMPRODUCT(OFFSET(AQ12,0,(-1*LIFETIME_MH)+1,1,LIFETIME_MH),OFFSET('Shipments and Stock - MH'!AR$14,0,(-1*LIFETIME_MH)+1,1,LIFETIME_MH))/ SUM(OFFSET('Shipments and Stock - MH'!AR$14,0,(-1*LIFETIME_MH)+1,1,LIFETIME_MH))) -> 691.5574808 | AR17: =IF(AR$15-$D$15+2<=LIFETIME_MH,AR12, SUMPRODUCT(OFFSET(AR12,0,(-1*LIFETIME_MH)+1,1,LIFETIME_MH),OFFSET('Shipments and Stock - MH'!AS$14,0,(-1*LIFETIME_MH)+1,1,LIFETIME_MH))/ SUM(OFFSET('Shipments and Stock - MH'!AS$14,0,(-1*LIFETIME_MH)+1,1,LIFETIME_MH))) -> 681.3019231 | AS17: =IF(AS$15-$D$15+2<=LIFETIME_MH,AS12, SUMPRODUCT(OFFSET(AS12,0,(-1*LIFETIME_MH)+1,1,LIFETIME_MH),OFFSET('Shipments and Stock - MH'!AT$14,0,(-1*LIFETIME_MH)+1,1,LIFETIME_MH))/ SUM(OFFSET('Shipments and Stock - MH'!AT$14,0,(-1*LIFETIME_MH)+1,1,LIFETIME_MH))) -> 670.7782258 | AT17: =IF(AT$15-$D$15+2<=LIFETIME_MH,AT12, SUMPRODUCT(OFFSET(AT12,0,(-1*LIFETIME_MH)+1,1,LIFETIME_MH),OFFSET('Shipments and Stock - MH'!AU$14,0,(-1*LIFETIME_MH)+1,1,LIFETIME_MH))/ SUM(OFFSET('Shipments and Stock - MH'!AU$14,0,(-1*LIFETIME_MH)+1,1,LIFETIME_MH))) -> 660.0054367 | AU17: =IF(AU$15-$D$15+2<=LIFETIME_MH,AU12, SUMPRODUCT(OFFSET(AU12,0,(-1*LIFETIME_MH)+1,1,LIFETIME_MH),OFFSET('Shipments and Stock - MH'!AV$14,0,(-1*LIFETIME_MH)+1,1,LIFETIME_MH))/ SUM(OFFSET('Shipments and Stock - MH'!AV$14,0,(-1*LIFETIME_MH)+1,1,LIFETIME_MH))) -> 648.8218354 | AV17: =IF(AV$15-$D$15+2<=LIFETIME_MH,AV12, SUMPRODUCT(OFFSET(AV12,0,(-1*LIFETIME_MH)+1,1,LIFETIME_MH),OFFSET('Shipments and Stock - MH'!AW$14,0,(-1*LIFETIME_MH)+1,1,LIFETIME_MH))/ SUM(OFFSET('Shipments and Stock - MH'!AW$14,0,(-1*LIFETIME_MH)+1,1,LIFETIME_MH))) -> 636.8915418 | AW17: =IF(AW$15-$D$15+2<=LIFETIME_MH,AW12, SUMPRODUCT(OFFSET(AW12,0,(-1*LIFETIME_MH)+1,1,LIFETIME_MH),OFFSET('Shipments and Stock - MH'!AX$14,0,(-1*LIFETIME_MH)+1,1,LIFETIME_MH))/ SUM(OFFSET('Shipments and Stock - MH'!AX$14,0,(-1*LIFETIME_MH)+1,1,LIFETIME_MH))) -> 636.8880848 | AX17: =IF(AX$15-$D$15+2<=LIFETIME_MH,AX12, SUMPRODUCT(OFFSET(AX12,0,(-1*LIFETIME_MH)+1,1,LIFETIME_MH),OFFSET('Shipments and Stock - MH'!AY$14,0,(-1*LIFETIME_MH)+1,1,LIFETIME_MH))/ SUM(OFFSET('Shipments and Stock - MH'!AY$14,0,(-1*LIFETIME_MH)+1,1,LIFETIME_MH))) -> 636.8848936 | AY17: =IF(AY$15-$D$15+2<=LIFETIME_MH,AY12, SUMPRODUCT(OFFSET(AY12,0,(-1*LIFETIME_MH)+1,1,LIFETIME_MH),OFFSET('Shipments and Stock - MH'!AZ$14,0,(-1*LIFETIME_MH)+1,1,LIFETIME_MH))/ SUM(OFFSET('Shipments and Stock - MH'!AZ$14,0,(-1*LIFETIME_MH)+1,1,LIFETIME_MH))) -> 636.8818147 | AZ17: =IF(AZ$15-$D$15+2<=LIFETIME_MH,AZ12, SUMPRODUCT(OFFSET(AZ12,0,(-1*LIFETIME_MH)+1,1,LIFETIME_MH),OFFSET('Shipments and Stock - MH'!BA$14,0,(-1*LIFETIME_MH)+1,1,LIFETIME_MH))/ SUM(OFFSET('Shipments and Stock - MH'!BA$14,0,(-1*LIFETIME_MH)+1,1,LIFETIME_MH))) -> 636.8814463 | BA17: =IF(BA$15-$D$15+2<=LIFETIME_MH,BA12, SUMPRODUCT(OFFSET(BA12,0,(-1*LIFETIME_MH)+1,1,LIFETIME_MH),OFFSET('Shipments and Stock - MH'!BB$14,0,(-1*LIFETIME_MH)+1,1,LIFETIME_MH))/ SUM(OFFSET('Shipments and Stock - MH'!BB$14,0,(-1*LIFETIME_MH)+1,1,LIFETIME_MH))) -> 635.6456846 | BB17: =IF(BB$15-$D$15+2<=LIFETIME_MH,BB12, SUMPRODUCT(OFFSET(BB12,0,(-1*LIFETIME_MH)+1,1,LIFETIME_MH),OFFSET('Shipments and Stock - MH'!BC$14,0,(-1*LIFETIME_MH)+1,1,LIFETIME_MH))/ SUM(OFFSET('Shipments and Stock - MH'!BC$14,0,(-1*LIFETIME_MH)+1,1,LIFETIME_MH))) -> 635.6456846 | BC17: =IF(BC$15-$D$15+2<=LIFETIME_MH,BC12, SUMPRODUCT(OFFSET(BC12,0,(-1*LIFETIME_MH)+1,1,LIFETIME_MH),OFFSET('Shipments and Stock - MH'!BD$14,0,(-1*LIFETIME_MH)+1,1,LIFETIME_MH))/ SUM(OFFSET('Shipments and Stock - MH'!BD$14,0,(-1*LIFETIME_MH)+1,1,LIFETIME_MH))) -> 635.6456846 | BD17: =IF(BD$15-$D$15+2<=LIFETIME_MH,BD12, SUMPRODUCT(OFFSET(BD12,0,(-1*LIFETIME_MH)+1,1,LIFETIME_MH),OFFSET('Shipments and Stock - MH'!BE$14,0,(-1*LIFETIME_MH)+1,1,LIFETIME_MH))/ SUM(OFFSET('Shipments and Stock - MH'!BE$14,0,(-1*LIFETIME_MH)+1,1,LIFETIME_MH))) -> 635.6456846 | BE17: =IF(BE$15-$D$15+2<=LIFETIME_MH,BE12, SUMPRODUCT(OFFSET(BE12,0,(-1*LIFETIME_MH)+1,1,LIFETIME_MH),OFFSET('Shipments and Stock - MH'!BF$14,0,(-1*LIFETIME_MH)+1,1,LIFETIME_MH))/ SUM(OFFSET('Shipments and Stock - MH'!BF$14,0,(-1*LIFETIME_MH)+1,1,LIFETIME_MH))) -> 635.6456846

Sheet Results-SF
C2: RESULTS - Single Family
C4: NAVIGATION
C6: COMMENTS
C9: SINGLE FAMILY
C11: Unit Energy Consumption (kWh/year) | D11: 2010 | E11: 2011 | F11: 2012 | G11: 2013 | H11: 2014 | I11: 2015 | J11: 2016 | K11: 2017 | L11: 2018 | M11: 2019 | N11: 2020 | O11: 2021 | P11: 2022 | Q11: 2023 | R11: 2024 | S11: 2025 | T11: 2026 | U11: 2027 | V11: 2028 | W11: 2029 | X11: 2030 | Y11: 2031 | Z11: 2032 | AA11: 2033 | AB11: 2034
C12: 6P UEC | D12: ='6P UEC Development'!$L$12 -> 263.2004281 | E12: ='6P UEC Development'!$L$12 -> 263.2004281 | F12: ='6P UEC Development'!$L$12 -> 263.2004281 | G12: ='6P UEC Development'!$L$12 -> 263.2004281 | H12: ='6P UEC Development'!$L$12 -> 263.2004281 | I12: ='6P UEC Development'!$L$12 -> 263.2004281 | J12: ='6P UEC Development'!$L$12 -> 263.2004281 | K12: ='6P UEC Development'!$L$12 -> 263.2004281 | L12: ='6P UEC Development'!$L$12 -> 263.2004281 | M12: ='6P UEC Development'!$L$12 -> 263.2004281 | N12: ='6P UEC Development'!$L$12 -> 263.2004281 | O12: ='6P UEC Development'!$L$12 -> 263.2004281 | P12: ='6P UEC Development'!$L$12 -> 263.2004281 | Q12: ='6P UEC Development'!$L$12 -> 263.2004281 | R12: ='6P UEC Development'!$L$12 -> 263.2004281 | S12: ='6P UEC Development'!$L$12 -> 263.2004281 | T12: ='6P UEC Development'!$L$12 -> 263.2004281 | U12: ='6P UEC Development'!$L$12 -> 263.2004281 | V12: ='6P UEC Development'!$L$12 -> 263.2004281 | W12: ='6P UEC Development'!$L$12 -> 263.2004281 | X12: ='6P UEC Development'!$L$12 -> 263.2004281 | Y12: ='6P UEC Development'!$L$12 -> 263.2004281 | Z12: ='6P UEC Development'!$L$12 -> 263.2004281 | AA12: ='6P UEC Development'!$L$12 -> 263.2004281 | AB12: ='6P UEC Development'!$L$12 -> 263.2004281
C13: ='UEC-SF'!$C$9&" - "&'UEC-SF'!C11 -> Market UEC (Shipment Weighted Average) - PRE-Case UEC | D13: ='UEC-SF'!AG11 -> 635.5 | E13: ='UEC-SF'!AH11 -> 635.5 | F13: ='UEC-SF'!AI11 -> 635.5 | G13: ='UEC-SF'!AJ11 -> 635.5 | H13: ='UEC-SF'!AK11 -> 653.5631438 | I13: ='UEC-SF'!AL11 -> 653.5631438 | J13: ='UEC-SF'!AM11 -> 653.5631438 | K13: ='UEC-SF'!AN11 -> 653.5631438 | L13: ='UEC-SF'!AO11 -> 653.5631438 | M13: ='UEC-SF'!AP11 -> 653.5631438 | N13: ='UEC-SF'!AQ11 -> 653.5631438 | O13: ='UEC-SF'!AR11 -> 653.5631438 | P13: ='UEC-SF'!AS11 -> 653.5631438 | Q13: ='UEC-SF'!AT11 -> 653.5631438 | R13: ='UEC-SF'!AU11 -> 653.5631438 | S13: ='UEC-SF'!AV11 -> 653.5631438 | T13: ='UEC-SF'!AW11 -> 653.5631438 | U13: ='UEC-SF'!AX11 -> 653.5631438 | V13: ='UEC-SF'!AY11 -> 653.5631438 | W13: ='UEC-SF'!AZ11 -> 653.5631438 | X13: ='UEC-SF'!BA11 -> 653.5631438 | Y13: ='UEC-SF'!BB11 -> 653.5631438 | Z13: ='UEC-SF'!BC11 -> 653.5631438 | AA13: ='UEC-SF'!BD11 -> 653.5631438 | AB13: ='UEC-SF'!BE11 -> 653.5631438
C14: ='UEC-SF'!$C$9&" - "&'UEC-SF'!C12 -> Market UEC (Shipment Weighted Average) - POST-Case UEC | D14: ='UEC-SF'!AG12 -> 635.5 | E14: ='UEC-SF'!AH12 -> 635.5 | F14: ='UEC-SF'!AI12 -> 635.5 | G14: ='UEC-SF'!AJ12 -> 635.5 | H14: ='UEC-SF'!AK12 -> 653.5631438 | I14: ='UEC-SF'!AL12 -> 635.6456846 | J14: ='UEC-SF'!AM12 -> 635.6456846 | K14: ='UEC-SF'!AN12 -> 635.6456846 | L14: ='UEC-SF'!AO12 -> 635.6456846 | M14: ='UEC-SF'!AP12 -> 635.6456846 | N14: ='UEC-SF'!AQ12 -> 635.6456846 | O14: ='UEC-SF'!AR12 -> 635.6456846 | P14: ='UEC-SF'!AS12 -> 635.6456846 | Q14: ='UEC-SF'!AT12 -> 635.6456846 | R14: ='UEC-SF'!AU12 -> 635.6456846 | S14: ='UEC-SF'!AV12 -> 635.6456846 | T14: ='UEC-SF'!AW12 -> 635.6456846 | U14: ='UEC-SF'!AX12 -> 635.6456846 | V14: ='UEC-SF'!AY12 -> 635.6456846 | W14: ='UEC-SF'!AZ12 -> 635.6456846 | X14: ='UEC-SF'!BA12 -> 635.6456846 | Y14: ='UEC-SF'!BB12 -> 635.6456846 | Z14: ='UEC-SF'!BC12 -> 635.6456846 | AA14: ='UEC-SF'!BD12 -> 635.6456846 | AB14: ='UEC-SF'!BE12 -> 635.6456846
C15: ='UEC-SF'!$C$14&" - "&'UEC-SF'!C16 -> Installed UEC (Vintage Weighted Average) - PRE-Case UEC | D15: ='UEC-SF'!AG16 -> 769.2628131 | E15: ='UEC-SF'!AH16 -> 762.9392075 | F15: ='UEC-SF'!AI16 -> 756.3688071 | G15: ='UEC-SF'!AJ16 -> 749.3081548 | H15: ='UEC-SF'!AK16 -> 743.9496311 | I15: ='UEC-SF'!AL16 -> 738.5827633 | J15: ='UEC-SF'!AM16 -> 730.5180029 | K15: ='UEC-SF'!AN16 -> 722.7251982 | L15: ='UEC-SF'!AO16 -> 714.9291381 | M15: ='UEC-SF'!AP16 -> 707.1874265 | N15: ='UEC-SF'!AQ16 -> 699.4890265 | O15: ='UEC-SF'!AR16 -> 688.1252635 | P15: ='UEC-SF'!AS16 -> 677.1452255 | Q15: ='UEC-SF'!AT16 -> 667.3281475 | R15: ='UEC-SF'!AU16 -> 658.2057029 | S15: ='UEC-SF'!AV16 -> 649.4495 | T15: ='UEC-SF'!AW16 -> 650.4336667 | U15: ='UEC-SF'!AX16 -> 651.4254276 | V15: ='UEC-SF'!AY16 -> 652.44687 | W15: ='UEC-SF'!AZ16 -> 653.5631438 | X15: ='UEC-SF'!BA16 -> 653.5631438 | Y15: ='UEC-SF'!BB16 -> 653.5631438 | Z15: ='UEC-SF'!BC16 -> 653.5631438 | AA15: ='UEC-SF'!BD16 -> 653.5631438 | AB15: ='UEC-SF'!BE16 -> 653.5631438
C16: ='UEC-SF'!$C$14&" - "&'UEC-SF'!C17 -> Installed UEC (Vintage Weighted Average) - POST-Case UEC | D16: ='UEC-SF'!AG17 -> 769.2628131 | E16: ='UEC-SF'!AH17 -> 762.9392075 | F16: ='UEC-SF'!AI17 -> 756.3688071 | G16: ='UEC-SF'!AJ17 -> 749.3081548 | H16: ='UEC-SF'!AK17 -> 743.9496311 | I16: ='UEC-SF'!AL17 -> 737.2625503 | J16: ='UEC-SF'!AM17 -> 727.9471919 | K16: ='UEC-SF'!AN17 -> 718.9467942 | L16: ='UEC-SF'!AO17 -> 709.9455497 | M16: ='UEC-SF'!AP17 -> 701.0094614 | N16: ='UEC-SF'!AQ17 -> 692.1254181 | O16: ='UEC-SF'!AR17 -> 679.548591 | P16: ='UEC-SF'!AS17 -> 667.3971332 | Q16: ='UEC-SF'!AT17 -> 656.5276458 | R16: ='UEC-SF'!AU17 -> 646.4249839 | S16: ='UEC-SF'!AV17 -> 636.7270055 | T16: ='UEC-SF'!AW17 -> 636.7221531 | U16: ='UEC-SF'!AX17 -> 636.7178947 | V16: ='UEC-SF'!AY17 -> 636.7144542 | W16: ='UEC-SF'!AZ17 -> 636.7122325 | X16: ='UEC-SF'!BA17 -> 635.6456846 | Y16: ='UEC-SF'!BB17 -> 635.6456846 | Z16: ='UEC-SF'!BC17 -> 635.6456846 | AA16: ='UEC-SF'!BD17 -> 635.6456846 | AB16: ='UEC-SF'!BE17 -> 635.6456846
C18: Stock and Shipments (units) | D18: 2010 | E18: 2011 | F18: 2012 | G18: 2013 | H18: 2014 | I18: 2015 | J18: 2016 | K18: 2017 | L18: 2018 | M18: 2019 | N18: 2020 | O18: 2021 | P18: 2022 | Q18: 2023 | R18: 2024 | S18: 2025 | T18: 2026 | U18: 2027 | V18: 2028 | W18: 2029 | X18: 2030 | Y18: 2031 | Z18: 2032 | AA18: 2033 | AB18: 2034
C19: 6P Shipments | D19: ='Shipments and Stock - SF'!AH11 -> 277293.6452 | E19: ='Shipments and Stock - SF'!AI11 -> 290696.7984 | F19: ='Shipments and Stock - SF'!AJ11 -> 298404.3657 | G19: ='Shipments and Stock - SF'!AK11 -> 299831.5997 | H19: ='Shipments and Stock - SF'!AL11 -> 299423.6148 | I19: ='Shipments and Stock - SF'!AM11 -> 299602.0918 | J19: ='Shipments and Stock - SF'!AN11 -> 303915.9326 | K19: ='Shipments and Stock - SF'!AO11 -> 302831.0867 | L19: ='Shipments and Stock - SF'!AP11 -> 301619.2371 | M19: ='Shipments and Stock - SF'!AQ11 -> 300313.1805 | N19: ='Shipments and Stock - SF'!AR11 -> 299326.8411 | O19: ='Shipments and Stock - SF'!AS11 -> 297827.7189 | P19: ='Shipments and Stock - SF'!AT11 -> 296835.775 | Q19: ='Shipments and Stock - SF'!AU11 -> 296120.5751 | R19: ='Shipments and Stock - SF'!AV11 -> 53311.11065 | S19: ='Shipments and Stock - SF'!AW11 -> 53129.27316 | T19: ='Shipments and Stock - SF'!AX11 -> 52646.13866 | U19: ='Shipments and Stock - SF'!AY11 -> 51613.36853 | V19: ='Shipments and Stock - SF'!AZ11 -> 50269.36413 | W19: ='Shipments and Stock - SF'!BA11 -> 49352.9902 | X19: ='Shipments and Stock - SF'!BB11 -> 49154.80623 | Y19: ='Shipments and Stock - SF'!BC11 -> 49154.80623 | Z19: ='Shipments and Stock - SF'!BD11 -> 49154.80623 | AA19: ='Shipments and Stock - SF'!BE11 -> 49154.80623 | AB19: ='Shipments and Stock - SF'!BF11 -> 49154.80623
C20: Replacement Shipments | D20: ='Shipments and Stock - SF'!AH12 -> 215007.2103 | E20: ='Shipments and Stock - SF'!AI12 -> 208139.1869 | F20: ='Shipments and Stock - SF'!AJ12 -> 210428.2125 | G20: ='Shipments and Stock - SF'!AK12 -> 241168.5369 | H20: ='Shipments and Stock - SF'!AL12 -> 233458.7689 | I20: ='Shipments and Stock - SF'!AM12 -> 243966.0369 | J20: ='Shipments and Stock - SF'!AN12 -> 236851.4482 | K20: ='Shipments and Stock - SF'!AO12 -> 236518.4247 | L20: ='Shipments and Stock - SF'!AP12 -> 245535.5451 | M20: ='Shipments and Stock - SF'!AQ12 -> 252246.3351 | N20: ='Shipments and Stock - SF'!AR12 -> 258892.0882 | O20: ='Shipments and Stock - SF'!AS12 -> 274752.234 | P20: ='Shipments and Stock - SF'!AT12 -> 272469.8247 | Q20: ='Shipments and Stock - SF'!AU12 -> 249219.9531 | R20: ='Shipments and Stock - SF'!AV12 -> 237129.668 | S20: ='Shipments and Stock - SF'!AW12 -> 233060.3492 | T20: ='Shipments and Stock - SF'!AX12 -> 251898.6534 | U20: ='Shipments and Stock - SF'!AY12 -> 260166.0267 | V20: ='Shipments and Stock - SF'!AZ12 -> 274412.9744 | W20: ='Shipments and Stock - SF'!BA12 -> 306772.0543 | X20: ='Shipments and Stock - SF'!BB12 -> 298599.5538 | Y20: ='Shipments and Stock - SF'!BC12 -> 309309.2486 | Z20: ='Shipments and Stock - SF'!BD12 -> 302404.9829 | AA20: ='Shipments and Stock - SF'!BE12 -> 300923.5654 | AB20: ='Shipments and Stock - SF'!BF12 -> 308657.8484
C21: Net New Shipments | D21: ='Shipments and Stock - SF'!AH13 -> 36891.44312 | E21: ='Shipments and Stock - SF'!AI13 -> 52026.83981 | F21: ='Shipments and Stock - SF'!AJ13 -> 63984.76186 | G21: ='Shipments and Stock - SF'!AK13 -> 65603.51743 | H21: ='Shipments and Stock - SF'!AL13 -> 65140.78481 | I21: ='Shipments and Stock - SF'!AM13 -> 65343.21175 | J21: ='Shipments and Stock - SF'!AN13 -> 65553.53475 | K21: ='Shipments and Stock - SF'!AO13 -> 64405.14072 | L21: ='Shipments and Stock - SF'!AP13 -> 63122.30333 | M21: ='Shipments and Stock - SF'!AQ13 -> 61739.74052 | N21: ='Shipments and Stock - SF'!AR13 -> 60695.62329 | O21: ='Shipments and Stock - SF'!AS13 -> 59108.68537 | P21: ='Shipments and Stock - SF'!AT13 -> 58058.63535 | Q21: ='Shipments and Stock - SF'!AU13 -> 57301.54041 | R21: ='Shipments and Stock - SF'!AV13 -> 56433.97168 | S21: ='Shipments and Stock - SF'!AW13 -> 56241.4825 | T21: ='Shipments and Stock - SF'!AX13 -> 55730.04692 | U21: ='Shipments and Stock - SF'!AY13 -> 54636.77914 | V21: ='Shipments and Stock - SF'!AZ13 -> 53214.04557 | W21: ='Shipments and Stock - SF'!BA13 -> 52243.99225 | X21: ='Shipments and Stock - SF'!BB13 -> 52034.19904 | Y21: ='Shipments and Stock - SF'!BC13 -> 52554.54103 | Z21: ='Shipments and Stock - SF'!BD13 -> 53080.08645 | AA21: ='Shipments and Stock - SF'!BE13 -> 53610.88731 | AB21: ='Shipments and Stock - SF'!BF13 -> 54146.99618
C22: Total Model Shipments | D22: ='Shipments and Stock - SF'!AH14 -> 251898.6534 | E22: ='Shipments and Stock - SF'!AI14 -> 260166.0267 | F22: ='Shipments and Stock - SF'!AJ14 -> 274412.9744 | G22: ='Shipments and Stock - SF'!AK14 -> 306772.0543 | H22: ='Shipments and Stock - SF'!AL14 -> 298599.5538 | I22: ='Shipments and Stock - SF'!AM14 -> 309309.2486 | J22: ='Shipments and Stock - SF'!AN14 -> 302404.9829 | K22: ='Shipments and Stock - SF'!AO14 -> 300923.5654 | L22: ='Shipments and Stock - SF'!AP14 -> 308657.8484 | M22: ='Shipments and Stock - SF'!AQ14 -> 313986.0756 | N22: ='Shipments and Stock - SF'!AR14 -> 319587.7115 | O22: ='Shipments and Stock - SF'!AS14 -> 333860.9194 | P22: ='Shipments and Stock - SF'!AT14 -> 330528.4601 | Q22: ='Shipments and Stock - SF'!AU14 -> 306521.4935 | R22: ='Shipments and Stock - SF'!AV14 -> 293563.6397 | S22: ='Shipments and Stock - SF'!AW14 -> 289301.8317 | T22: ='Shipments and Stock - SF'!AX14 -> 307628.7003 | U22: ='Shipments and Stock - SF'!AY14 -> 314802.8058 | V22: ='Shipments and Stock - SF'!AZ14 -> 327627.02 | W22: ='Shipments and Stock - SF'!BA14 -> 359016.0466 | X22: ='Shipments and Stock - SF'!BB14 -> 350633.7528 | Y22: ='Shipments and Stock - SF'!BC14 -> 361863.7897 | Z22: ='Shipments and Stock - SF'!BD14 -> 355485.0694 | AA22: ='Shipments and Stock - SF'!BE14 -> 354534.4527 | AB22: ='Shipments and Stock - SF'!BF14 -> 362804.8446
C23: Model Installed Stock | D23: ='Shipments and Stock - SF'!AH15 -> 3885735.266 | E23: ='Shipments and Stock - SF'!AI15 -> 3937762.106 | F23: ='Shipments and Stock - SF'!AJ15 -> 4001746.867 | G23: ='Shipments and Stock - SF'!AK15 -> 4067350.385 | H23: ='Shipments and Stock - SF'!AL15 -> 4132491.17 | I23: ='Shipments and Stock - SF'!AM15 -> 4197834.381 | J23: ='Shipments and Stock - SF'!AN15 -> 4263387.916 | K23: ='Shipments and Stock - SF'!AO15 -> 4327793.057 | L23: ='Shipments and Stock - SF'!AP15 -> 4390915.36 | M23: ='Shipments and Stock - SF'!AQ15 -> 4452655.101 | N23: ='Shipments and Stock - SF'!AR15 -> 4513350.724 | O23: ='Shipments and Stock - SF'!AS15 -> 4572459.409 | P23: ='Shipments and Stock - SF'!AT15 -> 4630518.045 | Q23: ='Shipments and Stock - SF'!AU15 -> 4687819.585 | R23: ='Shipments and Stock - SF'!AV15 -> 4744253.557 | S23: ='Shipments and Stock - SF'!AW15 -> 4800495.039 | T23: ='Shipments and Stock - SF'!AX15 -> 4856225.086 | U23: ='Shipments and Stock - SF'!AY15 -> 4910861.865 | V23: ='Shipments and Stock - SF'!AZ15 -> 4964075.911 | W23: ='Shipments and Stock - SF'!BA15 -> 5016319.903 | X23: ='Shipments and Stock - SF'!BB15 -> 5068354.102 | Y23: ='Shipments and Stock - SF'!BC15 -> 5120908.643 | Z23: ='Shipments and Stock - SF'!BD15 -> 5173988.73 | AA23: ='Shipments and Stock - SF'!BE15 -> 5227599.617 | AB23: ='Shipments and Stock - SF'!BF15 -> 5281746.613
C27: First Year Energy Consumption | D27: 2010 | E27: 2011 | F27: 2012 | G27: 2013 | H27: 2014 | I27: 2015 | J27: 2016 | K27: 2017 | L27: 2018 | M27: 2019 | N27: 2020 | O27: 2021 | P27: 2022 | Q27: 2023 | R27: 2024 | S27: 2025 | T27: 2026 | U27: 2027 | V27: 2028 | W27: 2029 | X27: 2030 | Y27: 2031 | Z27: 2032 | AA27: 2033 | AB27: 2034
C28: 6P Shipments * 6P UEC | D28: =D12*D19 -> 72983806.14 | E28: =E12*E19 -> 76511521.79 | F28: 78540156.82 | G28: 78915805.4 | H28: 78808423.62 | I28: 78855398.84 | J28: 79990803.57 | K28: 79705271.67 | L28: 79386312.33 | M28: 79042557.69 | N28: 78782952.74 | O28: 78388383.12 | P28: 78127303.07 | Q28: 77939062.14 | R28: 14031507.15 | S28: 13983647.44 | T28: 13856486.23 | U28: 13584660.7 | V28: 13230918.16 | W28: 12989728.15 | X28: 12937566.05 | Y28: 12937566.05 | Z28: 12937566.05 | AA28: 12937566.05 | AB28: 12937566.05
C29: Model Shipments * Model Pre-Case UEC | D29: =D13*D22 -> 160081594.2 | E29: =E13*E22 -> 165335510 | F29: 174389445.2 | G29: 194953640.5 | H29: 195153663.1 | I29: 202153124.9 | J29: 197640751.3 | K29: 196672551.4 | L29: 201727393.8 | M29: 205209726.7 | N29: 208870749.4 | O29: 218199192.1 | P29: 216021219.5 | Q29: 200331151 | R29: 191862375.2 | S29: 189077014.6 | T29: 201054780.5 | U29: 205743511.4 | V29: 214124945.2 | W29: 234639656.1 | X29: 229161297.8 | Y29: 236500836 | Z29: 232331939.5 | AA29: 231710651.5 | AB29: 237115874.8
C30: Model Shipments * Model Post-Case UEC | D30: =D14*D22 -> 160081594.2 | E30: =E14*E22 -> 165335510 | F30: 174389445.2 | G30: 194953640.5 | H30: 195153663.1 | I30: 196611089.1 | J30: 192222422.4 | K30: 191280765.7 | L30: 196197029.4 | M30: 199583894 | N30: 203144549.7 | O30: 212217252.7 | P30: 210098989.3 | Q30: 194839064.6 | R30: 186602460.7 | S30: 183893460.9 | T30: 195542855.8 | U30: 200103045 | V30: 208254701.4 | W30: 228207000.7 | X30: 222878831.8 | Y30: 230017156.3 | Z30: 225962550.3 | AA30: 225358294.9 | AB30: 230615333.8
C32: Total Energy Consumption (kWh) | D32: 2010 | E32: 2011 | F32: 2012 | G32: 2013 | H32: 2014 | I32: 2015 | J32: 2016 | K32: 2017 | L32: 2018 | M32: 2019 | N32: 2020 | O32: 2021 | P32: 2022 | Q32: 2023 | R32: 2024 | S32: 2025 | T32: 2026 | U32: 2027 | V32: 2028 | W32: 2029 | X32: 2030 | Y32: 2031 | Z32: 2032 | AA32: 2033 | AB32: 2034
C33: Modeled Pre-case Consumption (Installed UEC * Stock) | D33: =D15*D$23 -> 2989151641 | E33: =E15*E$23 -> 3004273100 | F33: 3026796504 | G33: 3047698812 | H33: 3074365281 | I33: 3100448117 | J33: 3114481626 | K33: 3127805095 | L33: 3139193334 | M33: 3148861702 | N33: 3157039304 | O33: 3146424836 | P33: 3135533185 | Q33: 3128313959 | R33: 3122694747 | S33: 3117679103 | T33: 3158652289 | U33: 3199060291 | V33: 3238795791 | W33: 3278481806 | X33: 3312489441 | Y33: 3346837152 | Z33: 3381528340 | AA33: 3416566440 | AB33: 3451954921
C34: Modeled Post-case Consumption (Installed UEC* Stock) | D34: =D16*D$23 -> 2989151641 | E34: =E16*E$23 -> 3004273100 | F34: 3026796504 | G34: 3047698812 | H34: 3074365281 | I34: 3094906082 | J34: 3103521261 | K34: 3111452944 | L34: 3117310819 | M34: 3121353354 | N34: 3123804757 | O34: 3107208349 | P34: 3090394468 | Q34: 3077683156 | R34: 3066804029 | S34: 3056604831 | T34: 3092066093 | U34: 3126833628 | V34: 3160698884 | W34: 3193952244 | X34: 3221677413 | Y34: 3255083480 | Z34: 3288823608 | AA34: 3322901137 | AB34: 3357319442
C38: Total Energy Consumption (aMW) | D38: 2010 | E38: 2011 | F38: 2012 | G38: 2013 | H38: 2014 | I38: 2015 | J38: 2016 | K38: 2017 | L38: 2018 | M38: 2019 | N38: 2020 | O38: 2021 | P38: 2022 | Q38: 2023 | R38: 2024 | S38: 2025 | T38: 2026 | U38: 2027 | V38: 2028 | W38: 2029 | X38: 2030 | Y38: 2031 | Z38: 2032 | AA38: 2033 | AB38: 2034
C39: =C33 -> Modeled Pre-case Consumption (Installed UEC * Stock) | D39: =D33/Constants!$D$13/(Constants!$D$12*Constants!$D$10) -> 340.9937989 | E39: =E33/Constants!$D$13/(Constants!$D$12*Constants!$D$10) -> 342.7188113 | F39: =F33/Constants!$D$13/(Constants!$D$12*Constants!$D$10) -> 345.2882163 | G39: =G33/Constants!$D$13/(Constants!$D$12*Constants!$D$10) -> 347.6726913 | H39: =H33/Constants!$D$13/(Constants!$D$12*Constants!$D$10) -> 350.7147252 | I39: =I33/Constants!$D$13/(Constants!$D$12*Constants!$D$10) -> 353.69018 | J39: =J33/Constants!$D$13/(Constants!$D$12*Constants!$D$10) -> 355.2910822 | K39: =K33/Constants!$D$13/(Constants!$D$12*Constants!$D$10) -> 356.810985 | L39: =L33/Constants!$D$13/(Constants!$D$12*Constants!$D$10) -> 358.1101225 | M39: =M33/Constants!$D$13/(Constants!$D$12*Constants!$D$10) -> 359.213062 | N39: =N33/Constants!$D$13/(Constants!$D$12*Constants!$D$10) -> 360.1459394 | O39: =O33/Constants!$D$13/(Constants!$D$12*Constants!$D$10) -> 358.9350714 | P39: =P33/Constants!$D$13/(Constants!$D$12*Constants!$D$10) -> 357.6925833 | Q39: =Q33/Constants!$D$13/(Constants!$D$12*Constants!$D$10) -> 356.8690348 | R39: =R33/Constants!$D$13/(Constants!$D$12*Constants!$D$10) -> 356.2280113 | S39: =S33/Constants!$D$13/(Constants!$D$12*Constants!$D$10) -> 355.6558411 | T39: =T33/Constants!$D$13/(Constants!$D$12*Constants!$D$10) -> 360.329944 | U39: =U33/Constants!$D$13/(Constants!$D$12*Constants!$D$10) -> 364.9395723 | V39: =V33/Constants!$D$13/(Constants!$D$12*Constants!$D$10) -> 369.4724835 | W39: =W33/Constants!$D$13/(Constants!$D$12*Constants!$D$10) -> 373.9997497 | X39: =X33/Constants!$D$13/(Constants!$D$12*Constants!$D$10) -> 377.8792426 | Y39: =Y33/Constants!$D$13/(Constants!$D$12*Constants!$D$10) -> 381.7975305 | Z39: =Z33/Constants!$D$13/(Constants!$D$12*Constants!$D$10) -> 385.7550012 | AA39: =AA33/Constants!$D$13/(Constants!$D$12*Constants!$D$10) -> 389.7520466 | AB39: =AB33/Constants!$D$13/(Constants!$D$12*Constants!$D$10) -> 393.7890624
C40: =C34 -> Modeled Post-case Consumption (Installed UEC* Stock) | D40: =D34/Constants!$D$13/(Constants!$D$12*Constants!$D$10) -> 340.9937989 | E40: =E34/Constants!$D$13/(Constants!$D$12*Constants!$D$10) -> 342.7188113 | F40: =F34/Constants!$D$13/(Constants!$D$12*Constants!$D$10) -> 345.2882163 | G40: =G34/Constants!$D$13/(Constants!$D$12*Constants!$D$10) -> 347.6726913 | H40: =H34/Constants!$D$13/(Constants!$D$12*Constants!$D$10) -> 350.7147252 | I40: =I34/Constants!$D$13/(Constants!$D$12*Constants!$D$10) -> 353.0579605 | J40: =J34/Constants!$D$13/(Constants!$D$12*Constants!$D$10) -> 354.0407554 | K40: =K34/Constants!$D$13/(Constants!$D$12*Constants!$D$10) -> 354.9455789 | L40: =L34/Constants!$D$13/(Constants!$D$12*Constants!$D$10) -> 355.6138283 | M40: =M34/Constants!$D$13/(Constants!$D$12*Constants!$D$10) -> 356.0749891 | N40: =N34/Constants!$D$13/(Constants!$D$12*Constants!$D$10) -> 356.354638 | O40: =O34/Constants!$D$13/(Constants!$D$12*Constants!$D$10) -> 354.4613677 | P40: =P34/Constants!$D$13/(Constants!$D$12*Constants!$D$10) -> 352.5432887 | Q40: =Q34/Constants!$D$13/(Constants!$D$12*Constants!$D$10) -> 351.0932188 | R40: =R34/Constants!$D$13/(Constants!$D$12*Constants!$D$10) -> 349.8521594 | S40: =S34/Constants!$D$13/(Constants!$D$12*Constants!$D$10) -> 348.6886643 | T40: =T34/Constants!$D$13/(Constants!$D$12*Constants!$D$10) -> 352.7339828 | U40: =U34/Constants!$D$13/(Constants!$D$12*Constants!$D$10) -> 356.7001629 | V40: =V34/Constants!$D$13/(Constants!$D$12*Constants!$D$10) -> 360.5634137 | W40: =W34/Constants!$D$13/(Constants!$D$12*Constants!$D$10) -> 364.3568611 | X40: =X34/Constants!$D$13/(Constants!$D$12*Constants!$D$10) -> 367.5196684 | Y40: =Y34/Constants!$D$13/(Constants!$D$12*Constants!$D$10) -> 371.3305362 | Z40: =Z34/Constants!$D$13/(Constants!$D$12*Constants!$D$10) -> 375.1795127 | AA40: =AA34/Constants!$D$13/(Constants!$D$12*Constants!$D$10) -> 379.0669789 | AB40: =AB34/Constants!$D$13/(Constants!$D$12*Constants!$D$10) -> 382.9933199
C42: Savings (aMW) | D42: 2010 | E42: 2011 | F42: 2012 | G42: 2013 | H42: 2014 | I42: 2015 | J42: 2016 | K42: 2017 | L42: 2018 | M42: 2019 | N42: 2020 | O42: 2021 | P42: 2022 | Q42: 2023 | R42: 2024 | S42: 2025 | T42: 2026 | U42: 2027 | V42: 2028 | W42: 2029 | X42: 2030 | Y42: 2031 | Z42: 2032 | AA42: 2033 | AB42: 2034
C43: Incremental Savings | D43: =IF(AND(D42>=STANDARD_YEAR,(D42-STANDARD_YEAR)<LIFETIME_SF), (D13-D14)*D22, (D13-D14)*D21) /Constants!$D$13/(Constants!$D$12*Constants!$D$10) -> 0 | E43: =IF(AND(E42>=STANDARD_YEAR,(E42-STANDARD_YEAR)<LIFETIME_SF), (E13-E14)*E22, (E13-E14)*E21) /Constants!$D$13/(Constants!$D$12*Constants!$D$10) -> 0 | F43: =IF(AND(F42>=STANDARD_YEAR,(F42-STANDARD_YEAR)<LIFETIME_SF), (F13-F14)*F22, (F13-F14)*F21) /Constants!$D$13/(Constants!$D$12*Constants!$D$10) -> 0 | G43: =IF(AND(G42>=STANDARD_YEAR,(G42-STANDARD_YEAR)<LIFETIME_SF), (G13-G14)*G22, (G13-G14)*G21) /Constants!$D$13/(Constants!$D$12*Constants!$D$10) -> 0 | H43: =IF(AND(H42>=STANDARD_YEAR,(H42-STANDARD_YEAR)<LIFETIME_SF), (H13-H14)*H22, (H13-H14)*H21) /Constants!$D$13/(Constants!$D$12*Constants!$D$10) -> 0 | I43: =IF(AND(I42>=STANDARD_YEAR,(I42-STANDARD_YEAR)<LIFETIME_SF), (I13-I14)*I22, (I13-I14)*I21) /Constants!$D$13/(Constants!$D$12*Constants!$D$10) -> 0.6322194661 | J43: =IF(AND(J42>=STANDARD_YEAR,(J42-STANDARD_YEAR)<LIFETIME_SF), (J13-J14)*J22, (J13-J14)*J21) /Constants!$D$13/(Constants!$D$12*Constants!$D$10) -> 0.6181073398 | K43: =IF(AND(K42>=STANDARD_YEAR,(K42-STANDARD_YEAR)<LIFETIME_SF), (K13-K14)*K22, (K13-K14)*K21) /Constants!$D$13/(Constants!$D$12*Constants!$D$10) -> 0.6150793637 | L43: =IF(AND(L42>=STANDARD_YEAR,(L42-STANDARD_YEAR)<LIFETIME_SF), (L13-L14)*L22, (L13-L14)*L21) /Constants!$D$13/(Constants!$D$12*Constants!$D$10) -> 0.6308880222 | M43: =IF(AND(M42>=STANDARD_YEAR,(M42-STANDARD_YEAR)<LIFETIME_SF), (M13-M14)*M22, (M13-M14)*M21) /Constants!$D$13/(Constants!$D$12*Constants!$D$10) -> 0.6417787698 | N43: =IF(AND(N42>=STANDARD_YEAR,(N42-STANDARD_YEAR)<LIFETIME_SF), (N13-N14)*N22, (N13-N14)*N21) /Constants!$D$13/(Constants!$D$12*Constants!$D$10) -> 0.6532283571 | O43: =IF(AND(O42>=STANDARD_YEAR,(O42-STANDARD_YEAR)<LIFETIME_SF), (O13-O14)*O22, (O13-O14)*O21) /Constants!$D$13/(Constants!$D$12*Constants!$D$10) -> 0.6824023954 | P43: =IF(AND(P42>=STANDARD_YEAR,(P42-STANDARD_YEAR)<LIFETIME_SF), (P13-P14)*P22, (P13-P14)*P21) /Constants!$D$13/(Constants!$D$12*Constants!$D$10) -> 0.6755909417 | Q43: =IF(AND(Q42>=STANDARD_YEAR,(Q42-STANDARD_YEAR)<LIFETIME_SF), (Q13-Q14)*Q22, (Q13-Q14)*Q21) /Constants!$D$13/(Constants!$D$12*Constants!$D$10) -> 0.6265213725 | R43: =IF(AND(R42>=STANDARD_YEAR,(R42-STANDARD_YEAR)<LIFETIME_SF), (R13-R14)*R22, (R13-R14)*R21) /Constants!$D$13/(Constants!$D$12*Constants!$D$10) -> 0.6000358811 | S43: =IF(AND(S42>=STANDARD_YEAR,(S42-STANDARD_YEAR)<LIFETIME_SF), (S13-S14)*S22, (S13-S14)*S21) /Constants!$D$13/(Constants!$D$12*Constants!$D$10) -> 0.5913248646 | T43: =IF(AND(T42>=STANDARD_YEAR,(T42-STANDARD_YEAR)<LIFETIME_SF), (T13-T14)*T22, (T13-T14)*T21) /Constants!$D$13/(Constants!$D$12*Constants!$D$10) -> 0.6287844723 | U43: =IF(AND(U42>=STANDARD_YEAR,(U42-STANDARD_YEAR)<LIFETIME_SF), (U13-U14)*U22, (U13-U14)*U21) /Constants!$D$13/(Constants!$D$12*Constants!$D$10) -> 0.6434481435 | V43: =IF(AND(V42>=STANDARD_YEAR,(V42-STANDARD_YEAR)<LIFETIME_SF), (V13-V14)*V22, (V13-V14)*V21) /Constants!$D$13/(Constants!$D$12*Constants!$D$10) -> 0.6696604791 | W43: =IF(AND(W42>=STANDARD_YEAR,(W42-STANDARD_YEAR)<LIFETIME_SF), (W13-W14)*W22, (W13-W14)*W21) /Constants!$D$13/(Constants!$D$12*Constants!$D$10) -> 0.7338187729 | X43: =IF(AND(X42>=STANDARD_YEAR,(X42-STANDARD_YEAR)<LIFETIME_SF), (X13-X14)*X22, (X13-X14)*X21) /Constants!$D$13/(Constants!$D$12*Constants!$D$10) -> 0.7166855985 | Y43: =IF(AND(Y42>=STANDARD_YEAR,(Y42-STANDARD_YEAR)<LIFETIME_SF), (Y13-Y14)*Y22, (Y13-Y14)*Y21) /Constants!$D$13/(Constants!$D$12*Constants!$D$10) -> 0.1074200142 | Z43: =IF(AND(Z42>=STANDARD_YEAR,(Z42-STANDARD_YEAR)<LIFETIME_SF), (Z13-Z14)*Z22, (Z13-Z14)*Z21) /Constants!$D$13/(Constants!$D$12*Constants!$D$10) -> 0.1084942143 | AA43: =IF(AND(AA42>=STANDARD_YEAR,(AA42-STANDARD_YEAR)<LIFETIME_SF), (AA13-AA14)*AA22, (AA13-AA14)*AA21) /Constants!$D$13/(Constants!$D$12*Constants!$D$10) -> 0.1095791565 | AB43: =IF(AND(AB42>=STANDARD_YEAR,(AB42-STANDARD_YEAR)<LIFETIME_SF), (AB13-AB14)*AB22, (AB13-AB14)*AB21) /Constants!$D$13/(Constants!$D$12*Constants!$D$10) -> 0.110674948
C44: Cumulative Savings | D44: =D39-D40 -> 0 | E44: 0 | F44: 0 | G44: 0 | H44: 0 | I44: 0.6322194661 | J44: 1.250326806 | K44: 1.86540617 | L44: 2.496294192 | M44: =M39-M40 -> 3.138072962 | N44: 3.791301319 | O44: 4.473703714 | P44: 5.149294656 | Q44: 5.775816028 | R44: 6.375851909 | S44: 6.967176774 | T44: 7.595961246 | U44: 8.23940939 | V44: 8.909069869 | W44: 9.642888642 | X44: 10.35957424 | Y44: 10.46699425 | Z44: 10.57548847 | AA44: 10.68506763 | AB44: 10.79574257
C45: DOE Aggregate Lifecycle Savings (formerly DOE Carbon proxy) | D45: =SUM($D$44:D44) -> 0 | E45: =SUM($D$44:E44) -> 0 | F45: =SUM($D$44:F44) -> 0 | G45: =SUM($D$44:G44) -> 0 | H45: =SUM($D$44:H44) -> 0 | I45: =SUM($D$44:I44) -> 0.6322194661 | J45: =SUM($D$44:J44) -> 1.882546272 | K45: =SUM($D$44:K44) -> 3.747952441 | L45: =SUM($D$44:L44) -> 6.244246633 | M45: =SUM($D$44:M44) -> 9.382319595 | N45: =SUM($D$44:N44) -> 13.17362091 | O45: =SUM($D$44:O44) -> 17.64732463 | P45: =SUM($D$44:P44) -> 22.79661928 | Q45: =SUM($D$44:Q44) -> 28.57243531 | R45: =SUM($D$44:R44) -> 34.94828722 | S45: =SUM($D$44:S44) -> 41.915464 | T45: =SUM($D$44:T44) -> 49.51142524 | U45: =SUM($D$44:U44) -> 57.75083463 | V45: =SUM($D$44:V44) -> 66.6599045 | W45: =SUM($D$44:W44) -> 76.30279314 | X45: =SUM($D$44:X44) -> 86.66236738 | Y45: =SUM($D$44:Y44) -> 97.12936164 | Z45: =SUM($D$44:Z44) -> 107.7048501 | AA45: =SUM($D$44:AA44) -> 118.3899177 | AB45: =SUM($D$44:AB44) -> 129.1856603
C46: Check | D46: =IF(ISNUMBER(C44),ROUND((D44-C44-D43),3),0) -> 0 | E46: =IF(ISNUMBER(D44),ROUND((E44-D44-E43),3),0) -> 0 | F46: 0 | G46: 0 | H46: 0 | I46: 0 | J46: 0 | K46: 0 | L46: 0 | M46: 0 | N46: 0 | O46: 0 | P46: 0 | Q46: 0 | R46: 0 | S46: 0 | T46: 0 | U46: 0 | V46: 0 | W46: 0 | X46: 0 | Y46: 0 | Z46: 0 | AA46: 0 | AB46: 0

Sheet Results-MF
C2: RESULTS - Multi-Family
C4: NAVIGATION
C6: COMMENTS
C9: MULTI-FAMILY
C11: Unit Energy Consumption (kWh/year) | D11: 2010 | E11: 2011 | F11: 2012 | G11: 2013 | H11: 2014 | I11: 2015 | J11: 2016 | K11: 2017 | L11: 2018 | M11: 2019 | N11: 2020 | O11: 2021 | P11: 2022 | Q11: 2023 | R11: 2024 | S11: 2025 | T11: 2026 | U11: 2027 | V11: 2028 | W11: 2029 | X11: 2030 | Y11: 2031 | Z11: 2032 | AA11: 2033 | AB11: 2034
C12: 6P UEC | D12: ='6P UEC Development'!$L$12 -> 263.2004281 | E12: ='6P UEC Development'!$L$12 -> 263.2004281 | F12: ='6P UEC Development'!$L$12 -> 263.2004281 | G12: ='6P UEC Development'!$L$12 -> 263.2004281 | H12: ='6P UEC Development'!$L$12 -> 263.2004281 | I12: ='6P UEC Development'!$L$12 -> 263.2004281 | J12: ='6P UEC Development'!$L$12 -> 263.2004281 | K12: ='6P UEC Development'!$L$12 -> 263.2004281 | L12: ='6P UEC Development'!$L$12 -> 263.2004281 | M12: ='6P UEC Development'!$L$12 -> 263.2004281 | N12: ='6P UEC Development'!$L$12 -> 263.2004281 | O12: ='6P UEC Development'!$L$12 -> 263.2004281 | P12: ='6P UEC Development'!$L$12 -> 263.2004281 | Q12: ='6P UEC Development'!$L$12 -> 263.2004281 | R12: ='6P UEC Development'!$L$12 -> 263.2004281 | S12: ='6P UEC Development'!$L$12 -> 263.2004281 | T12: ='6P UEC Development'!$L$12 -> 263.2004281 | U12: ='6P UEC Development'!$L$12 -> 263.2004281 | V12: ='6P UEC Development'!$L$12 -> 263.2004281 | W12: ='6P UEC Development'!$L$12 -> 263.2004281 | X12: ='6P UEC Development'!$L$12 -> 263.2004281 | Y12: ='6P UEC Development'!$L$12 -> 263.2004281 | Z12: ='6P UEC Development'!$L$12 -> 263.2004281 | AA12: ='6P UEC Development'!$L$12 -> 263.2004281 | AB12: ='6P UEC Development'!$L$12 -> 263.2004281
